{"text_format":"1","workbook":"xlsx","n_sheets":2,"sheets":["p_db","Sheet1"],"not_rendered":{"charts":0,"images":0,"macros":1,"external_links":0,"defined_names":2,"comments":0,"pivot_tables":0},"unopened":[],"bounds":{"document_bytes":16777216,"sheet_cells":100000,"rows_first":2000,"rows_last":500,"rows_between":2000,"halvings":0,"cell_chars":16384,"cell_head_chars":4096},"cells_cut":2,"cells_raw":0,"read":"whole","date_system":"1900"}

{"sheet":"p_db","index":0,"n_rows":1972,"n_cols":5,"rows_kept":1972,"cut":false,"hidden":false,"merged":[]}
[]
["URL","Hyperlink","Keyword","Description","Tags"]
["https://fastmobi.org/e/p_.html",{"$f":"HYPERLINK(T_public[[#This Row],[URL]])","v":"https://fastmobi.org/e/p_.html"},"p_.html","","fastmobi"]
["https://fastmobi.org/t/td.htm",{"$f":"HYPERLINK(T_public[[#This Row],[URL]])","v":"https://fastmobi.org/t/td.htm"},"widescreen text area ","","texta fastmobi"]
["https://search.brave.com/search?q=horse+breed+names&source=desktop&summary=1&summary_og=ebb0520e4d19ca5fc0a927",{"$f":"HYPERLINK(T_public[[#This Row],[URL]])","v":"https://search.brave.com/search?q=horse+breed+names&source=desktop&summary=1&summary_og=ebb0520e4d19ca5fc0a927"},"horse breeds","horse breeds • American Quarter Horse {Friesian family} • Arabian Thoroughbred • Spanish andalusian {Pure Spanish Horse (PRE) or Pura Raza Española}","horse animals chevaux cheval"]
["https://saveurs-epicerie-urbaine.ca/",{"$f":"HYPERLINK(T_public[[#This Row],[URL]])","v":"https://saveurs-epicerie-urbaine.ca/"},"saveurs","saveurs ig fb x","boucher butcher"]
["https://thebutchery.ca/",{"$f":"HYPERLINK(T_public[[#This Row],[URL]])","v":"https://thebutchery.ca/"},"the butchery ","the butchery ~boucher ~butcher Bells Corners/1821 Robertson Rd./Ottawa, On/K2H 8X3 Store Hours/Monday to Sunday 9:00 am -6:00 pm Phone: (613) 829-9133 / Email: info@meatthebutchery.com","boucher butcher"]
["https://www.lamaisonbisson.com/",{"$f":"HYPERLINK(T_public[[#This Row],[URL]])","v":"https://www.lamaisonbisson.com/"},"la maison bisson ","la maison bisson ~boucher ~butcher tél: 819.772.0702/ courriel: info@lamaisonbisson.ca adresse: 2 Boulevard Louise-Campagna, Gatineau, QC J9A 2X1 google map","boucher butcher"]
["https://www.glebemeatmarket.ca/",{"$f":"HYPERLINK(T_public[[#This Row],[URL]])","v":"https://www.glebemeatmarket.ca/"},"glebe meat market ltd ","glebe meat market ltd ~boucher ~butcher 613 235 9595/info@glebemeatmarket.ca Monday, Closed Tuesday – Friday, 9:00 AM – 6:00 PM Saturday, 8:00 AM – 6:00 PM Sunday, Closed","boucher butcher"]
["https://wellingtonbutchery.com/",{"$f":"HYPERLINK(T_public[[#This Row],[URL]])","v":"https://wellingtonbutchery.com/"},"wellington butchery ","wellington butchery ~boucher ~butcher info@wellingtonbutchery.com / (613) 722-0086.","boucher butcher"]
["https://www.google.com/maps/place/Boucherie+La+Palmeraie/@45.4250851,-75.8100162,13z/data=!4m10!1m2!2m1!1sbutcher!3m6!1s0x4cce036751b7fbff:0x253a6e8c28e9f137!8m2!3d45.4379175!4d-75.7373373!15sCgdidXRjaGVykgEMYnV0Y2hlcl9zaG9w4AEA!16s%2Fg%2F1hc6m7dq9?entry=ttu",{"$f":"HYPERLINK(T_public[[#This Row],[URL]])","v":{"$error":"#VALUE!"}},"boucherie la palmeraie ","boucherie la palmeraie ~boucher ~butcher 9 rue Fortier/ 819 778 1145","boucher butcher"]
["https://www.angus.org/",{"$f":"HYPERLINK(T_public[[#This Row],[URL]])","v":"https://www.angus.org/"},"american angus association","","épicerie grocery beef bœuf"]
["https://www.lemarchewakim.com/",{"$f":"HYPERLINK(T_public[[#This Row],[URL]])","v":"https://www.lemarchewakim.com/"},"marché wakim ","","épicerie grocery"]
["https://www.boulangerielusa.ca/",{"$f":"HYPERLINK(T_public[[#This Row],[URL]])","v":"https://www.boulangerielusa.ca/"},"boulangerielusa.ca  ","boulangerielusa.ca   Menu tos ueat ordering service","takeout"]
["https://ottawachinatown.ca/",{"$f":"HYPERLINK(T_public[[#This Row],[URL]])","v":"https://ottawachinatown.ca/"},"ottawa chinatown","","épicerie grocery"]
["https://g.co/kgs/uAeHfWg",{"$f":"HYPERLINK(T_public[[#This Row],[URL]])","v":"https://g.co/kgs/uAeHfWg"},"Kowloon Market","","épicerie grocery"]
["https://g.co/kgs/tii842T",{"$f":"HYPERLINK(T_public[[#This Row],[URL]])","v":"https://g.co/kgs/tii842T"},"South Asian Supermarket","","épicerie grocery"]
["https://g.co/kgs/tii842T",{"$f":"HYPERLINK(T_public[[#This Row],[URL]])","v":"https://g.co/kgs/tii842T"},"Phuoc Loi","","épicerie grocery"]
["https://ottawafarmersmarket.ca/lansdowne-market/",{"$f":"HYPERLINK(T_public[[#This Row],[URL]])","v":"https://ottawafarmersmarket.ca/lansdowne-market/"},"ottawa farmers market | landsdowne","","épicerie grocery"]
["https://laboiteagrains.com/",{"$f":"HYPERLINK(T_public[[#This Row],[URL]])","v":"https://laboiteagrains.com/"},"La boîte à grain | boite à grain","La boîte à grain | boite à grain google.maps","épicerie grocery"]
["https://www.maxi.ca/store-locator/details/8702",{"$f":"HYPERLINK(T_public[[#This Row],[URL]])","v":"https://www.maxi.ca/store-locator/details/8702"},"épicerie: maxi","","épicerie grocery"]
["https://www.superc.ca/",{"$f":"HYPERLINK(T_public[[#This Row],[URL]])","v":"https://www.superc.ca/"},"épicerie: super c","","épicerie grocery"]
["https://www.iga.net/fr/recherche_de_magasin/magasin/8476-iga-st-joseph",{"$f":"HYPERLINK(T_public[[#This Row],[URL]])","v":"https://www.iga.net/fr/recherche_de_magasin/magasin/8476-iga-st-joseph"},"épicerie: iga","","épicerie grocery"]
["https://www.provigo.ca/",{"$f":"HYPERLINK(T_public[[#This Row],[URL]])","v":"https://www.provigo.ca/"},"épicerie: provigo","","épicerie grocery"]
["https://www.metro.ca/en",{"$f":"HYPERLINK(T_public[[#This Row],[URL]])","v":"https://www.metro.ca/en"},"épicerie: métro","","épicerie grocery"]
["https://stores.gianttiger.com/qc/gatineau/",{"$f":"HYPERLINK(T_public[[#This Row],[URL]])","v":"https://stores.gianttiger.com/qc/gatineau/"},"giant tiger tigre géant","","épicerie grocery"]
["https://www.foodbasics.ca/flyer.en.html",{"$f":"HYPERLINK(T_public[[#This Row],[URL]])","v":"https://www.foodbasics.ca/flyer.en.html"},"épicerie: food basics","","épicerie grocery"]
["https://www.groupeadonis.ca/",{"$f":"HYPERLINK(T_public[[#This Row],[URL]])","v":"https://www.groupeadonis.ca/"},"épicerie: adonis","","épicerie grocery"]
["https://www.labottega.ca/pages/in-store-specials",{"$f":"HYPERLINK(T_public[[#This Row],[URL]])","v":"https://www.labottega.ca/pages/in-store-specials"},"épicerie: la bottega","","épicerie grocery"]
["https://voila.login-seconnecter.ca/login.html?gig_ui_locales=en-CA",{"$f":"HYPERLINK(T_public[[#This Row],[URL]])","v":"https://voila.login-seconnecter.ca/login.html?gig_ui_locales=en-CA"},"épicerie: voila","","épicerie grocery"]
["https://www.farmboy.ca/",{"$f":"HYPERLINK(T_public[[#This Row],[URL]])","v":"https://www.farmboy.ca/"},"farm boy","","épicerie grocery"]
["https://www.facebook.com/LatinProductsOttawa/",{"$f":"HYPERLINK(T_public[[#This Row],[URL]])","v":"https://www.facebook.com/LatinProductsOttawa/"},"épicerie: la tiendita","","épicerie grocery"]
["https://www.lacoloniagroceries.com/",{"$f":"HYPERLINK(T_public[[#This Row],[URL]])","v":"https://www.lacoloniagroceries.com/"},"épicerie: la colonia","","épicerie grocery"]
["https://www.bienvenidos.ca/",{"$f":"HYPERLINK(T_public[[#This Row],[URL]])","v":"https://www.bienvenidos.ca/"},"épicerie: bienvenidos latin market","","épicerie grocery"]
["https://www.nofrills.ca/print-flyer?navid=flyout-L2-Flyer&redirect=true",{"$f":"HYPERLINK(T_public[[#This Row],[URL]])","v":"https://www.nofrills.ca/print-flyer?navid=flyout-L2-Flyer&redirect=true"},"NoFrills | Orléans Joe & Lily's","","épicerie grocery"]
["https://www.jeancoutu.com/en/online-flyers/?store=51",{"$f":"HYPERLINK(T_public[[#This Row],[URL]])","v":"https://www.jeancoutu.com/en/online-flyers/?store=51"},"circulaire.flyer jean coutu","","circulaire flyer"]
["https://www.google.com/maps/place/Mercado+Latino/@45.4337165,-75.6679907,17z/data=!3m1!4b1!4m6!3m5!1s0x4cce05147cf69089:0xf8e86ca0287272e9!8m2!3d45.4337165!4d-75.6679907!16s%2Fg%2F1pyqmyb5y?authuser=0&hl=en&entry=ttu",{"$f":"HYPERLINK(T_public[[#This Row],[URL]])","v":"https://www.google.com/maps/place/Mercado+Latino/@45.4337165,-75.6679907,17z/data=!3m1!4b1!4m6!3m5!1s0x4cce05147cf69089:0xf8e86ca0287272e9!8m2!3d45.4337165!4d-75.6679907!16s%2Fg%2F1pyqmyb5y?authuser=0&hl=en&entry=ttu"},"épicerie: Mercado Latino","","épicerie grocery latino"]
["https://www.ricardocuisine.com/mon-espace/mes-recettes?sort=title&searchValue=&content-type=recipe%C2%A4tPage=1",{"$f":"HYPERLINK(T_public[[#This Row],[URL]])","v":"https://www.ricardocuisine.com/mon-espace/mes-recettes?sort=title&searchValue=&content-type=recipe%C2%A4tPage=1"},"mes recettes ricardo","","recettes recipe"]
["https://www.youtube.com/watch?v=-4PZHHCUJZc",{"$f":"HYPERLINK(T_public[[#This Row],[URL]])","v":"https://www.youtube.com/watch?v=-4PZHHCUJZc"},"chicken breasts","","meal prep"]
["https://www.youtube.com/watch?v=ts5aLKSEij0",{"$f":"HYPERLINK(T_public[[#This Row],[URL]])","v":"https://www.youtube.com/watch?v=ts5aLKSEij0"},"Stock Your Freezer with Homemade Meals! | My No-Fuss Meal Prep Routine | That Practical Mom\n","","meal prep"]
["https://www.youtube.com/watch?v=AVO0ifle-OU",{"$f":"HYPERLINK(T_public[[#This Row],[URL]])","v":"https://www.youtube.com/watch?v=AVO0ifle-OU"},"Why You Should Meal Prep Like A Restaurant | \nKWOOWK","","meal prep"]
["https://www.youtube.com/watch?v=1N6hbRbyAeQ",{"$f":"HYPERLINK(T_public[[#This Row],[URL]])","v":"https://www.youtube.com/watch?v=1N6hbRbyAeQ"},"Meal Prep For The Week In Under An Hour | Sweet and Sour Chicken | Chef Jack Ovens","","meal prep"]
["https://www.youtube.com/results?search_query=meal+prep+for+the+week+chicken",{"$f":"HYPERLINK(T_public[[#This Row],[URL]])","v":"https://www.youtube.com/results?search_query=meal+prep+for+the+week+chicken"},"query=meal+prep+for+the+week+chicken","","meal prep"]
["https://www.fooddolls.com/chicken-marinade-recipes/",{"$f":"HYPERLINK(T_public[[#This Row],[URL]])","v":"https://www.fooddolls.com/chicken-marinade-recipes/"},"chicken marinade recipes","","recettes recipe"]
["https://www.apple.com/ca/search/apple-m4-ipad?src=globalnav",{"$f":"HYPERLINK(T_public[[#This Row],[URL]])","v":"https://www.apple.com/ca/search/apple-m4-ipad?src=globalnav"},"Cool Runnings Plus Chicken Seasoning","Cool Runnings Plus Chicken Seasoning realcanadiansuperstore walmart ingrédients: Salt,Sugars,Spices,Corn Starch,Dehydrated Garlic,Dehydrated Onion,Vegetable Oil,Citric Acid. ingredients: Sel,Sucres,Épices,Amidon de maïs,Ail déhydraté,Oignon déhydraté,Huile végétale,Acide citrique."]
["",{"$f":"HYPERLINK(T_public[[#This Row],[URL]])","v":""},"Réserve JP. Chevet / Merlot Cabernet",""]
["https://www.saq.com/",{"$f":"HYPERLINK(T_public[[#This Row],[URL]])","v":"https://www.saq.com/"},"saq [québec] FR","","quebec québec"]
["https://www.lcbo.com/fr/",{"$f":"HYPERLINK(T_public[[#This Row],[URL]])","v":"https://www.lcbo.com/fr/"},"lcbo [ontario] FR","","ontario"]
["https://metro.service-now.com/moi?lang=fr&id=csm_moi_demand",{"$f":"HYPERLINK(T_public[[#This Row],[URL]])","v":"https://metro.service-now.com/moi?lang=fr&id=csm_moi_demand"},"programme moi | métro",""]
["https://www.sceneplus.ca/rewards",{"$f":"HYPERLINK(T_public[[#This Row],[URL]])","v":"https://www.sceneplus.ca/rewards"},"scene+",""]
["tel:+18002671177",{"$f":"HYPERLINK(T_public[[#This Row],[URL]])","v":"tel:+18002671177"},"Poste Canada | Call 1-800-267-1177","","post se"]
["",{"$f":"HYPERLINK(T_public[[#This Row],[URL]])","v":""},"air fryer chicken : 360F : 9","","temperature oven air fryer"]
["",{"$f":"HYPERLINK(T_public[[#This Row],[URL]])","v":""},"air fryer hamburger patty : 350F : 11m","","temperature oven air fryer"]
["",{"$f":"HYPERLINK(T_public[[#This Row],[URL]])","v":""},"pan steak seer : laser 400°F","pan steak seer : laser 400°F oven 400°F; internal 120°F","temperature meat thermometer steak"]
["https://www.loblaws.ca/print-flyer?navid=flyout-L2-Flyer",{"$f":"HYPERLINK(T_public[[#This Row],[URL]])","v":"https://www.loblaws.ca/print-flyer?navid=flyout-L2-Flyer"},"loblaws.ca",""]
["https://www.realcanadiansuperstore.ca/print-flyer?navid=flyout-L2-Flyer",{"$f":"HYPERLINK(T_public[[#This Row],[URL]])","v":"https://www.realcanadiansuperstore.ca/print-flyer?navid=flyout-L2-Flyer"},"circulaire.flyer realcanadiansuperstore.ca","","circulaire flyer"]
["https://www.walmart.ca/fr/flyer",{"$f":"HYPERLINK(T_public[[#This Row],[URL]])","v":"https://www.walmart.ca/fr/flyer"}," walmart.ca","","circulaire flyer"]
["https://www.superc.ca/circulaire",{"$f":"HYPERLINK(T_public[[#This Row],[URL]])","v":"https://www.superc.ca/circulaire"}," super c","","circulaire flyer"]
["https://www.maxi.ca/print-flyer",{"$f":"HYPERLINK(T_public[[#This Row],[URL]])","v":"https://www.maxi.ca/print-flyer"}," maxi","","circulaire flyer"]
["https://www.groupeadonis.ca/circulaire",{"$f":"HYPERLINK(T_public[[#This Row],[URL]])","v":"https://www.groupeadonis.ca/circulaire"}," adonis","","circulaire flyer"]
["https://www.labottega.ca/pages/in-store-specials",{"$f":"HYPERLINK(T_public[[#This Row],[URL]])","v":"https://www.labottega.ca/pages/in-store-specials"}," la bottega","","circulaire flyer"]
["https://www.iga.net/fr/circulaire/circulaire",{"$f":"HYPERLINK(T_public[[#This Row],[URL]])","v":"https://www.iga.net/fr/circulaire/circulaire"}," iga","","circulaire flyer"]
["https://www.provigo.ca/print-flyer?icta=flyer-homepage-hero-banner-guest",{"$f":"HYPERLINK(T_public[[#This Row],[URL]])","v":"https://www.provigo.ca/print-flyer?icta=flyer-homepage-hero-banner-guest"}," provigo","","circulaire flyer"]
["https://spiceology.com/products/citric-acid/",{"$f":"HYPERLINK(T_public[[#This Row],[URL]])","v":"https://spiceology.com/products/citric-acid/"},"citric acid | sour spice",""]
["https://www.americastestkitchen.com/cooksillustrated",{"$f":"HYPERLINK(T_public[[#This Row],[URL]])","v":"https://www.americastestkitchen.com/cooksillustrated"},"cooks illustrated",""]
["https://www.thespruceeats.com/ingredient-substitution-chart-3054056",{"$f":"HYPERLINK(T_public[[#This Row],[URL]])","v":"https://www.thespruceeats.com/ingredient-substitution-chart-3054056"},"ingredient substitution chart",""]
["https://www.allrecipes.com/article/common-ingredient-substitutions/",{"$f":"HYPERLINK(T_public[[#This Row],[URL]])","v":"https://www.allrecipes.com/article/common-ingredient-substitutions/"},"all recipies common ingredient substitutions",""]
["https://www.almanac.com/content/common-ingredient-substitutions",{"$f":"HYPERLINK(T_public[[#This Row],[URL]])","v":"https://www.almanac.com/content/common-ingredient-substitutions"},"almanac common ingredients substitutions",""]
["https://www.thefreshcooky.com/ingredient-substitution-chart/",{"$f":"HYPERLINK(T_public[[#This Row],[URL]])","v":"https://www.thefreshcooky.com/ingredient-substitution-chart/"},"the fresh cooky substitutions",""]
["https://www.facebook.com/luckypeach",{"$f":"HYPERLINK(T_public[[#This Row],[URL]])","v":"https://www.facebook.com/luckypeach"},"Momofuku","","recettes recipe"]
["https://www.ricardocuisine.com/recettes/plats-principaux?searchValue=&sort=alpha&content-type=recipe&grouping-type=3%C2%A4tPage=1",{"$f":"HYPERLINK(T_public[[#This Row],[URL]])","v":"https://www.ricardocuisine.com/recettes/plats-principaux?searchValue=&sort=alpha&content-type=recipe&grouping-type=3%C2%A4tPage=1"},"ricardo","","recettes recipe"]
["https://www.chowhound.com/category/recipes/",{"$f":"HYPERLINK(T_public[[#This Row],[URL]])","v":"https://www.chowhound.com/category/recipes/"},"chowhound","","recettes recipe"]
["https://www.allrecipes.com/recipe/8453018/easy-air-fryer-whole-chicken/",{"$f":"HYPERLINK(T_public[[#This Row],[URL]])","v":"https://www.allrecipes.com/recipe/8453018/easy-air-fryer-whole-chicken/"},"air fryer whole chicken","","recettes recipe"]
["https://www.wholesomeyum.com/sauteed-eggplant/",{"$f":"HYPERLINK(T_public[[#This Row],[URL]])","v":"https://www.wholesomeyum.com/sauteed-eggplant/"},"eggplant","eggplant ~recipes ~recettes yt Wholesome Yum ~recipes ~recettes air fryer eggplant | 15 minutes ~recipes ~recettes eggplant lasagna ~recipes ~recettes","recettes recipe"]
["https://www.wholesomeyum.com/memberlogin",{"$f":"HYPERLINK(T_public[[#This Row],[URL]])","v":"https://www.wholesomeyum.com/memberlogin"},"wholesome yum.com","","recettes recipe"]
["https://fdc.nal.usda.gov/food-search?query=&type=Foundation",{"$f":"HYPERLINK(T_public[[#This Row],[URL]])","v":"https://fdc.nal.usda.gov/food-search?query=&type=Foundation"},"food search USDA",""]
["https://www.foodreference.com/",{"$f":"HYPERLINK(T_public[[#This Row],[URL]])","v":"https://www.foodreference.com/"},"food reference",""]
["https://www.youtube.com/watch?v=oTsMZ38vxYc",{"$f":"HYPERLINK(T_public[[#This Row],[URL]])","v":"https://www.youtube.com/watch?v=oTsMZ38vxYc"},"how to eat mango?",""]
["https://www.mondelezinternational.com/our-brands/",{"$f":"HYPERLINK(T_public[[#This Row],[URL]])","v":"https://www.mondelezinternational.com/our-brands/"},"mondelez brands","mondelez brands ~chocolate ~toblerone ΣΟΚΟΛΑΤΑ ΠΑΥΛΙΑΟΥ ΥΓΕΙΑΣ CHOCOLAT SANTÉ PAULIAOU PAULIAOU HEALTH CHOCOLATE Toblerone","chocolat brand"]
["https://trineday.com/",{"$f":"HYPERLINK(T_public[[#This Row],[URL]])","v":"https://trineday.com/"},"trineday.com | bruce torres",""]
["https://editions.flammarion.com/la-docte-ignorance/9782080712769",{"$f":"HYPERLINK(T_public[[#This Row],[URL]])","v":"https://editions.flammarion.com/la-docte-ignorance/9782080712769"},"Nicolas de Cues | La Docte Ignorance",""]
["https://www.renaud-bray.com/Livres_Produit.aspx?id=1377336&def=Docte+ignorance(La)%2cCUES%2c+NICOLAS+DE%2c9782080712769",{"$f":"HYPERLINK(T_public[[#This Row],[URL]])","v":"https://www.renaud-bray.com/Livres_Produit.aspx?id=1377336&def=Docte+ignorance(La)%2cCUES%2c+NICOLAS+DE%2c9782080712769"},"renaud-bray | La Docte Ignorance | Nicolas de Cues",""]
["https://www.archambault.ca/livres/docte-ignorance-la/nicolas-de-cues/9782080712769/?id=1377336&cat=1884314",{"$f":"HYPERLINK(T_public[[#This Row],[URL]])","v":"https://www.archambault.ca/livres/docte-ignorance-la/nicolas-de-cues/9782080712769/?id=1377336&cat=1884314"},"archambault | La Docte Ignorance | Nicolas de Cues",""]
["https://www.goodreads.com/book/show/1700735.The_Managerial_Revolution",{"$f":"HYPERLINK(T_public[[#This Row],[URL]])","v":"https://www.goodreads.com/book/show/1700735.The_Managerial_Revolution"},"The Managerial Revolution: What is Happening in the World by James Burnham",""]
["https://www.amazon.ca/Chaos-Charles-History-Sixtiest-Sixties-ebook/dp/B07K6J273Q?ref_=ast_author_mpb",{"$f":"HYPERLINK(T_public[[#This Row],[URL]])","v":"https://www.amazon.ca/Chaos-Charles-History-Sixtiest-Sixties-ebook/dp/B07K6J273Q?ref_=ast_author_mpb"},"Chaos: Charles Manson, the CIA, and the Secret History of the Sixties | Author: Tom O'Neill",""]
["https://archive.org/details/mein-kampf-by-adolf-hitler-ralph-manheim-translation/",{"$f":"HYPERLINK(T_public[[#This Row],[URL]])","v":"https://archive.org/details/mein-kampf-by-adolf-hitler-ralph-manheim-translation/"},"Mein Kampf",""]
["café. ",{"$f":"HYPERLINK(T_public[[#This Row],[URL]])","v":"café. "},"bialetti ","","café coffee"]
["https://www.nespresso.com/ca/en/order/capsules/vertuo",{"$f":"HYPERLINK(T_public[[#This Row],[URL]])","v":"https://www.nespresso.com/ca/en/order/capsules/vertuo"},"nespresso vertuo ","","café coffee"]
["https://www.nespresso.com/ca/en/order/capsules/original",{"$f":"HYPERLINK(T_public[[#This Row],[URL]])","v":"https://www.nespresso.com/ca/en/order/capsules/original"},"nespresso original ","","café coffee"]
["https://www.lavazza.ca/en/espresso-collection",{"$f":"HYPERLINK(T_public[[#This Row],[URL]])","v":"https://www.lavazza.ca/en/espresso-collection"},"lavazza ","lavazza ~coffee lavazza retail in canada","café coffee"]
["https://wifispc.com",{"$f":"HYPERLINK(T_public[[#This Row],[URL]])","v":"https://wifispc.com"},"WiFi spc","WiFi spc Get WiFi Passwords for different stores and restaurants."]
["https://ueat.io/en/uboard/",{"$f":"HYPERLINK(T_public[[#This Row],[URL]])","v":"https://ueat.io/en/uboard/"},"u eat","","restaurant takeout"]
["https://order.st-hubert.com/",{"$f":"HYPERLINK(T_public[[#This Row],[URL]])","v":"https://order.st-hubert.com/"},"st-hubert","","restaurant takeout"]
["https://pirhogrill.com/menu/",{"$f":"HYPERLINK(T_public[[#This Row],[URL]])","v":"https://pirhogrill.com/menu/"},"Pirho; Fresh Greek Grill",""]
["https://meetnoodleottawa.com/",{"$f":"HYPERLINK(T_public[[#This Row],[URL]])","v":"https://meetnoodleottawa.com/"},"meet noodle metcalfe","","restaurant"]
["https://order.thaliottawa.ca/",{"$f":"HYPERLINK(T_public[[#This Row],[URL]])","v":"https://order.thaliottawa.ca/"},"thali coconut lagoon | O'Connor @ Laurier",""]
["https://www.johnnyfarina.com/Menus",{"$f":"HYPERLINK(T_public[[#This Row],[URL]])","v":"https://www.johnnyfarina.com/Menus"},"johnny farina",""]
["https://cumminandpepper.com/",{"$f":"HYPERLINK(T_public[[#This Row],[URL]])","v":"https://cumminandpepper.com/"},"cumin & pepper",""]
["https://www.tosca-ristorante.ca/",{"$f":"HYPERLINK(T_public[[#This Row],[URL]])","v":"https://www.tosca-ristorante.ca/"},"tosca",""]
["https://order.nandos.ca/menu/nandos-ottawa-elgin-street",{"$f":"HYPERLINK(T_public[[#This Row],[URL]])","v":"https://order.nandos.ca/menu/nandos-ottawa-elgin-street"},"Nandos",""]
["https://www.madradish.com/our-menu/",{"$f":"HYPERLINK(T_public[[#This Row],[URL]])","v":"https://www.madradish.com/our-menu/"},"mad radish",""]
["https://www.madradish.com/our-menu/bowls/",{"$f":"HYPERLINK(T_public[[#This Row],[URL]])","v":"https://www.madradish.com/our-menu/bowls/"},"bowls from mad radish",""]
["https://www.babelio.com/recherche.php",{"$f":"HYPERLINK(T_public[[#This Row],[URL]])","v":"https://www.babelio.com/recherche.php"},"Babelio",""]
["https://www.thriftbooks.com",{"$f":"HYPERLINK(T_public[[#This Row],[URL]])","v":"https://www.thriftbooks.com"},"buy books: thriftbooks",""]
["https://leanpub.com/",{"$f":"HYPERLINK(T_public[[#This Row],[URL]])","v":"https://leanpub.com/"},"leanpub",""]
["https://www.rideauauctions.com/",{"$f":"HYPERLINK(T_public[[#This Row],[URL]])","v":"https://www.rideauauctions.com/"},"rideau auctions ","","usedVehicle"]
["https://www.adesa.ca/",{"$f":"HYPERLINK(T_public[[#This Row],[URL]])","v":"https://www.adesa.ca/"},"adesa (auctions) in vars highway 417 ","","usedVehicle"]
["https://drivetownottawa.com/",{"$f":"HYPERLINK(T_public[[#This Row],[URL]])","v":"https://drivetownottawa.com/"},"drive town ottawa drivetownottawa.com ","","usedVehicle"]
["https://www.carpages.ca/",{"$f":"HYPERLINK(T_public[[#This Row],[URL]])","v":"https://www.carpages.ca/"},"car pages canada ","","usedVehicle"]
["https://www.autotrader.ca/cars/on/ottawa/",{"$f":"HYPERLINK(T_public[[#This Row],[URL]])","v":"https://www.autotrader.ca/cars/on/ottawa/"},"auto trader ","","usedVehicle"]
["https://www.cargurus.ca/Cars/l-Used-Van-Ottawa-bg8_L412564",{"$f":"HYPERLINK(T_public[[#This Row],[URL]])","v":"https://www.cargurus.ca/Cars/l-Used-Van-Ottawa-bg8_L412564"},"car gurus ","","usedVehicle"]
["https://minitruckcanada.com/MiniTrucks/mini-trucks-what-is.html",{"$f":"HYPERLINK(T_public[[#This Row],[URL]])","v":"https://minitruckcanada.com/MiniTrucks/mini-trucks-what-is.html"},"minitrucks ","","usedVehicle"]
["https://usedtrucksottawa.ca/",{"$f":"HYPERLINK(T_public[[#This Row],[URL]])","v":"https://usedtrucksottawa.ca/"},"used trucks ottawa ","","usedVehicle"]
["https://www.canadianautomall.com/",{"$f":"HYPERLINK(T_public[[#This Row],[URL]])","v":"https://www.canadianautomall.com/"},"canadian auto mall ","","usedVehicle"]
["https://www.enterprisetrucks.com/truckrental/en_US/used-trucks-for-sale.html",{"$f":"HYPERLINK(T_public[[#This Row],[URL]])","v":"https://www.enterprisetrucks.com/truckrental/en_US/used-trucks-for-sale.html"},"enterprise used trucks for sale ","","usedVehicle"]
["https://www.auctionaccess.com/about-auctionaccess/index.html",{"$f":"HYPERLINK(T_public[[#This Row],[URL]])","v":"https://www.auctionaccess.com/about-auctionaccess/index.html"},"(wholesale) auction access ","","usedVehicle"]
["https://www.openlane.ca/en/buyers/",{"$f":"HYPERLINK(T_public[[#This Row],[URL]])","v":"https://www.openlane.ca/en/buyers/"},"openlane.ca ","","usedVehicle"]
["https://www.enterprisetrucks.ca/truckrental/en_CA/locations/ca/e1c38t-ottawa.html",{"$f":"HYPERLINK(T_public[[#This Row],[URL]])","v":"https://www.enterprisetrucks.ca/truckrental/en_CA/locations/ca/e1c38t-ottawa.html"},"enterprise trucks ottawa",""]
["https://www.avis.ca/en/locations/ca/on/ottawa/pickup-truck-rental-ottawa",{"$f":"HYPERLINK(T_public[[#This Row],[URL]])","v":"https://www.avis.ca/en/locations/ca/on/ottawa/pickup-truck-rental-ottawa"},"avis car & trucks ottawaa","","carTruckRental"]
["https://www.classifiedsottawa.ca/",{"$f":"HYPERLINK(T_public[[#This Row],[URL]])","v":"https://www.classifiedsottawa.ca/"},"classifiedsottawa.ca",""]
["https://www.realtor.ca/",{"$f":"HYPERLINK(T_public[[#This Row],[URL]])","v":"https://www.realtor.ca/"},"realtor.ca","","immobilier"]
["https://duproprio.com/fr",{"$f":"HYPERLINK(T_public[[#This Row],[URL]])","v":"https://duproprio.com/fr"},"duProprio.com",""]
["https://www.youtube.com/watch?v=uZ725TPkwN4",{"$f":"HYPERLINK(T_public[[#This Row],[URL]])","v":"https://www.youtube.com/watch?v=uZ725TPkwN4"},"3 meilleures villes où investir | cory albert","3 meilleures villes où investir ~cory albert 3. Gatineau 2. Trois-Rivières 1. Sherbrooke","immobilier"]
["https://constructionlaverendrye.com/modeles/sonoma/",{"$f":"HYPERLINK(T_public[[#This Row],[URL]])","v":"https://constructionlaverendrye.com/modeles/sonoma/"},"construction laverendrye | sonoma","","nouvellesConstructions"]
["https://constructionlaverendrye.com/",{"$f":"HYPERLINK(T_public[[#This Row],[URL]])","v":"https://constructionlaverendrye.com/"},"construction laverendrye","","nouvellesConstructions"]
["https://constructionlaverendrye.com/community/jette/",{"$f":"HYPERLINK(T_public[[#This Row],[URL]])","v":"https://constructionlaverendrye.com/community/jette/"},"construction laverendrye communauté | jetté","","nouvellesConstructions"]
["https://www.netflix.com/browse/my-list",{"$f":"HYPERLINK(T_public[[#This Row],[URL]])","v":"https://www.netflix.com/browse/my-list"},"netflix mylist","","netflix"]
["https://www.netflix-codes.com/fr#Films%20classiques",{"$f":"HYPERLINK(T_public[[#This Row],[URL]])","v":"https://www.netflix-codes.com/fr#Films%20classiques"},"netflix-codes classique","","netflix"]
["https://www.netflix-codes.com/fr#Films%20ind%C3%A9pendants",{"$f":"HYPERLINK(T_public[[#This Row],[URL]])","v":"https://www.netflix-codes.com/fr#Films%20ind%C3%A9pendants"},"Films indépendants","","films netflix indy"]
["https://www.netflix.com/browse/genre/10504",{"$f":"HYPERLINK(T_public[[#This Row],[URL]])","v":"https://www.netflix.com/browse/genre/10504"},"netflix-codes Political Thriller movies","","netflix"]
["https://www.netflix.com/browse/genre/8985",{"$f":"HYPERLINK(T_public[[#This Row],[URL]])","v":"https://www.netflix.com/browse/genre/8985"},"netflix-codes Martial Arts movies","","netflix"]
["https://www.netflix.com/browse/genre/58886",{"$f":"HYPERLINK(T_public[[#This Row],[URL]])","v":"https://www.netflix.com/browse/genre/58886"},"netflix-codes German movies","","netflix"]
["https://www.netflix.com/browse/genre/3960",{"$f":"HYPERLINK(T_public[[#This Row],[URL]])","v":"https://www.netflix.com/browse/genre/3960"},"netflix-codes Chinese ovies","","netflix"]
["https://www.netflix.com/browse/genre/3960",{"$f":"HYPERLINK(T_public[[#This Row],[URL]])","v":"https://www.netflix.com/browse/genre/3960"},"netflix-codes Middle Eastern Movies","","netflix"]
["https://www.netflix.com/browse/genre/7700",{"$f":"HYPERLINK(T_public[[#This Row],[URL]])","v":"https://www.netflix.com/browse/genre/7700"},"netflix-codes Western","","netflix"]
["https://www.netflix.com/browse/genre/11567",{"$f":"HYPERLINK(T_public[[#This Row],[URL]])","v":"https://www.netflix.com/browse/genre/11567"},"netflix-codes Russian movies","","russia movies"]
["http://film-can.com/cinema/Ontario/Greater+Ottawa",{"$f":"HYPERLINK(T_public[[#This Row],[URL]])","v":"http://film-can.com/cinema/Ontario/Greater+Ottawa"},"film | filmcan",""]
["https://www.primevideo.com/",{"$f":"HYPERLINK(T_public[[#This Row],[URL]])","v":"https://www.primevideo.com/"},"primevideo ","","stream"]
["https://tv.apple.com/ca",{"$f":"HYPERLINK(T_public[[#This Row],[URL]])","v":"https://tv.apple.com/ca"},"apple tv ","","stream"]
["https://www.justwatch.com/ca",{"$f":"HYPERLINK(T_public[[#This Row],[URL]])","v":"https://www.justwatch.com/ca"},"justwatch ","","stream"]
["https://reelgood.com/",{"$f":"HYPERLINK(T_public[[#This Row],[URL]])","v":"https://reelgood.com/"},"reelgood ","","stream"]
["https://www.filmsforaction.org/",{"$f":"HYPERLINK(T_public[[#This Row],[URL]])","v":"https://www.filmsforaction.org/"},"filmsforaction.org films for action","","documentaries films"]
["https://www.themoviedb.org/",{"$f":"HYPERLINK(T_public[[#This Row],[URL]])","v":"https://www.themoviedb.org/"},"tmdb","","movies films"]
["https://imdb.com",{"$f":"HYPERLINK(T_public[[#This Row],[URL]])","v":"https://imdb.com"},"imdb","","movies films"]
["https://contribute.imdb.com/czone",{"$f":"HYPERLINK(T_public[[#This Row],[URL]])","v":"https://contribute.imdb.com/czone"},"imdb contributor",""]
["https://www.kanopy.com/en",{"$f":"HYPERLINK(T_public[[#This Row],[URL]])","v":"https://www.kanopy.com/en"},"kanopy","","stream documentaries films"]
["https://tubitv.com/",{"$f":"HYPERLINK(T_public[[#This Row],[URL]])","v":"https://tubitv.com/"},"tubi tv ","","stream"]
["https://www.plex.tv/",{"$f":"HYPERLINK(T_public[[#This Row],[URL]])","v":"https://www.plex.tv/"},"plex tv ","","stream"]
["https://www.criterionchannel.com/",{"$f":"HYPERLINK(T_public[[#This Row],[URL]])","v":"https://www.criterionchannel.com/"},"the criterion channel",""]
["https://uflix.cc/movie",{"$f":"HYPERLINK(T_public[[#This Row],[URL]])","v":"https://uflix.cc/movie"},"stream movies","","stream"]
["https://amblin.com/tv/the-americans/",{"$f":"HYPERLINK(T_public[[#This Row],[URL]])","v":"https://amblin.com/tv/the-americans/"},"the americans","","se"]
["https://www.pond5.com/free/footage",{"$f":"HYPERLINK(T_public[[#This Row],[URL]])","v":"https://www.pond5.com/free/footage"},"Pond5 Public Domain Project","Pond5 Public Domain Project | stock footage Pond5 Public Domain Project We are making this content available to our customers and contributors without any charge, so they can rediscover part of mankind's history and build upon it in their creative projects. We have designated Content on the Website as being “Public Domain Content” when we believe that it is in the public domain under the laws of the United States, meaning there are no copyright restrictions over that content. Strings attached: Pond5 started this public domain project in 2015, and all you have to do is create a free account to start downloading."]
["https://www.canada.ca/en/employment-social-development/services/health-safety/reports/hazard-prevention.html",{"$f":"HYPERLINK(T_public[[#This Row],[URL]])","v":"https://www.canada.ca/en/employment-social-development/services/health-safety/reports/hazard-prevention.html"},"Guide du programme de prévention des risques ~ Hazard Prevention Program Guide","Guide du programme de prévention des risques ~ Hazard Prevention Program Guide Guide du programme de prévention des risques Hazard Prevention Program Guide","bilingue bilingual"]
["https://www.ccohs.ca/oshanswers/legisl/legislation/posting.html",{"$f":"HYPERLINK(T_public[[#This Row],[URL]])","v":"https://www.ccohs.ca/oshanswers/legisl/legislation/posting.html"},"(CCHST) Centre Canadien d'Hygiène et de Sécurité au Travail : Législation en matière de Santé et sécurité au Canada ~ (CCOHS) Canadian Centre for Occupational Health and Safety : Health and Safety Legislation in Canada","(CCHST) Centre Canadien d'Hygiène et de Sécurité au Travail : Législation en matière de Santé et sécurité au Canada ~ (CCOHS) Canadian Centre for Occupational Health and Safety : Health and Safety Legislation in Canada Centre Canadien d'Hygiène et de Sécurité au Travail Législation en matière de Santé et sécurité au Canada Canadian Centre for Occupational Health and Safety : Health and Safety Legislation in Canada","bilingue bilingual"]
["https://superuser.com/questions/323119/how-can-i-normalize-audio-using-ffmpeg",{"$f":"HYPERLINK(T_public[[#This Row],[URL]])","v":"https://superuser.com/questions/323119/how-can-i-normalize-audio-using-ffmpeg"},"ffmpeg normalize","ffmpeg normalize ~normalize ~volumeDetect ffmpeg -i xPATHxFILExEXTENSIONx -af \"volumedetect\" -vn -sn -dn -f null null ffmpeg -i xPATHxFILExEXTENSIONx -af \"volume=xVALUEx dB\" -c:v copy -c:a aac -b:a 192k xPATHxFILExOUTPUTxEXTENSIONx","ffmpeg normalize"]
["https://rundownstudio.app/",{"$f":"HYPERLINK(T_public[[#This Row],[URL]])","v":"https://rundownstudio.app/"},"rundown studio","","h2r"]
["https://h2r.graphics/",{"$f":"HYPERLINK(T_public[[#This Row],[URL]])","v":"https://h2r.graphics/"},"h2r graphics","","h2r graphics streamKit"]
["https://www.ccohs.ca/oshanswers/legisl/billc45.html",{"$f":"HYPERLINK(T_public[[#This Row],[URL]])","v":"https://www.ccohs.ca/oshanswers/legisl/billc45.html"},"Loi Westray (projet de loi C-45) - Aperçu ~ Westray Bill (Bill C-45) - Overview","Loi Westray (projet de loi C-45) - Aperçu ~ Westray Bill (Bill C-45) - Overview Loi Westray (projet de loi C-45) - Aperçu Westray Bill (Bill C-45) - Overview","bilingue bilingual"]
["https://ottawacitizen.com/tv-listings/#f=grid",{"$f":"HYPERLINK(T_public[[#This Row],[URL]])","v":"https://ottawacitizen.com/tv-listings/#f=grid"},"tv listings","","tv"]
["https://ici.tou.tv/",{"$f":"HYPERLINK(T_public[[#This Row],[URL]])","v":"https://ici.tou.tv/"},"tou.tv","","tv"]
["https://ici.tou.tv/info/mot-de-passe",{"$f":"HYPERLINK(T_public[[#This Row],[URL]])","v":"https://ici.tou.tv/info/mot-de-passe"},"ici tou.tv info mot-de-passe","","tv"]
["https://archive.org/details/trumparchive",{"$f":"HYPERLINK(T_public[[#This Row],[URL]])","v":"https://archive.org/details/trumparchive"},"archives.org trump tv news archives","","tv"]
["https://cpac.ca/search",{"$f":"HYPERLINK(T_public[[#This Row],[URL]])","v":"https://cpac.ca/search"},"cpac.ca video archive",""]
["https://www.c-span.org/",{"$f":"HYPERLINK(T_public[[#This Row],[URL]])","v":"https://www.c-span.org/"},"cspan c-span",""]
["https://smotrim.ru/",{"$f":"HYPERLINK(T_public[[#This Row],[URL]])","v":"https://smotrim.ru/"},"Russia-1 TV channel [ russia.tv]","","russia tv"]
["https://en.arteldoc.tv/",{"$f":"HYPERLINK(T_public[[#This Row],[URL]])","v":"https://en.arteldoc.tv/"},"arteldoc.tv en","","documentaries"]
["https://la-conjugaison.nouvelobs.com/espagnol/verbe/vivir.php",{"$f":"HYPERLINK(T_public[[#This Row],[URL]])","v":"https://la-conjugaison.nouvelobs.com/espagnol/verbe/vivir.php"},"conjuguaison verbes espagnols",""]
["https://antidote.app/dictionaries/fr/conjugaison",{"$f":"HYPERLINK(T_public[[#This Row],[URL]])","v":"https://antidote.app/dictionaries/fr/conjugaison"},"antidote web | conjuguaison verbe FR",""]
["https://leconjugueur.lefigaro.fr/conjugaison/verbe/avoir.html",{"$f":"HYPERLINK(T_public[[#This Row],[URL]])","v":"https://leconjugueur.lefigaro.fr/conjugaison/verbe/avoir.html"},"conjuguaison le conjugueur verbe avoir",""]
["https://leconjugueur.lefigaro.fr/conjugaison/verbe/etre.html",{"$f":"HYPERLINK(T_public[[#This Row],[URL]])","v":"https://leconjugueur.lefigaro.fr/conjugaison/verbe/etre.html"},"conjuguaison le conjugueur verbe être",""]
["https://conjugueur.reverso.net/conjugaison-russe.html",{"$f":"HYPERLINK(T_public[[#This Row],[URL]])","v":"https://conjugueur.reverso.net/conjugaison-russe.html"},"conjuguaison verbes russe","","russe russie russia"]
["https://fr.babbel.com/fr/magazine/les-20-verbes-les-plus-courants-en-espagnol",{"$f":"HYPERLINK(T_public[[#This Row],[URL]])","v":"https://fr.babbel.com/fr/magazine/les-20-verbes-les-plus-courants-en-espagnol"},"babbel espagnol",""]
["https://www.elconjugador.com/php5/index.php?l=fr&verbe=",{"$f":"HYPERLINK(T_public[[#This Row],[URL]])","v":"https://www.elconjugador.com/php5/index.php?l=fr&verbe="},"el conjugador verbos espagnol",""]
["https://try.babbel.com/crm_alwayson_welcome_ame-can_fr_d0/?=",{"$f":"HYPERLINK(T_public[[#This Row],[URL]])","v":"https://try.babbel.com/crm_alwayson_welcome_ame-can_fr_d0/?="},"babbel",""]
["https://traverse.link/",{"$f":"HYPERLINK(T_public[[#This Row],[URL]])","v":"https://traverse.link/"},"traverse with mandarin blueprint",""]
["https://leconjugueur.lefigaro.fr/frrecherche.php",{"$f":"HYPERLINK(T_public[[#This Row],[URL]])","v":"https://leconjugueur.lefigaro.fr/frrecherche.php"},"Le Conjugueur",""]
["https://www.noslangues-ourlanguages.gc.ca/en/index",{"$f":"HYPERLINK(T_public[[#This Row],[URL]])","v":"https://www.noslangues-ourlanguages.gc.ca/en/index"},"Language Portal of Canada","","canada"]
["https://www.tpsgc-pwgsc.gc.ca/bt-tb/index-eng.html",{"$f":"HYPERLINK(T_public[[#This Row],[URL]])","v":"https://www.tpsgc-pwgsc.gc.ca/bt-tb/index-eng.html"},"Translation Bureau",""]
["https://www.noslangues-ourlanguages.gc.ca/en/navigateur-navigator",{"$f":"HYPERLINK(T_public[[#This Row],[URL]])","v":"https://www.noslangues-ourlanguages.gc.ca/en/navigateur-navigator"},"Nos Langues | Our Languages",""]
["https://dictionary.cambridge.org/thesaurus/",{"$f":"HYPERLINK(T_public[[#This Row],[URL]])","v":"https://dictionary.cambridge.org/thesaurus/"},"eng english thesaurus synonyms",""]
["https://www.synonymes.com/",{"$f":"HYPERLINK(T_public[[#This Row],[URL]])","v":"https://www.synonymes.com/"},"synonymes",""]
["https://www.lexilogos.com/citations.htm",{"$f":"HYPERLINK(T_public[[#This Row],[URL]])","v":"https://www.lexilogos.com/citations.htm"},"citations",""]
["https://www.kikiladi.com/",{"$f":"HYPERLINK(T_public[[#This Row],[URL]])","v":"https://www.kikiladi.com/"},"kikiladi",""]
["https://www.deepl.com/de/translator#en/de/",{"$f":"HYPERLINK(T_public[[#This Row],[URL]])","v":"https://www.deepl.com/de/translator#en/de/"},"[Deepl] EN > DE | translate",""]
["https://www.deepl.com/de/translator#de/en/",{"$f":"HYPERLINK(T_public[[#This Row],[URL]])","v":"https://www.deepl.com/de/translator#de/en/"},"[Deepl] DE > EN | translate",""]
["https://translate.google.com/?sl=en&tl=fr",{"$f":"HYPERLINK(T_public[[#This Row],[URL]])","v":"https://translate.google.com/?sl=en&tl=fr"},"Translate | Google | ENG --> FRA","","translate"]
["https://translate.google.com/?sl=fr&tl=en",{"$f":"HYPERLINK(T_public[[#This Row],[URL]])","v":"https://translate.google.com/?sl=fr&tl=en"},"Translate | Google | FRA --> ENG","","translate"]
["https://translate.google.com/?sl=en&tl=de",{"$f":"HYPERLINK(T_public[[#This Row],[URL]])","v":"https://translate.google.com/?sl=en&tl=de"},"Translate | Google | ENG --> GER","","translate"]
["https://translate.google.com/?sl=en&tl=es",{"$f":"HYPERLINK(T_public[[#This Row],[URL]])","v":"https://translate.google.com/?sl=en&tl=es"},"Translate | Google | ENG --> SPA","","translate"]
["https://translate.google.com/?sl=de&tl=en",{"$f":"HYPERLINK(T_public[[#This Row],[URL]])","v":"https://translate.google.com/?sl=de&tl=en"},"Translate | Google | GER --> ENG","","translate"]
["https://translate.google.com/?sl=es&tl=en",{"$f":"HYPERLINK(T_public[[#This Row],[URL]])","v":"https://translate.google.com/?sl=es&tl=en"},"Translate | Google | SPA --> ENG","","translate"]
["https://translate.google.com/?sl=es&tl=fr",{"$f":"HYPERLINK(T_public[[#This Row],[URL]])","v":"https://translate.google.com/?sl=es&tl=fr"},"Translate | Google | SPA --> FRA","","translate"]
["https://translate.google.com/?sl=de&tl=fr",{"$f":"HYPERLINK(T_public[[#This Row],[URL]])","v":"https://translate.google.com/?sl=de&tl=fr"},"Translate | Google | GER --> FRA","","translate"]
["https://translate.google.com/?sl=la&tl=fr&op=translate",{"$f":"HYPERLINK(T_public[[#This Row],[URL]])","v":"https://translate.google.com/?sl=la&tl=fr&op=translate"},"LA > FR (latin) | translate","","translate"]
["https://translate.google.com/?sl=en&tl=el&op=translate",{"$f":"HYPERLINK(T_public[[#This Row],[URL]])","v":"https://translate.google.com/?sl=en&tl=el&op=translate"},"EN > EL [Greek] | translate","","translate"]
["https://translate.google.com/?sl=en&tl=zh-CN&op=translate",{"$f":"HYPERLINK(T_public[[#This Row],[URL]])","v":"https://translate.google.com/?sl=en&tl=zh-CN&op=translate"},"EN > zh-CN (Simplified Chinese) | translate","","translate"]
["https://translate.google.com/?sl=en&tl=tw-CN&op=translate",{"$f":"HYPERLINK(T_public[[#This Row],[URL]])","v":"https://translate.google.com/?sl=en&tl=tw-CN&op=translate"},"EN > zh-TW (Traditional Chinese) | translate","","translate"]
["https://translate.google.com/?sl=en&tl=ru&op=translate",{"$f":"HYPERLINK(T_public[[#This Row],[URL]])","v":"https://translate.google.com/?sl=en&tl=ru&op=translate"},"EN > RU [Russe Russian] | translate","","translate russia english"]
["https://translate.google.com/?sl=ru&tl=en&op=translate",{"$f":"HYPERLINK(T_public[[#This Row],[URL]])","v":"https://translate.google.com/?sl=ru&tl=en&op=translate"},"RU > EN [Russe Russian] | translate","","translate russia english"]
["https://translate.google.com/?sl=en&tl=ar&op=translate",{"$f":"HYPERLINK(T_public[[#This Row],[URL]])","v":"https://translate.google.com/?sl=en&tl=ar&op=translate"},"EN > AR (Arabic)","","translate"]
["https://translate.google.com/?sl=la&tl=efr&op=translate",{"$f":"HYPERLINK(T_public[[#This Row],[URL]])","v":"https://translate.google.com/?sl=la&tl=efr&op=translate"},"LA --> FR | translate","","translate"]
["https://translate.google.com/?sl=fr&tl=en&op=translate",{"$f":"HYPERLINK(T_public[[#This Row],[URL]])","v":"https://translate.google.com/?sl=fr&tl=en&op=translate"},"FR --> EN | translate","","translate"]
["https://translate.google.com/?sl=fr&tl=es&op=translate",{"$f":"HYPERLINK(T_public[[#This Row],[URL]])","v":"https://translate.google.com/?sl=fr&tl=es&op=translate"},"FR --> ES [spanish] | translate","","translate"]
["https://translate.google.com/?sl=de&tl=en&op=translate",{"$f":"HYPERLINK(T_public[[#This Row],[URL]])","v":"https://translate.google.com/?sl=de&tl=en&op=translate"},"DE --> EN | translate","","translate"]
["https://translate.google.com/?sl=en&tl=de&op=translate",{"$f":"HYPERLINK(T_public[[#This Row],[URL]])","v":"https://translate.google.com/?sl=en&tl=de&op=translate"},"EN --> DE | translate","","translate"]
["https://www.spanishdict.com/",{"$f":"HYPERLINK(T_public[[#This Row],[URL]])","v":"https://www.spanishdict.com/"},"spanish dictionary",""]
["../../img/alphabet-russe-lettre-plus-diffiles.jpg",{"$f":"HYPERLINK(T_public[[#This Row],[URL]])","v":"../../img/alphabet-russe-lettre-plus-diffiles.jpg"},"difficult Cyrillic Russian","","russia"]
["https://t.me/EasyRussianForAll",{"$f":"HYPERLINK(T_public[[#This Row],[URL]])","v":"https://t.me/EasyRussianForAll"},"easy russian for all","","russia"]
["https://www.larousse.fr/encyclopedie/images/Alphabet_grec/1001049",{"$f":"HYPERLINK(T_public[[#This Row],[URL]])","v":"https://www.larousse.fr/encyclopedie/images/Alphabet_grec/1001049"},"Alphabet Grecque | (Greek)",""]
["https://www.superprof.fr/blog/guide-pour-devenir-russophone/",{"$f":"HYPERLINK(T_public[[#This Row],[URL]])","v":"https://www.superprof.fr/blog/guide-pour-devenir-russophone/"},"Alphabet Russe",{"$cut":{"chars":27207,"head":"Alphabet Russe Cyrillic alphabet Chinese Characters | yt channel Chinese Characters [Playlists] | yt channel FREE resources for learning CHINESE (that you might not know) etymology online etymology nerd wikipedia: Online Etymology Dictionary saved search: How to Find United States Marriage Records google myaccount.google language settings page python downloads pi lcd-show terminal sudo rm -rf lcd-show git clone https://github.com/goodtft/lcd-show.git chmod -R 755 lcd-show cd lcd-show sudo ./LCD35-show find | Linux Terminal Command Search for files in a directory hierarchy. ls | Linux Terminal Command List directory contents. Display information about files and directories. cd | Linux Terminal Command Change directory. Move to a specified directory. pwd | Linux Terminal Command Print working directory. Display the current working directory path. cp | Linux Terminal Command Copy. Copy files or directories from one location to another. mv | Linux Terminal Command Move. Move or rename files or directories. rm | Linux Terminal Command Remove. Delete files or directories. mkdir | Linux Terminal Command Make directory. Create a new directory. rmdir | Linux Terminal Command Remove directory. Remove an empty directory. touch | Linux Terminal Command Touch. Create an empty file or update file timestamps. cat | Linux Terminal Command Concatenate. Display the content of files. nano | Linux Terminal Command Text editor. A simple text editor for the command line. vim | Linux Terminal Command Improved text editor. A highly configurable text editor. chmod | Linux Terminal Command Change mode. Change file permissions. chown | Linux Terminal Command Change owner. Change file owner or group. uname | Linux Terminal Command Print system information. Display system information. hostname | Linux Terminal Command Show or set system hostname. Display or set the system hostname. df | Linux Terminal Command Display free disk space. Display disk space usage. du | Linux Terminal Command Disk usage. Display file and directory space usage. free | Linux Terminal Command Display free memory. Display amount of free and used memory in the system. ps | Linux Terminal Command Process status. Display information about running processes. top | Linux Terminal Command Display system activity. Display and update sorted information about processes. kill | Linux Terminal Command Kill process. Terminate a process. killall | Linux Terminal Command Kill processes by name. Kill processes by name. pgrep | Linux Terminal Command Process grep. List processes based on name. pkill | Linux Terminal Command Process kill. Signal processes based on name. apt | Linux Terminal Command Advanced Package Tool. Package management for Debian/Ubuntu. yum | Linux Terminal Command Yellowdog Updater Modified. Package management for RHEL/CentOS. dnf | Linux Terminal Command Dandified Yum. Package management for Fedora. pacman | Linux Terminal Command Pacman Package Manager. Package manager for Arch Linux. zypper | Linux Terminal Command Zypper Command Line Interface. Package manager for openSUSE. ifconfig | Linux Terminal Command Configure network interfaces. Configure network interfaces. ip | Linux Terminal Command Show/manipulate routing, devices, policy routing, and tunnels. Display and manipulate network configuration. ping | Linux Terminal Command Ping. Test a network connection. traceroute | Linux Terminal Command Traceroute. Print the route packets take to network host. netstat | Linux Terminal Command Network statistics. Display network connections, routing tables, and interface statistics. wget | Linux Terminal Command Retrieve files from the web. Non-interactive network downloader. curl | Linux Terminal Command Command line tool for transferring data. Transfer data from or to a server. passwd | Linux Terminal Command Change user password. Change user password. useradd | Linux Terminal Command Add a user. Create a new user account. userdel | Linux Terminal Command Delete a user. Delete a user account. groupadd | Linux Terminal Command Add a group. Create a new group. groupdel | L"}},"russe russie russia"]
["https://www.britannica.com/topic/Cyrillic-alphabet",{"$f":"HYPERLINK(T_public[[#This Row],[URL]])","v":"https://www.britannica.com/topic/Cyrillic-alphabet"},"Cyrillic alphabet",""]
["https://www.youtube.com/@ChineseCharacters",{"$f":"HYPERLINK(T_public[[#This Row],[URL]])","v":"https://www.youtube.com/@ChineseCharacters"},"Chinese Characters | yt channel","","youtube channel"]
["https://www.youtube.com/@ChineseCharacters/playlists",{"$f":"HYPERLINK(T_public[[#This Row],[URL]])","v":"https://www.youtube.com/@ChineseCharacters/playlists"},"Chinese Characters [Playlists] | yt channel","","youtube channel playlists"]
["https://www.youtube.com/watch?v=SiY1z5BLMXA",{"$f":"HYPERLINK(T_public[[#This Row],[URL]])","v":"https://www.youtube.com/watch?v=SiY1z5BLMXA"},"FREE resources for learning CHINESE (that you might not know)",""]
["https://www.etymonline.com/",{"$f":"HYPERLINK(T_public[[#This Row],[URL]])","v":"https://www.etymonline.com/"},"etymology online",""]
["https://www.etymologynerd.com/resources.html",{"$f":"HYPERLINK(T_public[[#This Row],[URL]])","v":"https://www.etymologynerd.com/resources.html"},"etymology nerd",""]
["https://en.wikipedia.org/wiki/Online_Etymology_Dictionary",{"$f":"HYPERLINK(T_public[[#This Row],[URL]])","v":"https://en.wikipedia.org/wiki/Online_Etymology_Dictionary"},"wikipedia: Online Etymology Dictionary",""]
["https://search.brave.com/search?q=etymologie%7Cetymology+lookup",{"$f":"HYPERLINK(T_public[[#This Row],[URL]])","v":"https://search.brave.com/search?q=etymologie%7Cetymology+lookup"},"saved search:",""]
["https://www.familysearch.org/en/wiki/How_to_Find_United_States_Marriage_Records",{"$f":"HYPERLINK(T_public[[#This Row],[URL]])","v":"https://www.familysearch.org/en/wiki/How_to_Find_United_States_Marriage_Records"},"How to Find United States Marriage Records",""]
["https://myaccount.google.com/language",{"$f":"HYPERLINK(T_public[[#This Row],[URL]])","v":"https://myaccount.google.com/language"},"google myaccount.google language settings page",""]
["https://www.python.org/downloads/",{"$f":"HYPERLINK(T_public[[#This Row],[URL]])","v":"https://www.python.org/downloads/"},"python downloads","","python downloads"]
["http://www.lcdwiki.com/How_to_install_the_LCD_driver",{"$f":"HYPERLINK(T_public[[#This Row],[URL]])","v":"http://www.lcdwiki.com/How_to_install_the_LCD_driver"},"pi lcd-show","pi lcd-show terminal sudo rm -rf lcd-show git clone https://github.com/goodtft/lcd-show.git chmod -R 755 lcd-show cd lcd-show sudo ./LCD35-show"]
["https://linux.die.net/man/1/ls",{"$f":"HYPERLINK(T_public[[#This Row],[URL]])","v":"https://linux.die.net/man/1/ls"},"find | Linux Terminal Command","find | Linux Terminal Command Search for files in a directory hierarchy.","linux command"]
["https://linux.die.net/man/1/ls",{"$f":"HYPERLINK(T_public[[#This Row],[URL]])","v":"https://linux.die.net/man/1/ls"},"ls | Linux Terminal Command","ls | Linux Terminal Command List directory contents. Display information about files and directories.","linux command"]
["https://linux.die.net/man/1/cd",{"$f":"HYPERLINK(T_public[[#This Row],[URL]])","v":"https://linux.die.net/man/1/cd"},"cd | Linux Terminal Command","cd | Linux Terminal Command Change directory. Move to a specified directory.","linux command"]
["https://linux.die.net/man/1/pwd",{"$f":"HYPERLINK(T_public[[#This Row],[URL]])","v":"https://linux.die.net/man/1/pwd"},"pwd | Linux Terminal Command","pwd | Linux Terminal Command Print working directory. Display the current working directory path.","linux command"]
["https://linux.die.net/man/1/cp",{"$f":"HYPERLINK(T_public[[#This Row],[URL]])","v":"https://linux.die.net/man/1/cp"},"cp | Linux Terminal Command","cp | Linux Terminal Command Copy. Copy files or directories from one location to another.","linux command"]
["https://linux.die.net/man/1/mv",{"$f":"HYPERLINK(T_public[[#This Row],[URL]])","v":"https://linux.die.net/man/1/mv"},"mv | Linux Terminal Command","mv | Linux Terminal Command Move. Move or rename files or directories.","linux command"]
["https://linux.die.net/man/1/rm",{"$f":"HYPERLINK(T_public[[#This Row],[URL]])","v":"https://linux.die.net/man/1/rm"},"rm | Linux Terminal Command","rm | Linux Terminal Command Remove. Delete files or directories.","linux command"]
["https://linux.die.net/man/1/mkdir",{"$f":"HYPERLINK(T_public[[#This Row],[URL]])","v":"https://linux.die.net/man/1/mkdir"},"mkdir | Linux Terminal Command","mkdir | Linux Terminal Command Make directory. Create a new directory.","linux command"]
["https://linux.die.net/man/1/rmdir",{"$f":"HYPERLINK(T_public[[#This Row],[URL]])","v":"https://linux.die.net/man/1/rmdir"},"rmdir | Linux Terminal Command","rmdir | Linux Terminal Command Remove directory. Remove an empty directory.","linux command"]
["https://linux.die.net/man/1/touch",{"$f":"HYPERLINK(T_public[[#This Row],[URL]])","v":"https://linux.die.net/man/1/touch"},"touch | Linux Terminal Command","touch | Linux Terminal Command Touch. Create an empty file or update file timestamps.","linux command"]
["https://linux.die.net/man/1/cat",{"$f":"HYPERLINK(T_public[[#This Row],[URL]])","v":"https://linux.die.net/man/1/cat"},"cat | Linux Terminal Command","cat | Linux Terminal Command Concatenate. Display the content of files.","linux command"]
["https://linux.die.net/man/1/nano",{"$f":"HYPERLINK(T_public[[#This Row],[URL]])","v":"https://linux.die.net/man/1/nano"},"nano | Linux Terminal Command","nano | Linux Terminal Command Text editor. A simple text editor for the command line.","linux command"]
["https://linux.die.net/man/1/vim",{"$f":"HYPERLINK(T_public[[#This Row],[URL]])","v":"https://linux.die.net/man/1/vim"},"vim | Linux Terminal Command","vim | Linux Terminal Command Improved text editor. A highly configurable text editor.","linux command"]
["https://linux.die.net/man/1/chmod",{"$f":"HYPERLINK(T_public[[#This Row],[URL]])","v":"https://linux.die.net/man/1/chmod"},"chmod | Linux Terminal Command","chmod | Linux Terminal Command Change mode. Change file permissions.","linux command"]
["https://linux.die.net/man/1/chown",{"$f":"HYPERLINK(T_public[[#This Row],[URL]])","v":"https://linux.die.net/man/1/chown"},"chown | Linux Terminal Command","chown | Linux Terminal Command Change owner. Change file owner or group.","linux command"]
["https://linux.die.net/man/1/uname",{"$f":"HYPERLINK(T_public[[#This Row],[URL]])","v":"https://linux.die.net/man/1/uname"},"uname | Linux Terminal Command","uname | Linux Terminal Command Print system information. Display system information.","linux command"]
["https://linux.die.net/man/1/hostname",{"$f":"HYPERLINK(T_public[[#This Row],[URL]])","v":"https://linux.die.net/man/1/hostname"},"hostname | Linux Terminal Command","hostname | Linux Terminal Command Show or set system hostname. Display or set the system hostname.","linux command"]
["https://linux.die.net/man/1/df",{"$f":"HYPERLINK(T_public[[#This Row],[URL]])","v":"https://linux.die.net/man/1/df"},"df | Linux Terminal Command","df | Linux Terminal Command Display free disk space. Display disk space usage.","linux command"]
["https://linux.die.net/man/1/du",{"$f":"HYPERLINK(T_public[[#This Row],[URL]])","v":"https://linux.die.net/man/1/du"},"du | Linux Terminal Command","du | Linux Terminal Command Disk usage. Display file and directory space usage.","linux command"]
["https://linux.die.net/man/1/free",{"$f":"HYPERLINK(T_public[[#This Row],[URL]])","v":"https://linux.die.net/man/1/free"},"free | Linux Terminal Command","free | Linux Terminal Command Display free memory. Display amount of free and used memory in the system.","linux command"]
["https://linux.die.net/man/1/ps",{"$f":"HYPERLINK(T_public[[#This Row],[URL]])","v":"https://linux.die.net/man/1/ps"},"ps | Linux Terminal Command","ps | Linux Terminal Command Process status. Display information about running processes.","linux command"]
["https://linux.die.net/man/1/top",{"$f":"HYPERLINK(T_public[[#This Row],[URL]])","v":"https://linux.die.net/man/1/top"},"top | Linux Terminal Command","top | Linux Terminal Command Display system activity. Display and update sorted information about processes.","linux command"]
["https://linux.die.net/man/1/kill",{"$f":"HYPERLINK(T_public[[#This Row],[URL]])","v":"https://linux.die.net/man/1/kill"},"kill | Linux Terminal Command","kill | Linux Terminal Command Kill process. Terminate a process.","linux command"]
["https://linux.die.net/man/1/killall",{"$f":"HYPERLINK(T_public[[#This Row],[URL]])","v":"https://linux.die.net/man/1/killall"},"killall | Linux Terminal Command","killall | Linux Terminal Command Kill processes by name. Kill processes by name.","linux command"]
["https://linux.die.net/man/1/pgrep",{"$f":"HYPERLINK(T_public[[#This Row],[URL]])","v":"https://linux.die.net/man/1/pgrep"},"pgrep | Linux Terminal Command","pgrep | Linux Terminal Command Process grep. List processes based on name.","linux command"]
["https://linux.die.net/man/1/pkill",{"$f":"HYPERLINK(T_public[[#This Row],[URL]])","v":"https://linux.die.net/man/1/pkill"},"pkill | Linux Terminal Command","pkill | Linux Terminal Command Process kill. Signal processes based on name.","linux command"]
["https://linux.die.net/man/8/apt",{"$f":"HYPERLINK(T_public[[#This Row],[URL]])","v":"https://linux.die.net/man/8/apt"},"apt | Linux Terminal Command","apt | Linux Terminal Command Advanced Package Tool. Package management for Debian/Ubuntu.","linux command"]
["https://linux.die.net/man/8/yum",{"$f":"HYPERLINK(T_public[[#This Row],[URL]])","v":"https://linux.die.net/man/8/yum"},"yum | Linux Terminal Command","yum | Linux Terminal Command Yellowdog Updater Modified. Package management for RHEL/CentOS.","linux command"]
["https://linux.die.net/man/8/dnf",{"$f":"HYPERLINK(T_public[[#This Row],[URL]])","v":"https://linux.die.net/man/8/dnf"},"dnf | Linux Terminal Command","dnf | Linux Terminal Command Dandified Yum. Package management for Fedora.","linux command"]
["https://linux.die.net/man/8/pacman",{"$f":"HYPERLINK(T_public[[#This Row],[URL]])","v":"https://linux.die.net/man/8/pacman"},"pacman | Linux Terminal Command","pacman | Linux Terminal Command Pacman Package Manager. Package manager for Arch Linux.","linux command"]
["https://linux.die.net/man/8/zypper",{"$f":"HYPERLINK(T_public[[#This Row],[URL]])","v":"https://linux.die.net/man/8/zypper"},"zypper | Linux Terminal Command","zypper | Linux Terminal Command Zypper Command Line Interface. Package manager for openSUSE.","linux command"]
["https://linux.die.net/man/8/ifconfig",{"$f":"HYPERLINK(T_public[[#This Row],[URL]])","v":"https://linux.die.net/man/8/ifconfig"},"ifconfig | Linux Terminal Command","ifconfig | Linux Terminal Command Configure network interfaces. Configure network interfaces.","linux command"]
["https://linux.die.net/man/8/ip",{"$f":"HYPERLINK(T_public[[#This Row],[URL]])","v":"https://linux.die.net/man/8/ip"},"ip | Linux Terminal Command","ip | Linux Terminal Command Show/manipulate routing, devices, policy routing, and tunnels. Display and manipulate network configuration.","linux command"]
["https://linux.die.net/man/8/ping",{"$f":"HYPERLINK(T_public[[#This Row],[URL]])","v":"https://linux.die.net/man/8/ping"},"ping | Linux Terminal Command","ping | Linux Terminal Command Ping. Test a network connection.","linux command"]
["https://linux.die.net/man/8/traceroute",{"$f":"HYPERLINK(T_public[[#This Row],[URL]])","v":"https://linux.die.net/man/8/traceroute"},"traceroute | Linux Terminal Command","traceroute | Linux Terminal Command Traceroute. Print the route packets take to network host.","linux command"]
["https://linux.die.net/man/8/netstat",{"$f":"HYPERLINK(T_public[[#This Row],[URL]])","v":"https://linux.die.net/man/8/netstat"},"netstat | Linux Terminal Command","netstat | Linux Terminal Command Network statistics. Display network connections, routing tables, and interface statistics.","linux command"]
["https://linux.die.net/man/1/wget",{"$f":"HYPERLINK(T_public[[#This Row],[URL]])","v":"https://linux.die.net/man/1/wget"},"wget | Linux Terminal Command","wget | Linux Terminal Command Retrieve files from the web. Non-interactive network downloader.","linux command"]
["https://linux.die.net/man/1/curl",{"$f":"HYPERLINK(T_public[[#This Row],[URL]])","v":"https://linux.die.net/man/1/curl"},"curl | Linux Terminal Command","curl | Linux Terminal Command Command line tool for transferring data. Transfer data from or to a server.","linux command"]
["https://linux.die.net/man/1/passwd",{"$f":"HYPERLINK(T_public[[#This Row],[URL]])","v":"https://linux.die.net/man/1/passwd"},"passwd | Linux Terminal Command","passwd | Linux Terminal Command Change user password. Change user password.","linux command"]
["https://linux.die.net/man/8/useradd",{"$f":"HYPERLINK(T_public[[#This Row],[URL]])","v":"https://linux.die.net/man/8/useradd"},"useradd | Linux Terminal Command","useradd | Linux Terminal Command Add a user. Create a new user account.","linux command"]
["https://linux.die.net/man/8/userdel",{"$f":"HYPERLINK(T_public[[#This Row],[URL]])","v":"https://linux.die.net/man/8/userdel"},"userdel | Linux Terminal Command","userdel | Linux Terminal Command Delete a user. Delete a user account.","linux command"]
["https://linux.die.net/man/8/groupadd",{"$f":"HYPERLINK(T_public[[#This Row],[URL]])","v":"https://linux.die.net/man/8/groupadd"},"groupadd | Linux Terminal Command","groupadd | Linux Terminal Command Add a group. Create a new group.","linux command"]
["https://linux.die.net/man/8/groupdel",{"$f":"HYPERLINK(T_public[[#This Row],[URL]])","v":"https://linux.die.net/man/8/groupdel"},"groupdel | Linux Terminal Command","groupdel | Linux Terminal Command Delete a group. Delete a group.","linux command"]
["https://linux.die.net/man/1/systemctl",{"$f":"HYPERLINK(T_public[[#This Row],[URL]])","v":"https://linux.die.net/man/1/systemctl"},"systemctl | Linux Terminal Command","systemctl | Linux Terminal Command System and service manager. Control the systemd system and service manager.","linux command"]
["https://linux.die.net/man/8/reboot",{"$f":"HYPERLINK(T_public[[#This Row],[URL]])","v":"https://linux.die.net/man/8/reboot"},"reboot | Linux Terminal Command","reboot | Linux Terminal Command Reboot. Reboot the system.","linux command"]
["https://linux.die.net/man/8/shutdown",{"$f":"HYPERLINK(T_public[[#This Row],[URL]])","v":"https://linux.die.net/man/8/shutdown"},"shutdown | Linux Terminal Command","shutdown | Linux Terminal Command Shutdown. Shutdown the system.","linux command"]
["https://linux.die.net/man/8/service",{"$f":"HYPERLINK(T_public[[#This Row],[URL]])","v":"https://linux.die.net/man/8/service"},"service | Linux Terminal Command","service | Linux Terminal Command Run a System V init script. Run a System V init script.","linux command"]
["https://ss64.com/ps/",{"$f":"HYPERLINK(T_public[[#This Row],[URL]])","v":"https://ss64.com/ps/"},"ps pwershell references",""]
["https://docs.microsoft.com/en-us/powershell/scripting/learn/deep-dives/everything-about-strings?view=powershell-7.1",{"$f":"HYPERLINK(T_public[[#This Row],[URL]])","v":"https://docs.microsoft.com/en-us/powershell/scripting/learn/deep-dives/everything-about-strings?view=powershell-7.1"},"powershell pwsh | delete all empty directories from pwd","powershell pwsh | delete all empty directories from pwd # Recursively list all empty directories and delete them Get-ChildItem -Directory -Recurse | Where-Object { $_.GetFileSystemInfos().Count -eq 0 } | Remove-Item -Force","powershell commands"]
["https://docs.microsoft.com/en-us/powershell/scripting/learn/deep-dives/everything-about-strings?view=powershell-7.1",{"$f":"HYPERLINK(T_public[[#This Row],[URL]])","v":"https://docs.microsoft.com/en-us/powershell/scripting/learn/deep-dives/everything-about-strings?view=powershell-7.1"},"powershell pwsh | delete all empty directories from DEFINED-IN-SCRIPT location","powershell pwsh | delete all empty directories from DEFINED-IN-SCRIPT location # Recursively list all empty directories and delete them Get-ChildItem -Path xPASTExPATHx -Directory -Recurse | Where-Object { $_.GetFileSystemInfos().Count -eq 0 } | Remove-Item -Force","powershell commands"]
["https://docs.microsoft.com/en-us/powershell/scripting/learn/deep-dives/everything-about-strings?view=powershell-7.1",{"$f":"HYPERLINK(T_public[[#This Row],[URL]])","v":"https://docs.microsoft.com/en-us/powershell/scripting/learn/deep-dives/everything-about-strings?view=powershell-7.1"},"powershell pwsh | delete all empty directories with variable saving pwd","powershell pwsh | delete all empty directories with variable saving pwd # Get the current directory $currentDirectory = Get-Location # Recursively list all empty directories and delete them Get-ChildItem -Path $currentDirectory -Directory -Recurse | Where-Object { $_.GetFileSystemInfos().Count -eq 0 } | Remove-Item -Force","powershell commands"]
["https://docs.microsoft.com/en-us/powershell/scripting/learn/deep-dives/everything-about-strings?view=powershell-7.1",{"$f":"HYPERLINK(T_public[[#This Row],[URL]])","v":"https://docs.microsoft.com/en-us/powershell/scripting/learn/deep-dives/everything-about-strings?view=powershell-7.1"},"Get-ChildItem | PowerShell Command (PS) | gci","Get-ChildItem | PowerShell Command (PS) | gci Get information about files and directories.","powershell command pwsh"]
["https://docs.microsoft.com/en-us/powershell/scripting/learn/deep-dives/everything-about-strings?view=powershell-7.1",{"$f":"HYPERLINK(T_public[[#This Row],[URL]])","v":"https://docs.microsoft.com/en-us/powershell/scripting/learn/deep-dives/everything-about-strings?view=powershell-7.1"},"Set-Location | PowerShell Command (PS) | sl","Set-Location | PowerShell Command (PS) | sl Change the current working directory.","powershell command pwsh"]
["https://docs.microsoft.com/en-us/powershell/scripting/learn/deep-dives/everything-about-strings?view=powershell-7.1",{"$f":"HYPERLINK(T_public[[#This Row],[URL]])","v":"https://docs.microsoft.com/en-us/powershell/scripting/learn/deep-dives/everything-about-strings?view=powershell-7.1"},"Get-Location | PowerShell Command (PS) | gl","Get-Location | PowerShell Command (PS) | gl Get the current working directory path.","powershell command pwsh"]
["https://docs.microsoft.com/en-us/powershell/scripting/learn/deep-dives/everything-about-strings?view=powershell-7.1",{"$f":"HYPERLINK(T_public[[#This Row],[URL]])","v":"https://docs.microsoft.com/en-us/powershell/scripting/learn/deep-dives/everything-about-strings?view=powershell-7.1"},"Copy-Item | PowerShell Command (PS) | copy","Copy-Item | PowerShell Command (PS) | copy Copy files or directories from one location to another.","powershell command pwsh"]
["https://docs.microsoft.com/en-us/powershell/scripting/learn/deep-dives/everything-about-strings?view=powershell-7.1",{"$f":"HYPERLINK(T_public[[#This Row],[URL]])","v":"https://docs.microsoft.com/en-us/powershell/scripting/learn/deep-dives/everything-about-strings?view=powershell-7.1"},"Move-Item | PowerShell Command (PS) | move","Move-Item | PowerShell Command (PS) | move Move or rename files or directories.","powershell command pwsh"]
["https://docs.microsoft.com/en-us/powershell/scripting/learn/deep-dives/everything-about-strings?view=powershell-7.1",{"$f":"HYPERLINK(T_public[[#This Row],[URL]])","v":"https://docs.microsoft.com/en-us/powershell/scripting/learn/deep-dives/everything-about-strings?view=powershell-7.1"},"Remove-Item | PowerShell Command (PS) | ri","Remove-Item | PowerShell Command (PS) | ri Delete files or directories.","powershell command pwsh"]
["https://docs.microsoft.com/en-us/powershell/scripting/learn/deep-dives/everything-about-strings?view=powershell-7.1",{"$f":"HYPERLINK(T_public[[#This Row],[URL]])","v":"https://docs.microsoft.com/en-us/powershell/scripting/learn/deep-dives/everything-about-strings?view=powershell-7.1"},"New-Item -ItemType Directory | PowerShell Command (PS) | ni","New-Item -ItemType Directory | PowerShell Command (PS) | ni Create a new directory.","powershell command pwsh"]
["https://docs.microsoft.com/en-us/powershell/scripting/learn/deep-dives/everything-about-strings?view=powershell-7.1",{"$f":"HYPERLINK(T_public[[#This Row],[URL]])","v":"https://docs.microsoft.com/en-us/powershell/scripting/learn/deep-dives/everything-about-strings?view=powershell-7.1"},"Remove-Item | PowerShell Command (PS) | ri","Remove-Item | PowerShell Command (PS) | ri Remove an empty directory.","powershell command pwsh"]
["https://docs.microsoft.com/en-us/powershell/scripting/learn/deep-dives/everything-about-strings?view=powershell-7.1",{"$f":"HYPERLINK(T_public[[#This Row],[URL]])","v":"https://docs.microsoft.com/en-us/powershell/scripting/learn/deep-dives/everything-about-strings?view=powershell-7.1"},"New-Item | PowerShell Command (PS) | ni","New-Item | PowerShell Command (PS) | ni Create an empty file or update file timestamps.","powershell command pwsh"]
["https://docs.microsoft.com/en-us/powershell/scripting/learn/deep-dives/everything-about-strings?view=powershell-7.1",{"$f":"HYPERLINK(T_public[[#This Row],[URL]])","v":"https://docs.microsoft.com/en-us/powershell/scripting/learn/deep-dives/everything-about-strings?view=powershell-7.1"},"Get-Content | PowerShell Command (PS) | gc","Get-Content | PowerShell Command (PS) | gc Display the content of files.","powershell command pwsh"]
["https://docs.microsoft.com/en-us/powershell/scripting/learn/deep-dives/everything-about-strings?view=powershell-7.1",{"$f":"HYPERLINK(T_public[[#This Row],[URL]])","v":"https://docs.microsoft.com/en-us/powershell/scripting/learn/deep-dives/everything-about-strings?view=powershell-7.1"},"Start-Notepad | PowerShell Command (PS)","Start-Notepad | PowerShell Command (PS) Open the file in Notepad (text editor).","powershell command pwsh"]
["https://docs.microsoft.com/en-us/powershell/scripting/learn/deep-dives/everything-about-strings?view=powershell-7.1",{"$f":"HYPERLINK(T_public[[#This Row],[URL]])","v":"https://docs.microsoft.com/en-us/powershell/scripting/learn/deep-dives/everything-about-strings?view=powershell-7.1"},"powershell_ise | PowerShell Command (PS)","powershell_ise | PowerShell Command (PS) PowerShell ISE. Open the Integrated Scripting Environment for PowerShell.","powershell command pwsh"]
["https://docs.microsoft.com/en-us/powershell/scripting/learn/deep-dives/everything-about-strings?view=powershell-7.1",{"$f":"HYPERLINK(T_public[[#This Row],[URL]])","v":"https://docs.microsoft.com/en-us/powershell/scripting/learn/deep-dives/everything-about-strings?view=powershell-7.1"},"Get-Acl/Set-Acl | PowerShell Command (PS) | ga/sa","Get-Acl/Set-Acl | PowerShell Command (PS) | ga/sa Display or modify Access Control Lists (ACLs).","powershell command pwsh"]
["https://docs.microsoft.com/en-us/powershell/scripting/learn/deep-dives/everything-about-strings?view=powershell-7.1",{"$f":"HYPERLINK(T_public[[#This Row],[URL]])","v":"https://docs.microsoft.com/en-us/powershell/scripting/learn/deep-dives/everything-about-strings?view=powershell-7.1"},"Get-Process | PowerShell Command (PS) | gps","Get-Process | PowerShell Command (PS) | gps Display information about running processes.","powershell command pwsh"]
["https://docs.microsoft.com/en-us/powershell/scripting/learn/deep-dives/everything-about-strings?view=powershell-7.1",{"$f":"HYPERLINK(T_public[[#This Row],[URL]])","v":"https://docs.microsoft.com/en-us/powershell/scripting/learn/deep-dives/everything-about-strings?view=powershell-7.1"},"Stop-Process | PowerShell Command (PS) | sp","Stop-Process | PowerShell Command (PS) | sp Terminate a process.","powershell command pwsh"]
["https://docs.microsoft.com/en-us/powershell/scripting/learn/deep-dives/everything-about-strings?view=powershell-7.1",{"$f":"HYPERLINK(T_public[[#This Row],[URL]])","v":"https://docs.microsoft.com/en-us/powershell/scripting/learn/deep-dives/everything-about-strings?view=powershell-7.1"},"Get-Service | PowerShell Command (PS) | gsv","Get-Service | PowerShell Command (PS) | gsv Display information about services.","powershell command pwsh"]
["https://docs.microsoft.com/en-us/powershell/scripting/learn/deep-dives/everything-about-strings?view=powershell-7.1",{"$f":"HYPERLINK(T_public[[#This Row],[URL]])","v":"https://docs.microsoft.com/en-us/powershell/scripting/learn/deep-dives/everything-about-strings?view=powershell-7.1"},"Restart-Computer | PowerShell Command (PS) | rc","Restart-Computer | PowerShell Command (PS) | rc Restart the computer.","powershell command pwsh"]
["https://docs.microsoft.com/en-us/powershell/scripting/learn/deep-dives/everything-about-strings?view=powershell-7.1",{"$f":"HYPERLINK(T_public[[#This Row],[URL]])","v":"https://docs.microsoft.com/en-us/powershell/scripting/learn/deep-dives/everything-about-strings?view=powershell-7.1"},"Stop-Computer | PowerShell Command (PS) | sc","Stop-Computer | PowerShell Command (PS) | sc Shutdown the computer.","powershell command pwsh"]
["https://chatgpt.com/c/66dc99f3-01b8-8009-a1d0-7c23293012ae",{"$f":"HYPERLINK(T_public[[#This Row],[URL]])","v":"https://chatgpt.com/c/66dc99f3-01b8-8009-a1d0-7c23293012ae"},"Normalize and refactor terms by removing duplicates, consolidating similar terms with the most formal version prioritized, ensuring uniqueness by treating terms case-insensitively, and formatting the result as a single line with space-separated terms.","","normalize chatGPT"]
["https://www.html-tidy.org/documentation/",{"$f":"HYPERLINK(T_public[[#This Row],[URL]])","v":"https://www.html-tidy.org/documentation/"},"'USE' tidy simple command","'USE' tidy simple command tidy -o file_tidy.html file.html","command tidy html"]
["https://www.html-tidy.org/",{"$f":"HYPERLINK(T_public[[#This Row],[URL]])","v":"https://www.html-tidy.org/"},"html-tidy cli",""]
["",{"$f":"HYPERLINK(T_public[[#This Row],[URL]])","v":""},"brave cache | CTRL SHIFT DELETE","","ks cache brave"]
["http://underpop.online.fr/f/ffmpeg/help/compand.htm.gz",{"$f":"HYPERLINK(T_public[[#This Row],[URL]])","v":"http://underpop.online.fr/f/ffmpeg/help/compand.htm.gz"},"compand audio compression settings commands","","ffmpeg command"]
["https://stackoverflow.com/questions/18123376/webm-to-mp4-conversion-using-ffmpeg",{"$f":"HYPERLINK(T_public[[#This Row],[URL]])","v":"https://stackoverflow.com/questions/18123376/webm-to-mp4-conversion-using-ffmpeg"},"ffmpeg .webm to .mp4","ffmpeg .webm to .mp4 ffmpeg -i xWEBMxPASTExPATHx -c copy xOUTPUTxNAMExPATHxORxFILENAME.mp4","ffmpeg command convert webm mp4"]
["https://superuser.com/questions/609740/extracting-wav-from-mp4-while-preserving-the-highest-possible-quality",{"$f":"HYPERLINK(T_public[[#This Row],[URL]])","v":"https://superuser.com/questions/609740/extracting-wav-from-mp4-while-preserving-the-highest-possible-quality"},"ffmpeg video to wav hq","ffmpeg video to wav hq ffmpeg -i xPATHxFILExEXTENSIONx output.wav","ffmpeg command video to wav hq"]
["https://github.com/clsid2/mpc-hc?tab=readme-ov-file",{"$f":"HYPERLINK(T_public[[#This Row],[URL]])","v":"https://github.com/clsid2/mpc-hc?tab=readme-ov-file"},"mpc hotkeys","","ks mpc"]
["",{"$f":"HYPERLINK(T_public[[#This Row],[URL]])","v":""},"ffmpeg -i xPASTExMYxMKVxFILENAMEx.mkv -codec copy xPASTExMYxMKVxFILENAMEx.mp4","","ffmpeg command codecCopy"]
["",{"$f":"HYPERLINK(T_public[[#This Row],[URL]])","v":""},"-ss \"00:MM:SS.000\"","-ss \"00:MM:SS.000\" -ss \"00:MM:SS.000\""]
["",{"$f":"HYPERLINK(T_public[[#This Row],[URL]])","v":""},"-to \"00:MM:SS.000\"","-to \"00:MM:SS.000\" -to \"00:MM:SS.000\""]
["",{"$f":"HYPERLINK(T_public[[#This Row],[URL]])","v":""},"-ss \"00:MM:SS.000\" -to \"00:MM:SS.000\"","-ss \"00:MM:SS.000\" -to \"00:MM:SS.000\" -ss \"00:MM:SS.000\" -to \"00:MM:SS.000\""]
["",{"$f":"HYPERLINK(T_public[[#This Row],[URL]])","v":""},"ffmpeg 24 fps to 29.97","ffmpeg 24 fps to 29.97 ffmpeg -i input_video.mp4 -r 30000/1001 -filter:v \"setpts=(PTS-STARTPTS)*1001/1000\" output_video.mp4","ffmpeg command frameRate"]
["",{"$f":"HYPERLINK(T_public[[#This Row],[URL]])","v":""},"ffmpeg fix audio L to LR","ffmpeg fix audio L to LR ffmpeg -i input.mp4 -c:v copy -af \"pan=mono|c0=FL\" output.mp4","ffmpeg command audioPan"]
["",{"$f":"HYPERLINK(T_public[[#This Row],[URL]])","v":""},"ffmpeg switch audio wav to replace mov's audio","ffmpeg switch audio wav to replace mov's audio ffmpeg -i xPASTExINPUTxVIDEOxFILExPATHxEXTx.mov -i xPASTExINPUTxNEWxAUDIOxFILExPATHxEXTx.wav -c:v copy -c:a pcm_s16le -map 0:v:0 -map 1:a:0 xPASTExOUTPUTxVIDEOxFILExPATHxEXTx.mov","ffmpeg command replaceAudio"]
["",{"$f":"HYPERLINK(T_public[[#This Row],[URL]])","v":""},"hyperdeck H264 1080p 30fps","hyperdeck H264 1080p 30fps ffmpeg -i xPASTExINPUTxFILExPATHx -s 1920x1080 -r 30 -c:v libx264 -profile:v main \"xDESIREDxOUTPUTxPATHxANDxFILExNAME_H264_1080_30.mov\""]
["",{"$f":"HYPERLINK(T_public[[#This Row],[URL]])","v":""},"hyperdeck H264 720p 60fps","hyperdeck H264 720p 60fps ffmpeg -i xPASTExFILExPATHx -s 1280x720 -r 60 -c:v libx264 -profile:v main \"xDESIREDxOUTPUTxPATHxANDxFILExNAME_H264_720_60.mov\""]
["https://ffmpeg.org/ffmpeg-all.html",{"$f":"HYPERLINK(T_public[[#This Row],[URL]])","v":"https://ffmpeg.org/ffmpeg-all.html"},"ffmpeg | Fix a video that plays back on videostation audio only black screen to get video image working","ffmpeg | Fix a video that plays back on videostation audio only black screen to get video image working ffmpeg -i xPASTExMp4x -c:v libx264 -crf 23 FixBlackScreenOutput.mp4","ffmpeg command fix blackScreen"]
["https://ffmpeg.org/ffmpeg-all.html",{"$f":"HYPERLINK(T_public[[#This Row],[URL]])","v":"https://ffmpeg.org/ffmpeg-all.html"},"ffmpeg | Convert a video from one format to another.","ffmpeg | Convert a video from one format to another. ffmpeg -i input.mp4 output.avi","ffmpeg command convert"]
["https://ffmpeg.org/ffmpeg-all.html",{"$f":"HYPERLINK(T_public[[#This Row],[URL]])","v":"https://ffmpeg.org/ffmpeg-all.html"},"ffmpeg | Convert audio from one format to another.","ffmpeg | Convert audio from one format to another. ffmpeg -i input.mp3 -acodec aac output.m4a","ffmpeg command convert audio"]
["https://ffmpeg.org/ffmpeg-all.html",{"$f":"HYPERLINK(T_public[[#This Row],[URL]])","v":"https://ffmpeg.org/ffmpeg-all.html"},"ffmpeg | Extract audio from a video file.","ffmpeg | Extract audio from a video file. ffmpeg -i input.mp4 -vn -acodec copy output.aac","ffmpeg command extract audio"]
["https://ffmpeg.org/ffmpeg-all.html",{"$f":"HYPERLINK(T_public[[#This Row],[URL]])","v":"https://ffmpeg.org/ffmpeg-all.html"},"ffmpeg | Resize a video to a specific resolution.","ffmpeg | Resize a video to a specific resolution. ffmpeg -i input.mp4 -vf \"scale=640:480\" output.mp4","ffmpeg command resize resolution"]
["https://ffmpeg.org/ffmpeg-all.html",{"$f":"HYPERLINK(T_public[[#This Row],[URL]])","v":"https://ffmpeg.org/ffmpeg-all.html"},"ffmpeg | Trim a video by specifying start time and duration.","ffmpeg | Trim a video by specifying start time and duration. ffmpeg -i input.mp4 -ss 00:01:00 -t 00:00:30 output.mp4","ffmpeg command startTime -ss time start trim"]
["https://ffmpeg.org/ffmpeg-all.html",{"$f":"HYPERLINK(T_public[[#This Row],[URL]])","v":"https://ffmpeg.org/ffmpeg-all.html"},"ffmpeg | Adjust video and audio codecs and quality settings during conversion.","ffmpeg | Adjust video and audio codecs and quality settings during conversion. ffmpeg -i input.mp4 -c:v libx264 -crf 23 -c:a aac -strict experimental -b:a 192k output.mp4","ffmpeg command codecs quality conversion"]
["https://ffmpeg.org/ffmpeg-all.html",{"$f":"HYPERLINK(T_public[[#This Row],[URL]])","v":"https://ffmpeg.org/ffmpeg-all.html"},"ffmpeg | Reverse a video and its audio.","ffmpeg | Reverse a video and its audio. ffmpeg -i input.mp4 -vf \"reverse\" -af \"areverse\" output.mp4","ffmpeg command reverse"]
["https://ffmpeg.org/ffmpeg-all.html",{"$f":"HYPERLINK(T_public[[#This Row],[URL]])","v":"https://ffmpeg.org/ffmpeg-all.html"},"ffmpeg | Split a video into multiple outputs using filter_complex.","ffmpeg | Split a video into multiple outputs using filter_complex. ffmpeg -i input.mp4 -filter_complex \"[0:v]split=2[out1][out2]\" -map \"[out1]\" output1.mp4 -map \"[out2]\" output2.mp4","ffmpeg command multiple outputs"]
["https://ffmpeg.org/ffmpeg-all.html",{"$f":"HYPERLINK(T_public[[#This Row],[URL]])","v":"https://ffmpeg.org/ffmpeg-all.html"},"ffmpeg | Create a video from a sequence of images.","ffmpeg | Create a video from a sequence of images. ffmpeg -f image2 -i image%d.jpg video.mp4","ffmpeg command create from sequence images"]
["https://ffmpeg.org/ffmpeg-all.html",{"$f":"HYPERLINK(T_public[[#This Row],[URL]])","v":"https://ffmpeg.org/ffmpeg-all.html"},"ffmpeg | Add text to a video.","ffmpeg | Add text to a video. ffmpeg -i input.mp4 -vf \"drawtext=text='Hello World':fontfile=/path/to/font.ttf:fontsize=30:box=1:boxcolor=black@0.5:boxborderw=5:x=(w-text_w)/2:y=(h-text_h)/2\" output.mp4","ffmpeg command add text"]
["https://ffmpeg.org/ffmpeg-all.html",{"$f":"HYPERLINK(T_public[[#This Row],[URL]])","v":"https://ffmpeg.org/ffmpeg-all.html"},"ffmpeg | Concatenate multiple video or audio files listed in a text file.","ffmpeg | Concatenate multiple video or audio files listed in a text file. ffmpeg -f concat -safe 0 -i filelist.txt -c copy output.mp4","ffmpeg command concatenate"]
["https://ffmpeg.org/ffmpeg-all.html",{"$f":"HYPERLINK(T_public[[#This Row],[URL]])","v":"https://ffmpeg.org/ffmpeg-all.html"},"ffmpeg | Extract a thumbnail representing the most significant scene change in a video.","ffmpeg | Extract a thumbnail representing the most significant scene change in a video. ffmpeg -i input.mp4 -vf \"select=gt(scene\\,0.4)\" -frames:v 1 output.jpg","ffmpeg command thumbnail extract"]
["https://voussoir.net/writing/youtubedl_formats",{"$f":"HYPERLINK(T_public[[#This Row],[URL]])","v":"https://voussoir.net/writing/youtubedl_formats"},"youtube format code cheatsheet","","yt-dlp command"]
["",{"$f":"HYPERLINK(T_public[[#This Row],[URL]])","v":""},"yt-dlp -f 614+140 xPASTExURLx","","yt-dlp command"]
["https://wiki.archlinux.org/title/Yt-dlp",{"$f":"HYPERLINK(T_public[[#This Row],[URL]])","v":"https://wiki.archlinux.org/title/Yt-dlp"},"wiki archlinux","","yt-dlp command"]
["https://github.com/yt-dlp/yt-dlp",{"$f":"HYPERLINK(T_public[[#This Row],[URL]])","v":"https://github.com/yt-dlp/yt-dlp"},"yt-dlp batch","yt-dlp batch | ~yt-dlp yt-dlp -a file.txt","yt-dlp command"]
["https://chat.openai.com/c/57b466ea-74e3-4705-ae0b-b71dc7535ef4",{"$f":"HYPERLINK(T_public[[#This Row],[URL]])","v":"https://chat.openai.com/c/57b466ea-74e3-4705-ae0b-b71dc7535ef4"},"yt-dlp duo audio video rumble exercise with chatgpt","","yt-dlp command"]
["https://github.com/yt-dlp/yt-dlp",{"$f":"HYPERLINK(T_public[[#This Row],[URL]])","v":"https://github.com/yt-dlp/yt-dlp"},"yt-dlp yt channel last 5","yt-dlp yt channel last 5 | ~yt-dlp yt-dlp --output \"%(title)s.%(ext)s\" --playlist-end 5 https://www.youtube.com/xCHANNELxNAMEx","yt-dlp command"]
["https://github.com/yt-dlp/yt-dlp",{"$f":"HYPERLINK(T_public[[#This Row],[URL]])","v":"https://github.com/yt-dlp/yt-dlp"},"yt-dlp | Download a YouTube video as an MP4 file.","yt-dlp | Download a YouTube video as an MP4 file. | ~yt-dlp yt -f mp4 VIDEO_URL","yt-dlp command"]
["https://github.com/yt-dlp/yt-dlp",{"$f":"HYPERLINK(T_public[[#This Row],[URL]])","v":"https://github.com/yt-dlp/yt-dlp"},"yt-dlp | Download a YouTube playlist as MP3 files.","yt-dlp | Download a YouTube playlist as MP3 files. | ~yt-dlp yt -x --audio-format mp3 -o \"%(playlist_index)s. %(title)s.%(ext)s\" PLAYLIST_URL","yt-dlp command"]
["https://github.com/yt-dlp/yt-dlp",{"$f":"HYPERLINK(T_public[[#This Row],[URL]])","v":"https://github.com/yt-dlp/yt-dlp"},"yt-dlp | Download only the audio of a video in the best quality.","yt-dlp | Download only the audio of a video in the best quality. | ~yt-dlp yt -x --audio-quality 0 VIDEO_URL","yt-dlp command"]
["https://github.com/yt-dlp/yt-dlp",{"$f":"HYPERLINK(T_public[[#This Row],[URL]])","v":"https://github.com/yt-dlp/yt-dlp"},"yt-dlp | Download a video and its subtitles in a specific language.","yt-dlp | Download a video and its subtitles in a specific language. | ~yt-dlp yt --write-sub --sub-lang LANGUAGE_CODE VIDEO_URL","yt-dlp command"]
["https://github.com/yt-dlp/yt-dlp",{"$f":"HYPERLINK(T_public[[#This Row],[URL]])","v":"https://github.com/yt-dlp/yt-dlp"},"yt-dlp | Download a video with a specific resolution.","yt-dlp | Download a video with a specific resolution. | ~yt-dlp yt -f 'bestvideo[height<=720]+bestaudio/best[height<=720]' VIDEO_URL","yt-dlp command"]
["https://github.com/yt-dlp/yt-dlp",{"$f":"HYPERLINK(T_public[[#This Row],[URL]])","v":"https://github.com/yt-dlp/yt-dlp"},"yt-dlp | Download a specific video format and quality.","yt-dlp | Download a specific video format and quality. | ~yt-dlp yt -f mp4 -q 22 VIDEO_URL","yt-dlp command"]
["https://usethekeyboard.com/telegram/",{"$f":"HYPERLINK(T_public[[#This Row],[URL]])","v":"https://usethekeyboard.com/telegram/"},"usethekeyboard Keyboard shortcuts for Telegram Desktop ","","ks telegram desktop"]
["https://chat.openai.com/c/8b7f376c-8203-42cc-a3e3-e287b3e632b5",{"$f":"HYPERLINK(T_public[[#This Row],[URL]])","v":"https://chat.openai.com/c/8b7f376c-8203-42cc-a3e3-e287b3e632b5"},"ffmpeg chapters","","ffmpeg command chapters"]
["",{"$f":"HYPERLINK(T_public[[#This Row],[URL]])","v":""},"ffmpeg keep chapters","ffmpeg keep chapters -map_metadata 0 -map_chapters 0 ffmpeg -i xPASTExFILExPATHx -f ffmetadata chapters.txt","ffmpeg command keep chapters"]
["",{"$f":"HYPERLINK(T_public[[#This Row],[URL]])","v":""},"hyperdeck prores 720p 60","hyperdeck prores 720p 60 ffmpeg -i xPASTExFILExPATHx -r 60 -vf \"scale=1280:720\" -c:v prores -profile:v 2 -c:a pcm_s16le \"xDESIREDxOUTPUTxPATHxANDxFILExNAME_422_720_60.mov\""]
["",{"$f":"HYPERLINK(T_public[[#This Row],[URL]])","v":""},"hyperdeck prores 720p 59.94","hyperdeck prores 720p 59.94 ffmpeg -i xPASTExFILExPATHx -r 60000/1001 -vf \"scale=1280:720\" -c:v prores -profile:v 2 -c:a pcm_s16le \"xDESIREDxOUTPUTxPATHxANDxFILExNAME_422_720_59.94.mov\""]
["",{"$f":"HYPERLINK(T_public[[#This Row],[URL]])","v":""},"hyperdeck h264 720p 60 -ss -to","hyperdeck h264 720p 60 -ss -to ffmpeg -i xPASTExFILExPATHx -ss \"00:00:29.00\" -to \"00:00:39.00\" -s 1280x720 -r 60 -c:v libx264 -profile:v main \"xDESIREDxOUTPUTxPATHxANDxFILExNAME_H264_720_60.mov\""]
["",{"$f":"HYPERLINK(T_public[[#This Row],[URL]])","v":""},"hyperdeck h264 720p 59.94 -ss -to","hyperdeck h264 720p 59.94 -ss -to ffmpeg -i xPASTExFILExPATHx -ss \"00:00:29.00\" -to \"00:00:39.00\" -s 1280x720 -r 60 -c:v libx264 -profile:v main \"xDESIREDxOUTPUTxPATHxANDxFILExNAME_H264_720_59.94.mov\""]
["https://github.com/yt-dlp/yt-dlp",{"$f":"HYPERLINK(T_public[[#This Row],[URL]])","v":"https://github.com/yt-dlp/yt-dlp"},"yt | Download a YouTube video and convert it to MP3.","yt | Download a YouTube video and convert it to MP3. yt -x --audio-format mp3 VIDEO_URL","yt-dlp command"]
["https://github.com/yt-dlp/yt-dlp",{"$f":"HYPERLINK(T_public[[#This Row],[URL]])","v":"https://github.com/yt-dlp/yt-dlp"},"yt | Download a video and merge its audio and video streams.","yt | Download a video and merge its audio and video streams. yt -f mp4 -o \"%(title)s.%(ext)s\" VIDEO_URL && ffmpeg -i \"VIDEO_FILE.mp4\" -c:v copy -c:a aac -strict experimental \"OUTPUT_FILE.mp4\"","yt-dlp command"]
["https://github.com/yt-dlp/yt-dlp",{"$f":"HYPERLINK(T_public[[#This Row],[URL]])","v":"https://github.com/yt-dlp/yt-dlp"},"yt | Download a video, extract its audio, and convert it to MP3.","yt | Download a video, extract its audio, and convert it to MP3. yt -x --audio-format mp3 VIDEO_URL && ffmpeg -i \"VIDEO_FILE.mp4\" -vn -acodec copy \"AUDIO_FILE.aac\"","yt-dlp command"]
["https://github.com/yt-dlp/yt-dlp",{"$f":"HYPERLINK(T_public[[#This Row],[URL]])","v":"https://github.com/yt-dlp/yt-dlp"},"yt | Download a YouTube playlist and merge audio and video streams into a single file.","yt | Download a YouTube playlist and merge audio and video streams into a single file. yt -f mp4 PLAYLIST_URL && ffmpeg -i \"VIDEO_FILE.mp4\" -i \"AUDIO_FILE.aac\" -c:v copy -c:a aac -strict experimental \"OUTPUT_FILE.mp4\"","yt-dlp command"]
["https://ffmpeg.org/ffmpeg-codecs.html#ProRes",{"$f":"HYPERLINK(T_public[[#This Row],[URL]])","v":"https://ffmpeg.org/ffmpeg-codecs.html#ProRes"},"ffmpeg prores standard 422 147 Mbps","ffmpeg prores standard 422 147 Mbps ffmpeg -i xINPUTxEXT -vf \"scale=1920:1080\" -c:v prores -profile:v 2 -c:a pcm_s16le output.mov ffmpeg -i xINPUTxEXT -vf \"scale=1280:720\" -c:v prores -profile:v 2 -c:a pcm_s16le output.mov The -profile switch takes an integer from -1 to 5 to match the ProRes profiles: -1: auto (default) 0: proxy ≈ 45Mbps YUV 4:2:2 1: lt ≈ 102Mbps YUV 4:2:2 2: standard ≈ 147Mbps YUV 4:2:2 3: hq ≈ 220Mbps YUV 4:2:2 4: 4444≈ 330Mbps YUVA 4:4:4:4 5: 4444xq ≈ 500Mbps YUVA 4:4:4:4","ffmpeg command tg telegram size"]
["",{"$f":"HYPERLINK(T_public[[#This Row],[URL]])","v":""},"ffmpeg telegram size high quality","ffmpeg telegram size high quality ~sm ffmpeg -i xSOURCExEXTx -vcodec libx265 -crf 23 -speed 0 xOUTPUTxFILENAMExYOUxWANT.mp4 -crf40 stupid small","sm telegram ffmpeg command prores standard"]
["",{"$f":"HYPERLINK(T_public[[#This Row],[URL]])","v":""},"ffmpeg small | ffmpeg email","ffmpeg small | ffmpeg email ffmpeg -i xSOURCExEXTx -vcodec libx265 -crf 28 -preset slow xOUTPUTxFILENAMExYOUxWANT.mp4 -crf40 stupid small","email ffmpeg command"]
["",{"$f":"HYPERLINK(T_public[[#This Row],[URL]])","v":""},"ffmpeg | 720p 59.94 fps prores standard 422 147 Mbps","ffmpeg | 720p 59.94 fps prores standard 422 147 Mbps ffmpeg -i xPASTExFILExPATHx -r 60000/1001 -vf \"scale=1280:720\" -c:v prores -profile:v 2 -c:a pcm_s16le \"xDESIREDxOUTPUTxPATHxANDxFILExNAME_422_720.mov\"","ffmpeg command prores 720p"]
["https://video.stackexchange.com/questions/34988/converting-video-from-30-fps-to-29-97fps-so-audio-syncs-to-other-29-97fps-videos",{"$f":"HYPERLINK(T_public[[#This Row],[URL]])","v":"https://video.stackexchange.com/questions/34988/converting-video-from-30-fps-to-29-97fps-so-audio-syncs-to-other-29-97fps-videos"},"The command to change your video framerate from 30 to 29.97 should look like this","The command to change your video framerate from 30 to 29.97 should look like this ffmpeg -i input.mp4 -vf \"setpts=PTS*((30000/1001)/30),fps=30000/1001\" -af \"atempo=(30/(30000/1001))\" output.mp4","ffmpeg command"]
["https://chat.openai.com/c/0ba0151e-33fe-40c1-92fb-dde1eddf6d86",{"$f":"HYPERLINK(T_public[[#This Row],[URL]])","v":"https://chat.openai.com/c/0ba0151e-33fe-40c1-92fb-dde1eddf6d86"},"ffmpeg 30fps","ffmpeg 30fps ffmpeg -i input.mp4 -r 30 output_30fps.mp4","ffmpeg command 30 fps frameRate"]
["https://chat.openai.com/c/0ba0151e-33fe-40c1-92fb-dde1eddf6d86",{"$f":"HYPERLINK(T_public[[#This Row],[URL]])","v":"https://chat.openai.com/c/0ba0151e-33fe-40c1-92fb-dde1eddf6d86"},"ffmpeg 29.97fps","ffmpeg 29.97fps ffmpeg -i input.mp4 -r 30000/1001 output_29.97fps.mp4","ffmpeg command frameRate"]
["",{"$f":"HYPERLINK(T_public[[#This Row],[URL]])","v":""},"ffmpeg to 1080p","ffmpeg to 1080p -vf scale=-1:1080","ffmpeg command scale"]
["",{"$f":"HYPERLINK(T_public[[#This Row],[URL]])","v":""},"ffmpeg to 720p","ffmpeg to 720p -vf scale=-1:720","ffmpeg command scale"]
["",{"$f":"HYPERLINK(T_public[[#This Row],[URL]])","v":""},"ffmpeg to time","ffmpeg to time -to \"00:00:SS.00\"","ffmpeg command -to time trim"]
["",{"$f":"HYPERLINK(T_public[[#This Row],[URL]])","v":""},"ffmpeg from time","ffmpeg from time -ss \"00:00:SS.00\" ffmpeg -i xPASTExEXT -ss \"00:00:SS.00\" xPASTExFILENAMExOUTPUTxEXT","ffmpeg command from time trim"]
["",{"$f":"HYPERLINK(T_public[[#This Row],[URL]])","v":""},"ffmpeg from time to time","ffmpeg from time to time -ss \"00:00:SS.00\" -to \"00:00:SS.00\" ffmpeg -i xPASTExEXT -ss \"00:00:SS.00\" -to \"00:00:SS.00\" xPASTExFILENAMExOUTPUTxEXT","ffmpeg command clip inside time"]
["",{"$f":"HYPERLINK(T_public[[#This Row],[URL]])","v":""},"ffmpeg make test file --> prores 720p 59.94 10 seconds duration","ffmpeg make test file --> prores 720p 59.94 10 seconds duration ffmpeg -i xINPUTxEXT -to \"00:00:10.00\" -r 60000/1001 -vf \"scale=1280:720\" -c:v prores -profile:v 1 -c:a pcm_s16le output_720p_360fps.mov","ffmpeg command test"]
["",{"$f":"HYPERLINK(T_public[[#This Row],[URL]])","v":""},"ffmpeg test prores 1080p 29.97 10 seconds duration","ffmpeg test prores 1080p 29.97 10 seconds duration ffmpeg -i xINPUTxEXT -to \"00:00:10.00\" -r 30000/1001 -vf \"scale=1920:1080\" -c:v prores -profile:v 1 -c:a pcm_s16le output_1080p_30fps.mov","ffmpeg command test"]
["",{"$f":"HYPERLINK(T_public[[#This Row],[URL]])","v":""},"ffmpeg scale to 1080p","ffmpeg scale to 1080p ffmpeg -i xINPUTxEXT -vf \"scale=1920:1080\" xOUTPUTxEXT","ffmpeg command scale"]
["xURLxFILExPATHx",{"$f":"HYPERLINK(T_public[[#This Row],[URL]])","v":"xURLxFILExPATHx"},"Programming list of common action verbs","Programming list of common action verbs Here's a list of common programming action verbs often used in coding and software development:\nAdd Create Delete Update Fetch Retrieve Insert Modify Remove Select Load Save Store Display Show Hide Sort Filter Validate Initialize Compute Calculate Process Execute Run Start Stop Pause Resume Read Write Print Append Clear Compile Build Deploy Test Debug Trace Log Authenticate Authorize Encrypt Decrypt Map Transform Convert Analyze Aggregate Iterate Loop Scan Search Compare Merge Split Join Bind Connect Disconnect Transmit Receive Send Listen Handle Catch Throw Raise Trigger Instantiate Allocate Deallocate Schedule Sync (Synchronize) Await Optimize Cache Index Reference Alias Resolve Commit Rollback Clone Copy Move Generate Instantiate Mount Unmount Import Export Subscribe Unsubscribe Monitor Guard Protect Poll Throttle\nThese verbs can be useful for naming functions, methods, and operations in a way that clearly describes their purpose and action."]
["https://winaero.com/telegram-desktop-keyboard-shortcuts/",{"$f":"HYPERLINK(T_public[[#This Row],[URL]])","v":"https://winaero.com/telegram-desktop-keyboard-shortcuts/"},"telegram shortcuts ","telegram shortcuts ~ks Function (What it does...) Keyboard Shortcut || KS Toggle Fullscreen Alt + Enter OR [Mouse LEFT] double-click FastForward [+ 5 seconds] Right Arrow || → FastRewind [- 5 seconds] Left Arrow || ← quick jumps 1-9 1 - 2 - 3 - 4 - 5 - 6 - 7 - 8 - 9","ks telegram desktop"]
["https://snapsave.app/facebook-reels-download",{"$f":"HYPERLINK(T_public[[#This Row],[URL]])","v":"https://snapsave.app/facebook-reels-download"},"fb dl","","dq sm download"]
["https://fastvideosave.net/facebook",{"$f":"HYPERLINK(T_public[[#This Row],[URL]])","v":"https://fastvideosave.net/facebook"},"fb dl","","dq sm download fb"]
["https://fastvideosave.net/video",{"$f":"HYPERLINK(T_public[[#This Row],[URL]])","v":"https://fastvideosave.net/video"},"fb dl","","dq sm download"]
["https://www.fdown.net/index.php",{"$f":"HYPERLINK(T_public[[#This Row],[URL]])","v":"https://www.fdown.net/index.php"},"fb dl","","dq sm download"]
["https://www.keepvid.to/526",{"$f":"HYPERLINK(T_public[[#This Row],[URL]])","v":"https://www.keepvid.to/526"},"keepvid","","dq sm download"]
["https://inflact.com/downloader/instagram/video/",{"$f":"HYPERLINK(T_public[[#This Row],[URL]])","v":"https://inflact.com/downloader/instagram/video/"},"ig dl","","dq sm download"]
["https://inflact.com/downloader/instagram/reels/",{"$f":"HYPERLINK(T_public[[#This Row],[URL]])","v":"https://inflact.com/downloader/instagram/reels/"},"ig dl","","dq sm download"]
["https://twittervideodownloader.com/",{"$f":"HYPERLINK(T_public[[#This Row],[URL]])","v":"https://twittervideodownloader.com/"},"x dl","","dq sm download"]
["https://git-scm.com/",{"$f":"HYPERLINK(T_public[[#This Row],[URL]])","v":"https://git-scm.com/"},"git | Initialize a new Git repository.","git | Initialize a new Git repository. git init","git command"]
["https://git-scm.com/docs/git-clone",{"$f":"HYPERLINK(T_public[[#This Row],[URL]])","v":"https://git-scm.com/docs/git-clone"},"git | Clone a remote Git repository.","git | Clone a remote Git repository. git clone repository_url","git command"]
["https://git-scm.com/docs/git-add",{"$f":"HYPERLINK(T_public[[#This Row],[URL]])","v":"https://git-scm.com/docs/git-add"},"git | Stage changes for commit.","git | Stage changes for commit. git add file_name","git command"]
["https://git-scm.com/docs/git-commit",{"$f":"HYPERLINK(T_public[[#This Row],[URL]])","v":"https://git-scm.com/docs/git-commit"},"git | Commit changes to the repository.","git | Commit changes to the repository. git commit -m \"Commit message\"","git command"]
["https://git-scm.com/docs/git-pull",{"$f":"HYPERLINK(T_public[[#This Row],[URL]])","v":"https://git-scm.com/docs/git-pull"},"git | Pull changes from a remote repository.","git | Pull changes from a remote repository. git pull origin branch_name","git command"]
["https://git-scm.com/docs/git-push",{"$f":"HYPERLINK(T_public[[#This Row],[URL]])","v":"https://git-scm.com/docs/git-push"},"git | Push changes to a remote repository.","git | Push changes to a remote repository. git push origin branch_name","git command"]
["https://git-scm.com/docs/git-branch",{"$f":"HYPERLINK(T_public[[#This Row],[URL]])","v":"https://git-scm.com/docs/git-branch"},"git | Create a new branch.","git | Create a new branch. git branch branch_name","git command"]
["https://git-scm.com/docs/git-checkout",{"$f":"HYPERLINK(T_public[[#This Row],[URL]])","v":"https://git-scm.com/docs/git-checkout"},"git | Switch to a different branch.","git | Switch to a different branch. git checkout branch_name","git command"]
["https://git-scm.com/docs/git-merge",{"$f":"HYPERLINK(T_public[[#This Row],[URL]])","v":"https://git-scm.com/docs/git-merge"},"git | Merge changes from one branch into another.","git | Merge changes from one branch into another. git merge source_branch","git command"]
["https://git-scm.com/docs/git-log",{"$f":"HYPERLINK(T_public[[#This Row],[URL]])","v":"https://git-scm.com/docs/git-log"},"git | View commit history.","git | View commit history. git log","git command"]
["https://git-scm.com/docs/git-status",{"$f":"HYPERLINK(T_public[[#This Row],[URL]])","v":"https://git-scm.com/docs/git-status"},"git | Show the status of changes as untracked, modified, or staged.","git | Show the status of changes as untracked, modified, or staged. git status","git command"]
["https://git-scm.com/docs/git-diff",{"$f":"HYPERLINK(T_public[[#This Row],[URL]])","v":"https://git-scm.com/docs/git-diff"},"git | Display changes between commits or between branches.","git | Display changes between commits or between branches. git diff","git command"]
["https://git-scm.com/docs/git-remote",{"$f":"HYPERLINK(T_public[[#This Row],[URL]])","v":"https://git-scm.com/docs/git-remote"},"git | Show remote repositories.","git | Show remote repositories. git remote -v","git command"]
["https://git-scm.com/docs/git-reset",{"$f":"HYPERLINK(T_public[[#This Row],[URL]])","v":"https://git-scm.com/docs/git-reset"},"git | Unstage changes while keeping the modifications.","git | Unstage changes while keeping the modifications. git reset file_name","git command"]
["https://git-scm.com/docs/git-revert",{"$f":"HYPERLINK(T_public[[#This Row],[URL]])","v":"https://git-scm.com/docs/git-revert"},"git | Revert changes in a commit.","git | Revert changes in a commit. git revert commit_hash","git command"]
["https://git-scm.com/docs/git-remote",{"$f":"HYPERLINK(T_public[[#This Row],[URL]])","v":"https://git-scm.com/docs/git-remote"},"git | Add a new remote repository.","git | Add a new remote repository. git remote add remote_name repository_url","git command"]
["https://git-scm.com/docs/git-branch",{"$f":"HYPERLINK(T_public[[#This Row],[URL]])","v":"https://git-scm.com/docs/git-branch"},"git | Delete a branch.","git | Delete a branch. git branch -d branch_name","git command"]
["https://git-scm.com/docs/git-stash",{"$f":"HYPERLINK(T_public[[#This Row],[URL]])","v":"https://git-scm.com/docs/git-stash"},"git | Stash changes for later use.","git | Stash changes for later use. git stash","git command"]
["https://git-scm.com/docs/git-apply",{"$f":"HYPERLINK(T_public[[#This Row],[URL]])","v":"https://git-scm.com/docs/git-apply"},"git | Apply changes from a stash.","git | Apply changes from a stash. git stash apply","git command"]
["https://git-scm.com/docs/git-tag",{"$f":"HYPERLINK(T_public[[#This Row],[URL]])","v":"https://git-scm.com/docs/git-tag"},"git | Create an annotated tag.","git | Create an annotated tag. git tag -a tag_name -m \"Tag message\"","git command"]
["https://git-scm.com/docs/git-show",{"$f":"HYPERLINK(T_public[[#This Row],[URL]])","v":"https://git-scm.com/docs/git-show"},"git | Show information about a commit or a tag.","git | Show information about a commit or a tag. git show commit_hash_or_tag","git command"]
["https://www.gnu.org/software/sed/manual/sed.html",{"$f":"HYPERLINK(T_public[[#This Row],[URL]])","v":"https://www.gnu.org/software/sed/manual/sed.html"},"sed |Replace text in a file (in-place).","sed |Replace text in a file (in-place). sed -i 's/old_text/new_text/g' file.txt"]
["https://www.gnu.org/software/sed/manual/sed.html",{"$f":"HYPERLINK(T_public[[#This Row],[URL]])","v":"https://www.gnu.org/software/sed/manual/sed.html"},"sed |Print lines containing a specific pattern.","sed |Print lines containing a specific pattern. sed -n '/pattern/p' file.txt"]
["https://www.gnu.org/software/sed/manual/sed.html",{"$f":"HYPERLINK(T_public[[#This Row],[URL]])","v":"https://www.gnu.org/software/sed/manual/sed.html"},"sed |Delete lines containing a specific pattern.","sed |Delete lines containing a specific pattern. sed '/pattern/d' file.txt"]
["https://www.gnu.org/software/sed/manual/sed.html",{"$f":"HYPERLINK(T_public[[#This Row],[URL]])","v":"https://www.gnu.org/software/sed/manual/sed.html"},"sed |Substitute a specific occurrence of a pattern.","sed |Substitute a specific occurrence of a pattern. sed 's/old_text/new_text/2' file.txt"]
["https://www.gnu.org/software/sed/manual/sed.html",{"$f":"HYPERLINK(T_public[[#This Row],[URL]])","v":"https://www.gnu.org/software/sed/manual/sed.html"},"sed | Print specific lines by line numbers.","sed | Print specific lines by line numbers. sed -n '2,5p' file.txt"]
["https://www.gnu.org/software/sed/manual/sed.html",{"$f":"HYPERLINK(T_public[[#This Row],[URL]])","v":"https://www.gnu.org/software/sed/manual/sed.html"},"sed | Append text after a specific line.","sed | Append text after a specific line. sed '/pattern/a new_line_text' file.txt"]
["https://www.gnu.org/software/sed/manual/sed.html",{"$f":"HYPERLINK(T_public[[#This Row],[URL]])","v":"https://www.gnu.org/software/sed/manual/sed.html"},"sed | Insert text before a specific line.","sed | Insert text before a specific line. sed '/pattern/i new_line_text' file.txt"]
["https://www.gnu.org/software/sed/manual/sed.html",{"$f":"HYPERLINK(T_public[[#This Row],[URL]])","v":"https://www.gnu.org/software/sed/manual/sed.html"},"sed | Delete lines matching a range of patterns.","sed | Delete lines matching a range of patterns. sed '/start_pattern/,/end_pattern/d' file.txt"]
["https://www.gnu.org/software/sed/manual/sed.html",{"$f":"HYPERLINK(T_public[[#This Row],[URL]])","v":"https://www.gnu.org/software/sed/manual/sed.html"},"sed | Replace text only on lines matching a pattern.","sed | Replace text only on lines matching a pattern. sed '/pattern/s/old_text/new_text/g' file.txt"]
["https://www.gnu.org/software/sed/manual/sed.html",{"$f":"HYPERLINK(T_public[[#This Row],[URL]])","v":"https://www.gnu.org/software/sed/manual/sed.html"},"sed | Print lines between two patterns.","sed | Print lines between two patterns. sed -n '/start_pattern/,/end_pattern/p' file.txt"]
["https://www.gnu.org/software/gawk/manual/gawk.html",{"$f":"HYPERLINK(T_public[[#This Row],[URL]])","v":"https://www.gnu.org/software/gawk/manual/gawk.html"},"awk | Print specific columns from a file.","awk | Print specific columns from a file. awk '{print $1, $3}' file.txt","awk command"]
["https://www.gnu.org/software/gawk/manual/gawk.html",{"$f":"HYPERLINK(T_public[[#This Row],[URL]])","v":"https://www.gnu.org/software/gawk/manual/gawk.html"},"awk | Sum values in a specific column.","awk | Sum values in a specific column. awk '{sum += $2} END {print sum}' file.txt","awk command"]
["https://www.gnu.org/software/gawk/manual/gawk.html",{"$f":"HYPERLINK(T_public[[#This Row],[URL]])","v":"https://www.gnu.org/software/gawk/manual/gawk.html"},"awk | Print lines matching a specific pattern.","awk | Print lines matching a specific pattern. awk '/pattern/' file.txt","awk command"]
["https://www.gnu.org/software/gawk/manual/gawk.html",{"$f":"HYPERLINK(T_public[[#This Row],[URL]])","v":"https://www.gnu.org/software/gawk/manual/gawk.html"},"awk | Print lines based on a numeric condition.","awk | Print lines based on a numeric condition. awk '$1 > 10' file.txt","awk command"]
["https://www.gnu.org/software/gawk/manual/gawk.html",{"$f":"HYPERLINK(T_public[[#This Row],[URL]])","v":"https://www.gnu.org/software/gawk/manual/gawk.html"},"awk | Calculate the average of values in a column.","awk | Calculate the average of values in a column. awk '{sum += $3} END {print sum/NR}' file.txt","awk command"]
["https://www.gnu.org/software/gawk/manual/gawk.html",{"$f":"HYPERLINK(T_public[[#This Row],[URL]])","v":"https://www.gnu.org/software/gawk/manual/gawk.html"},"awk | Print lines with fields separated by a specific delimiter.","awk | Print lines with fields separated by a specific delimiter. awk -F':' '{print $1, $3}' file.txt","awk command"]
["https://www.gnu.org/software/gawk/manual/gawk.html",{"$f":"HYPERLINK(T_public[[#This Row],[URL]])","v":"https://www.gnu.org/software/gawk/manual/gawk.html"},"awk | Print the last field of each line.","awk | Print the last field of each line. awk '{print $NF}' file.txt","awk command"]
["https://www.gnu.org/software/gawk/manual/gawk.html",{"$f":"HYPERLINK(T_public[[#This Row],[URL]])","v":"https://www.gnu.org/software/gawk/manual/gawk.html"},"awk | Print lines with a specific field length.","awk | Print lines with a specific field length. awk 'length($2) > 5' file.txt","awk command"]
["https://www.gnu.org/software/gawk/manual/gawk.html",{"$f":"HYPERLINK(T_public[[#This Row],[URL]])","v":"https://www.gnu.org/software/gawk/manual/gawk.html"},"awk | Count and print unique values in a column.","awk | Count and print unique values in a column. awk '{count[$1]++} END {for (val in count) print val, count[val]}' file.txt","awk command"]
["https://www.gnu.org/software/gawk/manual/gawk.html",{"$f":"HYPERLINK(T_public[[#This Row],[URL]])","v":"https://www.gnu.org/software/gawk/manual/gawk.html"},"awk | Print lines between two patterns.","awk | Print lines between two patterns. awk '/start_pattern/,/end_pattern/' file.txt","awk command"]
["https://www.autohotkey.com/v2/",{"$f":"HYPERLINK(T_public[[#This Row],[URL]])","v":"https://www.autohotkey.com/v2/"},"ahk2 | Send a key press.","ahk2 | Send a key press. Send, Hello World!"]
["https://www.autohotkey.com/v2/",{"$f":"HYPERLINK(T_public[[#This Row],[URL]])","v":"https://www.autohotkey.com/v2/"},"ahk2 | Create a hotkey to open a program.","ahk2 | Create a hotkey to open a program. ^!o::Run, notepad.exe"]
["https://www.autohotkey.com/v2/",{"$f":"HYPERLINK(T_public[[#This Row],[URL]])","v":"https://www.autohotkey.com/v2/"},"ahk2 | Create a hotstring to expand into text.","ahk2 | Create a hotstring to expand into text. ::btw::by the way"]
["https://www.autohotkey.com/v2/",{"$f":"HYPERLINK(T_public[[#This Row],[URL]])","v":"https://www.autohotkey.com/v2/"},"ahk2 | Run a program with command-line arguments.","ahk2 | Run a program with command-line arguments. Run, \"C:\\Program Files\\Example\\example.exe\" arg1 arg2","ahk autohotkey command"]
["https://www.autohotkey.com/v2/",{"$f":"HYPERLINK(T_public[[#This Row],[URL]])","v":"https://www.autohotkey.com/v2/"},"ahk2 | Move the mouse to a specific position.","ahk2 | Move the mouse to a specific position. MouseMove, 500, 500"]
["https://www.autohotkey.com/v2/",{"$f":"HYPERLINK(T_public[[#This Row],[URL]])","v":"https://www.autohotkey.com/v2/"},"ahk2 | Click the left mouse button.","ahk2 | Click the left mouse button. Click"]
["https://www.autohotkey.com/v2/",{"$f":"HYPERLINK(T_public[[#This Row],[URL]])","v":"https://www.autohotkey.com/v2/"},"ahk2 | Create a simple GUI window.","ahk2 | Create a simple GUI window. Gui, Add, Text, , Hello, World! Gui, Show"]
["https://www.autohotkey.com/v2/",{"$f":"HYPERLINK(T_public[[#This Row],[URL]])","v":"https://www.autohotkey.com/v2/"},"ahk2 | Read from a file and store content in a variable.","ahk2 | Read from a file and store content in a variable. FileRead, Content, C:\\path\\to\\file.txt"]
["https://www.autohotkey.com/v2/",{"$f":"HYPERLINK(T_public[[#This Row],[URL]])","v":"https://www.autohotkey.com/v2/"},"ahk2 | Run a loop with a counter.","ahk2 | Run a loop with a counter. Loop, 10 { MsgBox, Iteration %A_Index% }"]
["https://www.autohotkey.com/v2/",{"$f":"HYPERLINK(T_public[[#This Row],[URL]])","v":"https://www.autohotkey.com/v2/"},"ahk2 | Capture the contents of the clipboard.","ahk2 | Capture the contents of the clipboard. Clipboard := \"\" ; clear clipboard Send, ^c ; copy ClipWait ; wait for clipboard to contain data MsgBox, %Clipboard%"]
["https://regexone.com/",{"$f":"HYPERLINK(T_public[[#This Row],[URL]])","v":"https://regexone.com/"},"regex one",""]
["",{"$f":"HYPERLINK(T_public[[#This Row],[URL]])","v":""},"Windows Explorer Views ","Windows Explorer Views ~ks Very Large Icons : CTRL SHIFT 1 ~ks Large Icons : CTRL SHIFT 2 ~ks Medium Icons : CTRL SHIFT 3 ~ks Small Icons : CTRL SHIFT 4 ~ks List : CTRL SHIFT 5 ~ks Details : CTRL SHIFT 6 ~ks Mosaic : CTRL SHIFT 7 ~ks Content : CTRL SHIFT 8 ~ks Preview Panel : ALT P ~ks Details Panel : ALT SHIFT P ~ks","ks windows explorer views"]
["",{"$f":"HYPERLINK(T_public[[#This Row],[URL]])","v":""},"notepad++ regex dates rearranging : *work computer",""]
["https://www.regular-expressions.info/quickstart.html",{"$f":"HYPERLINK(T_public[[#This Row],[URL]])","v":"https://www.regular-expressions.info/quickstart.html"},"Match Email Addresses","Match Email Addresses ^[a-zA-Z0-9._%+-]+@[a-zA-Z0-9.-]+\\.[a-zA-Z]{2,}$","regex email"]
["https://www.regular-expressions.info/quickstart.html",{"$f":"HYPERLINK(T_public[[#This Row],[URL]])","v":"https://www.regular-expressions.info/quickstart.html"},"Match IP Addresses","Match IP Addresses \\b(?:\\d{1,3}\\.){3}\\d{1,3}\\b"]
["https://www.regular-expressions.info/quickstart.html",{"$f":"HYPERLINK(T_public[[#This Row],[URL]])","v":"https://www.regular-expressions.info/quickstart.html"},"Match URL (HTTP/HTTPS)","Match URL (HTTP/HTTPS) ^(https?|ftp):\\/\\/[^\\s/$.?#].[^\\s]*$"]
["https://www.regular-expressions.info/quickstart.html",{"$f":"HYPERLINK(T_public[[#This Row],[URL]])","v":"https://www.regular-expressions.info/quickstart.html"},"Match Date (YYYY-MM-DD)","Match Date (YYYY-MM-DD) ^\\d{4}-\\d{2}-\\d{2}$"]
["https://www.regular-expressions.info/quickstart.html",{"$f":"HYPERLINK(T_public[[#This Row],[URL]])","v":"https://www.regular-expressions.info/quickstart.html"},"Match HTML Tags","Match HTML Tags <\\/?([a-zA-Z]+)(\\s+[a-zA-Z]+\\s*=\\s*(?:\".*?\"|'.*?'|[^'\">\\s]+))*\\s*\\/?>"]
["https://www.regular-expressions.info/quickstart.html",{"$f":"HYPERLINK(T_public[[#This Row],[URL]])","v":"https://www.regular-expressions.info/quickstart.html"},"Match Phone Numbers (US)","Match Phone Numbers (US) ^\\(?([0-9]{3})\\)?[-.●]?([0-9]{3})[-.●]?([0-9]{4})$"]
["https://www.regular-expressions.info/quickstart.html",{"$f":"HYPERLINK(T_public[[#This Row],[URL]])","v":"https://www.regular-expressions.info/quickstart.html"},"Match Social Security Numbers (SSN)","Match Social Security Numbers (SSN) ^\\d{3}-\\d{2}-\\d{4}$"]
["https://www.regular-expressions.info/quickstart.html",{"$f":"HYPERLINK(T_public[[#This Row],[URL]])","v":"https://www.regular-expressions.info/quickstart.html"},"Match Hex Color Codes","Match Hex Color Codes ^#([A-Fa-f0-9]{6}|[A-Fa-f0-9]{3})$"]
["https://www.regular-expressions.info/quickstart.html",{"$f":"HYPERLINK(T_public[[#This Row],[URL]])","v":"https://www.regular-expressions.info/quickstart.html"},"Match Numeric Range (1-100)","Match Numeric Range (1-100) ^([1-9][0-9]?|100)$"]
["https://www.regular-expressions.info/quickstart.html",{"$f":"HYPERLINK(T_public[[#This Row],[URL]])","v":"https://www.regular-expressions.info/quickstart.html"},"Match Alphanumeric String","Match Alphanumeric String ^[a-zA-Z0-9]+$"]
["https://docs.npmjs.com/cli/v7/commands/npm-install",{"$f":"HYPERLINK(T_public[[#This Row],[URL]])","v":"https://docs.npmjs.com/cli/v7/commands/npm-install"},"Install a Package Locally","Install a Package Locally npm install package_name","install"]
["https://docs.npmjs.com/cli/v7/commands/npm-install",{"$f":"HYPERLINK(T_public[[#This Row],[URL]])","v":"https://docs.npmjs.com/cli/v7/commands/npm-install"},"Install a Package Globally","Install a Package Globally npm install -g package_name","install"]
["https://docs.npmjs.com/cli/v7/commands/npm-init",{"$f":"HYPERLINK(T_public[[#This Row],[URL]])","v":"https://docs.npmjs.com/cli/v7/commands/npm-init"},"Initialize a New Project","Initialize a New Project npm init"]
["https://docs.npmjs.com/cli/v7/commands/npm-start",{"$f":"HYPERLINK(T_public[[#This Row],[URL]])","v":"https://docs.npmjs.com/cli/v7/commands/npm-start"},"Start Your Application","Start Your Application npm start"]
["https://docs.npmjs.com/cli/v7/commands/npm-test",{"$f":"HYPERLINK(T_public[[#This Row],[URL]])","v":"https://docs.npmjs.com/cli/v7/commands/npm-test"},"Run Tests","Run Tests npm test"]
["https://docs.npmjs.com/cli/v7/commands/npm-run-script",{"$f":"HYPERLINK(T_public[[#This Row],[URL]])","v":"https://docs.npmjs.com/cli/v7/commands/npm-run-script"},"Run a Custom Script","Run a Custom Script npm run script_name"]
["https://docs.npmjs.com/cli/v7/commands/npm-outdated",{"$f":"HYPERLINK(T_public[[#This Row],[URL]])","v":"https://docs.npmjs.com/cli/v7/commands/npm-outdated"},"Check for Outdated Packages","Check for Outdated Packages npm outdated"]
["https://docs.npmjs.com/cli/v7/commands/npm-update",{"$f":"HYPERLINK(T_public[[#This Row],[URL]])","v":"https://docs.npmjs.com/cli/v7/commands/npm-update"},"Update Packages","Update Packages npm update"]
["https://docs.npmjs.com/cli/v7/commands/npm-uninstall",{"$f":"HYPERLINK(T_public[[#This Row],[URL]])","v":"https://docs.npmjs.com/cli/v7/commands/npm-uninstall"},"Uninstall a Package","Uninstall a Package npm uninstall package_name","install"]
["https://docs.npmjs.com/cli/v7/commands/npm-audit",{"$f":"HYPERLINK(T_public[[#This Row],[URL]])","v":"https://docs.npmjs.com/cli/v7/commands/npm-audit"},"Run Security Audits","Run Security Audits npm audit"]
["https://docs.npmjs.com/cli/v7/commands/npm-search",{"$f":"HYPERLINK(T_public[[#This Row],[URL]])","v":"https://docs.npmjs.com/cli/v7/commands/npm-search"},"Search for Packages","Search for Packages npm search package_name"]
["https://www.python.org/",{"$f":"HYPERLINK(T_public[[#This Row],[URL]])","v":"https://www.python.org/"},"python | Run a Python script.","python | Run a Python script. python script.py","python command"]
["https://www.python.org/",{"$f":"HYPERLINK(T_public[[#This Row],[URL]])","v":"https://www.python.org/"},"python | Install a Python package using pip.","python | Install a Python package using pip. pip install package_name","python command"]
["https://www.python.org/",{"$f":"HYPERLINK(T_public[[#This Row],[URL]])","v":"https://www.python.org/"},"python | Create a virtual environment.","python | Create a virtual environment. python -m venv venv_name","python command"]
["https://docs.python.org/3/library/http.server.html",{"$f":"HYPERLINK(T_public[[#This Row],[URL]])","v":"https://docs.python.org/3/library/http.server.html"},"python | Run a simple HTTP server locally.","python | Run a simple HTTP server locally. python -m http.server","python command"]
["https://docs.python.org/3/library/http.server.html",{"$f":"HYPERLINK(T_public[[#This Row],[URL]])","v":"https://docs.python.org/3/library/http.server.html"},"python | Run a server on a custom port.","python | Run a server on a custom port. python -m http.server 8080","python command"]
["https://docs.python.org/3/library/csv.html",{"$f":"HYPERLINK(T_public[[#This Row],[URL]])","v":"https://docs.python.org/3/library/csv.html"},"python | Read and print data from a CSV file.","python | Read and print data from a CSV file. python -c \"import csv; with open('file.csv') as f: print(list(csv.reader(f)))\"","python command"]
["https://docs.python.org/3/library/json.html",{"$f":"HYPERLINK(T_public[[#This Row],[URL]])","v":"https://docs.python.org/3/library/json.html"},"python | Read and print data from a JSON file.","python | Read and print data from a JSON file. python -c \"import json; with open('file.json') as f: print(json.load(f))\"","python command"]
["https://docs.python.org/3/library/os.html",{"$f":"HYPERLINK(T_public[[#This Row],[URL]])","v":"https://docs.python.org/3/library/os.html"},"python | List files in the current directory.","python | List files in the current directory. python -c \"import os; print(os.listdir())\"","python command"]
["https://docs.python.org/3/library/os.html",{"$f":"HYPERLINK(T_public[[#This Row],[URL]])","v":"https://docs.python.org/3/library/os.html"},"python | Get the current working directory.","python | Get the current working directory. python -c \"import os; print(os.getcwd())\"","python command"]
["https://docs.python.org/3/library/sys.html",{"$f":"HYPERLINK(T_public[[#This Row],[URL]])","v":"https://docs.python.org/3/library/sys.html"},"python | Print Python version information.","python | Print Python version information. python -c \"import sys; print(sys.version)\"","python command"]
["https://docs.python.org/3/library/subprocess.html",{"$f":"HYPERLINK(T_public[[#This Row],[URL]])","v":"https://docs.python.org/3/library/subprocess.html"},"python | Run a system command from Python.","python | Run a system command from Python. python -c \"import subprocess; subprocess.run(['ls', '-l'])\"","python command"]
["https://docs.python.org/3/library/urllib.request.html",{"$f":"HYPERLINK(T_public[[#This Row],[URL]])","v":"https://docs.python.org/3/library/urllib.request.html"},"python | Download a file from the web.","python | Download a file from the web. python -c \"import urllib.request; urllib.request.urlretrieve('https://example.com/file.txt', 'file.txt')\"","python command"]
["https://pypi.org/",{"$f":"HYPERLINK(T_public[[#This Row],[URL]])","v":"https://pypi.org/"},"pypi | python package index","","python package"]
["https://www.w3schools.com/tags/tag_strike.asp",{"$f":"HYPERLINK(T_public[[#This Row],[URL]])","v":"https://www.w3schools.com/tags/tag_strike.asp"},"strikethrough delete text","strikethrough delete text mozilla dev network","web w3schools"]
["https://www.w3schools.com/css/default.asp",{"$f":"HYPERLINK(T_public[[#This Row],[URL]])","v":"https://www.w3schools.com/css/default.asp"},"(web.dev) W3 | CSS","","web webdev"]
["https://support.google.com/youtube/answer/7631406?hl=en",{"$f":"HYPERLINK(T_public[[#This Row],[URL]])","v":"https://support.google.com/youtube/answer/7631406?hl=en"},"youtube shortcuts ","","ks youtube"]
["https://www.w3schools.com/cssref/playdemo.php?filename=playcss_grid",{"$f":"HYPERLINK(T_public[[#This Row],[URL]])","v":"https://www.w3schools.com/cssref/playdemo.php?filename=playcss_grid"},"css grid demo | w3","","web w3schools"]
["https://www.w3schools.com/cssref/playdemo.php?filename=playcss_display",{"$f":"HYPERLINK(T_public[[#This Row],[URL]])","v":"https://www.w3schools.com/cssref/playdemo.php?filename=playcss_display"},"display grid demo | w3","","web w3schools"]
["https://www.w3schools.com/css/css3_flexbox.asp",{"$f":"HYPERLINK(T_public[[#This Row],[URL]])","v":"https://www.w3schools.com/css/css3_flexbox.asp"},"(w3Schools) flexbox | css","","web w3schools"]
["https://www.w3schools.com/css/css3_flexbox_responsive.asp",{"$f":"HYPERLINK(T_public[[#This Row],[URL]])","v":"https://www.w3schools.com/css/css3_flexbox_responsive.asp"},"(w3Schools) css flexbox responsive | css","","web w3schools"]
["https://www.w3schools.com/css/css3_mediaqueries.asp",{"$f":"HYPERLINK(T_public[[#This Row],[URL]])","v":"https://www.w3schools.com/css/css3_mediaqueries.asp"},"(w3Schools) media queries | css","","web w3schools"]
["https://www.w3schools.com/css/css_rwd_intro.asp",{"$f":"HYPERLINK(T_public[[#This Row],[URL]])","v":"https://www.w3schools.com/css/css_rwd_intro.asp"},"(w3Schools) rwd | responsive web design","","web w3schools"]
["https://www.w3schools.com/excel/excel_formulas.php",{"$f":"HYPERLINK(T_public[[#This Row],[URL]])","v":"https://www.w3schools.com/excel/excel_formulas.php"},"(w3Schools) Excel Formulas","","web w3schools"]
["https://www.w3schools.com/html/html_entities.asp",{"$f":"HYPERLINK(T_public[[#This Row],[URL]])","v":"https://www.w3schools.com/html/html_entities.asp"},"(w3Schools) HTML Entities","","web w3schools"]
["https://www.w3schools.com/asp/asp_ref_vbscript_functions.asp",{"$f":"HYPERLINK(T_public[[#This Row],[URL]])","v":"https://www.w3schools.com/asp/asp_ref_vbscript_functions.asp"},"(w3Schools) VBScript Functions","","web w3schools"]
["https://www.w3schools.com/cybersecurity/cybersecurity_network_transport.php",{"$f":"HYPERLINK(T_public[[#This Row],[URL]])","v":"https://www.w3schools.com/cybersecurity/cybersecurity_network_transport.php"},"(w3Schools) Cyber Security Network Transport","","web w3schools"]
["https://www.w3schools.com/python/numpy/default.asp",{"$f":"HYPERLINK(T_public[[#This Row],[URL]])","v":"https://www.w3schools.com/python/numpy/default.asp"},"(w3Schools) NumPy Tutorial","","web w3schools"]
["https://www.w3schools.com/python/scipy/index.php",{"$f":"HYPERLINK(T_public[[#This Row],[URL]])","v":"https://www.w3schools.com/python/scipy/index.php"},"(w3Schools) SciPy Tutorial","","web w3schools"]
["https://www.w3schools.com/python/pandas/default.asp",{"$f":"HYPERLINK(T_public[[#This Row],[URL]])","v":"https://www.w3schools.com/python/pandas/default.asp"},"(w3Schools) Pandas Tutorial","","web w3schools"]
["https://www.w3schools.com/charsets/ref_html_ascii.asp",{"$f":"HYPERLINK(T_public[[#This Row],[URL]])","v":"https://www.w3schools.com/charsets/ref_html_ascii.asp"},"(w3Schools) HTML ASCII Reference","","web w3schools"]
["https://www.w3schools.com/tags/ref_urlencode.ASP",{"$f":"HYPERLINK(T_public[[#This Row],[URL]])","v":"https://www.w3schools.com/tags/ref_urlencode.ASP"},"(w3Schools) HTML URL Encoding Reference | wildcard | %","(w3Schools) HTML URL Encoding Reference | wildcard | % %25 = % *wildcard","web w3schools"]
["https://www.w3schools.com/w3css/default.asp",{"$f":"HYPERLINK(T_public[[#This Row],[URL]])","v":"https://www.w3schools.com/w3css/default.asp"},"(w3Schools)  | W3 CSS PURE JS","(w3Schools) W3 CSS PURE JS A Quality Alternative to Bootstrap","web w3schools"]
["https://www.w3schools.com/bootstrap5/index.php",{"$f":"HYPERLINK(T_public[[#This Row],[URL]])","v":"https://www.w3schools.com/bootstrap5/index.php"},"(w3Schools)  | w3 | bootstrap 5","","web w3schools"]
["https://www.w3schools.com/js/default.asp",{"$f":"HYPERLINK(T_public[[#This Row],[URL]])","v":"https://www.w3schools.com/js/default.asp"},"(w3Schools)  | javascript | w3","","web w3schools"]
["https://www.w3schools.com/w3css/w3css_icons.asp",{"$f":"HYPERLINK(T_public[[#This Row],[URL]])","v":"https://www.w3schools.com/w3css/w3css_icons.asp"},"(w3Schools)  | W3.CSS Icons","","web w3schools"]
["https://www.w3schools.com/w3css/w3css_quotes.asp",{"$f":"HYPERLINK(T_public[[#This Row],[URL]])","v":"https://www.w3schools.com/w3css/w3css_quotes.asp"},"(w3Schools)  | W3.CSS Quotes","","web w3schools"]
["https://www.w3schools.com/tags/default.asp",{"$f":"HYPERLINK(T_public[[#This Row],[URL]])","v":"https://www.w3schools.com/tags/default.asp"},"(w3Schools)  | HTML Elements Reference","","web w3schools"]
["https://www.w3schools.com/tags/att_target.asp",{"$f":"HYPERLINK(T_public[[#This Row],[URL]])","v":"https://www.w3schools.com/tags/att_target.asp"},"(w3Schools)  | HTML Target Attribute","","web w3schools"]
["https://www.w3schools.com/html/default.asp",{"$f":"HYPERLINK(T_public[[#This Row],[URL]])","v":"https://www.w3schools.com/html/default.asp"},"(w3Schools)  | HTML | W3","","web w3schools"]
["https://developer.mozilla.org/en-US/docs/Web/CSS/:required",{"$f":"HYPERLINK(T_public[[#This Row],[URL]])","v":"https://developer.mozilla.org/en-US/docs/Web/CSS/:required"},"(w3Schools)  | HTML FORMS + CSS pseudo Class :required| W3 INPUTS","(w3Schools) HTML FORMS + CSS pseudo Class :required| W3 INPUTS (w3Schools) HTML FORMS (w3Schools) CSS FORMS (w3Schools) W3 INPUTS (FORMS)","web w3schools"]
["https://www.w3schools.com/css/default.asp",{"$f":"HYPERLINK(T_public[[#This Row],[URL]])","v":"https://www.w3schools.com/css/default.asp"},"W3 | CSS","","web w3schools"]
["https://ppubs.uspto.gov/pubwebapp/",{"$f":"HYPERLINK(T_public[[#This Row],[URL]])","v":"https://ppubs.uspto.gov/pubwebapp/"},"patent office search",""]
["https://refseek.com",{"$f":"HYPERLINK(T_public[[#This Row],[URL]])","v":"https://refseek.com"},"refseek.com","","se"]
["https://worldcat.org",{"$f":"HYPERLINK(T_public[[#This Row],[URL]])","v":"https://worldcat.org"},"worldcat.org ","","se"]
["https://link.springer.com",{"$f":"HYPERLINK(T_public[[#This Row],[URL]])","v":"https://link.springer.com"},"link.springer.com ","","se"]
["https://bioline.org.br",{"$f":"HYPERLINK(T_public[[#This Row],[URL]])","v":"https://bioline.org.br"},"bioline.org.br ","","se"]
["https://repec.org",{"$f":"HYPERLINK(T_public[[#This Row],[URL]])","v":"https://repec.org"},"repec.org ","","se"]
["https://science.gov",{"$f":"HYPERLINK(T_public[[#This Row],[URL]])","v":"https://science.gov"},"science.gov ","","se"]
["https://base-search.net",{"$f":"HYPERLINK(T_public[[#This Row],[URL]])","v":"https://base-search.net"},"base-search.net ","","se"]
["",{"$f":"HYPERLINK(T_public[[#This Row],[URL]])","v":""},"query pdf : filetype:pdf xPASTExKEYWORDxSTRINGx","query pdf : filetype:pdf xPASTExKEYWORDxSTRINGx doc docx xlsx xlsm txt png jpg mp4 mov"]
["https://hackr.io/blog/google-search-operators-cheat-sheet",{"$f":"HYPERLINK(T_public[[#This Row],[URL]])","v":"https://hackr.io/blog/google-search-operators-cheat-sheet"},"search cheat sheet reminder",""]
["https://linux.die.net/man/8/ifconfig",{"$f":"HYPERLINK(T_public[[#This Row],[URL]])","v":"https://linux.die.net/man/8/ifconfig"},"network | ifconfig","network | ifconfig Configure network interfaces. Configure network interfaces."]
["https://linux.die.net/man/8/ip",{"$f":"HYPERLINK(T_public[[#This Row],[URL]])","v":"https://linux.die.net/man/8/ip"},"network | ip","network | ip Show/manipulate routing, devices, policy routing, and tunnels. Display and manipulate network configuration."]
["https://linux.die.net/man/8/ping",{"$f":"HYPERLINK(T_public[[#This Row],[URL]])","v":"https://linux.die.net/man/8/ping"},"network | ping","network | ping Ping. Test a network connection."]
["https://linux.die.net/man/8/traceroute",{"$f":"HYPERLINK(T_public[[#This Row],[URL]])","v":"https://linux.die.net/man/8/traceroute"},"network | traceroute","network | traceroute Traceroute. Print the route packets take to network host."]
["https://linux.die.net/man/8/netstat",{"$f":"HYPERLINK(T_public[[#This Row],[URL]])","v":"https://linux.die.net/man/8/netstat"},"network | netstat","network | netstat Network statistics. Display network connections, routing tables, and interface statistics."]
["https://linux.die.net/man/1/wget",{"$f":"HYPERLINK(T_public[[#This Row],[URL]])","v":"https://linux.die.net/man/1/wget"},"network | wget","network | wget Retrieve files from the web. Non-interactive network downloader."]
["https://linux.die.net/man/1/curl",{"$f":"HYPERLINK(T_public[[#This Row],[URL]])","v":"https://linux.die.net/man/1/curl"},"network | curl","network | curl Command line tool for transferring data. Transfer data from or to a server."]
["https://www.dzine.ai/",{"$f":"HYPERLINK(T_public[[#This Row],[URL]])","v":"https://www.dzine.ai/"},"ai prompt art","","ai"]
["https://github.com/zylon-ai/private-gpt",{"$f":"HYPERLINK(T_public[[#This Row],[URL]])","v":"https://github.com/zylon-ai/private-gpt"},"privateGPT",""]
["https://FreePalestine.Video",{"$f":"HYPERLINK(T_public[[#This Row],[URL]])","v":"https://FreePalestine.Video"},"FreePalestine.Video",""]
["https://truthconquer.com/",{"$f":"HYPERLINK(T_public[[#This Row],[URL]])","v":"https://truthconquer.com/"},"truthconquer truth conquer",""]
["https://exsurgedomine.it/",{"$f":"HYPERLINK(T_public[[#This Row],[URL]])","v":"https://exsurgedomine.it/"},"carlo maria vigano","carlo maria vigano twitter: Arcivescovo Carlo Maria Viganò @CarloMVigano"]
["https://learn.microsoft.com/en-us/sharepoint/dev/declarative-customization/column-formatting",{"$f":"HYPERLINK(T_public[[#This Row],[URL]])","v":"https://learn.microsoft.com/en-us/sharepoint/dev/declarative-customization/column-formatting"},"Use column formatting to customize SharePoint","","lists msLists"]
["https://www.declassifieduk.org/",{"$f":"HYPERLINK(T_public[[#This Row],[URL]])","v":"https://www.declassifieduk.org/"},"declassified uk.org","declassified uk.org ~declassifieduk.org ~Matt Kennard ~Julian assange Matt Kennard ~julian assange","news julianAssange classified"]
["https://www.committeerepubliccanada.ca/",{"$f":"HYPERLINK(T_public[[#This Row],[URL]])","v":"https://www.committeerepubliccanada.ca/"},"crc comité pour la république du canada committee for the republic of Canada","","canada"]
["https://reclaimthenet.org/tiktok-ban-is-reignited-after-getting-wedged-into-ukraine-and-israel-funding-bill",{"$f":"HYPERLINK(T_public[[#This Row],[URL]])","v":"https://reclaimthenet.org/tiktok-ban-is-reignited-after-getting-wedged-into-ukraine-and-israel-funding-bill"},"reclaimthenet.org","","news"]
["https://ccfso.org/",{"$f":"HYPERLINK(T_public[[#This Row],[URL]])","v":"https://ccfso.org/"},"ccfs ottawa | ccfso",""]
["https://rumble.com/user/laroucheorganization",{"$f":"HYPERLINK(T_public[[#This Row],[URL]])","v":"https://rumble.com/user/laroucheorganization"},"laroucheorganization | The LaRouche Organization (rumble)",""]
["https://www.savecanada.army/",{"$f":"HYPERLINK(T_public[[#This Row],[URL]])","v":"https://www.savecanada.army/"},"Josh Alexander | Save Canada","","canada"]
["https://ccfso.org/",{"$f":"HYPERLINK(T_public[[#This Row],[URL]])","v":"https://ccfso.org/"},"canada-china friendship society (of ottawa)","","canada"]
["https://dailyclout.io/",{"$f":"HYPERLINK(T_public[[#This Row],[URL]])","v":"https://dailyclout.io/"},"Naomi Wolf Daily Clout Activism",""]
["https://www.hydrogengarage.com/",{"$f":"HYPERLINK(T_public[[#This Row],[URL]])","v":"https://www.hydrogengarage.com/"},"hydrogen garage water fuel",""]
["https://waterpoweredcar.com/hydrobooster2.html",{"$f":"HYPERLINK(T_public[[#This Row],[URL]])","v":"https://waterpoweredcar.com/hydrobooster2.html"},"water powered car hydro booster",""]
["https://www.ledevoir.com/politique/quebec/579708/la-caq-refuse-de-devoiler-les-conseils-de-la-firme-mckinsey",{"$f":"HYPERLINK(T_public[[#This Row],[URL]])","v":"https://www.ledevoir.com/politique/quebec/579708/la-caq-refuse-de-devoiler-les-conseils-de-la-firme-mckinsey"},"FRA | Le Devoir | McKinsey & Co","FRA | Le Devoir | McKinsey & Co La CAQ refuse de dévoiler les conseils de la firme McKinsey"]
["https://www.ledroit.com/affaires/guillaume-lemay-thivierge-perd-son-contrat-avec-hyundai-e5c1b0fd41a5aaed749cc6eabc2f0afd",{"$f":"HYPERLINK(T_public[[#This Row],[URL]])","v":"https://www.ledroit.com/affaires/guillaume-lemay-thivierge-perd-son-contrat-avec-hyundai-e5c1b0fd41a5aaed749cc6eabc2f0afd"},"Guillaume Lemay-Thivierge","Guillaume Lemay-Thivierge 25 septembre 2021 | Guillaume Lemay-Thivierge perd son contrat avec Hyundai"]
["https://app.powerbi.com/view?r=eyJrIjoiYmUwNmFhMjYtNGZhYS00NDk2LWFlMTAtOTg0OGNhNmFiNGM0IiwidCI6ImVlNGUxNDk5LTRhMzUtNGIyZS1hZDQ3LTVmM2NmOWRlODY2NiIsImMiOjh9&fbclid=IwAR0a5N236xKU4nqi3zMxkax_f4JsXhKBtfeYIWyqXXmaMWRTxnov0S2g31s",{"$f":"HYPERLINK(T_public[[#This Row],[URL]])","v":"https://app.powerbi.com/view?r=eyJrIjoiYmUwNmFhMjYtNGZhYS00NDk2LWFlMTAtOTg0OGNhNmFiNGM0IiwidCI6ImVlNGUxNDk5LTRhMzUtNGIyZS1hZDQ3LTVmM2NmOWRlODY2NiIsImMiOjh9&fbclid=IwAR0a5N236xKU4nqi3zMxkax_f4JsXhKBtfeYIWyqXXmaMWRTxnov0S2g31s"},"Excess Mortality England | Dr. Clare Craig","Excess Mortality England | Dr. Clare Craig Power BI | Excess deaths for week ending 10th Sept 2021: 24% more heart failure deaths than baseline 19% ischaemic heart disease 16% cerebrovascular disease (strokes) 18% other circulatory diseases"]
["https://awakecanada.org/reimer-fullmich-update-we-are-starting-to-win-in-the-courts/",{"$f":"HYPERLINK(T_public[[#This Row],[URL]])","v":"https://awakecanada.org/reimer-fullmich-update-we-are-starting-to-win-in-the-courts/"},"Nuremberg 2.0 | Covid19 | Reiner Fuellmich","Nuremberg 2.0 | Covid19 | Reiner Fuellmich Reiner Fuellmich with Stiftung Corona Ausschuss"]
["https://vaccinechoicecanada.com/media/rights-of-refusal/",{"$f":"HYPERLINK(T_public[[#This Row],[URL]])","v":"https://vaccinechoicecanada.com/media/rights-of-refusal/"},"Rights of refusal with Rocco Galati and Vaccine Choice","Rights of refusal with Rocco Galati and Vaccine Choice September 01, 2021, 7 pm ET Rocco Galati, Tanya Gaw, Dr. Stephen Malthouse, Paula Tucci, and Vincent Gircys join Ted Kuntz, VCC President, to examine “Our Rights of Refusal” regarding Covid19 vaccinations and other measures."]
["https://www.nobelprize.org/prizes/medicine/1913/richet/lecture/",{"$f":"HYPERLINK(T_public[[#This Row],[URL]])","v":"https://www.nobelprize.org/prizes/medicine/1913/richet/lecture/"},"Charles Richet | Nobel Lecture, December 11, 1913 | Anaphylaxis",""]
["https://library-archives.canada.ca/eng/collection/basics/aurora/Pages/aurora-help.aspx",{"$f":"HYPERLINK(T_public[[#This Row],[URL]])","v":"https://library-archives.canada.ca/eng/collection/basics/aurora/Pages/aurora-help.aspx"},"Aurora online catalogue",""]
["https://bac-lac.on.worldcat.org/oclc/46537189",{"$f":"HYPERLINK(T_public[[#This Row],[URL]])","v":"https://bac-lac.on.worldcat.org/oclc/46537189"},"Sam Labrier Document",""]
["https://annas-archive.org/",{"$f":"HYPERLINK(T_public[[#This Row],[URL]])","v":"https://annas-archive.org/"},"Anna’s Archive",""]
["https://youtu.be/-O9K3TdejJs",{"$f":"HYPERLINK(T_public[[#This Row],[URL]])","v":"https://youtu.be/-O9K3TdejJs"},"fruit flies aka drosophila melanogaster",""]
["https://steemit.com/life/@becomingwhtur/serco-the-most-evil-corporation-on-earth",{"$f":"HYPERLINK(T_public[[#This Row],[URL]])","v":"https://steemit.com/life/@becomingwhtur/serco-the-most-evil-corporation-on-earth"},"Serco","Serco SERCO, THE MOST EVIL CORPORATION ON EARTH!"]
["https://commission.itnj.org/weaponisation-biosphere/",{"$f":"HYPERLINK(T_public[[#This Row],[URL]])","v":"https://commission.itnj.org/weaponisation-biosphere/"},"ITNJ Judicial Commission of Inquiry into Weaponisation of the Biosphere","ITNJ Judicial Commission of Inquiry into Weaponisation of the Biosphere THE BALI SEATING"]
["https://faroutmagazine.co.uk/pink-floyd-waters-barrett-mason-wright-band-name-how/",{"$f":"HYPERLINK(T_public[[#This Row],[URL]])","v":"https://faroutmagazine.co.uk/pink-floyd-waters-barrett-mason-wright-band-name-how/"},"Pink FLoyd","Pink FLoyd ...Syd Barrett began workshopping band names and decided to splice two inspirations together to form one name. He referred to Pinkney “Pink” Anderson and Floyd Council. Et voila! Putting the name of two bluesmen together he created The Pink Floyd Sound.Soon enough the band would drop the “sound” from the end of the band name and would begin finally seeing the rewards for the endless touring and tweaking of their sound."]
["Leibniz%20VI:%20Leibniz%20and%20the%20New%20World,%20and%20His%20Legacy%20Today",{"$f":"HYPERLINK(T_public[[#This Row],[URL]])","v":"Leibniz%20VI:%20Leibniz%20and%20the%20New%20World,%20and%20His%20Legacy%20Today"},"Leibniz | Princess Caroline of Hanover",""]
["https://www.youtube.com/watch?v=Z7YuG41K_FA",{"$f":"HYPERLINK(T_public[[#This Row],[URL]])","v":"https://www.youtube.com/watch?v=Z7YuG41K_FA"},"yt channel: Anterak123","yt channel: Anterak123 epta@sympatico.ca","youtube channel"]
["https://natick.research.microsoft.com/",{"$f":"HYPERLINK(T_public[[#This Row],[URL]])","v":"https://natick.research.microsoft.com/"},"Microsoft project Natick | Underwater Data Center project","Microsoft project Natick | Underwater Data Center project On July 9th, 2020, Natick Northern Isles completed its mission at the bottom of the North Sea and was retrieved for analysis."]
["https://www.canada.ca/en/public-health/services/canadian-immunization-guide.html",{"$f":"HYPERLINK(T_public[[#This Row],[URL]])","v":"https://www.canada.ca/en/public-health/services/canadian-immunization-guide.html"},"Canadian Immunization Guide",""]
["https://www.canada.ca/en/public-health/services/immunization/national-advisory-committee-on-immunization-naci.html",{"$f":"HYPERLINK(T_public[[#This Row],[URL]])","v":"https://www.canada.ca/en/public-health/services/immunization/national-advisory-committee-on-immunization-naci.html"},"NACI","NACI National Advisory Committee on Immunization"]
["https://michael-hudson.com/2018/08/life-thought-an-autobiography/",{"$f":"HYPERLINK(T_public[[#This Row],[URL]])","v":"https://michael-hudson.com/2018/08/life-thought-an-autobiography/"},"Michael Hudson | personal website","Michael Hudson | personal website Matthew Ehret Comment on Telegram In a Renegade Inc interview from 2019 Hudson revealed that he was hired by NBC to write the skits for the many SNL attacks on the LaRouche organization (there were lots in the 1980s which is relavent since Dope Inc was being read by leading statesmen around Asia and ibero America while LaRouche's people were winning major state elections. So it was a serious thing to work for NBC to do the hack job he was assigned to do at the time. I know he had a few pieces printed in EIR in 1979-1980 as a correspondent. Whether he continues to play a sophisticated Delphic role or not today is something I cannot comment on. Certainly there is value in his rentier capitalist analysis and long term perspective on debt slavery/debt jubilees that I have no problem with. Jury is still out Michael Hudson - Changes in Superimperialism In Quest of a Multipolar Economic World Order with Michael Hudson and Pepe Escobar Renegade Inc: And Forgive Them Their Debts"]
["https://refusglobalqc.org/",{"$f":"HYPERLINK(T_public[[#This Row],[URL]])","v":"https://refusglobalqc.org/"},"Refus Global QC .org","Refus Global QC .org https://refusglobalqc.org/MANIFESTE/"]
["https://www.facebook.com/hashtag/letsgobrandon",{"$f":"HYPERLINK(T_public[[#This Row],[URL]])","v":"https://www.facebook.com/hashtag/letsgobrandon"},"Let's Go Brandon","Let's Go Brandon F*ck Joe Biden"]
["https://www.rand.org/pubs/reprints/RP1050.html",{"$f":"HYPERLINK(T_public[[#This Row],[URL]])","v":"https://www.rand.org/pubs/reprints/RP1050.html"},"Rand | How Think Tanks Interact With TheMilitary",""]
["https://citizenfreepress.com/column-2/dr-robert-malone-ivermectin-works-i-used-it-myself/",{"$f":"HYPERLINK(T_public[[#This Row],[URL]])","v":"https://citizenfreepress.com/column-2/dr-robert-malone-ivermectin-works-i-used-it-myself/"},"Covid19 | Ivermectin | Dr. Robert Malone","","covid"]
["https://www.sciencedirect.com/topics/medicine-and-dentistry/superparamagnetic-iron-oxide-nanoparticle",{"$f":"HYPERLINK(T_public[[#This Row],[URL]])","v":"https://www.sciencedirect.com/topics/medicine-and-dentistry/superparamagnetic-iron-oxide-nanoparticle"},"Covid19 | Spions","","covid"]
["https://ras-nsa.ca/expert/frederic-lasserre/",{"$f":"HYPERLINK(T_public[[#This Row],[URL]])","v":"https://ras-nsa.ca/expert/frederic-lasserre/"},"Frédéric Lasserre | BRI","Frédéric Lasserre | BRI Les nouvelles routes de la soie Arctic Shipping Climate Change, Commercial Traffic and Port Development La liaison ferroviaire Chine-Kirghizstan-Ouzbékistan : un tortueux chemin Bateaux, plateaux, arsenaux : quels enjeux géopolitiques dans un Arctique en mutation? L’avènement de corridors ferroviaires trans-asiatiques : quel levier de développement? | Article pp.83-100 du Vol.23 n°1 (2021)"]
["https://larouchepub.com/pr/2019/190310_china_out_poverty.html",{"$f":"HYPERLINK(T_public[[#This Row],[URL]])","v":"https://larouchepub.com/pr/2019/190310_china_out_poverty.html"},"China | 800 million people lifted out of poverty","China | 800 million people lifted out of poverty French President Macron Joins China’s New Silk Road The Chinese Economic Model | Dr. Yan Wang","china"]
["https://interestingengineering.com/smallest-ever-injectable-chip-hints-at-cybernetic-medicine",{"$f":"HYPERLINK(T_public[[#This Row],[URL]])","v":"https://interestingengineering.com/smallest-ever-injectable-chip-hints-at-cybernetic-medicine"},"The Smallest-Ever Injectable Chip Hints at a New Cybernetic Medicine",""]
["https://amgreatness.com/2021/10/06/world-renowned-psychiatrist-global-predators-fauci-gates-and-schwab-behind-the-covid-reign-of-terror/",{"$f":"HYPERLINK(T_public[[#This Row],[URL]])","v":"https://amgreatness.com/2021/10/06/world-renowned-psychiatrist-global-predators-fauci-gates-and-schwab-behind-the-covid-reign-of-terror/"},"Covid19 | Dr. Peter Breggin | World Renowned Psychiatrist: ‘Global Predators’ Fauci, Gates, and Schwab Behind the COVID ‘Reign of Terror’","Covid19 | Dr. Peter Breggin | World Renowned Psychiatrist: ‘Global Predators’ Fauci, Gates, and Schwab Behind the COVID ‘Reign of Terror’ Peter R Breggin, MD | Book: Covid-19 and the Global Predators: We are the Prey","covid"]
["https://www.alibris.com/The-Secret-of-Life-Georges-Lakhovsky/book/5966553",{"$f":"HYPERLINK(T_public[[#This Row],[URL]])","v":"https://www.alibris.com/The-Secret-of-Life-Georges-Lakhovsky/book/5966553"},"The Secret of Life | Georges Lakhovsky | Translated by Mark Clement","The Secret of Life | Georges Lakhovsky | Translated by Mark Clement buy ebookfrom Google Play store"]
["https://ocla.ca/a-letter-to-the-vaccinated/",{"$f":"HYPERLINK(T_public[[#This Row],[URL]])","v":"https://ocla.ca/a-letter-to-the-vaccinated/"},"Covid19 | Letter to the vaccinated","","covid"]
["https://ocla.ca/a-letter-to-the-unvaccinated/",{"$f":"HYPERLINK(T_public[[#This Row],[URL]])","v":"https://ocla.ca/a-letter-to-the-unvaccinated/"},"Covid19 | Letter to the unvaccinated","","covid"]
["https://mymodernmet.com/royalty-now-historical-figures-modern-portraits",{"$f":"HYPERLINK(T_public[[#This Row],[URL]])","v":"https://mymodernmet.com/royalty-now-historical-figures-modern-portraits"},"Designer Reimagines Famous Historical Figures as Modern People Living Today",""]
["#",{"$f":"HYPERLINK(T_public[[#This Row],[URL]])","v":"#"},"John Swinton","John Swinton John Swinton, célèbre journaliste qui à New York, le 25 septembre 1880, s'était fâché tout rouge lors d'un banquet quand on lui a proposé de faire un toast à la liberté de la presse : «Il n’existe pas, à ce jour, en Amérique, de presse libre et indépendante. Vous le savez aussi bien que moi. Pas un seul parmi vous n’ose écrire ses opinions honnêtes et vous savez très bien que si vous le faites, elles ne seront pas publiées. On me paye un salaire pour que je ne publie pas mes opinions et nous savons tous que si nous nous aventurions à le faire, nous nous retrouverions à la rue illico. Le travail du journaliste est la destruction de la vérité, le mensonge patent, la perversion des faits et la manipulation de l’opinion au service des Puissances de l’Argent. Nous sommes les outils obéissants des Puissants et des Riches qui tirent les ficelles dans les coulisses. Nos talents, nos facultés et nos vies appartiennent à ces hommes. Nous sommes des prostituées de l’intellect. Tout cela, vous le savez aussi bien que moi ! » (Cité dans : Labor’s Untold Story, de Richard O. Boyer and Herbert M. Morais, NY, 1955/1979.)"]
["https://plato.stanford.edu/entries/kant/",{"$f":"HYPERLINK(T_public[[#This Row],[URL]])","v":"https://plato.stanford.edu/entries/kant/"},"Immanuel Kant (1724–1804)",""]
["https://risingtidefoundation.net/cheik-anta-diop/",{"$f":"HYPERLINK(T_public[[#This Row],[URL]])","v":"https://risingtidefoundation.net/cheik-anta-diop/"},"Cheik Anta Diop","Cheik Anta Diop The Peopling of ancient Egypt and the deciphering of Meroitic script; proceedings Towards The African Renaissance: Essays In African Culture & Development, 1946 1960 Black Africa: The Economic and Cultural Basis for a Federated State Rev Exp Su edition by Diop, Cheikh Anta (1987) Paperback Civilization or Barbarism: An Authentic Anthropology | Cheikh Anta Diop Precolonial Black Africa | Cheikh Anta Diop The Dream of an African Renaissance: Cheikh Anta Diop's Grand Design | part 1 on YouTube Cheikh Anta Diop's Dream of a United Africa: The Economic Vision for an African New Silk Road | part 2 on YouTube"]
["https://youtu.be/8u3aTURVEC8?t=658",{"$f":"HYPERLINK(T_public[[#This Row],[URL]])","v":"https://youtu.be/8u3aTURVEC8?t=658"},"Jordan Peterson | 2014 Personality Lecture 13: Aleksandr Solzhenitsyn","","jordanPeterson"]
["https://www.goodreads.com/book/show/4069.Man_s_Search_for_Meaning",{"$f":"HYPERLINK(T_public[[#This Row],[URL]])","v":"https://www.goodreads.com/book/show/4069.Man_s_Search_for_Meaning"},"Man's Search for Meaning | Viktor E. Frankl","Man's Search for Meaning | Viktor E. Frankl - Live as if you were living for the second time and had acted as wrongly the first time as you are about to act now - When he spoke to American audiences, Frankl was fond of saying \"I recommend that the Statue of Liberty on the East coast be supplemented by a Statue of Responsibility ont eh West coast\" - The meaning of your life is to help others find the meaning of theirs"]
["https://www.youtube.com/results?search_query=eboussi+boulaga",{"$f":"HYPERLINK(T_public[[#This Row],[URL]])","v":"https://www.youtube.com/results?search_query=eboussi+boulaga"},"Fabien Eboussi Boulaga",""]
["https://www.bitchute.com/video/cLZ3s6spE6k3/",{"$f":"HYPERLINK(T_public[[#This Row],[URL]])","v":"https://www.bitchute.com/video/cLZ3s6spE6k3/"},"Dr. Daniel Nagase | Covid19 | Ivermectin","","covid"]
["https://schillerinstitute.nationbuilder.com/wlb_ii",{"$f":"HYPERLINK(T_public[[#This Row],[URL]])","v":"https://schillerinstitute.nationbuilder.com/wlb_ii"},"Schiller Institute | The New Silk Road Becomes the World Land-Bridge, Vol. II","","schiller schillerInstitute"]
["https://solidariteetprogres.fr/documents-de-fond-7/economie/Alexander-Hamilton-rapport-manufactures.html",{"$f":"HYPERLINK(T_public[[#This Row],[URL]])","v":"https://solidariteetprogres.fr/documents-de-fond-7/economie/Alexander-Hamilton-rapport-manufactures.html"},"FRA | Hamilton | Rapports en français","","hamilton"]
["https://dtv.to/2XJUolb",{"$f":"HYPERLINK(T_public[[#This Row],[URL]])","v":"https://dtv.to/2XJUolb"},"The Covid19 Network Complex","The Covid19 Network Complex pdf document describing the complex network of relationships between non-governmental organizations (NGOs), companies, documents, and people. This graphic above shows connections between the Gates Foundation, Wellcome Trust, WHO, GAVI and other NGOs and Big Pharma... It contains round about 6500 objects including like Persons, NGOs, Companies, Documents, etc. It also includes more than 7200 links between them. Disclose.tv | Covid19 Network Analysis","covid"]
["https://www.mondedestars.net/nouvelles/guillaume-lemay-thivierge-commente-publiquement-l-article-de-la-presse-et-son-refus-de-se-faire-vacciner",{"$f":"HYPERLINK(T_public[[#This Row],[URL]])","v":"https://www.mondedestars.net/nouvelles/guillaume-lemay-thivierge-commente-publiquement-l-article-de-la-presse-et-son-refus-de-se-faire-vacciner"},"Guillaume Lemay-Thivierge | Vaccination Covid","Guillaume Lemay-Thivierge | Vaccination Covid « À la suite d’un article paru aujourd’hui, il est important pour moi de rectifier les faits. À ce jour, je n’ai jamais partagé ou pris position dans les médias au sujet de mon statut vaccinal ou sur celui de quiconque. Il s’agit d’ailleurs d’une information personnelle et confidentielle qui n’aurait jamais dû se retrouver sur la place publique. Il est un devoir pour moi de respecter l’ensemble des mesures exigées et émises par la Santé publique, et ce depuis le début de la crise sanitaire. En date de ce jour, je continue à me renseigner sur les vaccins et les effets de ceux-ci. Ma réflexion à ce sujet est sérieuse et elle est alimentée par la soif du savoir. J’avais l’intention d’être adéquatement protégé par l’obtention d’un vaccin avec lequel je me sentais confortable et dont la disponibilité était initialement prévue en septembre. L’homologation de ce vaccin a été reportée mais mon intention de me protéger et de protéger les autres demeure une priorité. Mon cheminement de réflexion n’est pas étranger à mon processus décisionnel et à mon besoin d’y aller à mon rythme et ce, dans toutes les sphères de ma vie. Cette démarche est personnelle et je respecterai toujours celles des autres. Cette situation a pris des proportions démesurées et dans les circonstances je n’émettrai aucun autre commentaire. »","covid"]
["https://lists.live.com/",{"$f":"HYPERLINK(T_public[[#This Row],[URL]])","v":"https://lists.live.com/"},"myLists","","lists msLists"]
["https://reinfocovid.fr/",{"$f":"HYPERLINK(T_public[[#This Row],[URL]])","v":"https://reinfocovid.fr/"},"réinfo covid reinfocovid","","covid"]
["https://reinfoquebec.ca/",{"$f":"HYPERLINK(T_public[[#This Row],[URL]])","v":"https://reinfoquebec.ca/"},"réinfo Québec","","quebec québec"]
["https://healthimpactnews.com/2023/anthony-holland-phd-destroying-cancer-cells-with-music-frequencies/",{"$f":"HYPERLINK(T_public[[#This Row],[URL]])","v":"https://healthimpactnews.com/2023/anthony-holland-phd-destroying-cancer-cells-with-music-frequencies/"},"Anthony Holland PhD: Destroying Cancer Cells with Music Frequencies","Anthony Holland PhD: Destroying Cancer Cells with Music Frequencies Inhibition of Proliferation of Acute Lymphocytic Leukemia (ALL) by frequency-specific Oscillating Pulsed Electric Fields (OPEF) broadcast by an enclosed gas plasma antenna"]
["https://vitalfield.com/shop-no-pain-cell/",{"$f":"HYPERLINK(T_public[[#This Row],[URL]])","v":"https://vitalfield.com/shop-no-pain-cell/"},"Vital Health Pain Begone products | Frequency and vibration | Alternative Health","","health"]
["https://www.eyebuydirect.ca/",{"$f":"HYPERLINK(T_public[[#This Row],[URL]])","v":"https://www.eyebuydirect.ca/"},"eyebuydirect eye glasses online",""]
["https://onlinelibrary.wiley.com/doi/full/10.1111/joa.13501",{"$f":"HYPERLINK(T_public[[#This Row],[URL]])","v":"https://onlinelibrary.wiley.com/doi/full/10.1111/joa.13501"},"The cecal appendix is correlated with greater maximal longevity in mammals",""]
["https://presse.inserm.fr/",{"$f":"HYPERLINK(T_public[[#This Row],[URL]])","v":"https://presse.inserm.fr/"},"presse.inserm.fr",""]
["",{"$f":"HYPERLINK(T_public[[#This Row],[URL]])","v":""},"études qui montrent l'importance des bactéries intestinales",""]
["https://fr.wikipedia.org/wiki/%C3%89piphyse",{"$f":"HYPERLINK(T_public[[#This Row],[URL]])","v":"https://fr.wikipedia.org/wiki/%C3%89piphyse"},"wiki: Épiphyse | Glande Pinéale","wiki: Épiphyse | Glande Pinéale wiki: glande pinéale 3d gif"]
["https://cancer.ca/fr/cancer-information/what-is-cancer/lymphatic-system#ci_the_lymphatic_system_88_11344_00",{"$f":"HYPERLINK(T_public[[#This Row],[URL]])","v":"https://cancer.ca/fr/cancer-information/what-is-cancer/lymphatic-system#ci_the_lymphatic_system_88_11344_00"},"Le système lymphatique",""]
["https://en.wikipedia.org/wiki/Blood%E2%80%93brain_barrier",{"$f":"HYPERLINK(T_public[[#This Row],[URL]])","v":"https://en.wikipedia.org/wiki/Blood%E2%80%93brain_barrier"},"Blood–brain barrier | bbb",""]
["https://cancer.ca/fr/cancer-information/resources/glossary/p/pineal-gland",{"$f":"HYPERLINK(T_public[[#This Row],[URL]])","v":"https://cancer.ca/fr/cancer-information/resources/glossary/p/pineal-gland"},"corps pinéal",""]
["https://cancer.ca/fr/cancer-information/what-is-cancer/endocrine-system-and-hormones",{"$f":"HYPERLINK(T_public[[#This Row],[URL]])","v":"https://cancer.ca/fr/cancer-information/what-is-cancer/endocrine-system-and-hormones"},"Le système endocrinien et ses hormones",""]
["https://cancer.ca/fr/cancer-information/cancer-types/pituitary-gland-tumours/what-are-pituitary-gland-tumours/the-pituitary-gland#ci_the_pituitary_gland_40_3521_00",{"$f":"HYPERLINK(T_public[[#This Row],[URL]])","v":"https://cancer.ca/fr/cancer-information/cancer-types/pituitary-gland-tumours/what-are-pituitary-gland-tumours/the-pituitary-gland#ci_the_pituitary_gland_40_3521_00"},"Hypophyse",""]
["http://www.psychomedia.qc.ca/sante/2017-01-10/appendice-role-fonction",{"$f":"HYPERLINK(T_public[[#This Row],[URL]])","v":"http://www.psychomedia.qc.ca/sante/2017-01-10/appendice-role-fonction"},"Finalement l'appendice jouerait un rôle important, confirme une étude","Finalement l'appendice jouerait un rôle important, confirme une étude Heather F. Smith de l'Université Midwestern New Midwestern University research suggests appendix may have important function NEWS RELEASE 9-JAN-2017"]
["https://presse.inserm.fr/lappendice-nest-pas-une-structure-inutile-et-serait-correle-a-un-allongement-de-la-duree-de-vie/43545/",{"$f":"HYPERLINK(T_public[[#This Row],[URL]])","v":"https://presse.inserm.fr/lappendice-nest-pas-une-structure-inutile-et-serait-correle-a-un-allongement-de-la-duree-de-vie/43545/"},"L’appendice n’est pas une structure inutile et serait corrélé à un allongement de la durée de vie",""]
["http://blog.alorthographe.com/2017/03/31/difference-entre-suc-et-sucre/",{"$f":"HYPERLINK(T_public[[#This Row],[URL]])","v":"http://blog.alorthographe.com/2017/03/31/difference-entre-suc-et-sucre/"},"Différence entre suc et sucre","Différence entre suc et sucre Voici deux mots qui sont souvent confondus : suc et sucre. Le nom suc vient du latin sucus qui signifie sève. En effet, il s’agit d’un liquide organique extrait d’une substance aussi bien végétale qu’animale. Chez les animaux, on parlera par exemple de sucs gastriques, sucs digestifs, sucs pancréatiques. Concernant les plantes dites succulentes (du latin suculentus = plein de suc, d’où l’adjectif succulent pour dire qu’un mets est délicieux), elles vivent dans les milieux extrêmes, notamment arides (montagne), semi-désertiques, littoraux où elles sont exposées au sel (sur les rochers en bord de mer) : joubarbe, cactus, criste marine… Leur adaptation est liée à leur importante capacité à stocker l’eau dans leurs feuilles, tiges ou racines. Elles emmagasinent ainsi des réserves sous forme de sucs dans leurs tissus, ce qui explique le surnom qui leur est souvent donné, à savoir plantes grasses, en raison généralement de leurs feuilles épaisses. Au sens figuré, le nom suc désigne ce que l’on pourrait appeler la substantifique moelle, expression que Rabelais rendit célèbre (Gargantua), c’est-à-dire l’extrait de quelque chose, ce qui est substantiel dans un livre ou une doctrine par exemple, en tirer tout le suc. Le sucre en revanche vient de l’italien zucchero, issu lui-même de l’arabe sukkar = grain, en grec sakkharon et en latin saccharum. Il s’agit d’une substance que nous connaissons et utilisons couramment (sucre de table), extraite de la canne à sucre et de la betterave à sucre. Le sucre est composé de saccharose. Le sucre est cependant naturellement présent dans les végétaux car c’est l’un des produits issus de la photosynthèse (mécanisme permettant aux plantes vertes de transformer les éléments minéraux en matière organique grâce à l’énergie lumineuse). Vous aimeriez améliorer votre maîtrise de la langue française tout en y prenant plaisir ? Voici plusieurs livres qui vont vous y aider https://www.amazon.fr/Corinne-DUVAL/e/B075H9H3LQ/"]
["https://www.frontiersin.org/articles/10.3389/fimmu.2020.610363/full",{"$f":"HYPERLINK(T_public[[#This Row],[URL]])","v":"https://www.frontiersin.org/articles/10.3389/fimmu.2020.610363/full"},"Ghrelin","Ghrelin source"]
["https://www.google.com/search?rlz=1C1GCEA_enCA1061CA1062&q=Vagus+nerve+anatomy&uds=H4sIAAAAAAAA_-My5GJ3zEssyc-tFOIvyUhVKEtNTyxWyEstKks1YCwSDktML4VyFRIh6gBuD5WeMwAAAA&sa=X&ved=2ahUKEwiBj46CvKyAAxWzFFkFHXMPDC0QxKsJegQIDhAB&ictx=0&biw=1920&bih=969&dpr=1#vhid=d0B4BIXsm1wQ9M&vssid=l",{"$f":"HYPERLINK(T_public[[#This Row],[URL]])","v":{"$error":"#VALUE!"}},"Vagus nerve anatomy",""]
["https://www.google.com/search?q=locus+coeruleus+relation+with+lateral+hypothalamus&rlz=1C1GCEA_enCA1061CA1062&oq=locus+coeruleus+relation+with+lateral+hypothalamus&aqs=chrome..69i57j33i160l2.850j0j7&sourceid=chrome&ie=UTF-8",{"$f":"HYPERLINK(T_public[[#This Row],[URL]])","v":"https://www.google.com/search?q=locus+coeruleus+relation+with+lateral+hypothalamus&rlz=1C1GCEA_enCA1061CA1062&oq=locus+coeruleus+relation+with+lateral+hypothalamus&aqs=chrome..69i57j33i160l2.850j0j7&sourceid=chrome&ie=UTF-8"},"locus coeruleus relation with lateral hypothalamus",""]
["www.fastingthehealerwithin.com",{"$f":"HYPERLINK(T_public[[#This Row],[URL]])","v":"www.fastingthehealerwithin.com"},"fasting the healer within",""]
["https://search.brave.com/search?q=stages+of+fasting+ketosis&source=desktop&summary=1&summary_og=632f36d0f5c24d4988f04b",{"$f":"HYPERLINK(T_public[[#This Row],[URL]])","v":"https://search.brave.com/search?q=stages+of+fasting+ketosis&source=desktop&summary=1&summary_og=632f36d0f5c24d4988f04b"},"Stages of fasting ketosis",""]
["https://perfectketo.com/the-5-stages-of-fasting/",{"$f":"HYPERLINK(T_public[[#This Row],[URL]])","v":"https://perfectketo.com/the-5-stages-of-fasting/"},"The 5 Stages of Fasting (And The Benefits of Each One)",""]
["https://app.napkin.ai/",{"$f":"HYPERLINK(T_public[[#This Row],[URL]])","v":"https://app.napkin.ai/"},"napkin.ai","","ai"]
["https://youtu.be/h6iFwcQMh9o?si=PCV-E8omVjIbeCuW&t=256",{"$f":"HYPERLINK(T_public[[#This Row],[URL]])","v":"https://youtu.be/h6iFwcQMh9o?si=PCV-E8omVjIbeCuW&t=256"},"brain-computer interface vs intrusive craniotomy surgeries",""]
["https://www.who.int/emergencies/diseases/novel-coronavirus-2019",{"$f":"HYPERLINK(T_public[[#This Row],[URL]])","v":"https://www.who.int/emergencies/diseases/novel-coronavirus-2019"},"WHO | Covid19 | HOME","","covid"]
["https://www.nextdose.fr/videos-next-dose-3-faut-il-encore-des-preuves/",{"$f":"HYPERLINK(T_public[[#This Row],[URL]])","v":"https://www.nextdose.fr/videos-next-dose-3-faut-il-encore-des-preuves/"},"nextdose 3 | Do we still need proof?","","documentaries"]
["https://justpaste.it/7sg7o",{"$f":"HYPERLINK(T_public[[#This Row],[URL]])","v":"https://justpaste.it/7sg7o"},"deagle military spending and population reduction forecast originally published prior to 2020",""]
["https://www.congress.gov/bill/117th-congress/house-bill/3339/text",{"$f":"HYPERLINK(T_public[[#This Row],[URL]])","v":"https://www.congress.gov/bill/117th-congress/house-bill/3339/text"},"H.R.3339 - National Infrastructure Bank Act of 2021","H.R.3339 - National Infrastructure Bank Act of 2021 117th Congress (2021-2022) The infrastructure crisis meets the perfect storm: It's time for a national infrastructure bank The Journal News is a newspaper in New York serving the New York counties of Westchester, Rockland, and Putnam, a region known as the Lower Hudson Valley. It is owned by Gannett. Legislators Promote Hamiltonian Infrastructure Bank | September 26, 2021 American System Now | Nancy Spannaus"]
["http://chinese.larouchepub.com/wp-content/uploads/2017/05/San-Min-Chu-I_ALL-en.pdf",{"$f":"HYPERLINK(T_public[[#This Row],[URL]])","v":"http://chinese.larouchepub.com/wp-content/uploads/2017/05/San-Min-Chu-I_ALL-en.pdf"},"Sun Yat-sen","Sun Yat-sen THE THREE PRINCIPLES OF THE PEOPLE"]
["https://fddlp.org/missions-et-realisations/",{"$f":"HYPERLINK(T_public[[#This Row],[URL]])","v":"https://fddlp.org/missions-et-realisations/"},"FDDLP | FONDATION POUR LA DÉFENSE DES DROITS ET LIBERTÉS DU PEUPLE","FDDLP | FONDATION POUR LA DÉFENSE DES DROITS ET LIBERTÉS DU PEUPLE Latin: Pro Defensione Jurium et Libertartum de Populi 16- (Mars 2021) : Dépôt du pourvoi en contrôle judiciaire par Me Desjarlais. 9 experts de renommée internationale travaillent sur ce dossier pour aider le Québec (voir leur CV ci-après). Tous les sujets ayant trait à la Covid19 sont couverts : PCR, vaccins, distanciation sociale, masques, fermeture des commerces jugées non essentiels, couvre-feu, etc…;"]
["https://www.medrxiv.org/content/10.1101/2021.08.10.21261846v1.full.pdf",{"$f":"HYPERLINK(T_public[[#This Row],[URL]])","v":"https://www.medrxiv.org/content/10.1101/2021.08.10.21261846v1.full.pdf"},"Covid19 | Étude Américaine: Babies, Bébés| 22 IQ points reduction","Covid19 | Étude Américaine: Babies, Bébés| 22 IQ points reduction 700 kids | publicly funded research","covid"]
["https://www.cdc.gov/adenovirus/index.html",{"$f":"HYPERLINK(T_public[[#This Row],[URL]])","v":"https://www.cdc.gov/adenovirus/index.html"},"Adenovirus","Adenovirus Johnson & Johnson, Astrazeneca"]
["https://www.facebook.com/anne.casabonneperso/posts/4972952752720269",{"$f":"HYPERLINK(T_public[[#This Row],[URL]])","v":"https://www.facebook.com/anne.casabonneperso/posts/4972952752720269"},"Liens Anne Casabonne Perso","Liens Anne Casabonne Perso Septembre 29 9:34 | Vis: Public"]
["https://www.msnbc.com/all-in/watch/dr-fauci-explains-updated-cdc-mask-guidance-for-vaccinated-people-amid-covid-hotspots-117489221538",{"$f":"HYPERLINK(T_public[[#This Row],[URL]])","v":"https://www.msnbc.com/all-in/watch/dr-fauci-explains-updated-cdc-mask-guidance-for-vaccinated-people-amid-covid-hotspots-117489221538"},"Fauci: vaccinated are contagious",""]
["https://clinicaltrials.gov/ct2/show/NCT04505722",{"$f":"HYPERLINK(T_public[[#This Row],[URL]])","v":"https://clinicaltrials.gov/ct2/show/NCT04505722"},"Clinical Trials: Janssen Vaccines & Prevention B.V.","Clinical Trials: Janssen Vaccines & Prevention B.V. A Study of Ad26.COV2.S for the Prevention of SARS-CoV-2-Mediated Covid19 in Adult Participants (ENSEMBLE)"]
["https://clinicaltrials.gov/ct2/show/NCT04516746",{"$f":"HYPERLINK(T_public[[#This Row],[URL]])","v":"https://clinicaltrials.gov/ct2/show/NCT04516746"},"Clinical Trials: AstraZeneca","Clinical Trials: AstraZeneca Phase III Double-blind, Placebo-controlled Study of AZD1222 for the Prevention of Covid19 in Adults"]
["https://clinicaltrials.gov/ct2/show/NCT04368728",{"$f":"HYPERLINK(T_public[[#This Row],[URL]])","v":"https://clinicaltrials.gov/ct2/show/NCT04368728"},"Clinical Trials: COMPANY","Clinical Trials: COMPANY Study to Describe the Safety, Tolerability, Immunogenicity, and Efficacy of RNA Vaccine Candidates Against Covid19 in Healthy Individuals Actual Study Start Date : July 27, 2020 Estimated Study Completion Date : October 27, 2022<"]
["https://papers.ssrn.com/sol3/papers.cfm?abstract_id=3897733",{"$f":"HYPERLINK(T_public[[#This Row],[URL]])","v":"https://papers.ssrn.com/sol3/papers.cfm?abstract_id=3897733"},"Lancet | Vietnam","Lancet | Vietnam Posted: 10 Aug 2021 | Transmission of SARS-CoV-2 Delta Variant Among Vaccinated Healthcare Workers, Vietnam | 31 pages"]
["https://denisrancourt.ca/entries.php?id=104&name=2021_08_06_analysis_of_all_cause_mortality_by_week_in_canada_2010_2021_by_province_age_and_sex_there_was_no_covid_19_pandemic_and_there_is_strong_evidence_of_response_caused_deaths_in_the_most_elderly_and_in_young_males",{"$f":"HYPERLINK(T_public[[#This Row],[URL]])","v":{"$error":"#VALUE!"}},"Canada | All cause mortality | Denis G. Rancourt, Marine Baudin, Jérémie Mercier","Canada | All cause mortality | Denis G. Rancourt, Marine Baudin, Jérémie Mercier 2021-08-06 ::: Analysis of all-cause mortality by week in Canada 2010-2021, by province, age and sex: There was no Covid19 pandemic, and there is strong evidence of response-caused deaths in the most elderly and in young males","canada"]
["https://www.globalresearch.ca/destroying-narrative-40-reasons-why-Covid19-pandemic-never-existed-2/5757229",{"$f":"HYPERLINK(T_public[[#This Row],[URL]])","v":"https://www.globalresearch.ca/destroying-narrative-40-reasons-why-Covid19-pandemic-never-existed-2/5757229"},"Destroying the Narrative: 40 Reasons Why a Covid19 Pandemic Never Existed","Destroying the Narrative: 40 Reasons Why a Covid19 Pandemic Never Existed Part 1 of 2","covid"]
["https://laws-lois.justice.gc.ca/fra/LoisAnnuelles/2017_3/TexteComplet.html",{"$f":"HYPERLINK(T_public[[#This Row],[URL]])","v":"https://laws-lois.justice.gc.ca/fra/LoisAnnuelles/2017_3/TexteComplet.html"},"Loi sur la non-discrimination génétique | L.C. 2017, ch. 3 | Sanctionnée 2017-05-04","Loi sur la non-discrimination génétique | L.C. 2017, ch. 3 | Sanctionnée 2017-05-04 Loi visant à interdire et à prévenir la discrimination génétique Genetic Non-Discrimination Act | S.C. 2017, c. 3 | Assented to 2017-05-04 An Act to prohibit and prevent genetic discrimination","justice"]
["https://www.cdc.gov/training/publichealth101/epidemiology.html",{"$f":"HYPERLINK(T_public[[#This Row],[URL]])","v":"https://www.cdc.gov/training/publichealth101/epidemiology.html"},"Epidemiology","Epidemiology Epidemiology is the “study of distribution and determinants of health-related states among specified populations and the application of that study to the control of health problems.” — A Dictionary of Epidemiology"]
["https://www.who.int/director-general/speeches/detail/who-director-general-s-opening-remarks-at-the-media-briefing-on-Covid19---11-march-2020",{"$f":"HYPERLINK(T_public[[#This Row],[URL]])","v":"https://www.who.int/director-general/speeches/detail/who-director-general-s-opening-remarks-at-the-media-briefing-on-Covid19---11-march-2020"},"OMS Déclaration de pandémie 11 Mars 2020","OMS Déclaration de pandémie 11 Mars 2020 WHO exposed: How health body changed pandemic criteria to push agenda"]
["https://cdn-contenu.quebec.ca/cdn-contenu/adm/min/sante-services-sociaux/publications-adm/lois-reglements/decret-177-2020.pdf?1584224223",{"$f":"HYPERLINK(T_public[[#This Row],[URL]])","v":"https://cdn-contenu.quebec.ca/cdn-contenu/adm/min/sante-services-sociaux/publications-adm/lois-reglements/decret-177-2020.pdf?1584224223"},"Décret d'Urgence Québec | 13 Mars 2020","Décret d'Urgence Québec | 13 Mars 2020 Décret concernant une déclaration d’urgence sanitaire conformément à l’article 118 de la Loi sur la santé publique","quebec québec"]
["https://yl9wj1huk5pejen62zybt2w8-wpengine.netdna-ssl.com/wp-content/uploads/2021/09/MO-Sep-13.pdf",{"$f":"HYPERLINK(T_public[[#This Row],[URL]])","v":"https://yl9wj1huk5pejen62zybt2w8-wpengine.netdna-ssl.com/wp-content/uploads/2021/09/MO-Sep-13.pdf"},"Saskatchewan Emergency Document",""]
["https://www.poetryfoundation.org/articles/69388/a-defence-of-poetry",{"$f":"HYPERLINK(T_public[[#This Row],[URL]])","v":"https://www.poetryfoundation.org/articles/69388/a-defence-of-poetry"},"Percy Bysshe Shelley | A defence of Poetry | Poetry Foundation","Percy Bysshe Shelley | A defence of Poetry | Poetry Foundation Percy Bysshe Shelley | A defence of Poetry | The Project Gutenberg \"... At such periods there is an accumulation of the power of communicating and receiving intense and impassioned conceptions respecting man and nature. The persons in whom this power resides may often, as far as regards many portions of their nature, have little apparent correspondence with that spirit of good of which they are the ministers. But even whilst they deny and abjure, they are yet compelled to serve, the power which is seated on the throne of their own soul.\""]
["https://en.wikipedia.org/wiki/Command_and_control",{"$f":"HYPERLINK(T_public[[#This Row],[URL]])","v":"https://en.wikipedia.org/wiki/Command_and_control"},"C2","C2 Command and control | references on the battlefield, or as an intermediary host from which to run cyber attacks"]
["#",{"$f":"HYPERLINK(T_public[[#This Row],[URL]])","v":"#"},"Confucius | Truth, Goodness and Beauty","Confucius | Truth, Goodness and Beauty *need more info","truth"]
["https://quoteinvestigator.com/",{"$f":"HYPERLINK(T_public[[#This Row],[URL]])","v":"https://quoteinvestigator.com/"},"Quote Investigator",""]
["https://centerforhealthsecurity.org/event201/",{"$f":"HYPERLINK(T_public[[#This Row],[URL]])","v":"https://centerforhealthsecurity.org/event201/"},"Event 201","Event 201 The Johns Hopkins Center for Health Security in partnership with the World Economic Forum and the Bill and Melinda Gates Foundation hosted Event 201, a high-level pandemic exercise on October 18, 2019, in New York, NY. The exercise illustrated areas where public/private partnerships will be necessary during the response to a severe pandemic in order to diminish large-scale economic and societal consequences."]
["https://www.fda.gov/vaccines-blood-biologics/vaccines/emergency-use-authorization-vaccines-explained",{"$f":"HYPERLINK(T_public[[#This Row],[URL]])","v":"https://www.fda.gov/vaccines-blood-biologics/vaccines/emergency-use-authorization-vaccines-explained"},"EUA","EUA Emergency Use Authorization for Vaccines Explained"]
["https://www.fda.gov/vaccines-blood-biologics/comirnaty",{"$f":"HYPERLINK(T_public[[#This Row],[URL]])","v":"https://www.fda.gov/vaccines-blood-biologics/comirnaty"},"Comirnaty","Comirnaty [formerly aka the Pfizer mRNA vaccine]"]
["https://www.fda.gov/drugs/drug-safety-and-availability/fda-drug-safety-communication-fda-updates-warnings-oral-and-injectable-fluoroquinolone-antibiotics",{"$f":"HYPERLINK(T_public[[#This Row],[URL]])","v":"https://www.fda.gov/drugs/drug-safety-and-availability/fda-drug-safety-communication-fda-updates-warnings-oral-and-injectable-fluoroquinolone-antibiotics"},"Oral and injectable Fluoroquinolone","Oral and injectable Fluoroquinolone This information is an update to the FDA Drug Safety Communication: FDA advises restricting fluoroquinolone antibiotic use for certain uncomplicated infections; warns about disabling side effects that can occur together issued on May 12, 2016"]
["https://www.beckershospitalreview.com/public-health/nearly-60-of-hospitalized-Covid19-patients-in-israel-fully-vaccinated-study-finds.html",{"$f":"HYPERLINK(T_public[[#This Row],[URL]])","v":"https://www.beckershospitalreview.com/public-health/nearly-60-of-hospitalized-Covid19-patients-in-israel-fully-vaccinated-study-finds.html"},"Covid19 | Israel","","covid"]
["http://www.vector.nsc.ru/",{"$f":"HYPERLINK(T_public[[#This Row],[URL]])","v":"http://www.vector.nsc.ru/"},"VECTOR","VECTOR Russia's State Research Center of Virology and Biotechnology"]
["https://www.centerforhealthsecurity.org/our-work/events-archive/2001_dark-winter/about.html",{"$f":"HYPERLINK(T_public[[#This Row],[URL]])","v":"https://www.centerforhealthsecurity.org/our-work/events-archive/2001_dark-winter/about.html"},"Dark Winter","Dark Winter On June 22-23, 2001, the Center for Strategic and International Studies, the Johns Hopkins Center for Civilian Biodefense Studies, the ANSER Institute for Homeland Security, and the Oklahoma City National Memorial Institute for the Prevention Terrorism, hosted a senior-level war game examining the national security, intergovernmental, and information challenges of a biological attack on the American homeland. Dark Winter Script Article: Shining Light on Dark Winter"]
["https://www.hoax.agency/",{"$f":"HYPERLINK(T_public[[#This Row],[URL]])","v":"https://www.hoax.agency/"},"Hoax.agency",""]
["https://theintercept.com/2017/11/07/dnc-hack-trump-cia-director-william-binney-nsa/",{"$f":"HYPERLINK(T_public[[#This Row],[URL]])","v":"https://theintercept.com/2017/11/07/dnc-hack-trump-cia-director-william-binney-nsa/"},"CIA DIRECTOR MET ADVOCATE OF DISPUTED DNC HACK THEORY — AT TRUMP’S REQUEST (William [Bill] Binney)","CIA DIRECTOR MET ADVOCATE OF DISPUTED DNC HACK THEORY — AT TRUMP’S REQUEST (William [Bill] Binney) Mike Pompeo sought “facts” from NSA whistleblower William [Bill] Binney, who says the 2016 theft of DNC emails was an inside job, not a Russian hack."]
["https://vimeo.com/ondemand/agoodamerican4k/228966802",{"$f":"HYPERLINK(T_public[[#This Row],[URL]])","v":"https://vimeo.com/ondemand/agoodamerican4k/228966802"},"A Good American [Official Version] | William \"Bill\" Binney","A Good American [Official Version] | William \"Bill\" Binney VIMEO | Rental or Purchase options available | [resolution 4k available] | From Executive Producer Oliver Stone A Good American“ is a gripping docu-thriller about a groundbreaking surveillance program, the brilliant mastermind behind it and how a perfect alternative to mass surveillance was killed by NSA-management for money – three weeks prior to 9/11. Bill Binney was a brilliant cryptologist and long-time National Security Agency (NSA) analyst, since 1997 serving as Technical Director. Binney developed a sophisticated program named ThinThread for gathering data capable of providing clues, in real-time, of potential terrorist threats. Built-in safeguards would have prevented the massive surveillance methods later exposed by Edward Snowden. Why was this program killed off? And who was behind that? Friedrich Moser’s eye-opening and deeply disturbing documentary tells the complete story of Bill Binney and those, both inside the NSA and out, who backed ThinThread. A program that gathered data, lawfully, effectively, and more inexpensively, than the now discredited programs pursued by the US and EU governments. A Good American [Official Website: agoodamerican.org] A Friedrich Moser Film | From Executive Producer Oliver A Good American | William \"Bill\" Binney | YoutTube You Tube link [resolution 360p]"]
["https://wikileaks.org/vault7/",{"$f":"HYPERLINK(T_public[[#This Row],[URL]])","v":"https://wikileaks.org/vault7/"},"Vault 7","Vault 7 Vault 7 | CIA Hacking Tools Revealed Vault 7 | Press Release Today, Tuesday 7 March 2017, WikiLeaks begins its new series of leaks on the U.S. Central Intelligence Agency. Code-named \"Vault 7\" by WikiLeaks, it is the largest ever publication of confidential documents on the agency."]
["https://truthernews.wordpress.com/2015/03/31/10-reasons-why-switzerland-is-home-to-the-cia-central-intelligence-agency/",{"$f":"HYPERLINK(T_public[[#This Row],[URL]])","v":"https://truthernews.wordpress.com/2015/03/31/10-reasons-why-switzerland-is-home-to-the-cia-central-intelligence-agency/"},"10 REASONS WHY SWITZERLAND IS HOME TO THE CIA (CENTRAL INTELLIGENCE AGENCY)",""]
["https://wellcome.org/",{"$f":"HYPERLINK(T_public[[#This Row],[URL]])","v":"https://wellcome.org/"},"Wellcome trust | HOME","Wellcome trust | HOME founder, Sir Henry Wellcome, was a pharmaceutical entrepreneur. Our governance is based on an updated version of his will, in which he left us his wealth, his collection of historical medical items, and our mission to improve health through research. Wellcome trust | Wikipedia The Wellcome Trust is a charitable foundation focused on health research based in London, in the United Kingdom. It was established in 1936 with legacies from the pharmaceutical magnate Henry Wellcome (founder of one of the predecessors of GlaxoSmithKline) to fund research to improve human and animal health. The aim of the Trust is to \"support science to solve the urgent health challenges facing everyone.\" It had a financial endowment of £29.1 billion in 2020, making it the fourth wealthiest charitable foundation in the world. In 2012, the Wellcome Trust was described by the Financial Times as the United Kingdom's largest provider of non-governmental funding for scientific research, and one of the largest providers in the world. According to their annual report, the Wellcome Trust spent GBP £1.1Bn on charitable activities across their 2019/2020 financial year. According to the OECD, the Wellcome Trust’s financing for 2019 development increased by 22% to US$327 million."]
["https://www.who.int/initiatives/act-accelerator/covax",{"$f":"HYPERLINK(T_public[[#This Row],[URL]])","v":"https://www.who.int/initiatives/act-accelerator/covax"},"COVAX | WHO","COVAX | WHO With a fast-moving pandemic, no one is safe, unless everyone is safe COVAX is co-led by CEPI, Gavi and WHO, alongside key delivery partner UNICEF. In the Americas, the PAHO Revolving Fund is the recognized procurement agent for COVAX. COVAX | Gavi COVAX is one of three pillars of the Access to Covid19 Tools (ACT) Accelerator, which was launched in April in response to this pandemic. Bringing together governments, global health organisations, manufacturers, scientists, private sector, civil society and philanthropy, with the aim of providing innovative and equitable access to Covid19 diagnostics, treatments and vaccines. COVAX | WHO | Launch... Alongside Gavi, the other foundational groups within the collaboration are the Bill & Melinda Gates Foundation, the Coalition for Epidemic Preparedness Innovations (CEPI), The Global Fund, UNITAID, the Wellcome Trust and the World Health Organization (WHO)"]
["https://breggin.com/wp-content/uploads/CEPI.Gates-Preliminary-Business-Plan-2016.pdf",{"$f":"HYPERLINK(T_public[[#This Row],[URL]])","v":"https://breggin.com/wp-content/uploads/CEPI.Gates-Preliminary-Business-Plan-2016.pdf"},"Covid19 | Bill Gates | CEPI | Preliminary Business Plan","","covid"]
["https://www.gavi.org/vaccineswork/covax-explained",{"$f":"HYPERLINK(T_public[[#This Row],[URL]])","v":"https://www.gavi.org/vaccineswork/covax-explained"},"COVAX | Gavi","COVAX | Gavi COVAX is one of three pillars of the Access to Covid19 Tools (ACT) Accelerator, which was launched in April in response to this pandemic. Bringing together governments, global health organisations, manufacturers, scientists, private sector, civil society and philanthropy, with the aim of providing innovative and equitable access to Covid19 diagnostics, treatments and vaccines."]
["https://cepi.net/news_cepi/upcoming-cepi-cihr-grant-funding-opportunity-for-canadian-researchers/",{"$f":"HYPERLINK(T_public[[#This Row],[URL]])","v":"https://cepi.net/news_cepi/upcoming-cepi-cihr-grant-funding-opportunity-for-canadian-researchers/"},"CEPI","CEPI Coalition for Epidemic Preparedness Innovations [Launched WEF/Davos | 2017]"]
["https://canadianpatriot.org/2021/09/28/30-facts-you-need-to-know-your-covid-cribsheet/",{"$f":"HYPERLINK(T_public[[#This Row],[URL]])","v":"https://canadianpatriot.org/2021/09/28/30-facts-you-need-to-know-your-covid-cribsheet/"},"The Canadian Patriot | 30 facts on Covid","The Canadian Patriot | 30 facts on Covid Global Research | 30 facts on Covid","covid"]
["https://covidmedicalnetwork.com/",{"$f":"HYPERLINK(T_public[[#This Row],[URL]])","v":"https://covidmedicalnetwork.com/"},"Covid19 Medical Network","Covid19 Medical Network We are a group of senior medical doctors and health professionals concerned about the health impacts of the lockdowns used in response to the SARS-CoV-2 outbreaks across Australia.","covid"]
["globalcovidsummit.org",{"$f":"HYPERLINK(T_public[[#This Row],[URL]])","v":"globalcovidsummit.org"},"RE: Covid19 | Rome Declaration | Announcement","RE: Covid19 | Rome Declaration | Announcement SEP 23, 2021 Thousands of Physicians and Medical Scientists Sign “Rome Declaration” in Protest, Launch New Information Platform RE: Covid19 | Read the Declaration HERE 4,200 doctors & scientists have signed the Rome Declaration","covid"]
["https://www.lemonde.fr/",{"$f":"HYPERLINK(T_public[[#This Row],[URL]])","v":"https://www.lemonde.fr/"},"Le Monde",""]
["https://www.nytimes.com/ca/",{"$f":"HYPERLINK(T_public[[#This Row],[URL]])","v":"https://www.nytimes.com/ca/"},"New York Times",""]
["https://www.washingtonpost.com/",{"$f":"HYPERLINK(T_public[[#This Row],[URL]])","v":"https://www.washingtonpost.com/"},"Washington Post",""]
["https://spacecommune.com/category/documentaries/",{"$f":"HYPERLINK(T_public[[#This Row],[URL]])","v":"https://spacecommune.com/category/documentaries/"},"space commune documentaries","","documentaries"]
["https://www.fema.gov/",{"$f":"HYPERLINK(T_public[[#This Row],[URL]])","v":"https://www.fema.gov/"},"fema",""]
["https://seektruthfromfacts.org/kwan/",{"$f":"HYPERLINK(T_public[[#This Row],[URL]])","v":"https://seektruthfromfacts.org/kwan/"},"Dr. Quan Le | Kwan's Korner","Dr. Quan Le | Kwan's Korner ~Quan Lee rtf ?s=Quan The KFC-AZAEL (Kakistocratic Feudal Conglomerate of the Anglo-Zio-American EstabLishment)","quan"]
["https://en.wikipedia.org/wiki/Kakistocracy",{"$f":"HYPERLINK(T_public[[#This Row],[URL]])","v":"https://en.wikipedia.org/wiki/Kakistocracy"},"Kakistocracy","Kakistocracy ~Quan Le ~Quan Lee A kakistocracy is a government run by the worst, least qualified, or most unscrupulous citizens. The word was coined as early as the seventeenth century.","quan definition"]
["https://wallstreetonparade.com/",{"$f":"HYPERLINK(T_public[[#This Row],[URL]])","v":"https://wallstreetonparade.com/"},"wallstreetonparade.com Wall Street On Parade | A Citizen Guide to Wall Street","","economy wallSt citizen market"]
["https://chatgpt.com/c/19319f6b-da12-4a74-962e-16a1992f5051",{"$f":"HYPERLINK(T_public[[#This Row],[URL]])","v":"https://chatgpt.com/c/19319f6b-da12-4a74-962e-16a1992f5051"},"List (post WWII) American Presidents","List (post WWII) American Presidents Franklin D. Roosevelt (1933–1945), Democratic WWII +1 | Harry S. Truman (1945–1953), Democratic WWII +2 | Dwight D. Eisenhower (1953–1961), Republican WWII +3 | John F. Kennedy (1961–1963), Democratic* WWII +4 | Lyndon B. Johnson (1963–1969), Democratic WWII +5 | Richard Nixon (1969–1974), Republican WWII +6 | Gerald Ford (1974–1977), Republican WWII +7 | Jimmy Carter (1977–1981), Democratic WWII +8 | Ronald Reagan (1981–1989), Republican WWII +9 | George H. W. Bush (1989–1993), Republican WWII +10 | Bill Clinton (1993–2001), Democratic WWII +11 | George W. Bush (2001–2009), Republican WWII +12 | Barack Obama (2009–2017), Democratic WWII +13 | Donald Trump (2017–2021), Republican WWII +14 | Joe Biden (2021–present), Democratic","list"]
["https://chatgpt.com/c/19319f6b-da12-4a74-962e-16a1992f5051",{"$f":"HYPERLINK(T_public[[#This Row],[URL]])","v":"https://chatgpt.com/c/19319f6b-da12-4a74-962e-16a1992f5051"},"List ALL American Presidents (* noting those assassinated)","List ALL American Presidents | ~all presidents (* noting those assassinated) 1 George Washington (1789–1797), Independent 2 John Adams (1797–1801), Federalist 3 Thomas Jefferson (1801–1809), Democratic-Republican 4 James Madison (1809–1817), Democratic-Republican 5 James Monroe (1817–1825), Democratic-Republican 6 John Quincy Adams (1825–1829), Democratic-Republican 7 Andrew Jackson (1829–1837), Democratic 8 Martin Van Buren (1837–1841), Democratic 9 William Henry Harrison (1841), Whig 10 John Tyler (1841–1845), Whig 11 James K. Polk (1845–1849), Democratic 12 Zachary Taylor (1849–1850), Whig 13 Millard Fillmore (1850–1853), Whig 14 Franklin Pierce (1853–1857), Democratic 15 James Buchanan (1857–1861), Democratic 16 Abraham Lincoln (1861–1865), Republican* 17 Andrew Johnson (1865–1869), Democratic (National Union) 18 Ulysses S. Grant (1869–1877), Republican 19 Rutherford B. Hayes (1877–1881), Republican 20 James A. Garfield (1881), Republican* 21 Chester A. Arthur (1881–1885), Republican 22 Grover Cleveland (1885–1889), Democratic 23 Benjamin Harrison (1889–1893), Republican 24 Grover Cleveland (1893–1897), Democratic 25 William McKinley (1897–1901), Republican* 26 Theodore Roosevelt (1901–1909), Republican 27 William Howard Taft (1909–1913), Republican 28 Woodrow Wilson (1913–1921), Democratic 29 Warren G. Harding (1921–1923), Republican 30 Calvin Coolidge (1923–1929), Republican 31 Herbert Hoover (1929–1933), Republican 32 Franklin D. Roosevelt (1933–1945), Democratic 33 Harry S. Truman (1945–1953), Democratic 34 Dwight D. Eisenhower (1953–1961), Republican 35 John F. Kennedy (1961–1963), Democratic* 36 Lyndon B. Johnson (1963–1969), Democratic 37 Richard Nixon (1969–1974), Republican 38 Gerald Ford (1974–1977), Republican 39 Jimmy Carter (1977–1981), Democratic 40 Ronald Reagan (1981–1989), Republican 41 George H. W. Bush (1989–1993), Republican 42 Bill Clinton (1993–2001), Democratic 43 George W. Bush (2001–2009), Republican 44 Barack Obama (2009–2017), Democratic 45 Donald Trump (2017–2021), Republican 46 Joe Biden (2021–present), Democratic","list presidents"]
["https://www.justice.gov/nsd-fara",{"$f":"HYPERLINK(T_public[[#This Row],[URL]])","v":"https://www.justice.gov/nsd-fara"},"fara : foreign agents registration act","","justice israel"]
["https://rtd.rt.com/on-air/",{"$f":"HYPERLINK(T_public[[#This Row],[URL]])","v":"https://rtd.rt.com/on-air/"},"RT Documentary Schedule","","russia documentary schedule"]
["https://www.unfpa.org/",{"$f":"HYPERLINK(T_public[[#This Row],[URL]])","v":"https://www.unfpa.org/"},"UNFPA | United Nations Population Fund",""]
["https://www.c-span.org/liveEvent/?Trump-Rally-Shooting",{"$f":"HYPERLINK(T_public[[#This Row],[URL]])","v":"https://www.c-span.org/liveEvent/?Trump-Rally-Shooting"},"cpac home page for trump assasination",""]
["https://rumble.com/c/NewRules",{"$f":"HYPERLINK(T_public[[#This Row],[URL]])","v":"https://rumble.com/c/NewRules"},"New Rules","","russia newRules"]
["https://thecradle.co/columns/pepe-escobar",{"$f":"HYPERLINK(T_public[[#This Row],[URL]])","v":"https://thecradle.co/columns/pepe-escobar"},"the cradle.co (pepe)",""]
["https://new.thecradle.co/",{"$f":"HYPERLINK(T_public[[#This Row],[URL]])","v":"https://new.thecradle.co/"},"the cradle.co",""]
["https://rumble.com/v4cvhq3-the-oasis-plan-larouches-solution-for-the-middle-east.html",{"$f":"HYPERLINK(T_public[[#This Row],[URL]])","v":"https://rumble.com/v4cvhq3-the-oasis-plan-larouches-solution-for-the-middle-east.html"},"oasis plan rumble",""]
["https://www.youtube.com/watch?v=hjfFHIiXPmE",{"$f":"HYPERLINK(T_public[[#This Row],[URL]])","v":"https://www.youtube.com/watch?v=hjfFHIiXPmE"},"oasis plan youtube",""]
["https://www.tvo.org/theagenda",{"$f":"HYPERLINK(T_public[[#This Row],[URL]])","v":"https://www.tvo.org/theagenda"},"tvo the agenda with steve paikin","","tv"]
["https://www.xe.com/",{"$f":"HYPERLINK(T_public[[#This Row],[URL]])","v":"https://www.xe.com/"},"xe$",""]
["https://x.com/RealGeorgeWebb1",{"$f":"HYPERLINK(T_public[[#This Row],[URL]])","v":"https://x.com/RealGeorgeWebb1"},"George Webb - Investigative Journalist | x.com","George Webb - Investigative Journalist | x.com Evidence Contradicts Crooks Narrative, But FBI Now Goes After Parents It’s Sniper Season at the DNC! Paul Whelan, SuperSniper recruiter, is fished out of a Russian jail by Biden and Harris. | 4:10 Cool Hand Luke - Did A Drone Wadcutter Take Out Crooks? Biden, Kamala, Whelan, and all the little Crooks snipers Whelan owns three armories - Kingsmead, Michigan, also Las Vegas and South Florida. Sells AK-47s. Hosted sniper recruiting in Little Rock for Clinton Foundation for years. https://georgewebb.substack.com/","person socialMediaProfile user userProfile journalist"]
["https://en.wikipedia.org/wiki/5W#:~:text=Five%20Ws%3A%20Who%3F%2C%20What,Relations%2C%20a%20public%20relations%20agency",{"$f":"HYPERLINK(T_public[[#This Row],[URL]])","v":"https://en.wikipedia.org/wiki/5W#:~:text=Five%20Ws%3A%20Who%3F%2C%20What,Relations%2C%20a%20public%20relations%20agency"},"5w | 5Ws | journalism 101","5w | 5Ws | journalism 101 Who?, What?, When?, Where?, and Why?"]
["https://eir.news",{"$f":"HYPERLINK(T_public[[#This Row],[URL]])","v":"https://eir.news"},"eir.news",""]
["https://larouchepub.com/eiw/public/2024/index.html",{"$f":"HYPERLINK(T_public[[#This Row],[URL]])","v":"https://larouchepub.com/eiw/public/2024/index.html"},"eir index : Archive",""]
["https://eir.news/#/portal/signup",{"$f":"HYPERLINK(T_public[[#This Row],[URL]])","v":"https://eir.news/#/portal/signup"},"eir.news trial",""]
["https://vigilantnews.com/category/news",{"$f":"HYPERLINK(T_public[[#This Row],[URL]])","v":"https://vigilantnews.com/category/news"},"vigilant fox",""]
["https://new.thecradle.co/",{"$f":"HYPERLINK(T_public[[#This Row],[URL]])","v":"https://new.thecradle.co/"},"(rn) the Craddle",""]
["https://www.courrierinternational.com/",{"$f":"HYPERLINK(T_public[[#This Row],[URL]])","v":"https://www.courrierinternational.com/"},"(rn) courrier international",""]
["https://ici.radio-canada.ca/rci/fr",{"$f":"HYPERLINK(T_public[[#This Row],[URL]])","v":"https://ici.radio-canada.ca/rci/fr"},"rci",""]
["https://www.cpac.ca/schedule",{"$f":"HYPERLINK(T_public[[#This Row],[URL]])","v":"https://www.cpac.ca/schedule"},"cpac","cpac *live"]
["https://ici.radio-canada.ca/",{"$f":"HYPERLINK(T_public[[#This Row],[URL]])","v":"https://ici.radio-canada.ca/"},"radio-canada","","canada"]
["https://www.cbc.ca/",{"$f":"HYPERLINK(T_public[[#This Row],[URL]])","v":"https://www.cbc.ca/"},"cbc",""]
["https://ottawa.ctvnews.ca/",{"$f":"HYPERLINK(T_public[[#This Row],[URL]])","v":"https://ottawa.ctvnews.ca/"},"ctv","","tv"]
["https://www.deagel.com/",{"$f":"HYPERLINK(T_public[[#This Row],[URL]])","v":"https://www.deagel.com/"},"deagle",""]
["https://ca.finance.yahoo.com/",{"$f":"HYPERLINK(T_public[[#This Row],[URL]])","v":"https://ca.finance.yahoo.com/"},"yahoo finance",""]
["https://vdo.ninja/",{"$f":"HYPERLINK(T_public[[#This Row],[URL]])","v":"https://vdo.ninja/"},"vdo.ninja","vdo.ninja ~vidoninja ~streamkit (advanced) invite generator (advanced) invite generator","stream streamKit"]
["https://polymarket.com/",{"$f":"HYPERLINK(T_public[[#This Row],[URL]])","v":"https://polymarket.com/"},"polymarket.com predictions",""]
["https://www.7jourssurterre.com/",{"$f":"HYPERLINK(T_public[[#This Row],[URL]])","v":"https://www.7jourssurterre.com/"},"7 jours sur terre","7 jours sur terre yt @7jourssurTerre"]
["https://www.rt.com/",{"$f":"HYPERLINK(T_public[[#This Row],[URL]])","v":"https://www.rt.com/"},"russia today","","russia"]
["https://americanswhotellthetruth.org/",{"$f":"HYPERLINK(T_public[[#This Row],[URL]])","v":"https://americanswhotellthetruth.org/"},"Americans Who Tell The Truth","","truth"]
["https://heretorecord.com/",{"$f":"HYPERLINK(T_public[[#This Row],[URL]])","v":"https://heretorecord.com/"},"here to record","","stream streamKit record h2r"]
["https://thegrayzone.com/",{"$f":"HYPERLINK(T_public[[#This Row],[URL]])","v":"https://thegrayzone.com/"},"thegrayzone.com",""]
["https://mail.google.com/mail/u/1/#search/label%3Ainbox+label%3Aunread",{"$f":"HYPERLINK(T_public[[#This Row],[URL]])","v":"https://mail.google.com/mail/u/1/#search/label%3Ainbox+label%3Aunread"},"label:inbox label:unread [1]","","email gmail1"]
["www.globaltimes.cn",{"$f":"HYPERLINK(T_public[[#This Row],[URL]])","v":"www.globaltimes.cn"},"global times.cn | globaltimes.cn (news)",""]
["https://www.unz.com/",{"$f":"HYPERLINK(T_public[[#This Row],[URL]])","v":"https://www.unz.com/"},"the unz review","the unz review An alternative media selection (news)"]
["https://21stcenturywire.com/",{"$f":"HYPERLINK(T_public[[#This Row],[URL]])","v":"https://21stcenturywire.com/"},"Patrick Henninsen Show | 21st Century Wire (news)",""]
["https://scheerpost.com/",{"$f":"HYPERLINK(T_public[[#This Row],[URL]])","v":"https://scheerpost.com/"},"scheer post (news)",""]
["https://okeefemediagroup.com/",{"$f":"HYPERLINK(T_public[[#This Row],[URL]])","v":"https://okeefemediagroup.com/"},"omg o'keefe media group (news)",""]
["https://t.me/strategic_culture",{"$f":"HYPERLINK(T_public[[#This Row],[URL]])","v":"https://t.me/strategic_culture"},"strategic culture (news)",""]
["https://www.ukcolumn.org/",{"$f":"HYPERLINK(T_public[[#This Row],[URL]])","v":"https://www.ukcolumn.org/"},"UKColumn (news)",""]
["https://tnc.news/",{"$f":"HYPERLINK(T_public[[#This Row],[URL]])","v":"https://tnc.news/"},"True New News | tnc.news (news)",""]
["https://rumble.com/",{"$f":"HYPERLINK(T_public[[#This Row],[URL]])","v":"https://rumble.com/"},"rumble (news)",""]
["https://libre-media.com/",{"$f":"HYPERLINK(T_public[[#This Row],[URL]])","v":"https://libre-media.com/"},"Libre Média (news)",""]
["https://obj.ca/",{"$f":"HYPERLINK(T_public[[#This Row],[URL]])","v":"https://obj.ca/"},"obj ottawa (news)",""]
["https://www.jonathan-cook.net/",{"$f":"HYPERLINK(T_public[[#This Row],[URL]])","v":"https://www.jonathan-cook.net/"},"jonathan cook",""]
["https://mail.google.com/mail/u/1/#search/label%3Asubscriptions+label%3Aunread",{"$f":"HYPERLINK(T_public[[#This Row],[URL]])","v":"https://mail.google.com/mail/u/1/#search/label%3Asubscriptions+label%3Aunread"},"label:subscriptions label:unread [1] ","","email gmail1"]
["https://rossiyasegodnya.com/",{"$f":"HYPERLINK(T_public[[#This Row],[URL]])","v":"https://rossiyasegodnya.com/"},"Rossiya Segodnya","","russia news"]
["https://tass.com/",{"$f":"HYPERLINK(T_public[[#This Row],[URL]])","v":"https://tass.com/"},"Tass","","russia news"]
["https://russtrat.ru/",{"$f":"HYPERLINK(T_public[[#This Row],[URL]])","v":"https://russtrat.ru/"},"russtrat.ru","","russe russie russia"]
["https://english.alarabiya.net/",{"$f":"HYPERLINK(T_public[[#This Row],[URL]])","v":"https://english.alarabiya.net/"},"alarabiya news",""]
["https://tass.com/economy",{"$f":"HYPERLINK(T_public[[#This Row],[URL]])","v":"https://tass.com/economy"},"tass russian news agency","","russia"]
["https://www.imemo.ru/",{"$f":"HYPERLINK(T_public[[#This Row],[URL]])","v":"https://www.imemo.ru/"},"IMEMO institute",""]
["",{"$f":"HYPERLINK(T_public[[#This Row],[URL]])","v":""},"yt with start and end time from yt","yt with start and end time from yt ~start to end~start end yt -o \"xTITLEx.%(ext)s\" --external-downloader ffmpeg --external-downloader-args \"-ss 00:00:SS.00 -to 00:00:SS.00\" -f best xLINKx","yt-dlp command"]
["https://afrikainternews.com/",{"$f":"HYPERLINK(T_public[[#This Row],[URL]])","v":"https://afrikainternews.com/"},"afrika inter news | Clément Ahoua","afrika inter news ~Clément Ahoua NIGER/BRICS: LE DR AHOUA DON MELLO AU NIGER, APRES LA GUINEE EQUATORIALE ET LA CENTRAFRIQUE. BRICS: Les Voeux de Nouvel An par Le Dr Ahoua Don Mello"]
["https://afrikainternews.com/brics-ahoua-don-melo-fait-une-interview-magistrale/",{"$f":"HYPERLINK(T_public[[#This Row],[URL]])","v":"https://afrikainternews.com/brics-ahoua-don-melo-fait-une-interview-magistrale/"},"BRICS: Ahoua Don Mélo Fait une Interview Magistrale",""]
["https://www.jpost.com/",{"$f":"HYPERLINK(T_public[[#This Row],[URL]])","v":"https://www.jpost.com/"},"jerusalem post",""]
["https://www.blast-info.fr/",{"$f":"HYPERLINK(T_public[[#This Row],[URL]])","v":"https://www.blast-info.fr/"},"blast-info.fr |",""]
["https://www.timesofisrael.com/",{"$f":"HYPERLINK(T_public[[#This Row],[URL]])","v":"https://www.timesofisrael.com/"},"times of israel",""]
["https://www.haaretz.com/",{"$f":"HYPERLINK(T_public[[#This Row],[URL]])","v":"https://www.haaretz.com/"},"haaretz",""]
["https://www.middleeastmonitor.com/",{"$f":"HYPERLINK(T_public[[#This Row],[URL]])","v":"https://www.middleeastmonitor.com/"},"middle east monitor",""]
["https://www.rt.com/on-air/",{"$f":"HYPERLINK(T_public[[#This Row],[URL]])","v":"https://www.rt.com/on-air/"},"RT live on air","","russia live news"]
["https://images.nasa.gov/",{"$f":"HYPERLINK(T_public[[#This Row],[URL]])","v":"https://images.nasa.gov/"},"NASA Image and Video LibraryLibrary","","stockFootage"]
["https://www.cgtn.com/",{"$f":"HYPERLINK(T_public[[#This Row],[URL]])","v":"https://www.cgtn.com/"},"GCTN news (china chinese)","","china"]
["https://english.news.cn/",{"$f":"HYPERLINK(T_public[[#This Row],[URL]])","v":"https://english.news.cn/"},"xinhuanet",""]
["https://secureship.ca/shipping/canada-to-pakistan",{"$f":"HYPERLINK(T_public[[#This Row],[URL]])","v":"https://secureship.ca/shipping/canada-to-pakistan"},"secureship canada to","","canada"]
["https://www.fbr.gov.pk/customs-basics/51149/131168",{"$f":"HYPERLINK(T_public[[#This Row],[URL]])","v":"https://www.fbr.gov.pk/customs-basics/51149/131168"},"Pakistan Custom Basics",""]
["https://youtu.be/2r4xhwtsc8Y?t=56",{"$f":"HYPERLINK(T_public[[#This Row],[URL]])","v":"https://youtu.be/2r4xhwtsc8Y?t=56"},"Tiananmen Square myth","Tiananmen Square myth Jeff J. Brown | China Rising | Radio Sinoland","youtube"]
["https://www.thecanadafiles.com/articles/op-ed-how-to-properly-view-the-taiwan-question",{"$f":"HYPERLINK(T_public[[#This Row],[URL]])","v":"https://www.thecanadafiles.com/articles/op-ed-how-to-properly-view-the-taiwan-question"},"taiwan Chinese Ambassador to Canada H.E. Cong Peiwu | The Canada Files","","canada"]
["http://english.scio.gov.cn/index.htm",{"$f":"HYPERLINK(T_public[[#This Row],[URL]])","v":"http://english.scio.gov.cn/index.htm"},"State Council Information Office",""]
["https://telegra.ph/Full-Text-China-Democracy-That-Works-08-19",{"$f":"HYPERLINK(T_public[[#This Row],[URL]])","v":"https://telegra.ph/Full-Text-China-Democracy-That-Works-08-19"},"China Democracy that works (part 1)","","china"]
["https://telegra.ph/Full-Text-China-Democracy-That-Works-part-2-08-19",{"$f":"HYPERLINK(T_public[[#This Row],[URL]])","v":"https://telegra.ph/Full-Text-China-Democracy-That-Works-part-2-08-19"},"China Democracy that works (part 2)","","china"]
["https://telegra.ph/Full-Text-China-Democracy-That-Works-part-3-08-19",{"$f":"HYPERLINK(T_public[[#This Row],[URL]])","v":"https://telegra.ph/Full-Text-China-Democracy-That-Works-part-3-08-19"},"China Democracy that works (part 3)","","china"]
["https://en.wikipedia.org/wiki/China:_Democracy_That_Works",{"$f":"HYPERLINK(T_public[[#This Row],[URL]])","v":"https://en.wikipedia.org/wiki/China:_Democracy_That_Works"},"wikipedia: China Democracy that works","","china"]
["http://www.news.cn/english/2021-12/04/c_1310351231.htm",{"$f":"HYPERLINK(T_public[[#This Row],[URL]])","v":"http://www.news.cn/english/2021-12/04/c_1310351231.htm"},"xianhuanet news.cn: Full Text: China Democracy that works","","china"]
["https://www.theguardian.com/world/2021/dec/06/china-attacks-us-style-democracy-prior-to-biden-summit",{"$f":"HYPERLINK(T_public[[#This Row],[URL]])","v":"https://www.theguardian.com/world/2021/dec/06/china-attacks-us-style-democracy-prior-to-biden-summit"},"the Gardian: China attacks ‘US-style democracy’ prior to Biden summit","","china"]
["https://tvbrics.com/en/news/ethiopia-launches-major-aviation-reform-programme/",{"$f":"HYPERLINK(T_public[[#This Row],[URL]])","v":"https://tvbrics.com/en/news/ethiopia-launches-major-aviation-reform-programme/"},"Ethiopia Aviation Reforms",""]
["https://ustr.gov/countries-regions/africa/regional-economic-communities-rec/economic-community-west-african-states",{"$f":"HYPERLINK(T_public[[#This Row],[URL]])","v":"https://ustr.gov/countries-regions/africa/regional-economic-communities-rec/economic-community-west-african-states"},"ECOWAS [CEDEAO]","ECOWAS [CEDEAO] Economic Community of West African States [Communauté économique des États de l'Afrique de l'Ouest]"]
["https://www.afriquedufutur.com/",{"$f":"HYPERLINK(T_public[[#This Row],[URL]])","v":"https://www.afriquedufutur.com/"},"Sébastien Périmony",""]
["https://www.nasa.gov/image-galleries/",{"$f":"HYPERLINK(T_public[[#This Row],[URL]])","v":"https://www.nasa.gov/image-galleries/"},"NASA Image galleries","","stockFootage"]
["https://www.marxists.org/history/etol/newspape/fi/index.htm",{"$f":"HYPERLINK(T_public[[#This Row],[URL]])","v":"https://www.marxists.org/history/etol/newspape/fi/index.htm"},"Fourth International","Fourth International The Fourth International is the name of the theoretical journal of the U.S. Socialist Workers Party after The New International was taken over by Max Shachtman. Shachtman had split from the SWP in 1940 over differences with the majority of the SWP and Leon Trotsky on the question of the class nature of the Russian state. In mid 1956, Fourth International became International Socialist Review. Each issue name is a link to a .pdf file of the entire issue. Marty Goodman and the Riazanov Library Project between 2012 and 2014 created a complete set of scans of NI 1934–1940, FI 1940–1956, and ISR 1956–early 1970. In the tables of contents on this web site, each article name is a link to an HTML text version of the article in question, part of an equally massive earlier project done by Einde O’Callaghan. David Walters, Director of the Holt Labor Library helped by contributing a portion of the original issues."]
["https://www.marxists.org/history/etol/newspape/ni/index.htm",{"$f":"HYPERLINK(T_public[[#This Row],[URL]])","v":"https://www.marxists.org/history/etol/newspape/ni/index.htm"},"The New International","The New International New International was founded as the organ of the Trotskyist group, named the Communist League of America, which formed out of a split from the Communist Party. The CLA merged with the American Workers Party (a left-socialist group led by A.J. Muste, James Burnham et al.), to form the Workers Party of the U.S. in Dec 1935. The magazine was suspended (last issue June 1936) when the Trotskyists joined the Socialist Party; and was reissued (Jan. 1938) when they split with the Socialist Party, forming the Socialist Workers Party. The SWP in turn split in the spring of 1940, and the magazine went (Apr. 1940) with the then minority, which organized itself under the name of Workers Party and was lead by Max Shachtman, among others. This organization changed its name to Independent Socialist League after April 1949. Throughout these political changes, the formal publisher of the magazine was the “New International Publishing Company” (except for the first year, 1934, when it was the “New International Publishing Association”). PLEASE NOTE: The political leadership of the SWP continued the Trotskyist traditions of original New International with the launching of Fourth International in April of 1940. This magazine lasted until 1956, when it became International Socialist Review, and remained the main English language theoretical journal of the Fourth International."]
["https://www.marxists.org/history/etol/newspape/isr/index.htm",{"$f":"HYPERLINK(T_public[[#This Row],[URL]])","v":"https://www.marxists.org/history/etol/newspape/isr/index.htm"},"International Socialist Review","International Socialist Review International Socialist Review was the theoretical journal of the U.S. Socialist Workers Party. Published out of New York City (the party’s National Headquarters) the ISR is the direct continuity of Fourth International (1940–1956) and The New International (1934-1940). Originally published quarterly, with the growth of the SWP in the late 1960s during the anti-Vietnam War movement, the journal went bi-monthly in starting in the beginning of 1967. All issues of International Socialist Review from Volume 31 Number 3 (Whole No. 198) are subject to copyright and are therefore not in the public domain. All the full issues in PDF format are provided by the Riazanov Library Project, Marty Goodman, Director, and with help from the Holt Labor Library. The HTML versions of each article were produced by Einde O'Callaghan. Clickling on the linked volume and issue number will bring you to the PDF version of each issue. The individual articles listed below each of those links are in HTML and will display immediately in your browser.","socialists marxists marxism"]
["https://larouchepub.com/eiw/public/1983/eirv10n26-19830705/eirv10n26-19830705_024-the_swiss_banking_empire_center.pdf",{"$f":"HYPERLINK(T_public[[#This Row],[URL]])","v":"https://larouchepub.com/eiw/public/1983/eirv10n26-19830705/eirv10n26-19830705_024-the_swiss_banking_empire_center.pdf"},"CIA's seed in Switzerland","CIA's seed in Switzerland The Swiss banking empire: center of the Fourth Reich"]
["http://21sci-tech.com/articles/Fall02/DDT.html",{"$f":"HYPERLINK(T_public[[#This Row],[URL]])","v":"http://21sci-tech.com/articles/Fall02/DDT.html"},"ddt","ddt DDT Article"]
["http://21sci-tech.com/.../Spring_2010/Special_Report_DDT.pdf",{"$f":"HYPERLINK(T_public[[#This Row],[URL]])","v":"http://21sci-tech.com/.../Spring_2010/Special_Report_DDT.pdf"},"ddt","ddt Special Report DDT"]
["https://jermwarfare.com/conversations/matt-ehret-on-the-tiananmen-square-hoax",{"$f":"HYPERLINK(T_public[[#This Row],[URL]])","v":"https://jermwarfare.com/conversations/matt-ehret-on-the-tiananmen-square-hoax"},"tiananmen square hoax | jerm warfare | Matt Ehret",""]
["https://tvbrics.com/en/",{"$f":"HYPERLINK(T_public[[#This Row],[URL]])","v":"https://tvbrics.com/en/"},"TV BRICS","","tv"]
["https://ru.m.wikipedia.org/wiki/%D0%91%D0%A0%D0%98%D0%9A%D0%A1",{"$f":"HYPERLINK(T_public[[#This Row],[URL]])","v":"https://ru.m.wikipedia.org/wiki/%D0%91%D0%A0%D0%98%D0%9A%D0%A1"},"Brics ¦ БРИКС",""]
["https://en.wikipedia.org/wiki/BRICS",{"$f":"HYPERLINK(T_public[[#This Row],[URL]])","v":"https://en.wikipedia.org/wiki/BRICS"},"wikipedia: brics",""]
["http://www.brics.utoronto.ca/",{"$f":"HYPERLINK(T_public[[#This Row],[URL]])","v":"http://www.brics.utoronto.ca/"},"utoronto brics",""]
["https://news.cgtn.com/news/2023-08-22/Live-Special-coverage-of-15th-BRICS-Summit-in-South-Africa--1mtJIUxfums/index.html",{"$f":"HYPERLINK(T_public[[#This Row],[URL]])","v":"https://news.cgtn.com/news/2023-08-22/Live-Special-coverage-of-15th-BRICS-Summit-in-South-Africa--1mtJIUxfums/index.html"},"live special coverage brics summit in South Africa",""]
["https://www.mcleodconsult.com/",{"$f":"HYPERLINK(T_public[[#This Row],[URL]])","v":"https://www.mcleodconsult.com/"},"mcleod consult | progressive political consultant","mcleod consult | progressive political consultant about Andrew Mcloed"]
["https://www.nytimes.com/2018/12/15/world/asia/mckinsey-china-russia.html",{"$f":"HYPERLINK(T_public[[#This Row],[URL]])","v":"https://www.nytimes.com/2018/12/15/world/asia/mckinsey-china-russia.html"},"How McKinsey Has Helped Raise the Stature of Authoritarian Governments",""]
["https://www.opensocietyfoundations.org/george-soros",{"$f":"HYPERLINK(T_public[[#This Row],[URL]])","v":"https://www.opensocietyfoundations.org/george-soros"},"Georges Soros | Bio on OSF website",{"$cut":{"chars":32764,"head":"Georges Soros | Bio on OSF website Georges Soros | Open society Foundations nato expansion 1990 Georges Soros | The Canada Files The Canada Files | Aidan Jonah Georges Soros | Quantum Fund Quantum Fund to fund anti-communist groups and organizations beginning in 1984 in Hungary, and other Soviet Bloc countries until the collapse of the Soviet Union, Soros’ early funds were definitive contributors to the collapse of socialism in Europe. Soros also founded the short lived China Fund (from 1986 to 1989), endowing it with more than $1 million USD to start. China cracked down on the China Fund in 1989. cfr council on foreing relations palantir ~peter thiel mithril ~JD Vance ~Peter Thiel ~Trump Argentina Presidency Alberto Fernández twitter putin direct telegram putin direct tiktok putin direct instagram putin direct facebook putin direct kremlin russia putin english Russia | government.ru ~o | PM Itinerary daily PM cabinet chatam house chatamhouse the true size map tool un united nations 19-23 and 26 September General Debate | United Nations un 2023 Iran nuclear deal ~jcpoa wiki Ivan Rand | israel Ivan Rand | The unlikely Canadian who helped create the State of Israel palestine history | decolonizepalestine | decolonize palestine hamas created by Israel mentioned by chas freeman >> Devil's Game | Robert Dreyfuss Interesting Times: China, America, and the Shifting Balance of Prestige | book by Chas Freeman list of countries (list of countries) Countries in the World:195 | WorldOmeter 20 arrondissements de Paris La division de Paris en arrondissements date de la loi du 19 vendémiaire an IV (11 octobre 1795) Au moment de la conception des premiers arrondissements de Paris pendant la Révolution française, en 1790, le maire de Paris était Jean Sylvain Bailly. Jean Sylvain Bailly a été élu maire de Paris en 1789, au début de la Révolution française, et il a joué un rôle important dans les premières phases de la transformation administrative de la ville, y compris la mise en place du système d'arrondissements. Il est à noter que la fonction de maire et la structure administrative de Paris ont évolué au fil du temps depuis cette période. postal code search dr joseph mercola Stéphane Blais | Louis Fouché Harvey Schlanger on the history leading to The Great Reset. Corona Investigative Committee March 4 2022 Schiller Institute | Emergency Press Conference: The Danger of Nuclear War Is Real, and Must Be Stopped | 12 juin 2024 vote jose vega vote diane sare diane on twitter x Sare4Senate on fb Sare4Senate on tiktok SareForSenate on instagram stella assange speak up for assange ~may 3 A Conversation with Stella Assange ~spotify substack instagram youtube x | twitter jullian assange defense ~press release wikileaks speak up for assange ~may 3 cael | Capital auto equipment | machine tools project 538 270 to win Valdai Discussion Club leonardo spa ~electionFraud NATO Strategic Warfare Development Command rusi ~war ~thinktanks rand corporation ~war ~thinktanks atlantic council FRA | L'AUT'JOURNAL | McKinsey & Co La Coalition Désavenir Québec et la firme McKinsey & Co. | 2020/06/08 | Par Jean-François Thibaud FRA | Radio-Canada | McKinsey & Co Les rares avis écrits du Dr Arruda resteront secrets Québec refuse de rendre publics les documents, malgré l'ouverture du directeur national de santé publique. FRA | LaPresse | McKinsey & Co Québec débourse 5 millions pour un « regard externe » AFPI ~trump america first project 2025 ~project2025.org promethean action Herbert Marcuse Richard Wolff Thomass Paine Suicide (Durkheim book) | French: Le Suicide: Étude de sociologie first heard about this when Chris Hedges was speaking with Stella Assange galvanisation ~ galvinization [IDF] : Israel Defense Forces David Pugliese | Canadian officials who met with Ukrainian unit linked to neo-Nazis feared exposure by news media: documents David Pugliese | Chrystia Freeland’s granddad was indeed a Nazi collaborator – so much for Russian disinformation David Pugliese | Allegations of Canadian troops training neo-Nazis and war criminals sparks military review David "}}]
["https://www.opensocietyfoundations.org/",{"$f":"HYPERLINK(T_public[[#This Row],[URL]])","v":"https://www.opensocietyfoundations.org/"},"Georges Soros | Open society Foundations",""]
["https://nsarchive.gwu.edu/briefing-book/russia-programs/2017-12-12/nato-expansion-what-gorbachev-heard-western-leaders-early",{"$f":"HYPERLINK(T_public[[#This Row],[URL]])","v":"https://nsarchive.gwu.edu/briefing-book/russia-programs/2017-12-12/nato-expansion-what-gorbachev-heard-western-leaders-early"},"nato expansion 1990",""]
["https://www.thecanadafiles.com/articles/exclusive-how-the-ned-open-society-foundations-and-nato-collectively-fund-institutions-driving-development-of-canadian-political-thought",{"$f":"HYPERLINK(T_public[[#This Row],[URL]])","v":"https://www.thecanadafiles.com/articles/exclusive-how-the-ned-open-society-foundations-and-nato-collectively-fund-institutions-driving-development-of-canadian-political-thought"},"Georges Soros | The Canada Files","Georges Soros | The Canada Files The Canada Files | Aidan Jonah","canada"]
["https://www.quantumfund.com/",{"$f":"HYPERLINK(T_public[[#This Row],[URL]])","v":"https://www.quantumfund.com/"},"Georges Soros | Quantum Fund","Georges Soros | Quantum Fund Quantum Fund to fund anti-communist groups and organizations beginning in 1984 in Hungary, and other Soviet Bloc countries until the collapse of the Soviet Union, Soros’ early funds were definitive contributors to the collapse of socialism in Europe. Soros also founded the short lived China Fund (from 1986 to 1989), endowing it with more than $1 million USD to start. China cracked down on the China Fund in 1989."]
["https://www.cfr.org/backgrounder/what-iran-nuclear-deal",{"$f":"HYPERLINK(T_public[[#This Row],[URL]])","v":"https://www.cfr.org/backgrounder/what-iran-nuclear-deal"},"cfr council on foreing relations",""]
["https://search.creativecommons.org/",{"$f":"HYPERLINK(T_public[[#This Row],[URL]])","v":"https://search.creativecommons.org/"},"creativecommons search engine","","stockFootage se"]
["https://www.pexels.com/",{"$f":"HYPERLINK(T_public[[#This Row],[URL]])","v":"https://www.pexels.com/"},"pexels","","stockFootage image video royaltyFree"]
["https://www.casarosada.gob.ar/",{"$f":"HYPERLINK(T_public[[#This Row],[URL]])","v":"https://www.casarosada.gob.ar/"},"Argentina Presidency Alberto Fernández",""]
["https://twitter.com/PutinDirect",{"$f":"HYPERLINK(T_public[[#This Row],[URL]])","v":"https://twitter.com/PutinDirect"},"twitter putin direct",""]
["https://t.me/PutinDirect",{"$f":"HYPERLINK(T_public[[#This Row],[URL]])","v":"https://t.me/PutinDirect"},"telegram putin direct","","telegram"]
["https://www.tiktok.com/@putindirect",{"$f":"HYPERLINK(T_public[[#This Row],[URL]])","v":"https://www.tiktok.com/@putindirect"},"tiktok putin direct",""]
["https://www.instagram.com/putindirect/",{"$f":"HYPERLINK(T_public[[#This Row],[URL]])","v":"https://www.instagram.com/putindirect/"},"instagram putin direct",""]
["https://www.facebook.com/PutinDirect/",{"$f":"HYPERLINK(T_public[[#This Row],[URL]])","v":"https://www.facebook.com/PutinDirect/"},"facebook putin direct",""]
["http://en.kremlin.ru/",{"$f":"HYPERLINK(T_public[[#This Row],[URL]])","v":"http://en.kremlin.ru/"},"kremlin russia putin english","","russia"]
["http://government.ru/",{"$f":"HYPERLINK(T_public[[#This Row],[URL]])","v":"http://government.ru/"},"Russia | government.ru","","russia"]
["https://unsplash.com/",{"$f":"HYPERLINK(T_public[[#This Row],[URL]])","v":"https://unsplash.com/"},"unsplash","","stockFootage royaltyFree"]
["https://www.pm.gc.ca/en/cabinet",{"$f":"HYPERLINK(T_public[[#This Row],[URL]])","v":"https://www.pm.gc.ca/en/cabinet"},"PM cabinet",""]
["https://www.chathamhouse.org/",{"$f":"HYPERLINK(T_public[[#This Row],[URL]])","v":"https://www.chathamhouse.org/"},"chatam house chatamhouse",""]
["https://www.thetruesize.com/",{"$f":"HYPERLINK(T_public[[#This Row],[URL]])","v":"https://www.thetruesize.com/"},"the true size map tool",""]
["https://www.un.org/en",{"$f":"HYPERLINK(T_public[[#This Row],[URL]])","v":"https://www.un.org/en"},"un united nations",""]
["https://www.un.org/en/high-level-week-2023",{"$f":"HYPERLINK(T_public[[#This Row],[URL]])","v":"https://www.un.org/en/high-level-week-2023"},"19-23 and 26 September General Debate | United Nations un 2023",""]
["https://pace.coe.int/en/",{"$f":"HYPERLINK(T_public[[#This Row],[URL]])","v":"https://pace.coe.int/en/"},"APCE Assemblée parlementaire du Conseil de l'Europe ~ PACE Parliamentary Assembly Council of Europe","APCE Assemblée parlementaire du Conseil de l'Europe ~ PACE Parliamentary Assembly Council of Europe FR: APCE Assemblée parlementaire du Conseil de l'Europe EN: PACE Parliamentary Assembly Council of Europe","bilingue bilingual"]
["https://en.wikipedia.org/wiki/Ivan_Rand",{"$f":"HYPERLINK(T_public[[#This Row],[URL]])","v":"https://en.wikipedia.org/wiki/Ivan_Rand"},"wiki Ivan Rand | israel",""]
["https://nationalpost.com/news/canada/the-unlikely-canadian-who-helped-create-the-state-of-israel",{"$f":"HYPERLINK(T_public[[#This Row],[URL]])","v":"https://nationalpost.com/news/canada/the-unlikely-canadian-who-helped-create-the-state-of-israel"},"Ivan Rand | The unlikely Canadian who helped create the State of Israel",""]
["https://decolonizepalestine.com/",{"$f":"HYPERLINK(T_public[[#This Row],[URL]])","v":"https://decolonizepalestine.com/"},"palestine history | decolonizepalestine | decolonize palestine",""]
["https://swprs.org/why-israel-created-hamas/",{"$f":"HYPERLINK(T_public[[#This Row],[URL]])","v":"https://swprs.org/why-israel-created-hamas/"},"hamas created by Israel",""]
["https://a.co/d/5pEvzBr",{"$f":"HYPERLINK(T_public[[#This Row],[URL]])","v":"https://a.co/d/5pEvzBr"},"mentioned by chas freeman >> Devil's Game | Robert Dreyfuss",""]
["https://a.co/d/bLuXOmx",{"$f":"HYPERLINK(T_public[[#This Row],[URL]])","v":"https://a.co/d/bLuXOmx"},"Interesting Times: China, America, and the Shifting Balance of Prestige | book by Chas Freeman","","china"]
["https://www.populationu.com/world-countries",{"$f":"HYPERLINK(T_public[[#This Row],[URL]])","v":"https://www.populationu.com/world-countries"},"list of countries","","list"]
["https://www.worldometers.info/geography/how-many-countries-are-there-in-the-world/",{"$f":"HYPERLINK(T_public[[#This Row],[URL]])","v":"https://www.worldometers.info/geography/how-many-countries-are-there-in-the-world/"},"(list of countries) Countries in the World:195 | WorldOmeter","","list"]
["https://www.grandearche.com/arrondissement-paris/",{"$f":"HYPERLINK(T_public[[#This Row],[URL]])","v":"https://www.grandearche.com/arrondissement-paris/"},"20 arrondissements de Paris","20 arrondissements de Paris La division de Paris en arrondissements date de la loi du 19 vendémiaire an IV (11 octobre 1795) Au moment de la conception des premiers arrondissements de Paris pendant la Révolution française, en 1790, le maire de Paris était Jean Sylvain Bailly. Jean Sylvain Bailly a été élu maire de Paris en 1789, au début de la Révolution française, et il a joué un rôle important dans les premières phases de la transformation administrative de la ville, y compris la mise en place du système d'arrondissements. Il est à noter que la fonction de maire et la structure administrative de Paris ont évolué au fil du temps depuis cette période."]
["https://www.canadapost-postescanada.ca/cpc/en/tools/find-a-postal-code.page",{"$f":"HYPERLINK(T_public[[#This Row],[URL]])","v":"https://www.canadapost-postescanada.ca/cpc/en/tools/find-a-postal-code.page"},"postal code search",""]
["https://www.mercola.com/forms/background.htm",{"$f":"HYPERLINK(T_public[[#This Row],[URL]])","v":"https://www.mercola.com/forms/background.htm"},"dr joseph mercola",""]
["https://odysee.com/@Louis-Fouche:8/les-entretiens-de-louis-fouch%C3%A9:4",{"$f":"HYPERLINK(T_public[[#This Row],[URL]])","v":"https://odysee.com/@Louis-Fouche:8/les-entretiens-de-louis-fouch%C3%A9:4"},"Stéphane Blais | Louis Fouché",""]
["https://odysee.com/@Corona-Investigative-Committee:5/Session-94-Harley-Schlanger:5",{"$f":"HYPERLINK(T_public[[#This Row],[URL]])","v":"https://odysee.com/@Corona-Investigative-Committee:5/Session-94-Harley-Schlanger:5"},"Harvey Schlanger on the history leading to The Great Reset. Corona Investigative Committee March 4 2022",""]
["https://www.youtube.com/watch?v=aOrmFJXyAVI",{"$f":"HYPERLINK(T_public[[#This Row],[URL]])","v":"https://www.youtube.com/watch?v=aOrmFJXyAVI"},"Schiller Institute | Emergency Press Conference: The Danger of Nuclear War Is Real, and Must Be Stopped | 12 juin 2024","","schiller schillerInstitute"]
["https://votevega.nyc/",{"$f":"HYPERLINK(T_public[[#This Row],[URL]])","v":"https://votevega.nyc/"},"vote jose vega",""]
["https://www.sareforsenate.com/",{"$f":"HYPERLINK(T_public[[#This Row],[URL]])","v":"https://www.sareforsenate.com/"},"vote diane sare","vote diane sare diane on twitter x Sare4Senate on fb Sare4Senate on tiktok SareForSenate on instagram","dianeSare larouche"]
["https://www.stellaassange.com/",{"$f":"HYPERLINK(T_public[[#This Row],[URL]])","v":"https://www.stellaassange.com/"},"stella assange","stella assange speak up for assange ~may 3 A Conversation with Stella Assange ~spotify substack instagram youtube x | twitter","julianAssange"]
["https://legal.un.org/ilc/texts/instruments/english/draft_articles/7_1_1950.pdf",{"$f":"HYPERLINK(T_public[[#This Row],[URL]])","v":"https://legal.un.org/ilc/texts/instruments/english/draft_articles/7_1_1950.pdf"},"nuremberg trials | nuremberg tribunal | judgement of the tribunal ~nuremberg","","bilingue bilingual nuremberg"]
["https://www.capitalautoequipment.com/",{"$f":"HYPERLINK(T_public[[#This Row],[URL]])","v":"https://www.capitalautoequipment.com/"},"cael | Capital auto equipment | machine tools",""]
["https://projects.fivethirtyeight.com/2024-election-forecast/",{"$f":"HYPERLINK(T_public[[#This Row],[URL]])","v":"https://projects.fivethirtyeight.com/2024-election-forecast/"},"project 538",""]
["https://www.270towin.com/",{"$f":"HYPERLINK(T_public[[#This Row],[URL]])","v":"https://www.270towin.com/"},"270 to win",""]
["https://valdaiclub.com/",{"$f":"HYPERLINK(T_public[[#This Row],[URL]])","v":"https://valdaiclub.com/"},"Valdai Discussion Club",""]
["https://mail.google.com/mail/u/0/#search/label%3Asubscriptions+label%3Aunread",{"$f":"HYPERLINK(T_public[[#This Row],[URL]])","v":"https://mail.google.com/mail/u/0/#search/label%3Asubscriptions+label%3Aunread"},"label:subscriptions label:unread [0] ","","email gmail0"]
["https://www.act.nato.int/",{"$f":"HYPERLINK(T_public[[#This Row],[URL]])","v":"https://www.act.nato.int/"},"NATO Strategic Warfare Development Command","","nato command thinkTank geopolitics war"]
["https://www.rusi.org/",{"$f":"HYPERLINK(T_public[[#This Row],[URL]])","v":"https://www.rusi.org/"},"rusi","","war thinkTanks"]
["https://www.rand.org/",{"$f":"HYPERLINK(T_public[[#This Row],[URL]])","v":"https://www.rand.org/"},"rand corporation","","war thinkTanks"]
["https://www.atlanticcouncil.org/",{"$f":"HYPERLINK(T_public[[#This Row],[URL]])","v":"https://www.atlanticcouncil.org/"},"atlantic council",""]
["https://lautjournal.info/20200608/la-coalition-desavenir-quebec-et-la-firme-mckinsey-co",{"$f":"HYPERLINK(T_public[[#This Row],[URL]])","v":"https://lautjournal.info/20200608/la-coalition-desavenir-quebec-et-la-firme-mckinsey-co"},"FRA | L'AUT'JOURNAL | McKinsey & Co","FRA | L'AUT'JOURNAL | McKinsey & Co La Coalition Désavenir Québec et la firme McKinsey & Co. | 2020/06/08 | Par Jean-François Thibaud"]
["https://ici.radio-canada.ca/nouvelle/1762439/avis-ecrits-arruda-secrets-quebec-legault-covid",{"$f":"HYPERLINK(T_public[[#This Row],[URL]])","v":"https://ici.radio-canada.ca/nouvelle/1762439/avis-ecrits-arruda-secrets-quebec-legault-covid"},"FRA | Radio-Canada | McKinsey & Co","FRA | Radio-Canada | McKinsey & Co Les rares avis écrits du Dr Arruda resteront secrets Québec refuse de rendre publics les documents, malgré l'ouverture du directeur national de santé publique.","canada"]
["https://www.lapresse.ca/affaires/economie/2021-08-03/relance-post-pandemie/quebec-debourse-5-millions-pour-un-regard-externe.php",{"$f":"HYPERLINK(T_public[[#This Row],[URL]])","v":"https://www.lapresse.ca/affaires/economie/2021-08-03/relance-post-pandemie/quebec-debourse-5-millions-pour-un-regard-externe.php"},"FRA | LaPresse | McKinsey & Co","FRA | LaPresse | McKinsey & Co Québec débourse 5 millions pour un « regard externe »"]
["https://roles.tribunaux.qc.ca/",{"$f":"HYPERLINK(T_public[[#This Row],[URL]])","v":"https://roles.tribunaux.qc.ca/"},"Tribunaux judiciaires du Québec ~ Extraits des rôles de'audiences","","bilingue bilingual ontario"]
["",{"$f":"HYPERLINK(T_public[[#This Row],[URL]])","v":""},"ioc : indicators of compromise ~ idc : indicateurs de compromis","","cyber bilingue bilingual"]
["https://www.prometheanaction.com/",{"$f":"HYPERLINK(T_public[[#This Row],[URL]])","v":"https://www.prometheanaction.com/"},"promethean action",""]
["https://en.wikipedia.org/wiki/Herbert_Marcuse",{"$f":"HYPERLINK(T_public[[#This Row],[URL]])","v":"https://en.wikipedia.org/wiki/Herbert_Marcuse"},"Herbert Marcuse",""]
["https://search.brave.com/videos?q=Richard%20Wolfe",{"$f":"HYPERLINK(T_public[[#This Row],[URL]])","v":"https://search.brave.com/videos?q=Richard%20Wolfe"},"Richard Wolff",""]
["https://en.wikipedia.org/wiki/Thomas_Paine",{"$f":"HYPERLINK(T_public[[#This Row],[URL]])","v":"https://en.wikipedia.org/wiki/Thomas_Paine"},"Thomass Paine",""]
["https://en.wikipedia.org/wiki/Suicide_(Durkheim_book)",{"$f":"HYPERLINK(T_public[[#This Row],[URL]])","v":"https://en.wikipedia.org/wiki/Suicide_(Durkheim_book)"},"Suicide (Durkheim book) | French: Le Suicide: Étude de sociologie","Suicide (Durkheim book) | French: Le Suicide: Étude de sociologie first heard about this when Chris Hedges was speaking with Stella Assange"]
["https://www.galvanisationquebec.com/fr/faq-galvanisation.php",{"$f":"HYPERLINK(T_public[[#This Row],[URL]])","v":"https://www.galvanisationquebec.com/fr/faq-galvanisation.php"},"galvanisation ~ galvinization","","chemical industrial process bilingue bilingual"]
["https://en.wikipedia.org/wiki/Israel_Defense_Forces",{"$f":"HYPERLINK(T_public[[#This Row],[URL]])","v":"https://en.wikipedia.org/wiki/Israel_Defense_Forces"},"[IDF] : Israel Defense Forces",""]
["https://ottawacitizen.com/news/national/defence-watch/canadian-officials-who-met-with-ukrainian-unit-linked-to-neo-nazis-feared-exposure-by-news-media-documents",{"$f":"HYPERLINK(T_public[[#This Row],[URL]])","v":"https://ottawacitizen.com/news/national/defence-watch/canadian-officials-who-met-with-ukrainian-unit-linked-to-neo-nazis-feared-exposure-by-news-media-documents"},"David Pugliese | Canadian officials who met with Ukrainian unit linked to neo-Nazis feared exposure by news media: documents",""]
["https://ottawacitizen.com/news/national/defence-watch/chrystia-freelands-granddad-was-indeed-a-nazi-collaborator-so-much-for-russian-disinformation",{"$f":"HYPERLINK(T_public[[#This Row],[URL]])","v":"https://ottawacitizen.com/news/national/defence-watch/chrystia-freelands-granddad-was-indeed-a-nazi-collaborator-so-much-for-russian-disinformation"},"David Pugliese | Chrystia Freeland’s granddad was indeed a Nazi collaborator – so much for Russian disinformation","","russia ottawaCitizen christiaFreeland"]
["https://ottawacitizen.com/news/national/defence-watch/allegations-of-canadian-troops-training-neo-nazis-and-war-criminals-sparks-military-review",{"$f":"HYPERLINK(T_public[[#This Row],[URL]])","v":"https://ottawacitizen.com/news/national/defence-watch/allegations-of-canadian-troops-training-neo-nazis-and-war-criminals-sparks-military-review"},"David Pugliese | Allegations of Canadian troops training neo-Nazis and war criminals sparks military review",""]
["http://espritdecorps.ca/history-feature/the-rcaf-officer-who-brought-hitlers-waffen-ss-to-canada",{"$f":"HYPERLINK(T_public[[#This Row],[URL]])","v":"http://espritdecorps.ca/history-feature/the-rcaf-officer-who-brought-hitlers-waffen-ss-to-canada"},"David Pugliese | THE RCAF OFFICER WHO BROUGHT HITLER’S WAFFEN SS TO CANADA","","canada"]
["https://icic.law/",{"$f":"HYPERLINK(T_public[[#This Row],[URL]])","v":"https://icic.law/"},"Reiner Fuellmich ICIC",""]
["https://www.oic-ci.gc.ca/en",{"$f":"HYPERLINK(T_public[[#This Row],[URL]])","v":"https://www.oic-ci.gc.ca/en"},"Information Commissioner",""]
["https://canadabuys.canada.ca/en",{"$f":"HYPERLINK(T_public[[#This Row],[URL]])","v":"https://canadabuys.canada.ca/en"},"Canada Buys","","canada"]
["https://www.btb.termiumplus.gc.ca/tpv2alpha/alpha-fra.html?lang=fra",{"$f":"HYPERLINK(T_public[[#This Row],[URL]])","v":"https://www.btb.termiumplus.gc.ca/tpv2alpha/alpha-fra.html?lang=fra"},"TERMIUM Plus",""]
["https://www.canada.ca/en.html",{"$f":"HYPERLINK(T_public[[#This Row],[URL]])","v":"https://www.canada.ca/en.html"},"Canada 411","","canada"]
["https://www.canada411.ca/search/reverse.html",{"$f":"HYPERLINK(T_public[[#This Row],[URL]])","v":"https://www.canada411.ca/search/reverse.html"},"canada411 reverse search","","canada"]
["https://canadacommons.ca/",{"$f":"HYPERLINK(T_public[[#This Row],[URL]])","v":"https://canadacommons.ca/"},"canada commons","","canada"]
["https://www.tbs-sct.canada.ca/ap/fip-pcim/reg-eng.asp",{"$f":"HYPERLINK(T_public[[#This Row],[URL]])","v":"https://www.tbs-sct.canada.ca/ap/fip-pcim/reg-eng.asp"},"tbs titles federal identity program registry of applied titles",""]
["",{"$f":"HYPERLINK(T_public[[#This Row],[URL]])","v":""},"msiexec /i path\\to\\installer.msi /l*v installlog.txt","","install"]
["",{"$f":"HYPERLINK(T_public[[#This Row],[URL]])","v":""},"reload apache : sudo systemctl reload pkg-apache24","","nas synology"]
["https://httpd.apache.org/docs/2.4/",{"$f":"HYPERLINK(T_public[[#This Row],[URL]])","v":"https://httpd.apache.org/docs/2.4/"},"apache 2.4 docs",""]
["https://dev.mysql.com/doc/",{"$f":"HYPERLINK(T_public[[#This Row],[URL]])","v":"https://dev.mysql.com/doc/"},"dev mysql doc",""]
["https://www.phpmyadmin.net/docs/",{"$f":"HYPERLINK(T_public[[#This Row],[URL]])","v":"https://www.phpmyadmin.net/docs/"},"phpmyadmin docs",""]
["https://learn.microsoft.com/en-us/aspnet/core/?view=aspnetcore-8.0&WT.mc_id=dotnet-35129-website",{"$f":"HYPERLINK(T_public[[#This Row],[URL]])","v":"https://learn.microsoft.com/en-us/aspnet/core/?view=aspnetcore-8.0&WT.mc_id=dotnet-35129-website"},".net asp.net",""]
["https://fastmobi.org",{"$f":"HYPERLINK(T_public[[#This Row],[URL]])","v":"https://fastmobi.org"},"fastmobi.org [mobile version]","","fastmobi"]
["https://fastdesk.org",{"$f":"HYPERLINK(T_public[[#This Row],[URL]])","v":"https://fastdesk.org"},"fastdesk.org [desktop version]","","fastdesk"]
["https://www.bing.com/webmasters",{"$f":"HYPERLINK(T_public[[#This Row],[URL]])","v":"https://www.bing.com/webmasters"},"bing webmaster tools",""]
["https://www.tiktok.com/@luctrudel69",{"$f":"HYPERLINK(T_public[[#This Row],[URL]])","v":"https://www.tiktok.com/@luctrudel69"},"sm tik tok @luctrudel69",""]
["https://peacebuilder.net/feed.rss",{"$f":"HYPERLINK(T_public[[#This Row],[URL]])","v":"https://peacebuilder.net/feed.rss"},"peacebuilder.net feed rss",""]
["https://notagainkeepers.blogspot.com/",{"$f":"HYPERLINK(T_public[[#This Row],[URL]])","v":"https://notagainkeepers.blogspot.com/"},"blogspot notagainkeepers.blogspot.com blogger.com",""]
["https://peacebuilder.net/china-democracy-that-works",{"$f":"HYPERLINK(T_public[[#This Row],[URL]])","v":"https://peacebuilder.net/china-democracy-that-works"},"luc blot.im democracy that works",""]
["https://peacebuilder.net/",{"$f":"HYPERLINK(T_public[[#This Row],[URL]])","v":"https://peacebuilder.net/"},"peacebuilder.net peace builder",""]
["https://github.com/",{"$f":"HYPERLINK(T_public[[#This Row],[URL]])","v":"https://github.com/"},"github","","github"]
["https://www.freenom.com/en/index.html?lang=en",{"$f":"HYPERLINK(T_public[[#This Row],[URL]])","v":"https://www.freenom.com/en/index.html?lang=en"},"freenom domain",""]
["https://www.storyblocks.com/",{"$f":"HYPERLINK(T_public[[#This Row],[URL]])","v":"https://www.storyblocks.com/"},"storyblocks","","stockFootage paid"]
["https://wix.com/pricing/",{"$f":"HYPERLINK(T_public[[#This Row],[URL]])","v":"https://wix.com/pricing/"},"*blocked*: wix hosting",""]
["https://wordpress.com/pricing/",{"$f":"HYPERLINK(T_public[[#This Row],[URL]])","v":"https://wordpress.com/pricing/"},"wordpress.com hosting",""]
["https://copypastewp.wordpress.com/wp-admin/",{"$f":"HYPERLINK(T_public[[#This Row],[URL]])","v":"https://copypastewp.wordpress.com/wp-admin/"},"copy paste wp.com",""]
["https://risingtidefoundation.net/",{"$f":"HYPERLINK(T_public[[#This Row],[URL]])","v":"https://risingtidefoundation.net/"},"risingtidefoundation.net",""]
["https://canadianpatriot.org/",{"$f":"HYPERLINK(T_public[[#This Row],[URL]])","v":"https://canadianpatriot.org/"},"canadianpatriot.org",""]
["https://tineye.com",{"$f":"HYPERLINK(T_public[[#This Row],[URL]])","v":"https://tineye.com"},"tinEye detect image source online reverse image search",""]
["https://ghost.org/resources/newsifying-your-niche/#credible-resources",{"$f":"HYPERLINK(T_public[[#This Row],[URL]])","v":"https://ghost.org/resources/newsifying-your-niche/#credible-resources"},"Ghost Resources🗞️ Newsifying your niche",""]
["https://datasetsearch.research.google.com/",{"$f":"HYPERLINK(T_public[[#This Row],[URL]])","v":"https://datasetsearch.research.google.com/"},"Google Dataset Search",""]
["https://inteltechniques.com/",{"$f":"HYPERLINK(T_public[[#This Row],[URL]])","v":"https://inteltechniques.com/"},"IntelTechniques OSIP",""]
["https://www.crowdtangle.com/",{"$f":"HYPERLINK(T_public[[#This Row],[URL]])","v":"https://www.crowdtangle.com/"},"crowdtangle | help follow, analyze and report what's happening on sm",""]
["https://hemingwayapp.com/",{"$f":"HYPERLINK(T_public[[#This Row],[URL]])","v":"https://hemingwayapp.com/"},"Hemingway App makes your writing concise and correct.",""]
["https://hunter.io/",{"$f":"HYPERLINK(T_public[[#This Row],[URL]])","v":"https://hunter.io/"},"hunter.io | Hunter is your all-in-one email outreach platform. Find and connect with the people that matter to your business.","","email"]
["https://otter.ai/",{"$f":"HYPERLINK(T_public[[#This Row],[URL]])","v":"https://otter.ai/"},"otter ai","","ai"]
["https://account.apple.com/",{"$f":"HYPERLINK(T_public[[#This Row],[URL]])","v":"https://account.apple.com/"},"account apple id",""]
["https://www.pinterest.ca/",{"$f":"HYPERLINK(T_public[[#This Row],[URL]])","v":"https://www.pinterest.ca/"},"pinterest","","sm"]
["https://vimeo.com",{"$f":"HYPERLINK(T_public[[#This Row],[URL]])","v":"https://vimeo.com"},"vimeo ","","sm"]
["https://twitter.com/",{"$f":"HYPERLINK(T_public[[#This Row],[URL]])","v":"https://twitter.com/"},"twitter ","","sm"]
["https://x.com/",{"$f":"HYPERLINK(T_public[[#This Row],[URL]])","v":"https://x.com/"},"x.com ","","sm"]
["https://tweetdeck.twitter.com/",{"$f":"HYPERLINK(T_public[[#This Row],[URL]])","v":"https://tweetdeck.twitter.com/"},"tweetdeck.twitter ","","sm"]
["https://telegram.org/",{"$f":"HYPERLINK(T_public[[#This Row],[URL]])","v":"https://telegram.org/"},"telegram.org ","","sm telegram"]
["https://www.facebook.com/watch/saved",{"$f":"HYPERLINK(T_public[[#This Row],[URL]])","v":"https://www.facebook.com/watch/saved"},"facebook saved videos ","","sm"]
["https://www.facebook.com/",{"$f":"HYPERLINK(T_public[[#This Row],[URL]])","v":"https://www.facebook.com/"},"facebook ","","sm"]
["https://www.instagram.com/",{"$f":"HYPERLINK(T_public[[#This Row],[URL]])","v":"https://www.instagram.com/"},"instagram ","","sm"]
["https://www.tiktok.com/",{"$f":"HYPERLINK(T_public[[#This Row],[URL]])","v":"https://www.tiktok.com/"},"tiktok ","","sm"]
["https://www.linkedin.com/feed/",{"$f":"HYPERLINK(T_public[[#This Row],[URL]])","v":"https://www.linkedin.com/feed/"},"LinkedIn ","","sm"]
["https://www.facebook.com/marketplace/",{"$f":"HYPERLINK(T_public[[#This Row],[URL]])","v":"https://www.facebook.com/marketplace/"},"fb marketplace",""]
["https://www.youtube.com/shorts/",{"$f":"HYPERLINK(T_public[[#This Row],[URL]])","v":"https://www.youtube.com/shorts/"},"YouTube shorts",""]
["https://rumble.com/subscriptions",{"$f":"HYPERLINK(T_public[[#This Row],[URL]])","v":"https://rumble.com/subscriptions"},"rumble feed",""]
["https://www.youtube.com/playlist?list=WL",{"$f":"HYPERLINK(T_public[[#This Row],[URL]])","v":"https://www.youtube.com/playlist?list=WL"},"yt watch later à regarder plus tard","","youtube watchLater"]
["https://assangedefense.org/press-releases/",{"$f":"HYPERLINK(T_public[[#This Row],[URL]])","v":"https://assangedefense.org/press-releases/"},"jullian assange defense","jullian assange defense ~press release wikileaks speak up for assange ~may 3","julianAssange pressRelease"]
["https://www.brandbird.app/tools/twitter-image-downloader",{"$f":"HYPERLINK(T_public[[#This Row],[URL]])","v":"https://www.brandbird.app/tools/twitter-image-downloader"},"brandbird twitter image downloader","","sm twitter thumbnail download dq"]
["",{"$f":"HYPERLINK(T_public[[#This Row],[URL]])","v":""},"⚡️Luc Trudel, [2024-08-26 8:42 PM] : ⚡️\\w+\\s\\w+,\\s\\[\\d{4}-\\d{2}-\\d{2}\\s\\d{1,2}:\\d{2}\\s(?:AM|PM)\\]","","regex dq download"]
["https://isotope.metafizzy.co/",{"$f":"HYPERLINK(T_public[[#This Row],[URL]])","v":"https://isotope.metafizzy.co/"},"isotope.metafizzy","","web ui filter list"]
["https://sonar21.com/",{"$f":"HYPERLINK(T_public[[#This Row],[URL]])","v":"https://sonar21.com/"},"sonar21.com | A son of the New American Revolution","","blog political analyst"]
["https://bonsens.info/",{"$f":"HYPERLINK(T_public[[#This Row],[URL]])","v":"https://bonsens.info/"},"Professeur Christian Perronne | Vice Président de BonSens.org","","prof covid"]
["https://bandcamp.com/",{"$f":"HYPERLINK(T_public[[#This Row],[URL]])","v":"https://bandcamp.com/"},"bandcamp.com",""]
["https://spotify.com/",{"$f":"HYPERLINK(T_public[[#This Row],[URL]])","v":"https://spotify.com/"},"spotify.com",""]
["https://www.canada.ca/en/revenue-agency/services/forms-publications/forms/t2short.html",{"$f":"HYPERLINK(T_public[[#This Row],[URL]])","v":"https://www.canada.ca/en/revenue-agency/services/forms-publications/forms/t2short.html"},"T2SHORT Déclaration T2 abrégée ~ T2SHORT T2 Short Return","T2SHORT Déclaration T2 abrégée ~ T2SHORT T2 Short Return T2SHORT Déclaration T2 abrégée T2SHORT T2 Short Return","cra arc formulaire"]
["https://telegram.org/blog/stories/fr",{"$f":"HYPERLINK(T_public[[#This Row],[URL]])","v":"https://telegram.org/blog/stories/fr"},"comprendre les stories dans telegram","","telegram"]
["https://core.telegram.org/bots/features",{"$f":"HYPERLINK(T_public[[#This Row],[URL]])","v":"https://core.telegram.org/bots/features"},"Telegram Bot Features","","telegram"]
["https://core.telegram.org/bots/api",{"$f":"HYPERLINK(T_public[[#This Row],[URL]])","v":"https://core.telegram.org/bots/api"},"Telegram Bot API","","telegram"]
["https://core.telegram.org/bots",{"$f":"HYPERLINK(T_public[[#This Row],[URL]])","v":"https://core.telegram.org/bots"},"Bots: An introduction for developers",""]
["https://core.telegram.org/bots/webapps",{"$f":"HYPERLINK(T_public[[#This Row],[URL]])","v":"https://core.telegram.org/bots/webapps"},"Web Apps for Bots",""]
["https://core.telegram.org/bots/payments",{"$f":"HYPERLINK(T_public[[#This Row],[URL]])","v":"https://core.telegram.org/bots/payments"},"Bot Payments API","Bot Payments API Introducing Payments 2.0"]
["https://core.telegram.org/bots/payments#faq",{"$f":"HYPERLINK(T_public[[#This Row],[URL]])","v":"https://core.telegram.org/bots/payments#faq"},"Bot Payments API #FAQ",""]
["https://core.telegram.org/bots/inline",{"$f":"HYPERLINK(T_public[[#This Row],[URL]])","v":"https://core.telegram.org/bots/inline"},"Inline Bots",""]
["https://unsigned.io/website/sideband/",{"$f":"HYPERLINK(T_public[[#This Row],[URL]])","v":"https://unsigned.io/website/sideband/"},"unsigned.io/website/sideband","","decentralized communications"]
["https://grayjay.app/",{"$f":"HYPERLINK(T_public[[#This Row],[URL]])","v":"https://grayjay.app/"},"grayjay.app","","decentralized communications"]
["https://www.instagram.com/brandiewithabee/",{"$f":"HYPERLINK(T_public[[#This Row],[URL]])","v":"https://www.instagram.com/brandiewithabee/"},"memer meme teams","memer meme teams brandiewithabee x | dilley meme team www | dilley meme team"]
["https://giphy.com/",{"$f":"HYPERLINK(T_public[[#This Row],[URL]])","v":"https://giphy.com/"},"gif gify giphy",""]
["https://web.dev/progressive-web-apps/",{"$f":"HYPERLINK(T_public[[#This Row],[URL]])","v":"https://web.dev/progressive-web-apps/"},"PWA","PWA PWA2 PWA3 Progressive Web Apps"]
["https://downdetector.ca/",{"$f":"HYPERLINK(T_public[[#This Row],[URL]])","v":"https://downdetector.ca/"},"down detector","","down network"]
["https://iframetester.com",{"$f":"HYPERLINK(T_public[[#This Row],[URL]])","v":"https://iframetester.com"},"iframe tester",""]
["https://www.beyondtrust.com/brand/bomgar",{"$f":"HYPERLINK(T_public[[#This Row],[URL]])","v":"https://www.beyondtrust.com/brand/bomgar"},"Remote Support Tool (RST)",""]
["https://caption.ninja/?room=9vqCnnU&lang=en-US",{"$f":"HYPERLINK(T_public[[#This Row],[URL]])","v":"https://caption.ninja/?room=9vqCnnU&lang=en-US"},"Caption Ninja",""]
["https://bb-les.ca/solutions/",{"$f":"HYPERLINK(T_public[[#This Row],[URL]])","v":"https://bb-les.ca/solutions/"},"BlueBear","BlueBear Data Visual Media"]
["https://stats.uptimerobot.com/625oDuo8yE",{"$f":"HYPERLINK(T_public[[#This Row],[URL]])","v":"https://stats.uptimerobot.com/625oDuo8yE"},"SSC VPN | uptime robot",""]
["https://fold.it/",{"$f":"HYPERLINK(T_public[[#This Row],[URL]])","v":"https://fold.it/"},"fold.it",""]
["https://zuckhub.ca/",{"$f":"HYPERLINK(T_public[[#This Row],[URL]])","v":"https://zuckhub.ca/"},"zuckhub | facebook link | c-18 | technique de contournement",""]
["https://www.socialvideoplaza.com/en/tools/embed-code-link-generator",{"$f":"HYPERLINK(T_public[[#This Row],[URL]])","v":"https://www.socialvideoplaza.com/en/tools/embed-code-link-generator"},"sm yt YouTube embed code & link generator start end","","youtube embed code"]
["https://www.timeanddate.com/worldclock/converter.html",{"$f":"HYPERLINK(T_public[[#This Row],[URL]])","v":"https://www.timeanddate.com/worldclock/converter.html"},"Time Zone Converter | Scheduling",""]
["https://www.timeanddate.com/worldclock/meeting.html",{"$f":"HYPERLINK(T_public[[#This Row],[URL]])","v":"https://www.timeanddate.com/worldclock/meeting.html"},"World Clock Meeting Planner | Scheduling | Time Zone",""]
["https://www.worldtimebuddy.com/",{"$f":"HYPERLINK(T_public[[#This Row],[URL]])","v":"https://www.worldtimebuddy.com/"},"World Time Buddy | Scheduling | Time Zone",""]
["https://greenwichmeantime.com/time-gadgets/planner/",{"$f":"HYPERLINK(T_public[[#This Row],[URL]])","v":"https://greenwichmeantime.com/time-gadgets/planner/"},"greenwich mean time | Scheduling | Time Zone",""]
["https://www.elgato.com/ca/en/s/keycreator",{"$f":"HYPERLINK(T_public[[#This Row],[URL]])","v":"https://www.elgato.com/ca/en/s/keycreator"},"gd elgato streamdeck icon generator","","stream"]
["https://gist.github.com/rxaviers/7360908",{"$f":"HYPERLINK(T_public[[#This Row],[URL]])","v":"https://gist.github.com/rxaviers/7360908"},"emojis on github gist","","github"]
["https://emojipedia.org/",{"$f":"HYPERLINK(T_public[[#This Row],[URL]])","v":"https://emojipedia.org/"},"emojis emojipedia",""]
["https://european-union.europa.eu/index_en",{"$f":"HYPERLINK(T_public[[#This Row],[URL]])","v":"https://european-union.europa.eu/index_en"},"(UE) Union Européene ~ (EU) Europeen Union","(UE) Union Européene ~ (EU) Europeen Union FR: Union Européene EN: Europeen Union","bilingue bilingual eu ue"]
["https://www.njc-cnm.gc.ca/directive/d7/en%20target=",{"$f":"HYPERLINK(T_public[[#This Row],[URL]])","v":"https://www.njc-cnm.gc.ca/directive/d7/en%20target="},"Directive sur la santé et la sécurité au travail ~ Occupational Health and Safety Directive","Directive sur la santé et la sécurité au travail ~ Occupational Health and Safety Directive Directive sur la santé et la sécurité au travail Occupational Health and Safety Directive","bilingue bilingual health santé travail work"]
["https://www.striphtml.com/",{"$f":"HYPERLINK(T_public[[#This Row],[URL]])","v":"https://www.striphtml.com/"},"strip html stripper",""]
["https://codebeautify.org/html-stripper",{"$f":"HYPERLINK(T_public[[#This Row],[URL]])","v":"https://codebeautify.org/html-stripper"},"beautify html stripper",""]
["https://markdowntohtml.com/",{"$f":"HYPERLINK(T_public[[#This Row],[URL]])","v":"https://markdowntohtml.com/"},"Convert Markdown to HTML",""]
["https://codebeautify.org/html-to-markdown",{"$f":"HYPERLINK(T_public[[#This Row],[URL]])","v":"https://codebeautify.org/html-to-markdown"},"HTML to Markdown",""]
["https://invideo.io",{"$f":"HYPERLINK(T_public[[#This Row],[URL]])","v":"https://invideo.io"},"invideo.io","invideo.io ~ai ~video prod Pricing Tiers; Free [10 minutes a week], 20 [50 minutes a week], 48 [200 minutes a week]","video prod"]
["https://www.calligrapher.ai/",{"$f":"HYPERLINK(T_public[[#This Row],[URL]])","v":"https://www.calligrapher.ai/"},"calligraphy calligrapher ai","","ai"]
["https://palette.fm/",{"$f":"HYPERLINK(T_public[[#This Row],[URL]])","v":"https://palette.fm/"},"bw 2 color colorize pictures palette.fm",""]
["https://www.upscale.media/upload",{"$f":"HYPERLINK(T_public[[#This Row],[URL]])","v":"https://www.upscale.media/upload"},"upscale media",""]
["https://www.pixelbin.io/",{"$f":"HYPERLINK(T_public[[#This Row],[URL]])","v":"https://www.pixelbin.io/"},"pixel bin",""]
["https://palette.fm/",{"$f":"HYPERLINK(T_public[[#This Row],[URL]])","v":"https://palette.fm/"},"palette.fm to colorize pictures",""]
["http://www.differencebetween.net/",{"$f":"HYPERLINK(T_public[[#This Row],[URL]])","v":"http://www.differencebetween.net/"},"Difference Between X vs Y",""]
["https://emojipedia.org/",{"$f":"HYPERLINK(T_public[[#This Row],[URL]])","v":"https://emojipedia.org/"},"emojipedia",""]
["https://unicode.org/emoji/charts/full-emoji-list.html",{"$f":"HYPERLINK(T_public[[#This Row],[URL]])","v":"https://unicode.org/emoji/charts/full-emoji-list.html"},"unicode emojis",""]
["https://tools.picsart.com/text/emojis/",{"$f":"HYPERLINK(T_public[[#This Row],[URL]])","v":"https://tools.picsart.com/text/emojis/"},"emojis pics art",""]
["https://hypeauditor.com/",{"$f":"HYPERLINK(T_public[[#This Row],[URL]])","v":"https://hypeauditor.com/"},"measure internet audiences",""]
["https://www.palantir.com/",{"$f":"HYPERLINK(T_public[[#This Row],[URL]])","v":"https://www.palantir.com/"},"palantir","","peterThiel"]
["https://markdowntohtml.com/",{"$f":"HYPERLINK(T_public[[#This Row],[URL]])","v":"https://markdowntohtml.com/"},"markdown to html",""]
["https://www.markdownguide.org/",{"$f":"HYPERLINK(T_public[[#This Row],[URL]])","v":"https://www.markdownguide.org/"},"Markdown md guide",""]
["https://www.markdownguide.org/basic-syntax/",{"$f":"HYPERLINK(T_public[[#This Row],[URL]])","v":"https://www.markdownguide.org/basic-syntax/"},"Markdown md guide basic syntax",""]
["https://www.markdownguide.org/hacks",{"$f":"HYPERLINK(T_public[[#This Row],[URL]])","v":"https://www.markdownguide.org/hacks"},"Markdown md guide hacks",""]
["https://www.markdownguide.org/extended-syntax",{"$f":"HYPERLINK(T_public[[#This Row],[URL]])","v":"https://www.markdownguide.org/extended-syntax"},"Markdown md guide extended syntax",""]
["https://dillinger.io/",{"$f":"HYPERLINK(T_public[[#This Row],[URL]])","v":"https://dillinger.io/"},"dillinger markdown .md",""]
["https://blot.im/",{"$f":"HYPERLINK(T_public[[#This Row],[URL]])","v":"https://blot.im/"},"blot.im .md",""]
["https://jekyllrb.com/",{"$f":"HYPERLINK(T_public[[#This Row],[URL]])","v":"https://jekyllrb.com/"},"jekyll .md",""]
["https://obsidian.md/",{"$f":"HYPERLINK(T_public[[#This Row],[URL]])","v":"https://obsidian.md/"},"Obsidian.md Notes","Obsidian.md Notes sync publish Catalyst license Early access roadmap"]
["https://archive.org/details/movies",{"$f":"HYPERLINK(T_public[[#This Row],[URL]])","v":"https://archive.org/details/movies"},"Moving Image Archive",""]
["https://archive.md/",{"$f":"HYPERLINK(T_public[[#This Row],[URL]])","v":"https://archive.md/"},"Archive.MD | paywall",""]
["https://12ft.io/",{"$f":"HYPERLINK(T_public[[#This Row],[URL]])","v":"https://12ft.io/"},"12ft ladder paywall",""]
["https://justpaste.it/",{"$f":"HYPERLINK(T_public[[#This Row],[URL]])","v":"https://justpaste.it/"},"justpaste.it",""]
["https://riverside.fm/",{"$f":"HYPERLINK(T_public[[#This Row],[URL]])","v":"https://riverside.fm/"},"riverside",""]
["https://davidjoshuaford.com/production/companionsatellite/",{"$f":"HYPERLINK(T_public[[#This Row],[URL]])","v":"https://davidjoshuaford.com/production/companionsatellite/"},"companion satellite",""]
["https://studio.restream.io/",{"$f":"HYPERLINK(T_public[[#This Row],[URL]])","v":"https://studio.restream.io/"},"sk restream studio","","stream"]
["https://t.me/how_to_stream",{"$f":"HYPERLINK(T_public[[#This Row],[URL]])","v":"https://t.me/how_to_stream"},"t.me how-to-stream","","stream"]
["https://www.mithril.com/",{"$f":"HYPERLINK(T_public[[#This Row],[URL]])","v":"https://www.mithril.com/"},"mithril","","peterThiel JDVance"]
["https://www.pm.gc.ca/en",{"$f":"HYPERLINK(T_public[[#This Row],[URL]])","v":"https://www.pm.gc.ca/en"},"PM Itinerary","PM Itinerary daily","itinerary"]
["https://favicon.io/favicon-converter/",{"$f":"HYPERLINK(T_public[[#This Row],[URL]])","v":"https://favicon.io/favicon-converter/"},"png to favicon","","dev favicon generator online saas"]
["https://seekingalpha.com/",{"$f":"HYPERLINK(T_public[[#This Row],[URL]])","v":"https://seekingalpha.com/"},"stock research seeking alpha","","se market financial"]
["https://www.youtube.com/@FelippeNardi/videos",{"$f":"HYPERLINK(T_public[[#This Row],[URL]])","v":"https://www.youtube.com/@FelippeNardi/videos"},"Felippe Nardi yt channel | Inside the show","","youtube channel"]
["https://loudness-meter.vercel.app/",{"$f":"HYPERLINK(T_public[[#This Row],[URL]])","v":"https://loudness-meter.vercel.app/"},"loudness meter",""]
["https://obsproject.com/forum/resources/fx-magician-lower-thirds-virtual-deck-bot-websocket.1834/",{"$f":"HYPERLINK(T_public[[#This Row],[URL]])","v":"https://obsproject.com/forum/resources/fx-magician-lower-thirds-virtual-deck-bot-websocket.1834/"},"obs plugin for lower thirds FX Magician","obs plugin for lower thirds FX Magician yt reference sYxEcHMPS2o"]
["https://docsify.js.org/#/quickstart",{"$f":"HYPERLINK(T_public[[#This Row],[URL]])","v":"https://docsify.js.org/#/quickstart"},"docsify",""]
["https://shoutcms.com/",{"$f":"HYPERLINK(T_public[[#This Row],[URL]])","v":"https://shoutcms.com/"},"shoutCMS","","gatineau nouvelles local"]
["https://www.spip.net/en",{"$f":"HYPERLINK(T_public[[#This Row],[URL]])","v":"https://www.spip.net/en"},"spip ","","cms"]
["https://ghost.org/",{"$f":"HYPERLINK(T_public[[#This Row],[URL]])","v":"https://ghost.org/"},"ghost ","","cms"]
["https://en-ca.wordpress.org/",{"$f":"HYPERLINK(T_public[[#This Row],[URL]])","v":"https://en-ca.wordpress.org/"},"wordpress ","","cms"]
["https://www.drupal.org/",{"$f":"HYPERLINK(T_public[[#This Row],[URL]])","v":"https://www.drupal.org/"},"drupal ","","cms"]
["https://www.joomla.org/",{"$f":"HYPERLINK(T_public[[#This Row],[URL]])","v":"https://www.joomla.org/"},"joomla ","","cms"]
["https://wix.com",{"$f":"HYPERLINK(T_public[[#This Row],[URL]])","v":"https://wix.com"},"wix ","","cms"]
["https://www.shopify.com/",{"$f":"HYPERLINK(T_public[[#This Row],[URL]])","v":"https://www.shopify.com/"},"shopify","","ecommerce"]
["https://typo3.org/",{"$f":"HYPERLINK(T_public[[#This Row],[URL]])","v":"https://typo3.org/"},"typo3 ","","cms"]
["https://mail.google.com/mail/u/0/#search/label%3Ainbox+label%3Aunread",{"$f":"HYPERLINK(T_public[[#This Row],[URL]])","v":"https://mail.google.com/mail/u/0/#search/label%3Ainbox+label%3Aunread"},"label:inbox label:unread [0]","","email gmail0"]
["https://mail.google.com/mail/u/0/#settings/filters",{"$f":"HYPERLINK(T_public[[#This Row],[URL]])","v":"https://mail.google.com/mail/u/0/#settings/filters"},"gmail settings filters [0]","","email gmail0 filters"]
["https://mail.google.com/mail/u/1/#settings/filters",{"$f":"HYPERLINK(T_public[[#This Row],[URL]])","v":"https://mail.google.com/mail/u/1/#settings/filters"},"gmail settings filters [1]","","email gmail1 filters"]
["https://outlook.live.com/",{"$f":"HYPERLINK(T_public[[#This Row],[URL]])","v":"https://outlook.live.com/"},"outlook.live.com hotmail.com ","","email"]
["tutanota",{"$f":"HYPERLINK(T_public[[#This Row],[URL]])","v":"tutanota"},"tutanota.com","","email privacy"]
["https://account.proton.me/login",{"$f":"HYPERLINK(T_public[[#This Row],[URL]])","v":"https://account.proton.me/login"},"proton email proton.me","","email privacy"]
["https://www.excell-en.com/auto-email-macro-excel",{"$f":"HYPERLINK(T_public[[#This Row],[URL]])","v":"https://www.excell-en.com/auto-email-macro-excel"},"Auto Email Outlook Excel","~e | Auto Email Outlook Excel RangetoHTML Code","email vba excel"]
["https://english.elpais.com",{"$f":"HYPERLINK(T_public[[#This Row],[URL]])","v":"https://english.elpais.com"},"El Pais /americ","El Pais /america ~espana ~elpais espagnol america","international spain espana españa"]
["https://www.federalregister.gov/presidential-documents/executive-orders",{"$f":"HYPERLINK(T_public[[#This Row],[URL]])","v":"https://www.federalregister.gov/presidential-documents/executive-orders"},"Federal Register","","executive orders"]
["https://svbtle.com/",{"$f":"HYPERLINK(T_public[[#This Row],[URL]])","v":"https://svbtle.com/"},"svbtle",""]
["https://rmarkdown.rstudio.com/",{"$f":"HYPERLINK(T_public[[#This Row],[URL]])","v":"https://rmarkdown.rstudio.com/"},"R markdown",""]
["https://substack.com/",{"$f":"HYPERLINK(T_public[[#This Row],[URL]])","v":"https://substack.com/"},"substack","","write"]
["https://pandoc.org/",{"$f":"HYPERLINK(T_public[[#This Row],[URL]])","v":"https://pandoc.org/"},"pandoc","pandoc research paper on pandoc workflow applications"]
["https://docutils.sourceforge.io/index.html",{"$f":"HYPERLINK(T_public[[#This Row],[URL]])","v":"https://docutils.sourceforge.io/index.html"},"Docutils",""]
["https://www.writage.com/",{"$f":"HYPERLINK(T_public[[#This Row],[URL]])","v":"https://www.writage.com/"},"writage",""]
["https://docs.racket-lang.org/pollen/",{"$f":"HYPERLINK(T_public[[#This Row],[URL]])","v":"https://docs.racket-lang.org/pollen/"},"pollen | by Matthew Butterick",""]
["https://www.canva.com/",{"$f":"HYPERLINK(T_public[[#This Row],[URL]])","v":"https://www.canva.com/"},"canva design templates | fast design tools | design",""]
["https://placeit.net/",{"$f":"HYPERLINK(T_public[[#This Row],[URL]])","v":"https://placeit.net/"},"placeit | design",""]
["https://new.express.adobe.com/",{"$f":"HYPERLINK(T_public[[#This Row],[URL]])","v":"https://new.express.adobe.com/"},"adobe express | design",""]
["https://www.studiotangible.ca/",{"$f":"HYPERLINK(T_public[[#This Row],[URL]])","v":"https://www.studiotangible.ca/"},"good web design work",""]
["https://new.express.adobe.com/?category=videos",{"$f":"HYPERLINK(T_public[[#This Row],[URL]])","v":"https://new.express.adobe.com/?category=videos"},"Adobe Express videos",""]
["https://new.express.adobe.com/?category=photos",{"$f":"HYPERLINK(T_public[[#This Row],[URL]])","v":"https://new.express.adobe.com/?category=photos"},"Adobe Express photos",""]
["https://express.adobe.com/express-apps/timeline/",{"$f":"HYPERLINK(T_public[[#This Row],[URL]])","v":"https://express.adobe.com/express-apps/timeline/"},"timeline maker",""]
["https://new.express.adobe.com/?category=generative-ai",{"$f":"HYPERLINK(T_public[[#This Row],[URL]])","v":"https://new.express.adobe.com/?category=generative-ai"},"Adobe Express generative ai","","ai"]
["https://www.fontspace.com/unicode/script/common",{"$f":"HYPERLINK(T_public[[#This Row],[URL]])","v":"https://www.fontspace.com/unicode/script/common"},"unicode common",""]
["https://www.fontspace.com/unicode/script",{"$f":"HYPERLINK(T_public[[#This Row],[URL]])","v":"https://www.fontspace.com/unicode/script"},"unicode script",""]
["https://practicaltypography.com/",{"$f":"HYPERLINK(T_public[[#This Row],[URL]])","v":"https://practicaltypography.com/"},"practicaltypography practical typography matthew butterrick",""]
["https://practicaltypography.com/mb-fonts.html",{"$f":"HYPERLINK(T_public[[#This Row],[URL]])","v":"https://practicaltypography.com/mb-fonts.html"},"matthew butterrick mbfonts valkyrie",""]
["https://practicaltypography.com/introduction.html",{"$f":"HYPERLINK(T_public[[#This Row],[URL]])","v":"https://practicaltypography.com/introduction.html"},"practical typography Matthew Butterick",""]
["https://matthewbutterick.com/",{"$f":"HYPERLINK(T_public[[#This Row],[URL]])","v":"https://matthewbutterick.com/"},"Matthew Butterick",""]
["https://typographyforlawyers.com/",{"$f":"HYPERLINK(T_public[[#This Row],[URL]])","v":"https://typographyforlawyers.com/"},"typography for lawyers Matthew Butterick",""]
["https://www.theinteldrop.org/",{"$f":"HYPERLINK(T_public[[#This Row],[URL]])","v":"https://www.theinteldrop.org/"},"theinteldrop.org","","intel"]
["https://iranpress.com/",{"$f":"HYPERLINK(T_public[[#This Row],[URL]])","v":"https://iranpress.com/"},"iranpress news","","international iran press"]
["https://fr.wikipedia.org/wiki/Communaut%C3%A9_%C3%A9conomique_des_%C3%89tats_de_l%27Afrique_de_l%27Ouest",{"$f":"HYPERLINK(T_public[[#This Row],[URL]])","v":"https://fr.wikipedia.org/wiki/Communaut%C3%A9_%C3%A9conomique_des_%C3%89tats_de_l%27Afrique_de_l%27Ouest"},"CEDEAO : Communauté économique des États de l'Afrique de l'Ouest","","afrique"]
["https://www.w3schools.com/charsets/ref_utf_latin1_supplement.asp",{"$f":"HYPERLINK(T_public[[#This Row],[URL]])","v":"https://www.w3schools.com/charsets/ref_utf_latin1_supplement.asp"},"°> degree symbol character","°> degree symbol character Unicode: U+00B0 U+2103 ℃ DEGREE CELSIUS U+2109 ℉ DEGREE FAHRENHEIT"]
["https://www.antidote.info/en/antidote-11/documentation/developer-tools",{"$f":"HYPERLINK(T_public[[#This Row],[URL]])","v":"https://www.antidote.info/en/antidote-11/documentation/developer-tools"},"antidote","","dev"]
["https://www.algolia.com/developers/",{"$f":"HYPERLINK(T_public[[#This Row],[URL]])","v":"https://www.algolia.com/developers/"},"search solution to build search and discovery experiences",""]
["https://developers.tiktok.com/products/content-posting-api/",{"$f":"HYPERLINK(T_public[[#This Row],[URL]])","v":"https://developers.tiktok.com/products/content-posting-api/"},"sm tiktok api content posting",""]
["https://core.telegram.org/widgets/post",{"$f":"HYPERLINK(T_public[[#This Row],[URL]])","v":"https://core.telegram.org/widgets/post"},"telegram embed telegram post embed post widget telegram","","telegram"]
["https://core.telegram.org/widgets",{"$f":"HYPERLINK(T_public[[#This Row],[URL]])","v":"https://core.telegram.org/widgets"},"all widgets telegram","","telegram"]
["https://publish.twitter.com/?query=",{"$f":"HYPERLINK(T_public[[#This Row],[URL]])","v":"https://publish.twitter.com/?query="},"publish twitter x.com widget embed",""]
["https://developers.facebook.com/tools/debug/",{"$f":"HYPERLINK(T_public[[#This Row],[URL]])","v":"https://developers.facebook.com/tools/debug/"},"facebook debug fb debug",""]
["https://www.webdevsplanet.com/post/how-to-add-open-graph-in-a-website",{"$f":"HYPERLINK(T_public[[#This Row],[URL]])","v":"https://www.webdevsplanet.com/post/how-to-add-open-graph-in-a-website"},"How to add Open Graph meta tags to your website",""]
["https://www.opengraph.xyz/",{"$f":"HYPERLINK(T_public[[#This Row],[URL]])","v":"https://www.opengraph.xyz/"},"opengraph xyz preview",""]
["https://developers.tiktok.com/",{"$f":"HYPERLINK(T_public[[#This Row],[URL]])","v":"https://developers.tiktok.com/"},"dev tiktok",""]
["https://mischatech.de/how-to-create-a-telegram-bot-rss-feed-for-channel/",{"$f":"HYPERLINK(T_public[[#This Row],[URL]])","v":"https://mischatech.de/how-to-create-a-telegram-bot-rss-feed-for-channel/"},"how-to: create telegram rss feed bot","","telegram"]
["https://grafana.com/",{"$f":"HYPERLINK(T_public[[#This Row],[URL]])","v":"https://grafana.com/"},"grafana",""]
["https://isbndb.com/",{"$f":"HYPERLINK(T_public[[#This Row],[URL]])","v":"https://isbndb.com/"},"isbndb",""]
["https://joinpeertube.org/",{"$f":"HYPERLINK(T_public[[#This Row],[URL]])","v":"https://joinpeertube.org/"},"peer tube","","video sharingPlatform"]
["https://www.mongodb.com/docs/manual/core/timeseries-collections/",{"$f":"HYPERLINK(T_public[[#This Row],[URL]])","v":"https://www.mongodb.com/docs/manual/core/timeseries-collections/"},"time series","","mongoDB"]
["https://www.youtube.com/",{"$f":"HYPERLINK(T_public[[#This Row],[URL]])","v":"https://www.youtube.com/"},"youtube","","video sharingPlatform"]
["https://www.bitchute.com/",{"$f":"HYPERLINK(T_public[[#This Row],[URL]])","v":"https://www.bitchute.com/"},"bitchute","","video sharingPlatform"]
["https://www.mongodb.com/docs/compass/current/embedded-shell/#embedded-mongodb-shell",{"$f":"HYPERLINK(T_public[[#This Row],[URL]])","v":"https://www.mongodb.com/docs/compass/current/embedded-shell/#embedded-mongodb-shell"},"embedded MongoDB Shell",""]
["https://web.dev",{"$f":"HYPERLINK(T_public[[#This Row],[URL]])","v":"https://web.dev"},"web.dev","web.dev ~google XMLHttpRequest,XMLHttpRequest2,File System Access API,","google web dev"]
["https://web.dev/articles/xhr2",{"$f":"HYPERLINK(T_public[[#This Row],[URL]])","v":"https://web.dev/articles/xhr2"},"xhr2",""]
["https://developer.mozilla.org/en-US/docs/Web/API/Service_Worker_API",{"$f":"HYPERLINK(T_public[[#This Row],[URL]])","v":"https://developer.mozilla.org/en-US/docs/Web/API/Service_Worker_API"},"service worker api",""]
["https://developer.mozilla.org/en-US/docs/Web/API/WorkerGlobalScope/fetch",{"$f":"HYPERLINK(T_public[[#This Row],[URL]])","v":"https://developer.mozilla.org/en-US/docs/Web/API/WorkerGlobalScope/fetch"},"worker global scope fetch",""]
["https://developer.mozilla.org/en-US/docs/Web/API/Web_Workers_API",{"$f":"HYPERLINK(T_public[[#This Row],[URL]])","v":"https://developer.mozilla.org/en-US/docs/Web/API/Web_Workers_API"},"web workers api",""]
["https://developer.mozilla.org/en-US/docs/Web/API/XMLHttpRequest",{"$f":"HYPERLINK(T_public[[#This Row],[URL]])","v":"https://developer.mozilla.org/en-US/docs/Web/API/XMLHttpRequest"},"xhr",""]
["https://en.wikipedia.org/wiki/Ajax_(programming)",{"$f":"HYPERLINK(T_public[[#This Row],[URL]])","v":"https://en.wikipedia.org/wiki/Ajax_(programming)"},"ajax html js","","wiki"]
["https://www.w3schools.com/php/php_ajax_intro.asp",{"$f":"HYPERLINK(T_public[[#This Row],[URL]])","v":"https://www.w3schools.com/php/php_ajax_intro.asp"},"ajax html js","","web w3schools"]
["https://www.htmlgoodies.com/",{"$f":"HYPERLINK(T_public[[#This Row],[URL]])","v":"https://www.htmlgoodies.com/"},"html goodies",""]
["https://www.w3schools.com/css/css3_flexbox.asp",{"$f":"HYPERLINK(T_public[[#This Row],[URL]])","v":"https://www.w3schools.com/css/css3_flexbox.asp"},"flexbox | css",""]
["https://www.w3schools.com/css/css3_flexbox_responsive.asp",{"$f":"HYPERLINK(T_public[[#This Row],[URL]])","v":"https://www.w3schools.com/css/css3_flexbox_responsive.asp"},"css flexbox responsive | css",""]
["https://www.w3schools.com/css/css3_mediaqueries.asp",{"$f":"HYPERLINK(T_public[[#This Row],[URL]])","v":"https://www.w3schools.com/css/css3_mediaqueries.asp"},"media queries | css",""]
["https://www.w3schools.com/css/css_rwd_intro.asp",{"$f":"HYPERLINK(T_public[[#This Row],[URL]])","v":"https://www.w3schools.com/css/css_rwd_intro.asp"},"rwd | responsive web design",""]
["https://www.w3schools.com/excel/excel_formulas.php",{"$f":"HYPERLINK(T_public[[#This Row],[URL]])","v":"https://www.w3schools.com/excel/excel_formulas.php"},"Excel Formulas",""]
["https://www.w3schools.com/html/html_entities.asp",{"$f":"HYPERLINK(T_public[[#This Row],[URL]])","v":"https://www.w3schools.com/html/html_entities.asp"},"HTML Entities",""]
["https://www.w3schools.com/asp/asp_ref_vbscript_functions.asp",{"$f":"HYPERLINK(T_public[[#This Row],[URL]])","v":"https://www.w3schools.com/asp/asp_ref_vbscript_functions.asp"},"VBScript Functions",""]
["https://www.w3schools.com/cybersecurity/cybersecurity_network_transport.php",{"$f":"HYPERLINK(T_public[[#This Row],[URL]])","v":"https://www.w3schools.com/cybersecurity/cybersecurity_network_transport.php"},"Cyber Security Network Transport",""]
["https://www.w3schools.com/python/numpy/default.asp",{"$f":"HYPERLINK(T_public[[#This Row],[URL]])","v":"https://www.w3schools.com/python/numpy/default.asp"},"NumPy Tutorial",""]
["https://www.w3schools.com/python/scipy/index.php",{"$f":"HYPERLINK(T_public[[#This Row],[URL]])","v":"https://www.w3schools.com/python/scipy/index.php"},"SciPy Tutorial",""]
["https://www.w3schools.com/python/pandas/default.asp",{"$f":"HYPERLINK(T_public[[#This Row],[URL]])","v":"https://www.w3schools.com/python/pandas/default.asp"},"Pandas Tutorial",""]
["https://www.w3schools.com/charsets/ref_html_ascii.asp",{"$f":"HYPERLINK(T_public[[#This Row],[URL]])","v":"https://www.w3schools.com/charsets/ref_html_ascii.asp"},"HTML ASCII Reference",""]
["https://www.w3schools.com/tags/ref_urlencode.ASP",{"$f":"HYPERLINK(T_public[[#This Row],[URL]])","v":"https://www.w3schools.com/tags/ref_urlencode.ASP"},"HTML URL Encoding Reference | wildcard","HTML URL Encoding Reference | wildcard %25 = % *wildcard"]
["https://www.w3schools.com/w3css/default.asp",{"$f":"HYPERLINK(T_public[[#This Row],[URL]])","v":"https://www.w3schools.com/w3css/default.asp"},"(web.dev) W3 CSS PURE JS","(web.dev) W3 CSS PURE JS A Quality Alternative to Bootstrap","web webdev"]
["https://www.w3schools.com/bootstrap5/index.php",{"$f":"HYPERLINK(T_public[[#This Row],[URL]])","v":"https://www.w3schools.com/bootstrap5/index.php"},"(web.dev) w3 | bootstrap 5","","web webdev"]
["https://images.google.com/",{"$f":"HYPERLINK(T_public[[#This Row],[URL]])","v":"https://images.google.com/"},"(web.dev) img.google.com","(web.dev) img.google.com icons transparent png","web webdev"]
["https://www.w3schools.com/js/default.asp",{"$f":"HYPERLINK(T_public[[#This Row],[URL]])","v":"https://www.w3schools.com/js/default.asp"},"(web.dev) javascript | w3","","web webdev"]
["https://www.w3schools.com/w3css/w3css_icons.asp",{"$f":"HYPERLINK(T_public[[#This Row],[URL]])","v":"https://www.w3schools.com/w3css/w3css_icons.asp"},"(web.dev) W3.CSS Icons","","web webdev"]
["https://www.w3schools.com/w3css/w3css_quotes.asp",{"$f":"HYPERLINK(T_public[[#This Row],[URL]])","v":"https://www.w3schools.com/w3css/w3css_quotes.asp"},"(web.dev) W3.CSS Quotes","","web webdev"]
["https://www.w3schools.com/tags/default.asp",{"$f":"HYPERLINK(T_public[[#This Row],[URL]])","v":"https://www.w3schools.com/tags/default.asp"},"(web.dev) HTML Elements Reference","","web webdev"]
["https://www.w3schools.com/tags/att_target.asp",{"$f":"HYPERLINK(T_public[[#This Row],[URL]])","v":"https://www.w3schools.com/tags/att_target.asp"},"(web.dev) HTML Target Attribute","","web webdev"]
["https://www.w3schools.com/html/default.asp",{"$f":"HYPERLINK(T_public[[#This Row],[URL]])","v":"https://www.w3schools.com/html/default.asp"},"(web.dev) HTML | W3","","web webdev"]
["https://developer.mozilla.org/en-US/docs/Web/CSS/:required",{"$f":"HYPERLINK(T_public[[#This Row],[URL]])","v":"https://developer.mozilla.org/en-US/docs/Web/CSS/:required"},"(web.dev) HTML FORMS + CSS pseudo Class :required| W3 INPUTS","(web.dev) HTML FORMS + CSS pseudo Class :required| W3 INPUTS (web.dev) HTML FORMS (web.dev) CSS FORMS (web.dev) W3 INPUTS (FORMS)","web webdev"]
["https://developer.chrome.com/docs/extensions/reference/contextMenus/",{"$f":"HYPERLINK(T_public[[#This Row],[URL]])","v":"https://developer.chrome.com/docs/extensions/reference/contextMenus/"},"chrome context menus dev api",""]
["https://codepen.io/your-work/",{"$f":"HYPERLINK(T_public[[#This Row],[URL]])","v":"https://codepen.io/your-work/"},"codepen gsap","codepen gsap gsap.to(\".star\", {x:750, duration:3}); x translation spanning 3 seconds"]
["https://codepen.io/pauljayson/embed/WOrJEP?height=316&theme-id=0&default-tab=result",{"$f":"HYPERLINK(T_public[[#This Row],[URL]])","v":"https://codepen.io/pauljayson/embed/WOrJEP?height=316&theme-id=0&default-tab=result"},"CodePen | Cards | Pure JS CSS3","","code cards pureJS"]
["https://codepen.io/jmegs/embed/opbyXg?height=316&theme-id=0&default-tab=result",{"$f":"HYPERLINK(T_public[[#This Row],[URL]])","v":"https://codepen.io/jmegs/embed/opbyXg?height=316&theme-id=0&default-tab=result"},"CodePen | Cards | Tutorial","","cards"]
["https://stackoverflow.com/questions/76231339/how-to-build-a-ul-li-as-card-with-complex-layout-example-included",{"$f":"HYPERLINK(T_public[[#This Row],[URL]])","v":"https://stackoverflow.com/questions/76231339/how-to-build-a-ul-li-as-card-with-complex-layout-example-included"},"Cards UL LI","~cp | Cards UL LI Codepen","cards"]
["https://www.youtube.com/watch?v=IoYcXLsBHnQ",{"$f":"HYPERLINK(T_public[[#This Row],[URL]])","v":"https://www.youtube.com/watch?v=IoYcXLsBHnQ"},"Building an Autonomous Agent with OpenAI and PowerShell: Extract and Summarize YouTube Transcripts",""]
["https://www.youtube.com/watch?v=9aNUbjzbCDg",{"$f":"HYPERLINK(T_public[[#This Row],[URL]])","v":"https://www.youtube.com/watch?v=9aNUbjzbCDg"},"How to Find Key Moments in YouTube Videos Using AI",""]
["https://www.notta.ai/en/landing-page/youtube-to-text?gad_source=1",{"$f":"HYPERLINK(T_public[[#This Row],[URL]])","v":"https://www.notta.ai/en/landing-page/youtube-to-text?gad_source=1"},"youtube to text with notta",""]
["https://courses.cleverprogrammer.com/poppy-ai-fb-1/?utm_source=meta&utm_medium=paid&utm_campaign=cold-t1-t2&utm_content=fb-ad-cold-naz-chatgpt-9&utm_id=120211140891310217&utm_term=120211140891320217&fbclid=PAZXh0bgNhZW0BMAABpprLFQLPtkRXfb-FOVFjFDZwvoCVEkmbzpDAYd9KIcEtRFvR8CQeKfuchg_aem_yrkKApSEzpm58SN49ELtPQ",{"$f":"HYPERLINK(T_public[[#This Row],[URL]])","v":{"$error":"#VALUE!"}},"poppy.ai clever programmer","poppy.ai clever programmer cleaver programmer","ai"]
["https://www.hedra.com/",{"$f":"HYPERLINK(T_public[[#This Row],[URL]])","v":"https://www.hedra.com/"},"face generation ai","face generation ai Video for everyone\nImagine worlds, characters and stories with complete creative control","ai"]
["https://notebooklm.google.com/",{"$f":"HYPERLINK(T_public[[#This Row],[URL]])","v":"https://notebooklm.google.com/"},"notebooklm ai","","ai"]
["https://courses.cleverprogrammer.com/poppy-ai-fb-1/?utm_source=meta&utm_medium=paid&utm_campaign=cold-t1-t2&utm_content=fb-ad-cold-naz-chatgpt-9&utm_id=120211140891310217&utm_term=120211140891320217&fbclid=PAZXh0bgNhZW0BMAABpprLFQLPtkRXfb-FOVFjFDZwvoCVEkmbzpDAYd9KIcEtRFvR8CQeKfuchg_aem_yrkKApSEzpm58SN49ELtPQ",{"$f":"HYPERLINK(T_public[[#This Row],[URL]])","v":{"$error":"#VALUE!"}},"poppy ai","","ai"]
["https://waymo.com/",{"$f":"HYPERLINK(T_public[[#This Row],[URL]])","v":"https://waymo.com/"},"self driving cars google map waymo.com",""]
["https://podcast.adobe.com/enhance",{"$f":"HYPERLINK(T_public[[#This Row],[URL]])","v":"https://podcast.adobe.com/enhance"},"adobe podcast enhance Beta | Limit 1GB file Max",""]
["https://gemini.google.com/app?sjid=16513303303631240808-NA",{"$f":"HYPERLINK(T_public[[#This Row],[URL]])","v":"https://gemini.google.com/app?sjid=16513303303631240808-NA"},"gemeni ai aka bard","","ai llm alphabet google"]
["https://chat.openai.com/",{"$f":"HYPERLINK(T_public[[#This Row],[URL]])","v":"https://chat.openai.com/"},"chatGPT",""]
["https://openai.com/",{"$f":"HYPERLINK(T_public[[#This Row],[URL]])","v":"https://openai.com/"},"open ai","","ai"]
["https://ergocanada.com/ergo/keyboards/list_of_characters_on_french_canadian_keyboard.html",{"$f":"HYPERLINK(T_public[[#This Row],[URL]])","v":"https://ergocanada.com/ergo/keyboards/list_of_characters_on_french_canadian_keyboard.html"},"List of Characters on a French Canadian Keyboard","","list keyboard"]
["",{"$f":"HYPERLINK(T_public[[#This Row],[URL]])","v":""},"List of Environment Variables in Windows Operating System","","list windows"]
["https://frame.io/c2c?videoId=m0cz7u8qlb#c2c-training",{"$f":"HYPERLINK(T_public[[#This Row],[URL]])","v":"https://frame.io/c2c?videoId=m0cz7u8qlb#c2c-training"},"C2C","C2C Camera To Cloud"]
["https://www.leonardo.com/en/home",{"$f":"HYPERLINK(T_public[[#This Row],[URL]])","v":"https://www.leonardo.com/en/home"},"leonardo spa","","electionFraud"]
["https://www.playphrase.me/#/search?language=en",{"$f":"HYPERLINK(T_public[[#This Row],[URL]])","v":"https://www.playphrase.me/#/search?language=en"},"playphrase.me | Evgeny Potapenko","playphrase.me ~video clips ~movie lines ~Evgeny Potapenko what politics say  ~Evgeny Potapenko patreon","clips video movies tv films"]
["https://www.whatpoliticssay.com/#/search?language=en",{"$f":"HYPERLINK(T_public[[#This Row],[URL]])","v":"https://www.whatpoliticssay.com/#/search?language=en"},"what politics say","","clips video"]
["https://www.capcut.com/tools/ai-video-upscaler",{"$f":"HYPERLINK(T_public[[#This Row],[URL]])","v":"https://www.capcut.com/tools/ai-video-upscaler"},"capcut free ai online video upscaler",""]
["https://www.capcut.com",{"$f":"HYPERLINK(T_public[[#This Row],[URL]])","v":"https://www.capcut.com"},"capcut free video editor",""]
["https://www.aescreens.com/guide/type#kbar",{"$f":"HYPERLINK(T_public[[#This Row],[URL]])","v":"https://www.aescreens.com/guide/type#kbar"},"aescreens type ae",""]
["https://mtmograph.com/en-ca/",{"$f":"HYPERLINK(T_public[[#This Row],[URL]])","v":"https://mtmograph.com/en-ca/"},"mtmograph | ae plugin creator",""]
["https://www.youtube.com/@ukramedia",{"$f":"HYPERLINK(T_public[[#This Row],[URL]])","v":"https://www.youtube.com/@ukramedia"},"ukramedia yt","","youtube channel"]
["https://ukramedia.com/",{"$f":"HYPERLINK(T_public[[#This Row],[URL]])","v":"https://ukramedia.com/"},"ukramedia.com",""]
["https://www.facebook.com/groups/132315780624536",{"$f":"HYPERLINK(T_public[[#This Row],[URL]])","v":"https://www.facebook.com/groups/132315780624536"},"ukramedia fb mentoring",""]
["https://aereference.com/expressions",{"$f":"HYPERLINK(T_public[[#This Row],[URL]])","v":"https://aereference.com/expressions"},"aereference expressions",""]
["https://ukramedia.com/courses/learn-after-effects-expressions-1-1/",{"$f":"HYPERLINK(T_public[[#This Row],[URL]])","v":"https://ukramedia.com/courses/learn-after-effects-expressions-1-1/"},"ukramedia expressions course",""]
["https://developer.adobe.com/photoshop/uxp/2022/guides/devtool/",{"$f":"HYPERLINK(T_public[[#This Row],[URL]])","v":"https://developer.adobe.com/photoshop/uxp/2022/guides/devtool/"},"uxp Adobe UXP Developer Tool",""]
["https://rumble.com/",{"$f":"HYPERLINK(T_public[[#This Row],[URL]])","v":"https://rumble.com/"},"rumble","","video sharingPlatform"]
["https://developer.adobe.com/developer-distribution/creative-cloud/docs/guides/plugin_id/",{"$f":"HYPERLINK(T_public[[#This Row],[URL]])","v":"https://developer.adobe.com/developer-distribution/creative-cloud/docs/guides/plugin_id/"},"uxp Get a Plugin ID",""]
["https://developer.adobe.com/photoshop/uxp/2022/guides/distribution/",{"$f":"HYPERLINK(T_public[[#This Row],[URL]])","v":"https://developer.adobe.com/photoshop/uxp/2022/guides/distribution/"},"uxp Sharing Your Plugin",""]
["https://developer.adobe.com/photoshop/uxp/2022/guides/distribution/distribution-options/",{"$f":"HYPERLINK(T_public[[#This Row],[URL]])","v":"https://developer.adobe.com/photoshop/uxp/2022/guides/distribution/distribution-options/"},"uxp Distribution Options",""]
["https://developer.adobe.com/photoshop/uxp/2022/guides/uxp_for_you/uxp_for_web_devs/",{"$f":"HYPERLINK(T_public[[#This Row],[URL]])","v":"https://developer.adobe.com/photoshop/uxp/2022/guides/uxp_for_you/uxp_for_web_devs/"},"UXP for Web Developers",""]
["https://superluminal.tv/presets-gallery",{"$f":"HYPERLINK(T_public[[#This Row],[URL]])","v":"https://superluminal.tv/presets-gallery"},"Superluminal | Stardust Presets",""]
["https://www.youtube.com/c/Superluminal",{"$f":"HYPERLINK(T_public[[#This Row],[URL]])","v":"https://www.youtube.com/c/Superluminal"},"Superluminal | youtube.com/c/Superluminal",""]
["https://aescripts.com",{"$f":"HYPERLINK(T_public[[#This Row],[URL]])","v":"https://aescripts.com"},"aescripts","","ae scripts"]
["https://aescripts.com/helpdesk/index/customer/",{"$f":"HYPERLINK(T_public[[#This Row],[URL]])","v":"https://aescripts.com/helpdesk/index/customer/"},"aescripts support tickets",""]
["https://aescripts.com/downloadable/customer/products/?dir=asc&limit=50&order=product_name&p=1",{"$f":"HYPERLINK(T_public[[#This Row],[URL]])","v":"https://aescripts.com/downloadable/customer/products/?dir=asc&limit=50&order=product_name&p=1"},"aescripts downloads & licenses by name 50 asc",""]
["https://www.blog.motionisland.com/how-to-work-with-the-after-effects-repeater/#.ZFjkqHbMKHs",{"$f":"HYPERLINK(T_public[[#This Row],[URL]])","v":"https://www.blog.motionisland.com/how-to-work-with-the-after-effects-repeater/#.ZFjkqHbMKHs"},"Motion Island | How to work with the After Effects Repeater","","ae scripts"]
["https://shop.motionisland.com/collections/lower-third",{"$f":"HYPERLINK(T_public[[#This Row],[URL]])","v":"https://shop.motionisland.com/collections/lower-third"},"Motion Island | AFTER EFFECTS LOWER THIRDS TEMPLATES","","ae scripts"]
["https://ae-scripting.docsforadobe.dev/",{"$f":"HYPERLINK(T_public[[#This Row],[URL]])","v":"https://ae-scripting.docsforadobe.dev/"},"After Effects Scripting Guide","","ae scripts guide"]
["https://ae-scripting.docsforadobe.dev/introduction/overview.html#introduction-to-scripting-in-after-effects",{"$f":"HYPERLINK(T_public[[#This Row],[URL]])","v":"https://ae-scripting.docsforadobe.dev/introduction/overview.html#introduction-to-scripting-in-after-effects"},"",""]
["https://www.ordinaryfolk.co/play",{"$f":"HYPERLINK(T_public[[#This Row],[URL]])","v":"https://www.ordinaryfolk.co/play"},"ordinary folk | play",""]
["https://aereference.com/resources",{"$f":"HYPERLINK(T_public[[#This Row],[URL]])","v":"https://aereference.com/resources"},"Resources for Motion Designers",""]
["https://aereference.com/",{"$f":"HYPERLINK(T_public[[#This Row],[URL]])","v":"https://aereference.com/"},"AE Reference",""]
["https://aereference.com/goods",{"$f":"HYPERLINK(T_public[[#This Row],[URL]])","v":"https://aereference.com/goods"},"AE Tools,Project Files & Presets",""]
["https://helpx.adobe.com/after-effects/using/scripts.html",{"$f":"HYPERLINK(T_public[[#This Row],[URL]])","v":"https://helpx.adobe.com/after-effects/using/scripts.html"},"AE Scripts",""]
["https://www.blog.motionisland.com/",{"$f":"HYPERLINK(T_public[[#This Row],[URL]])","v":"https://www.blog.motionisland.com/"},"MotionIsland | Tutorials",""]
["https://blog.motionisland.com/after-effects-transitions-presets/#.ZFjkZXbMKHs",{"$f":"HYPERLINK(T_public[[#This Row],[URL]])","v":"https://blog.motionisland.com/after-effects-transitions-presets/#.ZFjkZXbMKHs"},"After Effects Transition Presets Preview Gallery",""]
["https://www.blog.motionisland.com/after-effects-expressions-list-and-examples/#.ZFjkq3bMKHs",{"$f":"HYPERLINK(T_public[[#This Row],[URL]])","v":"https://www.blog.motionisland.com/after-effects-expressions-list-and-examples/#.ZFjkq3bMKHs"},"After Effects Expression Code List and Example","","list"]
["https://www.blog.motionisland.com/after-effects-presets-text-animation/#.ZFjk53bMKHs",{"$f":"HYPERLINK(T_public[[#This Row],[URL]])","v":"https://www.blog.motionisland.com/after-effects-presets-text-animation/#.ZFjk53bMKHs"},"After Effects Text Animation Presets Preview Gallery",""]
["https://chatgpt.com/c/41806a54-edc8-415e-8cc9-8417d5a21f8c",{"$f":"HYPERLINK(T_public[[#This Row],[URL]])","v":"https://chatgpt.com/c/41806a54-edc8-415e-8cc9-8417d5a21f8c"},"principles of modern keyword text search engines within a specific app or platform. what would a new developper need to know to implement a rigorous text search in his website or application. Are there search libraries that he can leverage. Known approaches? best practices and ressources to guide him and avoid reinventing the wheel?","principles of modern keyword text search engines within a specific app or platform. what would a new developper need to know to implement a rigorous text search in his website or application. Are there search libraries that he can leverage. Known approaches? best practices and ressources to guide him and avoid reinventing the wheel? Implementing a rigorous text search in a website or application involves several principles, known approaches, and best practices. Here’s a comprehensive guide for a new developer: Principles of Modern Keyword Text Search Engines Indexing: Inverted Index: Core data structure where each word points to its locations in the documents. Tokenization: Splitting text into tokens (words, phrases). Normalization: Standardizing tokens (e.g., converting to lowercase, removing punctuation). Query Processing: Parsing: Understanding and breaking down the query. Normalization: Applying the same normalization as done during indexing. Expansion: Handling synonyms, stemming, and lemmatization to match different forms of a word. Ranking: Relevance Scoring: Algorithms like TF-IDF (Term Frequency-Inverse Document Frequency) or BM25 to score document relevance to the query. Sorting: Ranking results based on their relevance scores. Optimization: Caching: Storing frequently accessed search results. Sharding: Distributing the index across multiple servers to handle large datasets. Concurrency: Handling multiple search requests efficiently. Search Libraries to Leverage Elasticsearch: A distributed, RESTful search and analytics engine. Highly scalable. Supports complex queries and real-time search. Extensive community support and documentation. Apache Solr: An open-source search platform built on Apache Lucene. Highly customizable. Supports faceted search and real-time indexing. Well-documented and widely used. MeiliSearch: An open-source, easy-to-use search engine. Fast and efficient. Simple setup and configuration. Suitable for smaller to medium-sized applications. Algolia: A hosted search API that provides instant search as a service. Easy to integrate. Offers advanced features like typo tolerance, geosearch, and personalization. Paid service with a free tier. Typesense: An open-source, typo-tolerant search engine optimized for instant search. Real-time updates. Easy to deploy and maintain. Good performance for small to medium datasets. Known Approaches Full-Text Search: Indexing and searching the entire text of the documents. Boolean Search: Using AND, OR, NOT operators to combine keywords. Fuzzy Search: Handling typos and misspellings. Phrase Search: Searching for exact phrases within the text. Faceted Search: Filtering search results based on predefined categories. Best Practices Indexing Strategy: Choose the right fields to index to balance performance and storage. Relevance Tuning: Adjust ranking algorithms to match the application's specific needs. User Experience: Provide features like autocomplete, suggestions, and typo correction. Performance Monitoring: Regularly monitor and optimize search performance. Security: Ensure the search system is secure from injection attacks and unauthorized access. Resources Documentation: Elasticsearch Documentation Apache Solr Documentation MeiliSearch Documentation Algolia Documentation Typesense Documentation Books: \"Elasticsearch: The Definitive Guide\" by Clinton Gormley and Zachary Tong. \"Relevant Search: With Applications for Solr and Elasticsearch\" by Doug Turnbull and John Berryman. Courses and Tutorials: Coursera: Search Engine Development Udemy: Elasticsearch 7 and the Elastic Stack Pluralsight: Getting Started with Apache Solr By leveraging these libraries, approaches, and resources, a developer can implement a robust and efficient text search engine within their website or application."]
["https://tinkerwell.app/",{"$f":"HYPERLINK(T_public[[#This Row],[URL]])","v":"https://tinkerwell.app/"},"tinkerwell the php scratchpad",""]
["https://tableplus.com/windows",{"$f":"HYPERLINK(T_public[[#This Row],[URL]])","v":"https://tableplus.com/windows"},"table plus database [similar to phpmyadmin or laragon]",""]
["https://html.com/anchors-links/",{"$f":"HYPERLINK(T_public[[#This Row],[URL]])","v":"https://html.com/anchors-links/"},"HTML | The Most Important Anchor Attributes","HTML | The Most Important Anchor Attributes The Most Important Anchor Attributes There are three anchor attributes you need to know to create functional hyperlinks. These attributes are href, target, and download."]
["#",{"$f":"HYPERLINK(T_public[[#This Row],[URL]])","v":"#"},"Select Windows Explorer Address Bar","Select Windows Explorer Address Bar ALT + D"]
["https://banned.video%20target=",{"$f":"HYPERLINK(T_public[[#This Row],[URL]])","v":"https://banned.video%20target="},"banned.video","","video sharingPlatform"]
["https://odysee.com/",{"$f":"HYPERLINK(T_public[[#This Row],[URL]])","v":"https://odysee.com/"},"odysee","","video sharingPlatform"]
["https://fineuploader.com/demos",{"$f":"HYPERLINK(T_public[[#This Row],[URL]])","v":"https://fineuploader.com/demos"},"Fine Uploader | JS",""]
["https://www.cfr.org/backgrounder/what-iran-nuclear-deal",{"$f":"HYPERLINK(T_public[[#This Row],[URL]])","v":"https://www.cfr.org/backgrounder/what-iran-nuclear-deal"},"Iran nuclear deal : jcpoa","","acronym"]
["https://www.toptal.com/designers/htmlarrows/",{"$f":"HYPERLINK(T_public[[#This Row],[URL]])","v":"https://www.toptal.com/designers/htmlarrows/"},"html arrows","html arrows HEX CODE,HTML CODE,HTML ENTITY"]
["https://laravel.com/docs/10.x",{"$f":"HYPERLINK(T_public[[#This Row],[URL]])","v":"https://laravel.com/docs/10.x"},"laravel docs",""]
["https://laracasts.com/",{"$f":"HYPERLINK(T_public[[#This Row],[URL]])","v":"https://laracasts.com/"},"laracasts [laravel]",""]
["https://laravel-news.com/",{"$f":"HYPERLINK(T_public[[#This Row],[URL]])","v":"https://laravel-news.com/"},"laravel news",""]
["https://www.webbyawards.com/",{"$f":"HYPERLINK(T_public[[#This Row],[URL]])","v":"https://www.webbyawards.com/"},"webby awards",""]
["https://www.whatismybrowser.com/",{"$f":"HYPERLINK(T_public[[#This Row],[URL]])","v":"https://www.whatismybrowser.com/"},"whatismybrowser.com",""]
["https://schema.org/VideoObject",{"$f":"HYPERLINK(T_public[[#This Row],[URL]])","v":"https://schema.org/VideoObject"},"schema VideoObject","schema VideoObject What HTTP Headers is my browser sending?"]
["https://www.w3schools.io/file/markdown-links/",{"$f":"HYPERLINK(T_public[[#This Row],[URL]])","v":"https://www.w3schools.io/file/markdown-links/"},"markdown links","markdown links [myexample]: /file/markdown-emphasis \"markdown emphasis tutorials\""]
["https://bookdown.org/yihui/rmarkdown/",{"$f":"HYPERLINK(T_public[[#This Row],[URL]])","v":"https://bookdown.org/yihui/rmarkdown/"},"bookdown markdown r",""]
["https://uses.tech/",{"$f":"HYPERLINK(T_public[[#This Row],[URL]])","v":"https://uses.tech/"},"/uses tech",""]
["https://htmx.org/",{"$f":"HYPERLINK(T_public[[#This Row],[URL]])","v":"https://htmx.org/"},"(web.dev) htmx","","web webdev"]
["https://fontawesome.com/v4/icons/",{"$f":"HYPERLINK(T_public[[#This Row],[URL]])","v":"https://fontawesome.com/v4/icons/"},"(web.dev) font awesome 4.7","","web webdev"]
["https://fonts.google.com/icons",{"$f":"HYPERLINK(T_public[[#This Row],[URL]])","v":"https://fonts.google.com/icons"},"(web.dev) Google Material Symbols","","web webdev"]
["https://developer.mozilla.org/en-US/docs/Web/HTML/Element/dt",{"$f":"HYPERLINK(T_public[[#This Row],[URL]])","v":"https://developer.mozilla.org/en-US/docs/Web/HTML/Element/dt"},"(web.dev) MDN web docs","","web webdev"]
["https://greensock.com/",{"$f":"HYPERLINK(T_public[[#This Row],[URL]])","v":"https://greensock.com/"},"(web.dev) GreenSock","","web webdev"]
["https://www.rfc-editor.org/rfc/rfc1180",{"$f":"HYPERLINK(T_public[[#This Row],[URL]])","v":"https://www.rfc-editor.org/rfc/rfc1180"},"(web.dev) RFC Editor | A TCP/IP Tutorial","","web webdev"]
["https://validator.w3.org/",{"$f":"HYPERLINK(T_public[[#This Row],[URL]])","v":"https://validator.w3.org/"},"(web.dev) W3C Markup Validation Service","","web webdev"]
["https://symbl.cc/en/",{"$f":"HYPERLINK(T_public[[#This Row],[URL]])","v":"https://symbl.cc/en/"},"(web.dev) Symbols | Symbl.cc","","web webdev"]
["https://htmldom.dev/",{"$f":"HYPERLINK(T_public[[#This Row],[URL]])","v":"https://htmldom.dev/"},"(web.dev) htmldom.dev","","web webdev"]
["https://htmldom.dev/create-resizable-split-views/",{"$f":"HYPERLINK(T_public[[#This Row],[URL]])","v":"https://htmldom.dev/create-resizable-split-views/"},"(web.dev) Create resizable split views","","web webdev"]
["https://ui.dev/",{"$f":"HYPERLINK(T_public[[#This Row],[URL]])","v":"https://ui.dev/"},"(web.dev) ui.dev","","web webdev"]
["https://blot.im/",{"$f":"HYPERLINK(T_public[[#This Row],[URL]])","v":"https://blot.im/"},"(web.dev) blot.im .md","","web webdev"]
["https://www.dropbox.com/home/Apps/Blot",{"$f":"HYPERLINK(T_public[[#This Row],[URL]])","v":"https://www.dropbox.com/home/Apps/Blot"},"dropbox blot app files",""]
["https://jekyllrb.com/",{"$f":"HYPERLINK(T_public[[#This Row],[URL]])","v":"https://jekyllrb.com/"},"(web.dev) jekyll .md","","web webdev"]
["https://obsidian.md/",{"$f":"HYPERLINK(T_public[[#This Row],[URL]])","v":"https://obsidian.md/"},"(web.dev) Obsidian.md Notes","","web webdev"]
["https://laravel.com/",{"$f":"HYPERLINK(T_public[[#This Row],[URL]])","v":"https://laravel.com/"},"laravel",""]
["https://prose.io/",{"$f":"HYPERLINK(T_public[[#This Row],[URL]])","v":"https://prose.io/"},"prose.io",""]
["https://opengeekslab.com/blog/payment-gateway/",{"$f":"HYPERLINK(T_public[[#This Row],[URL]])","v":"https://opengeekslab.com/blog/payment-gateway/"},"payment gateway",""]
["https://kivy.org/doc/stable/gettingstarted/first_app.html",{"$f":"HYPERLINK(T_public[[#This Row],[URL]])","v":"https://kivy.org/doc/stable/gettingstarted/first_app.html"},"python app framework","","python app dev framework"]
["https://www.convex.dev/auth",{"$f":"HYPERLINK(T_public[[#This Row],[URL]])","v":"https://www.convex.dev/auth"},"convex auth",""]
["https://frontendmasters.com/blog/youtube-embeds-are-bananas-heavy-and-its-fixable/",{"$f":"HYPERLINK(T_public[[#This Row],[URL]])","v":"https://frontendmasters.com/blog/youtube-embeds-are-bananas-heavy-and-its-fixable/"},"lite-youtube-embed",""]
["https://americafirstpolicy.com/",{"$f":"HYPERLINK(T_public[[#This Row],[URL]])","v":"https://americafirstpolicy.com/"},"AFPI america first policy","","thinkTank trump"]
["https://www.w3.org/TR/webvtt1/",{"$f":"HYPERLINK(T_public[[#This Row],[URL]])","v":"https://www.w3.org/TR/webvtt1/"},"Web Video Text Tracks Format (WebVTT)","","web w3org"]
["https://accessible.canada.ca/",{"$f":"HYPERLINK(T_public[[#This Row],[URL]])","v":"https://accessible.canada.ca/"},"Accessibility Standards Canada","","canada"]
["https://htmx.org/",{"$f":"HYPERLINK(T_public[[#This Row],[URL]])","v":"https://htmx.org/"},"htmx",""]
["https://fontawesome.com/v4/icons/",{"$f":"HYPERLINK(T_public[[#This Row],[URL]])","v":"https://fontawesome.com/v4/icons/"},"font awesome 4.7","","web font"]
["https://fonts.google.com/icons",{"$f":"HYPERLINK(T_public[[#This Row],[URL]])","v":"https://fonts.google.com/icons"},"Google Material Symbols","","web google material"]
["https://developer.mozilla.org/en-US/docs/Web/HTML/Element/dt",{"$f":"HYPERLINK(T_public[[#This Row],[URL]])","v":"https://developer.mozilla.org/en-US/docs/Web/HTML/Element/dt"},"MDN web docs","","web"]
["https://greensock.com/",{"$f":"HYPERLINK(T_public[[#This Row],[URL]])","v":"https://greensock.com/"},"GreenSock",""]
["https://www.rfc-editor.org/rfc/rfc1180",{"$f":"HYPERLINK(T_public[[#This Row],[URL]])","v":"https://www.rfc-editor.org/rfc/rfc1180"},"RFC Editor | A TCP/IP Tutorial",""]
["https://validator.w3.org/",{"$f":"HYPERLINK(T_public[[#This Row],[URL]])","v":"https://validator.w3.org/"},"W3C Markup Validation Service",""]
["https://symbl.cc/en/",{"$f":"HYPERLINK(T_public[[#This Row],[URL]])","v":"https://symbl.cc/en/"},"Symbols | Symbl.cc",""]
["https://htmldom.dev/",{"$f":"HYPERLINK(T_public[[#This Row],[URL]])","v":"https://htmldom.dev/"},"htmldom.dev",""]
["https://htmldom.dev/create-resizable-split-views/",{"$f":"HYPERLINK(T_public[[#This Row],[URL]])","v":"https://htmldom.dev/create-resizable-split-views/"},"Create resizable split views",""]
["https://ui.dev/",{"$f":"HYPERLINK(T_public[[#This Row],[URL]])","v":"https://ui.dev/"},"ui.dev",""]
["https://www.rgbtohex.net/",{"$f":"HYPERLINK(T_public[[#This Row],[URL]])","v":"https://www.rgbtohex.net/"},"rgb to hex",""]
["https://www.rgbtohex.net/hex-to-rgb/",{"$f":"HYPERLINK(T_public[[#This Row],[URL]])","v":"https://www.rgbtohex.net/hex-to-rgb/"},"hex to rgb",""]
["https://www.google.com/search?q=rgb+to+hex&rlz=1C1GCEA_enCA1061CA1062&oq=rgb+to+hex&gs_lcrp=EgZjaHJvbWUyBggAEEUYOTIHCAEQABiABDIHCAIQABiABDIHCAMQABiABDIHCAQQABiABDIHCAUQABiABDIHCAYQABiABDIHCAcQABiABDIHCAgQABiABDIHCAkQABiABNIBBzgyMWowajeoAgCwAgA&sourceid=chrome&ie=UTF-8#cobssid=s",{"$f":"HYPERLINK(T_public[[#This Row],[URL]])","v":{"$error":"#VALUE!"}},"google search result: rgb to hex","","color rgb hex"]
["https://docs.google.com/spreadsheets/u/0/",{"$f":"HYPERLINK(T_public[[#This Row],[URL]])","v":"https://docs.google.com/spreadsheets/u/0/"},"google sheets",""]
["https://www.md5hashgenerator.com/",{"$f":"HYPERLINK(T_public[[#This Row],[URL]])","v":"https://www.md5hashgenerator.com/"},"MD5 Hash Generator | generator",""]
["https://onlinehashtools.com/generate-random-md5-hash",{"$f":"HYPERLINK(T_public[[#This Row],[URL]])","v":"https://onlinehashtools.com/generate-random-md5-hash"},"online hash tools onlinehashtools | generator",""]
["https://www.markdownguide.org/",{"$f":"HYPERLINK(T_public[[#This Row],[URL]])","v":"https://www.markdownguide.org/"},"(web.dev) Markdown .md","","web webdev"]
["https://www.markdownguide.org/getting-started/",{"$f":"HYPERLINK(T_public[[#This Row],[URL]])","v":"https://www.markdownguide.org/getting-started/"},"markdown getting started",""]
["https://www.markdownguide.org/basic-syntax",{"$f":"HYPERLINK(T_public[[#This Row],[URL]])","v":"https://www.markdownguide.org/basic-syntax"},"md markdown basic syntax",""]
["https://www.markdownguide.org/cheat-sheet/",{"$f":"HYPERLINK(T_public[[#This Row],[URL]])","v":"https://www.markdownguide.org/cheat-sheet/"},"md markdown cheat sheet",""]
["https://www.markdownguide.org/extended-syntax/",{"$f":"HYPERLINK(T_public[[#This Row],[URL]])","v":"https://www.markdownguide.org/extended-syntax/"},"md markdown Extended Syntax",""]
["https://www.markdownguide.org/hacks/",{"$f":"HYPERLINK(T_public[[#This Row],[URL]])","v":"https://www.markdownguide.org/hacks/"},"d markdown hacks",""]
["https://www.markdownguide.org/tools/",{"$f":"HYPERLINK(T_public[[#This Row],[URL]])","v":"https://www.markdownguide.org/tools/"},"md markdown tools",""]
["https://dillinger.io/",{"$f":"HYPERLINK(T_public[[#This Row],[URL]])","v":"https://dillinger.io/"},"(web.dev) dillinger markdown .md","","web webdev"]
["https://www.latex-project.org/about/",{"$f":"HYPERLINK(T_public[[#This Row],[URL]])","v":"https://www.latex-project.org/about/"},"LATEX",""]
["https://pauillac.inria.fr/~maranget/hevea/index.html",{"$f":"HYPERLINK(T_public[[#This Row],[URL]])","v":"https://pauillac.inria.fr/~maranget/hevea/index.html"},"HEVEA",""]
["https://www.project2025.org/",{"$f":"HYPERLINK(T_public[[#This Row],[URL]])","v":"https://www.project2025.org/"},"project 2025","","thinkTank trump heritage heritageFoundation"]
["https://racket-lang.org/",{"$f":"HYPERLINK(T_public[[#This Row],[URL]])","v":"https://racket-lang.org/"},"Racket |",""]
["wikilinks%20site:blot.im",{"$f":"HYPERLINK(T_public[[#This Row],[URL]])","v":"wikilinks%20site:blot.im"},"google: site:blot.im wikilinks",""]
["https://blot.im/how/posts/wikilinks",{"$f":"HYPERLINK(T_public[[#This Row],[URL]])","v":"https://blot.im/how/posts/wikilinks"},"support blot.im wikilinks",""]
["https://mustache.github.io/mustache.1.html",{"$f":"HYPERLINK(T_public[[#This Row],[URL]])","v":"https://mustache.github.io/mustache.1.html"},"support: blot.im mustache",""]
["https://blot.im/questions/1169",{"$f":"HYPERLINK(T_public[[#This Row],[URL]])","v":"https://blot.im/questions/1169"},"support: blot.imwikilink text default without pipe",""]
["https://blot.im/questions/249",{"$f":"HYPERLINK(T_public[[#This Row],[URL]])","v":"https://blot.im/questions/249"},"support: blot.im list of tags","","list"]
["https://blot.im/questions/28",{"$f":"HYPERLINK(T_public[[#This Row],[URL]])","v":"https://blot.im/questions/28"},"support: blot.im exclude posts with specific tags",""]
["https://blot.im/templates/developers/tutorials/mustache",{"$f":"HYPERLINK(T_public[[#This Row],[URL]])","v":"https://blot.im/templates/developers/tutorials/mustache"},"tutorial: blot.im mustache",""]
["https://blot.im/questions/1760",{"$f":"HYPERLINK(T_public[[#This Row],[URL]])","v":"https://blot.im/questions/1760"},"twitter cards and open graph meta tags for blot.im",""]
["https://blot.im/questions/117",{"$f":"HYPERLINK(T_public[[#This Row],[URL]])","v":"https://blot.im/questions/117"},"teaser {{more}} blot.im",""]
["https://status.blot.im/",{"$f":"HYPERLINK(T_public[[#This Row],[URL]])","v":"https://status.blot.im/"},"blot.im status",""]
["https://en.wikipedia.org/wiki/USB_video_device_class",{"$f":"HYPERLINK(T_public[[#This Row],[URL]])","v":"https://en.wikipedia.org/wiki/USB_video_device_class"},"UVC : USB video device class","UVC : USB video device class List of USB video class devices"]
["https://www.apple.com/ios/ios-18/",{"$f":"HYPERLINK(T_public[[#This Row],[URL]])","v":"https://www.apple.com/ios/ios-18/"},"iOS 18",""]
["https://www.pugetsystems.com/solutions/video-editing-workstations/adobe-after-effects/",{"$f":"HYPERLINK(T_public[[#This Row],[URL]])","v":"https://www.pugetsystems.com/solutions/video-editing-workstations/adobe-after-effects/"},"puget after effects",""]
["https://www.pugetsystems.com/solutions/video-editing-workstations/adobe-premiere-pro/",{"$f":"HYPERLINK(T_public[[#This Row],[URL]])","v":"https://www.pugetsystems.com/solutions/video-editing-workstations/adobe-premiere-pro/"},"puget premiere",""]
["https://www.pugetsystems.com/solutions/video-editing-workstations/davinci-resolve/",{"$f":"HYPERLINK(T_public[[#This Row],[URL]])","v":"https://www.pugetsystems.com/solutions/video-editing-workstations/davinci-resolve/"},"puget davinci resolve",""]
["https://www.blackmagicdesign.com/ca/products/davinciresolve/studio",{"$f":"HYPERLINK(T_public[[#This Row],[URL]])","v":"https://www.blackmagicdesign.com/ca/products/davinciresolve/studio"},"davinci resolve studio download","davinci resolve studio download direct"]
["https://www.youtube.com/@NetNinja",{"$f":"HYPERLINK(T_public[[#This Row],[URL]])","v":"https://www.youtube.com/@NetNinja"},"react tutorials net ninja","react tutorials net ninja shaun jp react"]
["https://www.youtube.com/playlist?list=PL4cUxeGkcC9hcnIeryurNMMcGBHp7AYlP",{"$f":"HYPERLINK(T_public[[#This Row],[URL]])","v":"https://www.youtube.com/playlist?list=PL4cUxeGkcC9hcnIeryurNMMcGBHp7AYlP"},"chakra ui playlist by netninja shaun jp","","playlist"]
["https://support.microsoft.com/en-us/windows/windows-speech-recognition-commands-9d25ef36-994d-f367-a81a-a326160128c7",{"$f":"HYPERLINK(T_public[[#This Row],[URL]])","v":"https://support.microsoft.com/en-us/windows/windows-speech-recognition-commands-9d25ef36-994d-f367-a81a-a326160128c7"},"Windows Speech Recognition commands","Windows Speech Recognition commands The Speech Reference Card is a list of commands the computer can respond to.","windows speech recognition command"]
["",{"$f":"HYPERLINK(T_public[[#This Row],[URL]])","v":""},"SPIEF : St. Petersburg International Economic Forum ~ FÉSP : Forum économique international de Saint-Pétersbourg","","economy forum bilingue bilingual"]
["https://creativecloud.adobe.com/search?query=",{"$f":"HYPERLINK(T_public[[#This Row],[URL]])","v":"https://creativecloud.adobe.com/search?query="},"creative cloud support query string","creative cloud support query string https://creativecloud.adobe.com/search?query="]
["https://www.adobe.com/ca/products/premiere.html",{"$f":"HYPERLINK(T_public[[#This Row],[URL]])","v":"https://www.adobe.com/ca/products/premiere.html"},"premiere pro basic page from adobe",""]
["https://help.twitter.com/en/using-x/spaces",{"$f":"HYPERLINK(T_public[[#This Row],[URL]])","v":"https://help.twitter.com/en/using-x/spaces"},"help using twitter spaces","help using twitter spaces How to Setup Twitter Spaces on Desktop | Geeken BlueStacks 10 | PC *version 4 on Mac"]
["https://forums.matthewbutterick.com/c/typesetting/6",{"$f":"HYPERLINK(T_public[[#This Row],[URL]])","v":"https://forums.matthewbutterick.com/c/typesetting/6"},"techSupport Pollen support",""]
["https://commento.io/pricing",{"$f":"HYPERLINK(T_public[[#This Row],[URL]])","v":"https://commento.io/pricing"},"commento.io comments (paid offer)",""]
["https://whc.ca/canadian-web-hosting",{"$f":"HYPERLINK(T_public[[#This Row],[URL]])","v":"https://whc.ca/canadian-web-hosting"},"Web host whc.ca","","web host canada"]
["https://twitter.com/search-advanced",{"$f":"HYPERLINK(T_public[[#This Row],[URL]])","v":"https://twitter.com/search-advanced"},"search-advanced-search | x.com | twitter","search-advanced-search ~x.com ~twitter (from:username) until:2024-03-10 since:2024-03-01","sm twitter x advanced search se"]
["https://www.lipsum.com/",{"$f":"HYPERLINK(T_public[[#This Row],[URL]])","v":"https://www.lipsum.com/"},"lorem ipsum",""]
["https://www.tablesgenerator.com/markdown_tables",{"$f":"HYPERLINK(T_public[[#This Row],[URL]])","v":"https://www.tablesgenerator.com/markdown_tables"},"md markdown table generator",""]
["https://anywaydata.com/",{"$f":"HYPERLINK(T_public[[#This Row],[URL]])","v":"https://anywaydata.com/"},"anyway data table editor & generator",""]
["https://ss64.com/ascii.html",{"$f":"HYPERLINK(T_public[[#This Row],[URL]])","v":"https://ss64.com/ascii.html"},"ascii",""]
["https://github.com/SanderRonde/CustomRightClickMenu/wiki",{"$f":"HYPERLINK(T_public[[#This Row],[URL]])","v":"https://github.com/SanderRonde/CustomRightClickMenu/wiki"},"custom Right Click menu | wiki","custom Right Click menu | wiki Dragging items into a menu"]
["",{"$f":"HYPERLINK(T_public[[#This Row],[URL]])","v":""},"mpc play xTHISxPATHxFILENAMEx Fullscreen : mpc xTHISxPATHxFILENAMEx /fullscreen","mpc play xTHISxPATHxFILENAMEx Fullscreen : mpc xTHISxPATHxFILENAMEx /fullscreen ||||| ~mpc Utilisation : mpc-hc.exe \"chemin du fichier\" [options]\n\"chemin du fichier\"     Fichier principal ou répertoire à charger (jokers\n                autorisés, \"-\" désigne l'entrée standard)\n/dub \"fichier audio\"    Charge un fichier audio supplémentaire\n/dubdelay \"fichier\"     Charge un fichier audio avec décalage de XXms\n                (si le nom contient \"...DELAY XXms...\")\n/d3dfs          Lance l'affichage en mode plein écran D3D (réduit le \"tearing\")\n/sub \"fichier ST\"       Charge un fichier de sous-titres\n/filter \"nom\"   Charge un filtre DirectShow à partir d'une DLL\n                (jokers autorisés)\n/dvd            Démarre en mode DVD (il est possible de fournir le\n                nom du répertoire)\n/dvdpos T#C     Démarre la lecture du titre T, à partir du chapitre C\n/dvdpos T#P     Démarrer la lecture du titre T, à partir de la position P (hh:mm:ss)\n/cd             Charge toutes les pistes d'un CD audio ou d'un (S)VCD\n                (il est possible de fournir le chemin du lecteur)\n/device         Ouvre le périphérique de capture vidéo par défaut\n/open           Ouvre le fichier et met MPC-HC en pause\n/play           Ouvre le fichier et commence la lecture\n/close          Quitte automatiquement après la lecture\n                (fonctionne uniquement si utilisé avec /play)\n/shutdown       Éteint la machine après la lecture\n/standby                Met la machine en veille après la lecture\n/hibernate              Met la machine en veille prolongée après la lecture\n/logoff         Déconnecte la session après la lecture\n/lock           Verrouille la session après la lecture\n/monitoroff     Éteint l'écran après la lecture\n/playnext               Ouvre le fichier suivant dans le répertoire après la lecture\n/fullscreen     Démarre en plein écran\n/viewpreset N   Démarre avec un pré-réglage particulier,\n                où N est soit \"1\" Minimal, \"2\" Compact ou \"3\" Normal\n/minimized      Démarre en mode minimisé\n/new            Démarre une nouvelle instance de MPC-HC\n/add            Ajoute un fichier à la playlist, peut être combiné avec /open et /play\n/randomize      Trie aléatoirement la liste de lecture\n/volume N       Règle le Volume, avec N compris entre 1 et 100\n/regvid         Associe les formats vidéo à MPC-HC\n/regaud         Associe les formats audio à MPC-HC\n/regpl          Associe les listes de lecture à MPC-HC\n/regall         Associe tous les fichiers supportés à MPC-HC\n/unregall               Supprime l'association des fichiers à MPC-HC\n/start ms               Démarre la lecture à \"ms\" (millisecondes)\n/startpos hh:mm:ss      Start playing at position hh:mm:ss\n/fixedsize L,H  Fixe la taille de la fenêtre vidéo à LxH\n/monitor N      Démarre MPC-HC sur l'écran N, où N commence à 1\n/audiorenderer N        Utiliser le moteur de rendu audio N, où N commence à 1\n                (cf. \"Sortie audio\" dans les options)\n/shaderpreset \"Pr\"      Utiliser la présélection d'effets vidéo \"Pr\"\n/pns \"nom ou valeurs\"   Spécifie le nom de la présélection de recadrage à utiliser ou directement les valeurs de position et de zoom au format \"px,py,zx,zy\"\n/iconsassoc     Réassocie les icônes spécifiques aux formats\n/nofocus                Démarre MPC-HC en arrière-plan\n/webport N      Démarre l'interface web sur le port spécifié\n/debug          Affiche des informations de débogage via l'OSD\n/nocrashreporter        Désactive le rapporteur de plantage\n/slave \"hWnd\"   Démarre MPC-HC en mode \"esclave\"\n/hwgpu \"N\"      Fixe le numéro du GPU utilisé pour le décodage matériel\n                Disponible uniquement pour CUVID et DXVA2 (copy-back)\n/reset          Restaure les paramètres par défaut\n/mute           Coupe le son\n/help /h /?     Affiche l'aide pour les options de la ligne de commande","mpc command"]
["https://www.brightcarbon.com/blog/how-to-update-powerpoint-preview-thumbnail-icons/",{"$f":"HYPERLINK(T_public[[#This Row],[URL]])","v":"https://www.brightcarbon.com/blog/how-to-update-powerpoint-preview-thumbnail-icons/"},"How to update PowerPoint preview thumbnail icons",""]
["https://www.brightcarbon.com/blog/compress-powerpoint-presentations/",{"$f":"HYPERLINK(T_public[[#This Row],[URL]])","v":"https://www.brightcarbon.com/blog/compress-powerpoint-presentations/"},"How to compress PowerPoint presentations and reduce picture file size",""]
["https://learn.microsoft.com/en-us/office/dev/add-ins/overview/office-add-ins",{"$f":"HYPERLINK(T_public[[#This Row],[URL]])","v":"https://learn.microsoft.com/en-us/office/dev/add-ins/overview/office-add-ins"},"Office Add-ins platform overview",""]
["https://support.microsoft.com/en-us/office/fill-data-automatically-in-worksheet-cells-74e31bdd-d993-45da-aa82-35a236c5b5db?ui=en-us&rs=en-us&ad=us",{"$f":"HYPERLINK(T_public[[#This Row],[URL]])","v":"https://support.microsoft.com/en-us/office/fill-data-automatically-in-worksheet-cells-74e31bdd-d993-45da-aa82-35a236c5b5db?ui=en-us&rs=en-us&ad=us"},"Fill data automatically in worksheet cells",""]
["https://support.microsoft.com/en-us/office/fill-a-formula-down-into-adjacent-cells-041edfe2-05bc-40e6-b933-ef48c3f308c6?ui=en-us&rs=en-us&ad=us",{"$f":"HYPERLINK(T_public[[#This Row],[URL]])","v":"https://support.microsoft.com/en-us/office/fill-a-formula-down-into-adjacent-cells-041edfe2-05bc-40e6-b933-ef48c3f308c6?ui=en-us&rs=en-us&ad=us"},"Fill a formula down into adjacent cells",""]
["https://www.automateexcel.com/vba/range-variables/",{"$f":"HYPERLINK(T_public[[#This Row],[URL]])","v":"https://www.automateexcel.com/vba/range-variables/"},"VBA Range Object Variables (Dim / Set Range) | automateexcel",""]
["https://www.automateexcel.com/vba/ranges-cells/",{"$f":"HYPERLINK(T_public[[#This Row],[URL]])","v":"https://www.automateexcel.com/vba/ranges-cells/"},"Excel VBA Ranges and Cells| automateexcel",""]
["https://www.automateexcel.com/vba/data-types-variables-constants/",{"$f":"HYPERLINK(T_public[[#This Row],[URL]])","v":"https://www.automateexcel.com/vba/data-types-variables-constants/"},"VBA Data Types Summary – Variables and Constants | automateexcel",""]
["https://www.automateexcel.com/vba/instr-find-text/",{"$f":"HYPERLINK(T_public[[#This Row],[URL]])","v":"https://www.automateexcel.com/vba/instr-find-text/"},"VBA INSTR – Find Text in a String | automateexcel",""]
["https://www.youtube.com/watch?v=FPT0ITsytKg",{"$f":"HYPERLINK(T_public[[#This Row],[URL]])","v":"https://www.youtube.com/watch?v=FPT0ITsytKg"},"html email vba excel @4:23","html email vba excel @4:23 ref: Send Email With HTML Tables [code example provided]","email vba"]
["https://www.superexcelvba.com/en/tutorial/030-libraries",{"$f":"HYPERLINK(T_public[[#This Row],[URL]])","v":"https://www.superexcelvba.com/en/tutorial/030-libraries"},"References - VBAProject | Libraries",""]
["https://exceljet.net/videos/conditional-formatting-formula-in-a-table",{"$f":"HYPERLINK(T_public[[#This Row],[URL]])","v":"https://exceljet.net/videos/conditional-formatting-formula-in-a-table"},"Conditional formatting formula in a table",""]
["https://poetengineer.postach.io/post/how-to-fix-file-in-use-personal-xlsb-is-locked-for-editing",{"$f":"HYPERLINK(T_public[[#This Row],[URL]])","v":"https://poetengineer.postach.io/post/how-to-fix-file-in-use-personal-xlsb-is-locked-for-editing"},"How To Fix: File in Use - Personal.xlsb is locked for editing",""]
["https://www.whatpoliticssay.com/#/search?language=en",{"$f":"HYPERLINK(T_public[[#This Row],[URL]])","v":"https://www.whatpoliticssay.com/#/search?language=en"},"what politics say  | Evgeny Potapenko",""]
["https://www.geeksforgeeks.org/function-and-sub-in-excel-vba/",{"$f":"HYPERLINK(T_public[[#This Row],[URL]])","v":"https://www.geeksforgeeks.org/function-and-sub-in-excel-vba/"},"Subroutine vs Functions","~e | Subroutine vs Functions The key difference between the sub and the functions is that a sub-procedure generally does not return a result whereas functions tend to return a result. Hence if there is a need for having a value post execution of tasks, then place the VBA code under a function or otherwise place the code under a sub-procedure","excel"]
["https://www.rondebruin.nl/win/s1/outlook/mail.htm",{"$f":"HYPERLINK(T_public[[#This Row],[URL]])","v":"https://www.rondebruin.nl/win/s1/outlook/mail.htm"},"Ron de Bruin | Excel | Outlook","","excel"]
["https://www.youtube.com/watch?v=3LoR8yqu1OA",{"$f":"HYPERLINK(T_public[[#This Row],[URL]])","v":"https://www.youtube.com/watch?v=3LoR8yqu1OA"},"Insert X Rows to Expand Table","","excel"]
["https://support.microsoft.com/en-us/office/Formulas-and-functions-294d9486-b332-48ed-b489-abe7d0f9eda9",{"$f":"HYPERLINK(T_public[[#This Row],[URL]])","v":"https://support.microsoft.com/en-us/office/Formulas-and-functions-294d9486-b332-48ed-b489-abe7d0f9eda9"},"Excel Formulas and functions","","excel"]
["https://support.microsoft.com/fr-fr/office/formules-et-fonctions-294d9486-b332-48ed-b489-abe7d0f9eda9",{"$f":"HYPERLINK(T_public[[#This Row],[URL]])","v":"https://support.microsoft.com/fr-fr/office/formules-et-fonctions-294d9486-b332-48ed-b489-abe7d0f9eda9"},"Fonctions Excel [FR]",""]
["https://learn.microsoft.com/en-us/docs/",{"$f":"HYPERLINK(T_public[[#This Row],[URL]])","v":"https://learn.microsoft.com/en-us/docs/"},"Microsoft Technical Documentation","","excel"]
["https://learn.microsoft.com/en-us/office/vba/api/overview/excel",{"$f":"HYPERLINK(T_public[[#This Row],[URL]])","v":"https://learn.microsoft.com/en-us/office/vba/api/overview/excel"},"excel vba",""]
["https://learn.microsoft.com/en-us/office/vba/outlook/concepts/getting-started/writing-an-outlook-macro",{"$f":"HYPERLINK(T_public[[#This Row],[URL]])","v":"https://learn.microsoft.com/en-us/office/vba/outlook/concepts/getting-started/writing-an-outlook-macro"},"https://learn.microsoft.com/en-us/office/vba/outlook/concepts/getting-started/writing-an-outlook-macro",""]
["https://learn.microsoft.com/en-us/office/vba/api/overview/outlook",{"$f":"HYPERLINK(T_public[[#This Row],[URL]])","v":"https://learn.microsoft.com/en-us/office/vba/api/overview/outlook"},"Outlook VBA reference",""]
["https://www.oracle.com/erp/",{"$f":"HYPERLINK(T_public[[#This Row],[URL]])","v":"https://www.oracle.com/erp/"},"oracle",""]
["https://www.sap.com/canada/products/erp.html",{"$f":"HYPERLINK(T_public[[#This Row],[URL]])","v":"https://www.sap.com/canada/products/erp.html"},"sap",""]
["https://www.htmhell.dev/adventcalendar/",{"$f":"HYPERLINK(T_public[[#This Row],[URL]])","v":"https://www.htmhell.dev/adventcalendar/"},"advent calendar | html hell | htmhell",""]
["https://www.htmhell.dev/",{"$f":"HYPERLINK(T_public[[#This Row],[URL]])","v":"https://www.htmhell.dev/"},"html hell | htmhell",""]
["https://vasilis.nl/",{"$f":"HYPERLINK(T_public[[#This Row],[URL]])","v":"https://vasilis.nl/"},"visilis.nl | 2023 Dec 1 advent calendar",""]
["https://vercel.com/",{"$f":"HYPERLINK(T_public[[#This Row],[URL]])","v":"https://vercel.com/"},"vercel",""]
["https://www.w3schools.com/",{"$f":"HYPERLINK(T_public[[#This Row],[URL]])","v":"https://www.w3schools.com/"},"w3","w3 web dev reference"]
["https://www.w3schools.com/xml/xml_soap.asp",{"$f":"HYPERLINK(T_public[[#This Row],[URL]])","v":"https://www.w3schools.com/xml/xml_soap.asp"},"SOAP","SOAP Simple Object Access Protocol"]
["https://www.tpsgc-pwgsc.gc.ca/citeparlementaire-parliamentaryprecinct/camera-eng.html",{"$f":"HYPERLINK(T_public[[#This Row],[URL]])","v":"https://www.tpsgc-pwgsc.gc.ca/citeparlementaire-parliamentaryprecinct/camera-eng.html"},"streaming webcam Hill Cam","","stream"]
["https://www.quebec511.info/en/Carte/Default.aspx",{"$f":"HYPERLINK(T_public[[#This Row],[URL]])","v":"https://www.quebec511.info/en/Carte/Default.aspx"},"streaming webcam 511 Quebec Traffic Webcams default start","","stream"]
["https://www.quebec511.info/en/Diffusion/EtatReseau/Camera.aspx?Type=1&Id=6000",{"$f":"HYPERLINK(T_public[[#This Row],[URL]])","v":"https://www.quebec511.info/en/Diffusion/EtatReseau/Camera.aspx?Type=1&Id=6000"},"streaming webcam 511 Quebec Traffic Webcams Gatineau Outaouais","","stream webcam gatineau traffic"]
["https://511on.ca/",{"$f":"HYPERLINK(T_public[[#This Row],[URL]])","v":"https://511on.ca/"},"streaming webcam 511 Ontario Traffic Webcams","","stream"]
["https://traffic.ottawa.ca/beta/camera?id=51&timems=1643743812354",{"$f":"HYPERLINK(T_public[[#This Row],[URL]])","v":"https://traffic.ottawa.ca/beta/camera?id=51&timems=1643743812354"},"streaming webcam KingEdward and Sussex | webcam ottawa","","stream"]
["https://traffic.ottawa.ca/beta/camera?id=65&timems=1643743884132",{"$f":"HYPERLINK(T_public[[#This Row],[URL]])","v":"https://traffic.ottawa.ca/beta/camera?id=65&timems=1643743884132"},"streaming webcam KingEdward and St-Patrick | webcam ottawa","","stream"]
["https://traffic.ottawa.ca/beta/camera?id=185&timems=1643743914897",{"$f":"HYPERLINK(T_public[[#This Row],[URL]])","v":"https://traffic.ottawa.ca/beta/camera?id=185&timems=1643743914897"},"streaming webcam Dalhousie and Murray | webcam ottawa","","stream"]
["https://traffic.ottawa.ca/beta/camera?id=214&timems=1643743947465",{"$f":"HYPERLINK(T_public[[#This Row],[URL]])","v":"https://traffic.ottawa.ca/beta/camera?id=214&timems=1643743947465"},"streaming webcam Boteler and Sussex | webcam ottawa","","stream"]
["https://traffic.ottawa.ca/beta/camera?id=55&timems=1643743990660",{"$f":"HYPERLINK(T_public[[#This Row],[URL]])","v":"https://traffic.ottawa.ca/beta/camera?id=55&timems=1643743990660"},"streaming webcam Alexandre Taché / Laurier Eddy | webcam ottawa","","stream"]
["https://traffic.ottawa.ca/beta/camera?id=40&timems=1643744030023",{"$f":"HYPERLINK(T_public[[#This Row],[URL]])","v":"https://traffic.ottawa.ca/beta/camera?id=40&timems=1643744030023"},"streaming webcam Sir John A. Macdonald & Portage | webcam ottawa","","stream"]
["https://traffic.ottawa.ca/beta/camera?id=33&timems=1643744094600",{"$f":"HYPERLINK(T_public[[#This Row],[URL]])","v":"https://traffic.ottawa.ca/beta/camera?id=33&timems=1643744094600"},"streaming webcam Rideau & Sussex | webcam ottawa","","stream"]
["https://traffic.ottawa.ca/beta/camera?id=39&timems=1643744127142",{"$f":"HYPERLINK(T_public[[#This Row],[URL]])","v":"https://traffic.ottawa.ca/beta/camera?id=39&timems=1643744127142"},"streaming webcam Bank & Wellington | webcam ottawa","","stream"]
["https://traffic.ottawa.ca/beta/camera?id=217",{"$f":"HYPERLINK(T_public[[#This Row],[URL]])","v":"https://traffic.ottawa.ca/beta/camera?id=217"},"streaming webcam Kent & Queen | webcam ottawa","","stream"]
["https://traffic.ottawa.ca/beta/camera?id=35",{"$f":"HYPERLINK(T_public[[#This Row],[URL]])","v":"https://traffic.ottawa.ca/beta/camera?id=35"},"streaming webcam Elgin & Laurier | webcam ottawa","","stream"]
["https://ici.radio-canada.ca/ohdio/musique/emissions/6928/dejeunerenpaix",{"$f":"HYPERLINK(T_public[[#This Row],[URL]])","v":"https://ici.radio-canada.ca/ohdio/musique/emissions/6928/dejeunerenpaix"},"Déjeuner en paix",""]
["https://uniquefm.ca/",{"$f":"HYPERLINK(T_public[[#This Row],[URL]])","v":"https://uniquefm.ca/"},"94.5 Unique FM Ottawa-Gatineau","","ottawa radio fr"]
["https://ici.radio-canada.ca/ottawa-gatineau",{"$f":"HYPERLINK(T_public[[#This Row],[URL]])","v":"https://ici.radio-canada.ca/ottawa-gatineau"},"ici radio-canada Ottawa-Gatineau | émissions, balados, ohdio, premiere, musique, musique classique","ici radio-canada Ottawa-Gatineau | émissions, balados, ohdio, premiere, musique, musique classique ici balados ohdio premiere ohdio musique ohdio musique classique ohdio premiere émissions","radio gatineau balado"]
["https://ici.radio-canada.ca/tele/emissions",{"$f":"HYPERLINK(T_public[[#This Row],[URL]])","v":"https://ici.radio-canada.ca/tele/emissions"},"ici télé émissions radio-canada","","canada"]
["https://www.cbc.ca/listen/live-radio",{"$f":"HYPERLINK(T_public[[#This Row],[URL]])","v":"https://www.cbc.ca/listen/live-radio"},"cbc radio-canada Ottawa | shows, podcasts","cbc radio-canada Ottawa | shows, podcasts cbc radio shows cbc radio podcasts","canada"]
["https://online-radio-canada.com/",{"$f":"HYPERLINK(T_public[[#This Row],[URL]])","v":"https://online-radio-canada.com/"},"online radio canada","","canada"]
["https://streamurl.link/",{"$f":"HYPERLINK(T_public[[#This Row],[URL]])","v":"https://streamurl.link/"},"search radio url link | recherche liens radio",""]
["https://softlabbd.com/how-to-find-online-radio-stream-urls/",{"$f":"HYPERLINK(T_public[[#This Row],[URL]])","v":"https://softlabbd.com/how-to-find-online-radio-stream-urls/"},"how-to search radio url link | how-to recherche liens radio",""]
["https://chuo.fm/listen",{"$f":"HYPERLINK(T_public[[#This Row],[URL]])","v":"https://chuo.fm/listen"},"chuo fm",""]
["https://www.ckcufm.com/",{"$f":"HYPERLINK(T_public[[#This Row],[URL]])","v":"https://www.ckcufm.com/"},"ckcu fm",""]
["https://www.youtube.com/@MarkusPix/",{"$f":"HYPERLINK(T_public[[#This Row],[URL]])","v":"https://www.youtube.com/@MarkusPix/"},"MarkusPix",""]
["https://www.youtube.com/@MichaelFeyrerJr",{"$f":"HYPERLINK(T_public[[#This Row],[URL]])","v":"https://www.youtube.com/@MichaelFeyrerJr"},"Michael Feyrer Jr | obs",""]
["https://www.youtube.com/@LaRoucheOrganization",{"$f":"HYPERLINK(T_public[[#This Row],[URL]])","v":"https://www.youtube.com/@LaRoucheOrganization"},"tlo the larouche org youtube channel","","larouche"]
["https://www.youtube.com/channel/UCpEaBhb8ViryTEEP5ko6Stg",{"$f":"HYPERLINK(T_public[[#This Row],[URL]])","v":"https://www.youtube.com/channel/UCpEaBhb8ViryTEEP5ko6Stg"},"YouTube: channel | la part des choses",""]
["https://www.larouchepac.com/category_science",{"$f":"HYPERLINK(T_public[[#This Row],[URL]])","v":"https://www.larouchepac.com/category_science"},"YouTube: channel | LaRouche PAC | Science","","larouche"]
["https://www.youtube.com/channel/UCgrNz-aDmcr2uuto8_DL2jg",{"$f":"HYPERLINK(T_public[[#This Row],[URL]])","v":"https://www.youtube.com/channel/UCgrNz-aDmcr2uuto8_DL2jg"},"YouTube: channel | gctn",""]
["https://www.youtube.com/user/ChinaViewTV",{"$f":"HYPERLINK(T_public[[#This Row],[URL]])","v":"https://www.youtube.com/user/ChinaViewTV"},"new china tv","","china"]
["https://www.studiotax.com/home.html",{"$f":"HYPERLINK(T_public[[#This Row],[URL]])","v":"https://www.studiotax.com/home.html"},"studiotax.com",""]
["https://socialblade.com/",{"$f":"HYPERLINK(T_public[[#This Row],[URL]])","v":"https://socialblade.com/"},"socialblade social blade",""]
["https://www.youtube.com/@RisingTideFoundation",{"$f":"HYPERLINK(T_public[[#This Row],[URL]])","v":"https://www.youtube.com/@RisingTideFoundation"},"yt@RisingTideFoundation","","youtube channel"]
["https://risingtidefoundation.net/",{"$f":"HYPERLINK(T_public[[#This Row],[URL]])","v":"https://risingtidefoundation.net/"},"rtf","rtf substack yt playlists yt videos symposia rumble @MattEhret"]
["https://redketchup.io/favicon-generator",{"$f":"HYPERLINK(T_public[[#This Row],[URL]])","v":"https://redketchup.io/favicon-generator"},"text based favicon generator","","dev favicon generator online saas text textBased"]
["https://peacebuilder.net/draft/view/drafts/philo%20of%20alexandria/philo%20of%20alexandria.md",{"$f":"HYPERLINK(T_public[[#This Row],[URL]])","v":"https://peacebuilder.net/draft/view/drafts/philo%20of%20alexandria/philo%20of%20alexandria.md"},"On Creation | Philo of Alexandria",""]
["https://risingtidefoundation.net/2023/10/15/the-fourth-phase-of-water-beyond-the-three-you-already-know-rtf-lecture-with-dr-gerald-pollack/",{"$f":"HYPERLINK(T_public[[#This Row],[URL]])","v":"https://risingtidefoundation.net/2023/10/15/the-fourth-phase-of-water-beyond-the-three-you-already-know-rtf-lecture-with-dr-gerald-pollack/"},"The Fourth Phase of Water – Beyond the Three You Already Know (RTF Lecture with Dr. Gerald Pollack)",""]
["https://us06web.zoom.us/j/83625193643",{"$f":"HYPERLINK(T_public[[#This Row],[URL]])","v":"https://us06web.zoom.us/j/83625193643"},"Rabbi Philo of Alexandria | rtf",""]
["https://eurasiamedianetwork.com/spanish-pm-pedro-sanchez-china-trade-cultural-ties/",{"$f":"HYPERLINK(T_public[[#This Row],[URL]])","v":"https://eurasiamedianetwork.com/spanish-pm-pedro-sanchez-china-trade-cultural-ties/"},"Spanish Prime Minister Pedro Sánchez",""]
["https://en.wikipedia.org/wiki/Santo_Trafficante_Jr.",{"$f":"HYPERLINK(T_public[[#This Row],[URL]])","v":"https://en.wikipedia.org/wiki/Santo_Trafficante_Jr."},"Santo Trafficante Jr.",""]
["https://en.wikipedia.org/wiki/Angelo_Bruno",{"$f":"HYPERLINK(T_public[[#This Row],[URL]])","v":"https://en.wikipedia.org/wiki/Angelo_Bruno"},"Angelo Bruno",""]
["https://en.wikipedia.org/wiki/Bugsy_Siegel",{"$f":"HYPERLINK(T_public[[#This Row],[URL]])","v":"https://en.wikipedia.org/wiki/Bugsy_Siegel"},"Bugsy Siegel",""]
["https://en.wikipedia.org/wiki/Meyer_Lansky",{"$f":"HYPERLINK(T_public[[#This Row],[URL]])","v":"https://en.wikipedia.org/wiki/Meyer_Lansky"},"Meyer Lansky",""]
["https://ogp.me/",{"$f":"HYPERLINK(T_public[[#This Row],[URL]])","v":"https://ogp.me/"},"The Open Graph protocol","","og sm protocol"]
["https://en.wikipedia.org/wiki/Susie_Wiles",{"$f":"HYPERLINK(T_public[[#This Row],[URL]])","v":"https://en.wikipedia.org/wiki/Susie_Wiles"},"susie wiles",""]
["https://www.haimbresheeth.com/",{"$f":"HYPERLINK(T_public[[#This Row],[URL]])","v":"https://www.haimbresheeth.com/"},"Prof Haim Bresheeth",""]
["https://en.wikipedia.org/wiki/Friedrich_Hayek",{"$f":"HYPERLINK(T_public[[#This Row],[URL]])","v":"https://en.wikipedia.org/wiki/Friedrich_Hayek"},"Friedrich Von Hayek | Friedrich Hayek",""]
["https://en.wikipedia.org/wiki/Leo_Strauss",{"$f":"HYPERLINK(T_public[[#This Row],[URL]])","v":"https://en.wikipedia.org/wiki/Leo_Strauss"},"Leo Strauss",""]
["https://x.com/MariaSZack",{"$f":"HYPERLINK(T_public[[#This Row],[URL]])","v":"https://x.com/MariaSZack"},"Maria Zack",""]
["https://tomluongo.me/",{"$f":"HYPERLINK(T_public[[#This Row],[URL]])","v":"https://tomluongo.me/"},"Tom Luongo",""]
["https://en.wikipedia.org/wiki/William_F._Buckley_Jr.",{"$f":"HYPERLINK(T_public[[#This Row],[URL]])","v":"https://en.wikipedia.org/wiki/William_F._Buckley_Jr."},"William F. Buckley Jr.",""]
["https://search.brave.com/images?q=Mark%20Elias%20Democrats",{"$f":"HYPERLINK(T_public[[#This Row],[URL]])","v":"https://search.brave.com/images?q=Mark%20Elias%20Democrats"},"Marc Elias | Democrat Election Fraud",""]
["https://mbtype.com/fonts/valkyrie/",{"$f":"HYPERLINK(T_public[[#This Row],[URL]])","v":"https://mbtype.com/fonts/valkyrie/"},"Valkyrie","","typography font police typographie mb"]
["",{"$f":"HYPERLINK(T_public[[#This Row],[URL]])","v":""},"List of nice fonts for reading online","List of nice fonts for reading online ~typography Lora Spectral Valkyrie Fira","typography font police typographie"]
["https://www.tomgreen.com/category/videos/webovision/",{"$f":"HYPERLINK(T_public[[#This Row],[URL]])","v":"https://www.tomgreen.com/category/videos/webovision/"},"Tom Green | webovision | Tom Green Show",""]
["https://www.presidencia.gob.sv/presidente-de-la-republica/",{"$f":"HYPERLINK(T_public[[#This Row],[URL]])","v":"https://www.presidencia.gob.sv/presidente-de-la-republica/"},"Nayib Bukele | NAYIB ARMANDO BUKELE ORTEZ","Nayib Bukele | NAYIB ARMANDO BUKELE ORTEZ ig nayib bukel"]
["https://magmaproducts.com/",{"$f":"HYPERLINK(T_public[[#This Row],[URL]])","v":"https://magmaproducts.com/"},"Frank Stronach","Frank Stronach belinda stronach"]
["",{"$f":"HYPERLINK(T_public[[#This Row],[URL]])","v":""},"Peace And Sanity","Peace And Sanity Prof. John Mearsheimer Prof. John Mearsheimer @ University of Chicago Political-Science Scott Ritter Ray McGovern Jackson Hinkle Harley Schlanger Helga Zepp-LaRouche Diane Sare Jose Vega"]
["https://linktr.ee/joy_backlas",{"$f":"HYPERLINK(T_public[[#This Row],[URL]])","v":"https://linktr.ee/joy_backlas"},"Joy Backlas-Cruz",""]
["https://www.dhs.gov/person/alejandro-mayorkas",{"$f":"HYPERLINK(T_public[[#This Row],[URL]])","v":"https://www.dhs.gov/person/alejandro-mayorkas"},"Alejandro Mayorkas","Alejandro Mayorkas cspan x wikipedia"]
["https://bboxtype.com/typefaces/FiraSans/#!layout=specimen",{"$f":"HYPERLINK(T_public[[#This Row],[URL]])","v":"https://bboxtype.com/typefaces/FiraSans/#!layout=specimen"},"large free font Fira Sans Erik Spiekermann","","typography font police typographie large free "]
["https://johnpilger.com/",{"$f":"HYPERLINK(T_public[[#This Row],[URL]])","v":"https://johnpilger.com/"},"johnpilger.com  | films | samPilger","johnpilger.com ~films ~samPilger sampilger <-> son","films"]
["https://www.facebook.com/mimideraiche/posts/5454151561284529",{"$f":"HYPERLINK(T_public[[#This Row],[URL]])","v":"https://www.facebook.com/mimideraiche/posts/5454151561284529"},"Pierre FALARDEAU","Pierre FALARDEAU « Soyez rassurés, messieurs dames, je plaide coupable. Oui, j’ai dépassé les bornes. Et j’ai bien l’intention de continuer. C’est d’ailleurs ce que j’ai fait toute ma vie. Toute mon œuvre, depuis toujours, n’est en fait qu’une même tentative d’aller voir ce qu’il y a au-delà de la borne. Et je ne vais pas commencer, pas à mon âge, à m’excuser. À m’excuser de quoi? À m’excuser de penser? M’excuser d’écrire? M’excuser de parler? M’excuser d’être? Collectivement, on s’excuse d’exister depuis 244 ans. Pour ma part, je considère que c’est plus qu’assez. Fini. Terminé. » Pierre FALARDEAU Le Québécois, 2004"]
["https://www.amazon.ca/Bechamp-Pasteur-Chapter-History-Biology/dp/1467900125/ref=sr_1_1?sr=8-1",{"$f":"HYPERLINK(T_public[[#This Row],[URL]])","v":"https://www.amazon.ca/Bechamp-Pasteur-Chapter-History-Biology/dp/1467900125/ref=sr_1_1?sr=8-1"},"Antoine Béchamp | Béchamp or Pasteur?: A Lost Chapter in the History of Biology",""]
["https://www.state.gov/biographies/geoffrey-r-pyatt/",{"$f":"HYPERLINK(T_public[[#This Row],[URL]])","v":"https://www.state.gov/biographies/geoffrey-r-pyatt/"},"Geoffrey R. Pyatt Geoff Pyatt",""]
["https://www.google.com/search?newwindow=1&sca_esv=4fd6679d0a9c996a&sxsrf=ADLYWIK84DKszHeZy-EVSygLH4zqeIj9KA:1725754613909&q=alex+karp&udm=2&fbs=AEQNm0Aa4sjWe7Rqy32pFwRj0UkWd8nbOJfsBGGB5IQQO6L3J5MIFhvnvU242yFxzEEp3BfRFWcyM5BvpTgNzM3vKj4sz-C2iLdc_0v0iAkScdtYjTEEaW-RpYrQlrxewcHJM9Nhu6upVWkY0K9t7isxJcnaGRQ8j9jYMoowPQaOXuZITsO2fXKLWxHMcsmHJSWZPG8fo9YFTnU-rMFuDAPeq0zWJPgSFA&sa=X&ved=2ahUKEwiv5-z1iLKIAxUUF1kFHQEaGVYQtKgLegQIDRAB&biw=2560&bih=1311&dpr=1.5#vhid=DwgoUnhFvFjiRM&vssid=mosaic",{"$f":"HYPERLINK(T_public[[#This Row],[URL]])","v":{"$error":"#VALUE!"}},"Alex Karp",""]
["https://www.douglasmacgregor.com/",{"$f":"HYPERLINK(T_public[[#This Row],[URL]])","v":"https://www.douglasmacgregor.com/"},"Douglas Macgregor Colonel Abbott Retired Army PhD Military Strategist Author Consultant Political Commentator Senior Advisor Gulf War Veteran","Douglas Macgregor Colonel Abbott Retired Army PhD Military Strategist Author Consultant Political Commentator Senior Advisor Gulf War Veteran yt @douglasmacgregorTV Future Defense Visions fb twitter x about"]
["https://rationalwiki.org/wiki/Barrie_Trower",{"$f":"HYPERLINK(T_public[[#This Row],[URL]])","v":"https://rationalwiki.org/wiki/Barrie_Trower"},"barrie trower wiki",""]
["https://www.thestar.com/news/gta/u-k-expert-warns-against-wi-fi/article_506b3755-5b6e-5d96-b941-a727c454745a.html",{"$f":"HYPERLINK(T_public[[#This Row],[URL]])","v":"https://www.thestar.com/news/gta/u-k-expert-warns-against-wi-fi/article_506b3755-5b6e-5d96-b941-a727c454745a.html"},"toronto star : U.K. expert warns against Wi-Fi | Barrie Trower",""]
["https://www.youtube.com/watch?v=gPWr9Zdai0g",{"$f":"HYPERLINK(T_public[[#This Row],[URL]])","v":"https://www.youtube.com/watch?v=gPWr9Zdai0g"},"Dr. Barrie Trower - February 3, 2020 - \"The Truth About 5G & Wi-Fi\" - EMF effect on the Human Brain","","truth"]
["https://www.youtube.com/watch?v=2pFjB59694o",{"$f":"HYPERLINK(T_public[[#This Row],[URL]])","v":"https://www.youtube.com/watch?v=2pFjB59694o"},"Barrie Trower on 5G | The Genocidal Nature of Non-Ionising Radiation",""]
["https://cancelthisclothingcompany.com/resources/",{"$f":"HYPERLINK(T_public[[#This Row],[URL]])","v":"https://cancelthisclothingcompany.com/resources/"},"cancel clothing company aka Ian Caroll","cancel clothing company aka Ian Caroll ~ressources ~wp ~website ~cancel live ~cancel this ~cancelthis cancel this clothing company @ctcc locals.com livestream: The CIA Secret Bank Accounts youtube.com/@cancelthisconspiracy ~live ~sm ~horizontal cancel this conspiracy ~live ~sm ~horizontal twitter/cancelcloco ~x.com ig instagram.com/cancelthisclothingcompany youtube.com/@cancelthisconspiracy ~sm ~horizontal Follow the Money. Seek the Truth. tiktok.com/@cancelthisclothingco ~sm","ianCarroll sm conspiracy resources"]
["https://www.eac.gov/",{"$f":"HYPERLINK(T_public[[#This Row],[URL]])","v":"https://www.eac.gov/"},"eac.gov election authority comission | U.S. Election Assistance Commission (EAC)","eac.gov election authority comission | U.S. Election Assistance Commission (EAC) state result links State\tElection Results Page URL Alabama\tsos.alabama.gov Alaska\telections.alaska.gov Arizona\tapps.azsos.gov Arkansas\tsos.arkansas.gov California\telections.cdn.sos.ca.gov Colorado\tsos.state.co.us Connecticut\tportal.ct.gov Delaware\telections.delaware.gov District of Columbia\tdcboe.org Florida\tdos.fl.gov Georgia\tsos.ga.gov Hawaii\telections.hawaii.gov Idaho\tsos.idaho.gov Illinois\telections.il.gov Indiana\tin.gov Iowa\tsos.iowa.gov Kansas\tsos.ks.gov Kentucky\telect.ky.gov Louisiana\tsos.la.gov Maine\tmaine.gov Maryland\telections.maryland.gov Massachusetts\tsec.state.ma.us Michigan\tmichigan.gov Minnesota\tsos.state.mn.us Mississippi\tsos.ms.gov Missouri\tsos.mo.gov Montana\tsosmt.gov Nebraska\tsos.nebraska.gov Nevada\tnvsos.gov New Hampshire\tsos.nh.gov New Jersey\tstate.nj.us New Mexico\tsos.nm.gov New York\telections.ny.gov North Carolina\tncsbe.gov North Dakota\tsos.nd.gov Ohio\tohiosos.gov Oklahoma\toklahoma.gov Oregon\tsos.oregon.gov Pennsylvania\tdos.pa.gov Rhode Island\tsos.ri.gov South Carolina\tscvotes.gov South Dakota\tsdsos.gov Tennessee\tsos.tn.gov Texas\tsos.state.tx.us Utah\tvote.utah.gov Vermont\tsos.vermont.gov Virginia\telections.virginia.gov Washington\tsos.wa.gov West Virginia\tsos.wv.gov Wisconsin\telections.wi.gov Wyoming\tsos.wyo.gov"]
["https://en.wikipedia.org/wiki/Austrian_school_of_economics",{"$f":"HYPERLINK(T_public[[#This Row],[URL]])","v":"https://en.wikipedia.org/wiki/Austrian_school_of_economics"},"Austrian School of Economics","","economy school"]
["https://channelmcgilchrist.com/",{"$f":"HYPERLINK(T_public[[#This Row],[URL]])","v":"https://channelmcgilchrist.com/"},"Iain McGilchrist website","Iain McGilchrist ~website ~quan le ~quan lee ~rtf The divided brain, attention and how we see the world - Dr Iain McGilchrist ~ytfull clip utility vs futility and 'Beauty, Goodness and Truth' ~quan le ~quan lee book: The Master and His Emissary: The Divided Brain and the Making of the Western World book: Ways of Attending: How our Divided Brain Constructs the World","rtf quan psychology"]
["https://system1group.com/lemon",{"$f":"HYPERLINK(T_public[[#This Row],[URL]])","v":"https://system1group.com/lemon"},"Orlando Wood",""]
["https://jackkruse.com",{"$f":"HYPERLINK(T_public[[#This Row],[URL]])","v":"https://jackkruse.com"},"jack kruse","jack kruse optimalklubs.com Exiled Brain Surgeon: DARPA Mind Control, Quantum Biology & Sunlight Medicine | Dr. Jack Kruse keywords: Methylene Blue mrsa : \"really nasty stuff\" Toxic Screens: How to Protect Eyes from Blue Light with Dr. Jack Kruse and Lucia Eyes CEO Dan Huber eyebuydirect | blue-violet light (400 to 455nm) Lucia Eyes"]
["https://youtube.com/playlist?list=PL98vZK9-9_5yXitsB_aovdEg1CNJLHt7v",{"$f":"HYPERLINK(T_public[[#This Row],[URL]])","v":"https://youtube.com/playlist?list=PL98vZK9-9_5yXitsB_aovdEg1CNJLHt7v"},"Harley Schlanger updates",""]
["https://www.youtube.com/watch?v=zrQQDthkHYI&list=PLO4maup2s9t5q3JHRFYX6hTONDLjLeeD1",{"$f":"HYPERLINK(T_public[[#This Row],[URL]])","v":"https://www.youtube.com/watch?v=zrQQDthkHYI&list=PLO4maup2s9t5q3JHRFYX6hTONDLjLeeD1"},"Prism Live!",""]
["https://www.youtube.com/watch?v=f_fGXgh0A8k&list=PLO4maup2s9t53T65y_fGW46QrJYItW9Zr",{"$f":"HYPERLINK(T_public[[#This Row],[URL]])","v":"https://www.youtube.com/watch?v=f_fGXgh0A8k&list=PLO4maup2s9t53T65y_fGW46QrJYItW9Zr"},"obs tutorials and live streaming","","stream"]
["https://www.youtube.com/watch?v=f_fGXgh0A8k&list=PLO4maup2s9t53T65y_fGW46QrJYItW9Zr",{"$f":"HYPERLINK(T_public[[#This Row],[URL]])","v":"https://www.youtube.com/watch?v=f_fGXgh0A8k&list=PLO4maup2s9t53T65y_fGW46QrJYItW9Zr"},"obs plugins",""]
["https://www.indiegogo.com/",{"$f":"HYPERLINK(T_public[[#This Row],[URL]])","v":"https://www.indiegogo.com/"},"indigogo",""]
["https://www.kickstarter.com/",{"$f":"HYPERLINK(T_public[[#This Row],[URL]])","v":"https://www.kickstarter.com/"},"kickstarter",""]
["https://www.thedemocracyfund.ca/",{"$f":"HYPERLINK(T_public[[#This Row],[URL]])","v":"https://www.thedemocracyfund.ca/"},"TDF | The Democracy Fund",""]
["https://www.secretservice.gov/",{"$f":"HYPERLINK(T_public[[#This Row],[URL]])","v":"https://www.secretservice.gov/"},"us secret service",""]
["http://svr.gov.ru/",{"$f":"HYPERLINK(T_public[[#This Row],[URL]])","v":"http://svr.gov.ru/"},"service du renseignement de la Russie","","russe russie russia"]
["https://www.cia.gov/",{"$f":"HYPERLINK(T_public[[#This Row],[URL]])","v":"https://www.cia.gov/"},"cia",""]
["https://www.mi5.gov.uk/",{"$f":"HYPERLINK(T_public[[#This Row],[URL]])","v":"https://www.mi5.gov.uk/"},"mi5",""]
["https://www.sis.gov.uk/",{"$f":"HYPERLINK(T_public[[#This Row],[URL]])","v":"https://www.sis.gov.uk/"},"sis mi6",""]
["https://www.canada.ca/en/security-intelligence-service.html",{"$f":"HYPERLINK(T_public[[#This Row],[URL]])","v":"https://www.canada.ca/en/security-intelligence-service.html"},"csis (canada)","","canada"]
["https://www.cse-cst.gc.ca/en",{"$f":"HYPERLINK(T_public[[#This Row],[URL]])","v":"https://www.cse-cst.gc.ca/en"},"csec | Communications Security Establishment",""]
["https://wikileaks.org/",{"$f":"HYPERLINK(T_public[[#This Row],[URL]])","v":"https://wikileaks.org/"},"wikileaks",""]
["https://www.dni.gov/index.php/ncsc-how-we-work/217-about/organization/icig-pages/2660-icig-fiorc",{"$f":"HYPERLINK(T_public[[#This Row],[URL]])","v":"https://www.dni.gov/index.php/ncsc-how-we-work/217-about/organization/icig-pages/2660-icig-fiorc"},"five eyes [FIORC] FIVE EYES INTELLIGENCE OVERSIGHT AND REVIEW COUNCIL | NSA",""]
["https://www.gchq.gov.uk/",{"$f":"HYPERLINK(T_public[[#This Row],[URL]])","v":"https://www.gchq.gov.uk/"},"gchq uk",""]
["https://www.nsa.gov/",{"$f":"HYPERLINK(T_public[[#This Row],[URL]])","v":"https://www.nsa.gov/"},"NSA | National Security Agency/Central Security Service",""]
["https://aarongunn.ca/watch/",{"$f":"HYPERLINK(T_public[[#This Row],[URL]])","v":"https://aarongunn.ca/watch/"},"aaron gunn",""]
["https://en.wikipedia.org/wiki/Greek_words_for_love",{"$f":"HYPERLINK(T_public[[#This Row],[URL]])","v":"https://en.wikipedia.org/wiki/Greek_words_for_love"},"greek words for love","","wiki love greek"]
["https://iep.utm.edu/love/#SH1b",{"$f":"HYPERLINK(T_public[[#This Row],[URL]])","v":"https://iep.utm.edu/love/#SH1b"},"Philosophy of Love",""]
["https://www.geogebra.org/",{"$f":"HYPERLINK(T_public[[#This Row],[URL]])","v":"https://www.geogebra.org/"},"geogebra for teachin and learning math",""]
["https://www.amazon.ca/Manual-Rudiments-Tuning-Registration-Introduction/dp/197342536X",{"$f":"HYPERLINK(T_public[[#This Row],[URL]])","v":"https://www.amazon.ca/Manual-Rudiments-Tuning-Registration-Introduction/dp/197342536X"},"A Manual on the Rudiments of Tuning and Registration: Introduction and Human Singing Voice",""]
["https://members.breakthroughguitar.com/guitar-grid-101/index",{"$f":"HYPERLINK(T_public[[#This Row],[URL]])","v":"https://members.breakthroughguitar.com/guitar-grid-101/index"},"guitar breakthrough method",""]
["https://home.cern/",{"$f":"HYPERLINK(T_public[[#This Row],[URL]])","v":"https://home.cern/"},"cern switzerland","cern switzerland news resources accelerators science search string https://home.cern/search/node?keys="]
["https://weather.gc.ca/satellite/index_e.html",{"$f":"HYPERLINK(T_public[[#This Row],[URL]])","v":"https://weather.gc.ca/satellite/index_e.html"},"Satellite Images and Animation",""]
["https://weather.gc.ca/?layers=alert,radar",{"$f":"HYPERLINK(T_public[[#This Row],[URL]])","v":"https://weather.gc.ca/?layers=alert,radar"},"ECCC Radar",""]
["https://www.weatherapi.com/",{"$f":"HYPERLINK(T_public[[#This Row],[URL]])","v":"https://www.weatherapi.com/"},"weatherapi.com","","api"]
["https://home.openweathermap.org/",{"$f":"HYPERLINK(T_public[[#This Row],[URL]])","v":"https://home.openweathermap.org/"},"openweathermap","","api"]
["http://www.weathermodification.com/",{"$f":"HYPERLINK(T_public[[#This Row],[URL]])","v":"http://www.weathermodification.com/"},"Weather Modification",""]
["https://ised-isde.canada.ca/site/corporations-canada/en/federal-incorporation",{"$f":"HYPERLINK(T_public[[#This Row],[URL]])","v":"https://ised-isde.canada.ca/site/corporations-canada/en/federal-incorporation"},"Corporation Canada Federal","","canada"]
["https://www.canada.ca/en/revenue-agency/services/tax/businesses/topics/gst-hst-businesses/when-register-charge.html",{"$f":"HYPERLINK(T_public[[#This Row],[URL]])","v":"https://www.canada.ca/en/revenue-agency/services/tax/businesses/topics/gst-hst-businesses/when-register-charge.html"},"registration for GST/HST CRA",""]
["https://ams-sga.cra-arc.gc.ca/gol-ged/awsc/amss/entry?target=login&lang=en&program=bro",{"$f":"HYPERLINK(T_public[[#This Row],[URL]])","v":"https://ams-sga.cra-arc.gc.ca/gol-ged/awsc/amss/entry?target=login&lang=en&program=bro"},"register gst for an RT #",""]
["https://ised-isde.canada.ca/cc/lgcy/fdrlCrpSrch.html?lang=eng",{"$f":"HYPERLINK(T_public[[#This Row],[URL]])","v":"https://ised-isde.canada.ca/cc/lgcy/fdrlCrpSrch.html?lang=eng"},"database | Search for a Federal Corporation (Canada)","","canada"]
["https://beta.canadasbusinessregistries.ca/search",{"$f":"HYPERLINK(T_public[[#This Row],[URL]])","v":"https://beta.canadasbusinessregistries.ca/search"},"Canada's Business Registries","Canada's Business Registries my canada business account manage my canada business account manage corporations","canada"]
["https://www.nationalww2museum.org/war/articles/wwii-spy-allen-dulles",{"$f":"HYPERLINK(T_public[[#This Row],[URL]])","v":"https://www.nationalww2museum.org/war/articles/wwii-spy-allen-dulles"},"CIA | Allen Dulles","CIA | Allen Dulles The Office of Strategic Services (OSS) Station Chief Allen Dulles in Switzerland"]
["https://fr.wikipedia.org/wiki/D%C3%A9claration_de_Philadelphie",{"$f":"HYPERLINK(T_public[[#This Row],[URL]])","v":"https://fr.wikipedia.org/wiki/D%C3%A9claration_de_Philadelphie"},"Déclaration de Philadelphie","Déclaration de Philadelphie ~évoqué par Jacques Cheminades or la déclaration de philadelphine 1944 qu'on oublie souvent disait le travail n'est 7:15 pas une marchandise l'être humain n'est pas une marchandise donc là je vois il faut faire quelque chose parce que je vois que les partis politiques que 7:22 j'avais vu j'avais don j'avais suivi les idées quand ils en avaient souent il en 7:28 avait pas euh ils avaient plutôt des prévention les uns vis-à-vis des autres il n'y avait rien qui réponde à 7:35 cela et c'est dans cet ordre là que d'abord j'ai participé à la fondation de 7:40 quelque chose qui s'appelait le Parti ouvrier européen"]
["https://rowman.com/ISBN/9781633884786/Operation-Gladio-The-Unholy-Alliance-between-the-Vatican-the-CIA-and-the-Mafia",{"$f":"HYPERLINK(T_public[[#This Row],[URL]])","v":"https://rowman.com/ISBN/9781633884786/Operation-Gladio-The-Unholy-Alliance-between-the-Vatican-the-CIA-and-the-Mafia"},"Operation Gladio","Operation Gladio This disturbing expose describes a secret alliance forged at the close of World War II by the CIA, the Sicilian and US mafias, and the Vatican to thwart the possibility of a Communist invasion of Europe. Journalist Paul L. Williams presents evidence suggesting the existence of \"stay-behind\" units in many European countries consisting of five thousand to fifteen thousand military operatives. According to the author's research, the initial funding for these guerilla armies came from the sale of large stocks of SS morphine that had been smuggled out of Germany and Italy and of bogus British bank notes that had been produced in concentration camps by skilled counterfeiters. As the Cold War intensified, the units were used not only to ward off possible invaders, but also to thwart the rise of left-wing movements in South America and NATO-based countries by terror attacks. Williams argues that Operation Gladio soon gave rise to the toppling of governments, wholesale genocide, the formation of death squads, financial scandals on a grand scale, the creation of the mujahideen, an international narcotics network, and, most recently, the ascendancy of Jorge Mario Bergoglio, a Jesuit cleric with strong ties to Operation Condor (an outgrowth of Gladio in Argentina) as Pope Francis I.Sure to be controversial, Operation Gladio connects the dots in ways the mainstream media often overlooks."]
["https://nsarchive.gwu.edu/",{"$f":"HYPERLINK(T_public[[#This Row],[URL]])","v":"https://nsarchive.gwu.edu/"},"national security archive",""]
["https://botler.com/",{"$f":"HYPERLINK(T_public[[#This Row],[URL]])","v":"https://botler.com/"},"botler | ai | Fighting misconduct.",""]
["https://gcstrategies.ca/",{"$f":"HYPERLINK(T_public[[#This Row],[URL]])","v":"https://gcstrategies.ca/"},"gcstrategies | gc strategies",""]
["https://dalian.ca/",{"$f":"HYPERLINK(T_public[[#This Row],[URL]])","v":"https://dalian.ca/"},"dalian | scandal",""]
["https://www.loc.gov/",{"$f":"HYPERLINK(T_public[[#This Row],[URL]])","v":"https://www.loc.gov/"},"loc library of congress",""]
["https://bac-lac.on.worldcat.org/discovery?lang=en",{"$f":"HYPERLINK(T_public[[#This Row],[URL]])","v":"https://bac-lac.on.worldcat.org/discovery?lang=en"},"Aurora bac-lac",""]
["https://www.wlym.com/archive/campaigner/00IndexCampaigners1977-85.htm",{"$f":"HYPERLINK(T_public[[#This Row],[URL]])","v":"https://www.wlym.com/archive/campaigner/00IndexCampaigners1977-85.htm"},"internet: Campaigner Magazines [1977-1985]","internet: Campaigner Magazines [1977-1985] Campaigner Magazines [1968-1976] Campaigner: Special Reports Directory"]
["https://library-archives.canada.ca/eng/services/public/visit/Pages/ottawa.aspx",{"$f":"HYPERLINK(T_public[[#This Row],[URL]])","v":"https://library-archives.canada.ca/eng/services/public/visit/Pages/ottawa.aspx"},"Library and Archives Canada | Ottawa| LAC","Library and Archives Canada | Ottawa| LAC 23286001967320","canada"]
["https://www.banq.qc.ca/archives-nationales/?language_id=1",{"$f":"HYPERLINK(T_public[[#This Row],[URL]])","v":"https://www.banq.qc.ca/archives-nationales/?language_id=1"},"Les Archives nationales du Québec","","quebec québec"]
["https://archive.org/",{"$f":"HYPERLINK(T_public[[#This Row],[URL]])","v":"https://archive.org/"},"archives.org",""]
["https://web.archive.org/",{"$f":"HYPERLINK(T_public[[#This Row],[URL]])","v":"https://web.archive.org/"},"internet archive wayback machine",""]
["https://archivesdemontreal.com/",{"$f":"HYPERLINK(T_public[[#This Row],[URL]])","v":"https://archivesdemontreal.com/"},"archives de montréal",""]
["https://www.gatineau.ca/portail/default.aspx?p=guichet_municipal/archives",{"$f":"HYPERLINK(T_public[[#This Row],[URL]])","v":"https://www.gatineau.ca/portail/default.aspx?p=guichet_municipal/archives"},"archives de gatineau","","archives gatineau"]
["http://ottawa.minisisinc.com/ottawa/partners/ottawa-archives.html",{"$f":"HYPERLINK(T_public[[#This Row],[URL]])","v":"http://ottawa.minisisinc.com/ottawa/partners/ottawa-archives.html"},"City of Ottawa Archives minisisinc",""]
["https://ottawa.ca/en/arts-heritage-and-events/city-ottawa-archives",{"$f":"HYPERLINK(T_public[[#This Row],[URL]])","v":"https://ottawa.ca/en/arts-heritage-and-events/city-ottawa-archives"},"City of Ottawa Archives ottawa.ca",""]
["https://www.facebook.com/OttawaArchives/",{"$f":"HYPERLINK(T_public[[#This Row],[URL]])","v":"https://www.facebook.com/OttawaArchives/"},"fb City of Ottawa Archives",""]
["https://www.iglou.fr/",{"$f":"HYPERLINK(T_public[[#This Row],[URL]])","v":"https://www.iglou.fr/"},"shelter | Abris | iglou.fr",""]
["https://liri-tents.en.made-in-china.com/product/sZdAHjTulNhn/China-Outdoor-Clear-Skylight-PC-Round-Igloos-Dome-Bubble-Tent-for-Coffee-Shop.html",{"$f":"HYPERLINK(T_public[[#This Row],[URL]])","v":"https://liri-tents.en.made-in-china.com/product/sZdAHjTulNhn/China-Outdoor-Clear-Skylight-PC-Round-Igloos-Dome-Bubble-Tent-for-Coffee-Shop.html"},"Outdoor Clear Skylight PC Round Igloos Dome",""]
["https://www.mongodb.com/",{"$f":"HYPERLINK(T_public[[#This Row],[URL]])","v":"https://www.mongodb.com/"},"mongodb","","website"]
["https://www.mongodb.com/docs/manual/core/capped-collections/#capped-collections",{"$f":"HYPERLINK(T_public[[#This Row],[URL]])","v":"https://www.mongodb.com/docs/manual/core/capped-collections/#capped-collections"},"capped","","mongoDB"]
["https://www.mongodb.com/docs/upcoming/reference/collation/#collation",{"$f":"HYPERLINK(T_public[[#This Row],[URL]])","v":"https://www.mongodb.com/docs/upcoming/reference/collation/#collation"},"collations","","mongoDB collations"]
["https://developer.adobe.com/photoshop/uxp/2022/guides/devtool/installation/",{"$f":"HYPERLINK(T_public[[#This Row],[URL]])","v":"https://developer.adobe.com/photoshop/uxp/2022/guides/devtool/installation/"},"uxp Adobe UXP Developer Tool","","install dev tool adobe uxp"]
["https://1bestcsharp.blogspot.com/2017/10/javascript-add-li-to-ul.html",{"$f":"HYPERLINK(T_public[[#This Row],[URL]])","v":"https://1bestcsharp.blogspot.com/2017/10/javascript-add-li-to-ul.html"},"How To Add A New LI To UL From Input Text Using Javascript","","js how-to"]
["https://www.w3schools.com/tags/tag_sup.asp#:~:text=The%20tag%20defines%20superscript,rendered%20in%20a%20smaller%20font.",{"$f":"HYPERLINK(T_public[[#This Row],[URL]])","v":"https://www.w3schools.com/tags/tag_sup.asp#:~:text=The%20tag%20defines%20superscript,rendered%20in%20a%20smaller%20font."},"sup : superscript text",""]
["https://www.youtube.com/watch?v=JBdyASuhq1c",{"$f":"HYPERLINK(T_public[[#This Row],[URL]])","v":"https://www.youtube.com/watch?v=JBdyASuhq1c"}," Javascript - How To Add LI To UL From Input Text Using JS [ with source code ]","","js how-to"]
["https://www.youtube.com/watch?v=2te1ttYkP2Y",{"$f":"HYPERLINK(T_public[[#This Row],[URL]])","v":"https://www.youtube.com/watch?v=2te1ttYkP2Y"},"anton and matt emergency 2024_08_03","anton and matt emergency 2024_08_03 ~rtf anton chaitkin substack The Right Way to Quickly End the War in Ukraine Who Will Run the World?","rtf"]
["https://substack.com/",{"$f":"HYPERLINK(T_public[[#This Row],[URL]])","v":"https://substack.com/"},"substack","","read onlinePlatform"]
["",{"$f":"HYPERLINK(T_public[[#This Row],[URL]])","v":""},"BOJ : Bank of Japan",""]
["",{"$f":"HYPERLINK(T_public[[#This Row],[URL]])","v":""},"MI1 : MI1 dealt with codes and cyphers. It was responsible for codebreaking and signals intelligence",""]
["",{"$f":"HYPERLINK(T_public[[#This Row],[URL]])","v":""},"MI2 : MI2 was the geographical section responsible for intelligence collection and analysis from specific regions",""]
["",{"$f":"HYPERLINK(T_public[[#This Row],[URL]])","v":""},"MI3 : MI3 focused on military intelligence, particularly on foreign armies and their capabilities.",""]
["",{"$f":"HYPERLINK(T_public[[#This Row],[URL]])","v":""},"MI4 : MI4 handled aerial reconnaissance and photography during World War I.",""]
["",{"$f":"HYPERLINK(T_public[[#This Row],[URL]])","v":""},"MI5 : MI5 (Military Intelligence, Section 5): the UK's domestic counter-intelligence and security agency.","MI5 : MI5 (Military Intelligence, Section 5): the UK's domestic counter-intelligence and security agency. Its primary role is to protect the UK against threats to national security, including terrorism, espionage, and sabotage. MI5 operates within the UK and deals with internal security matters. It is responsible for counter-terrorism, counter-espionage, and counter-subversion activities. MI5 is often referred to as the Security Service."]
["",{"$f":"HYPERLINK(T_public[[#This Row],[URL]])","v":""},"MI6 : MI6 (Secret Intelligence Service - SIS): the UK's foreign intelligence service.","MI6 : MI6 (Secret Intelligence Service - SIS): the UK's foreign intelligence service. Its main responsibility is gathering intelligence from outside the UK in order to protect national security and promote UK interests abroad. MI6 operates internationally and is focused on gathering intelligence related to foreign governments, organizations, and individuals. Its activities include espionage, covert operations, and analysis of intelligence. MI6 is often referred to as the Secret Intelligence Service."]
["https://www.economist.com/the-economist-explains/2023/08/30/what-is-friendshoring",{"$f":"HYPERLINK(T_public[[#This Row],[URL]])","v":"https://www.economist.com/the-economist-explains/2023/08/30/what-is-friendshoring"},"friendshoring",""]
["https://www.youtube.com/watch?v=wNf3dN0VXqE",{"$f":"HYPERLINK(T_public[[#This Row],[URL]])","v":"https://www.youtube.com/watch?v=wNf3dN0VXqE"},"'Cloudalists' | As opposed to Capitalists...","","neologism etymologie etymology"]
["https://www.gao.gov/blog/what-continuing-resolution-and-how-does-it-impact-government-operations",{"$f":"HYPERLINK(T_public[[#This Row],[URL]])","v":"https://www.gao.gov/blog/what-continuing-resolution-and-how-does-it-impact-government-operations"},"CR : Continuing Resolution",""]
["",{"$f":"HYPERLINK(T_public[[#This Row],[URL]])","v":""},"QSI acronym : Quick Search Input",""]
["https://www.bis.org/",{"$f":"HYPERLINK(T_public[[#This Row],[URL]])","v":"https://www.bis.org/"},"BIS | Bank for International Settlements",""]
["https://www.who.int/",{"$f":"HYPERLINK(T_public[[#This Row],[URL]])","v":"https://www.who.int/"},"WHO","WHO World Health Organization"]
["https://docs.microsoft.com/en-us/windows/deployment/usmt/usmt-recognized-environment-variables",{"$f":"HYPERLINK(T_public[[#This Row],[URL]])","v":"https://docs.microsoft.com/en-us/windows/deployment/usmt/usmt-recognized-environment-variables"},"REV","REV Recognized Environment Variables"]
["https://www.cia.gov/",{"$f":"HYPERLINK(T_public[[#This Row],[URL]])","v":"https://www.cia.gov/"},"BIS | British Intelligence Services | Central Intelligence Services",""]
["https://www.opensocietyfoundations.org/",{"$f":"HYPERLINK(T_public[[#This Row],[URL]])","v":"https://www.opensocietyfoundations.org/"},"BIS | British Intelligence Services | Open Society Foundations","BIS | British Intelligence Services | Open Society Foundations BIS | British Intelligence Services | National Endowment for Democracy Thus it was that in 1983, the National Endowment for Democracy was set up to “support democratic institutions throughout the world through private, nongovernmental efforts”. Notice the “nongovernmental” – part of the image, part of the myth. In actuality, virtually every penny of its funding comes from the federal government, as is clearly indicated in the financial statement in each issue of its annual report. NED likes to refer to itself as an NGO (Non-governmental organization) because this helps to maintain a certain credibility abroad that an official US government agency might not have. But NGO is the wrong category. NED is a GO. “We should not have to do this kind of work covertly,” said Carl Gershman in 1986, while he was president of the Endowment. “It would be terrible for democratic groups around the world to be seen as subsidized by the C.I.A. We saw that in the 60’s, and that’s why it has been discontinued. We have not had the capability of doing this, and that’s why the endowment was created.” BIS | British Intelligence Services | NATO"]
["https://dmarc.org/",{"$f":"HYPERLINK(T_public[[#This Row],[URL]])","v":"https://dmarc.org/"},"dmarc","dmarc Domain-based Message Authentication, Reporting & Conformance"]
["https://www.arin.net/",{"$f":"HYPERLINK(T_public[[#This Row],[URL]])","v":"https://www.arin.net/"},"arin","arin American Registry for Internet Numbers"]
["https://sgp.fas.org/crs/weapons/IF11771.pdf",{"$f":"HYPERLINK(T_public[[#This Row],[URL]])","v":"https://sgp.fas.org/crs/weapons/IF11771.pdf"},"IADS","IADS Integrated Air Defense Systems"]
["https://en.wikipedia.org/wiki/Integrated_Services_Digital_Network",{"$f":"HYPERLINK(T_public[[#This Row],[URL]])","v":"https://en.wikipedia.org/wiki/Integrated_Services_Digital_Network"},"ISDN","ISDN Integrated Services Digital Network"]
["https://www.iaea.org/newscenter/news/nigeria-converts-its-research-reactor-from-heu-to-leu-fuel",{"$f":"HYPERLINK(T_public[[#This Row],[URL]])","v":"https://www.iaea.org/newscenter/news/nigeria-converts-its-research-reactor-from-heu-to-leu-fuel"},"LEU","LEU Low Enriched Uranium"]
["https://www.iaea.org/newscenter/news/nigeria-converts-its-research-reactor-from-heu-to-leu-fuel",{"$f":"HYPERLINK(T_public[[#This Row],[URL]])","v":"https://www.iaea.org/newscenter/news/nigeria-converts-its-research-reactor-from-heu-to-leu-fuel"},"HEU","HEU Highly Enriched Uranium"]
["https://www.iaea.org/newscenter/news/nigeria-converts-its-research-reactor-from-heu-to-leu-fuel",{"$f":"HYPERLINK(T_public[[#This Row],[URL]])","v":"https://www.iaea.org/newscenter/news/nigeria-converts-its-research-reactor-from-heu-to-leu-fuel"},"MNSR","MNSR Miniature Neutron Source Reactor"]
["https://www.iaea.org/newscenter/news/nigeria-converts-its-research-reactor-from-heu-to-leu-fuel",{"$f":"HYPERLINK(T_public[[#This Row],[URL]])","v":"https://www.iaea.org/newscenter/news/nigeria-converts-its-research-reactor-from-heu-to-leu-fuel"},"CNNC","CNNC China National Nuclear Corporation"]
["https://en.wikipedia.org/wiki/Broadcast_Wave_Format",{"$f":"HYPERLINK(T_public[[#This Row],[URL]])","v":"https://en.wikipedia.org/wiki/Broadcast_Wave_Format"},"BWF","BWF Broadcast Wave Format"]
["https://www.sounddevices.com/32-bit-float-files-explained/",{"$f":"HYPERLINK(T_public[[#This Row],[URL]])","v":"https://www.sounddevices.com/32-bit-float-files-explained/"},"BIT","BIT Binary Digit"]
["https://en.wikipedia.org/wiki/Address_Resolution_Protocol",{"$f":"HYPERLINK(T_public[[#This Row],[URL]])","v":"https://en.wikipedia.org/wiki/Address_Resolution_Protocol"},"ARP","ARP Address Resolution Protocol"]
["https://help.ubuntu.com/stable/ubuntu-help/addremove-ppa.html.en",{"$f":"HYPERLINK(T_public[[#This Row],[URL]])","v":"https://help.ubuntu.com/stable/ubuntu-help/addremove-ppa.html.en"},"PPA","PPA Personal Package Archive"]
["https://www.msn.com/en-us/news/technology/first-laser-weapon-for-a-fighter-delivered-to-the-air-force/ar-AAZsGSo?ocid=entnewsntp&cvid=d84ceb1ad31c49d4abd99b55060f3e54",{"$f":"HYPERLINK(T_public[[#This Row],[URL]])","v":"https://www.msn.com/en-us/news/technology/first-laser-weapon-for-a-fighter-delivered-to-the-air-force/ar-AAZsGSo?ocid=entnewsntp&cvid=d84ceb1ad31c49d4abd99b55060f3e54"},"LANCE","LANCE Laser Advancements for Next-generation Compact Environments"]
["https://www.msn.com/en-us/news/technology/first-laser-weapon-for-a-fighter-delivered-to-the-air-force/ar-AAZsGSo?ocid=entnewsntp&cvid=d84ceb1ad31c49d4abd99b55060f3e54",{"$f":"HYPERLINK(T_public[[#This Row],[URL]])","v":"https://www.msn.com/en-us/news/technology/first-laser-weapon-for-a-fighter-delivered-to-the-air-force/ar-AAZsGSo?ocid=entnewsntp&cvid=d84ceb1ad31c49d4abd99b55060f3e54"},"AFRL","AFRL Air Force Research Laboratory"]
["https://www.theburningplatform.com/2022/04/04/jfk-destiny-betrayed/",{"$f":"HYPERLINK(T_public[[#This Row],[URL]])","v":"https://www.theburningplatform.com/2022/04/04/jfk-destiny-betrayed/"},"ARRB","ARRB Assassination Records Review Board"]
["https://en.wikipedia.org/wiki/Artificial_general_intelligence",{"$f":"HYPERLINK(T_public[[#This Row],[URL]])","v":"https://en.wikipedia.org/wiki/Artificial_general_intelligence"},"(agi) Artificial General Intelligence",""]
["https://techwithtech.com/using-one-sim-card-with-two-phones/",{"$f":"HYPERLINK(T_public[[#This Row],[URL]])","v":"https://techwithtech.com/using-one-sim-card-with-two-phones/"},"(SIM) subscriber identity module",""]
["https://foldoc.org/cifs",{"$f":"HYPERLINK(T_public[[#This Row],[URL]])","v":"https://foldoc.org/cifs"},"(CIFS) common internet file system",""]
["https://foldoc.org/smb",{"$f":"HYPERLINK(T_public[[#This Row],[URL]])","v":"https://foldoc.org/smb"},"(SMB) Server Message Block protocol",""]
["https://foldoc.org/https",{"$f":"HYPERLINK(T_public[[#This Row],[URL]])","v":"https://foldoc.org/https"},"(https) HyperText Transmission Protocol, Secure",""]
["https://en.wikipedia.org/wiki/Financial_Services_Authority",{"$f":"HYPERLINK(T_public[[#This Row],[URL]])","v":"https://en.wikipedia.org/wiki/Financial_Services_Authority"},"FSA | The United Kingdom’s Financial Services Authority (FSA)",""]
["https://raymcgovern.com/2023/07/03/exposing-the-academia-think-tank-complex/",{"$f":"HYPERLINK(T_public[[#This Row],[URL]])","v":"https://raymcgovern.com/2023/07/03/exposing-the-academia-think-tank-complex/"},"MICIMATT | Military-Industrial-Congressional-Intelligence-Media-Academia-Think Tank complex | coined by Ray McGovern",""]
["https://eir.news/2024/01/daily-brief/eir-daily-news-wednesday-january-24-2024/",{"$f":"HYPERLINK(T_public[[#This Row],[URL]])","v":"https://eir.news/2024/01/daily-brief/eir-daily-news-wednesday-january-24-2024/"},"MIFC | Military Industrial Financial Complex | coined by Helga Zepp-LaRouche","","larouche"]
["",{"$f":"HYPERLINK(T_public[[#This Row],[URL]])","v":""},"USR | Unix System Resources","USR | Unix System Resources USR | Unix System Resources"]
["https://ieeexplore.ieee.org/document/7291983",{"$f":"HYPERLINK(T_public[[#This Row],[URL]])","v":"https://ieeexplore.ieee.org/document/7291983"},"SMPTE VC-3",""]
["https://en.wikipedia.org/wiki/Avid_DNxHD",{"$f":"HYPERLINK(T_public[[#This Row],[URL]])","v":"https://en.wikipedia.org/wiki/Avid_DNxHD"},"DNxHD | Avid DNxHD | Digital Nonlinear Extensible High Definition","DNxHD | Avid DNxHD | Digital Nonlinear Extensible High Definition Avid DNxHD (\"Digital Nonlinear Extensible High Definition\") is a lossy high-definition video post-production codec developed by Avid for multi-generation compositing with reduced storage and bandwidth requirements. It is an implementation of SMPTE VC-3 standard.[1]","video format hd"]
["https://en.wikipedia.org/wiki/Root_cause_analysis",{"$f":"HYPERLINK(T_public[[#This Row],[URL]])","v":"https://en.wikipedia.org/wiki/Root_cause_analysis"},"RCA | Root Cause Analysis","RCA | Root Cause Analysis RCA can be decomposed into four steps: Identify and describe the problem clearly Establish a timeline from the normal situation until the problem occurs Distinguish between the root cause and other causal factors (e.g., using event correlation) Establish a causal graph between the root cause and the problem"]
["https://voicemeeter.com/",{"$f":"HYPERLINK(T_public[[#This Row],[URL]])","v":"https://voicemeeter.com/"},"Voicemeeter",""]
["https://voicemeeter.com/quick-tips-voicemeeter-virtual-i-os/",{"$f":"HYPERLINK(T_public[[#This Row],[URL]])","v":"https://voicemeeter.com/quick-tips-voicemeeter-virtual-i-os/"},"VAIO | Virtual Audio Inputs Outputs",""]
["https://www.freightright.com/kb/teu",{"$f":"HYPERLINK(T_public[[#This Row],[URL]])","v":"https://www.freightright.com/kb/teu"},"(TEU) | Twenty Foot Equivalent [context: shipping]",""]
["https://github.com/Adobe-CEP/CEP-Resources",{"$f":"HYPERLINK(T_public[[#This Row],[URL]])","v":"https://github.com/Adobe-CEP/CEP-Resources"},"CEP (*Adobe scope)","CEP (*Adobe scope) Common Extensibility Platform"]
["#",{"$f":"HYPERLINK(T_public[[#This Row],[URL]])","v":"#"},"SPG","SPG Special Procedures Group"]
["#",{"$f":"HYPERLINK(T_public[[#This Row],[URL]])","v":"#"},"OPC","OPC Office of Policy Coordination"]
["#",{"$f":"HYPERLINK(T_public[[#This Row],[URL]])","v":"#"},"SEU","SEU Single Event Upset"]
["#",{"$f":"HYPERLINK(T_public[[#This Row],[URL]])","v":"#"},"TSO","TSO Temps Supplémentaire Obligatoire"]
["#",{"$f":"HYPERLINK(T_public[[#This Row],[URL]])","v":"#"},"BSR","BSR Best Sellers Rank"]
["#",{"$f":"HYPERLINK(T_public[[#This Row],[URL]])","v":"#"},"ASIN","ASIN Amazon Standard Identification Number"]
["#",{"$f":"HYPERLINK(T_public[[#This Row],[URL]])","v":"#"},"AF","AF Audio Frequency"]
["#",{"$f":"HYPERLINK(T_public[[#This Row],[URL]])","v":"#"},"spf","spf Sender Policy Framework [to prevent spoofing...]"]
["#",{"$f":"HYPERLINK(T_public[[#This Row],[URL]])","v":"#"},"ptr","ptr Pointer (as used in DNS records; an address points to a name)"]
["#",{"$f":"HYPERLINK(T_public[[#This Row],[URL]])","v":"#"},"soa","soa Start of Authority"]
["#",{"$f":"HYPERLINK(T_public[[#This Row],[URL]])","v":"#"},"ADSP","ADSP (automatic data set protection) attribute"]
["#",{"$f":"HYPERLINK(T_public[[#This Row],[URL]])","v":"#"},"DKIM","DKIM DomainKeys Identified Mail"]
["#",{"$f":"HYPERLINK(T_public[[#This Row],[URL]])","v":"#"},"mta","mta Mail Transfer Agent"]
["#",{"$f":"HYPERLINK(T_public[[#This Row],[URL]])","v":"#"},"mta-sts","mta-sts Mail Transfer Agent Strict Transport Security (MTA-STS) is an email security standard for secure delivery of email to your domain. With MTA-STS you let senders know that your email server accepts secure email delivery using SMTP over TLS (STARTTLS), and that email should not be delivered over an insecure SMTP connection.MTA-STS mitigates Man-In-The-Middle DNS and SMTP downgrade attacks that would allow an attacker to read or manipulate email in transit."]
["#",{"$f":"HYPERLINK(T_public[[#This Row],[URL]])","v":"#"},"mx","mx The DNS MX record directs emails to a mail exchange server."]
["#",{"$f":"HYPERLINK(T_public[[#This Row],[URL]])","v":"#"},"dns","dns domain name system [When users type domain names into the URL bar in their browser, DNS servers are responsible for translating those domain names to numeric IP addresses, leading them to the correct website.]"]
["#",{"$f":"HYPERLINK(T_public[[#This Row],[URL]])","v":"#"},"ttl","ttl time to live"]
["#",{"$f":"HYPERLINK(T_public[[#This Row],[URL]])","v":"#"},"CECC","CECC Conférence des évêques catholiques du Canada"]
["#",{"$f":"HYPERLINK(T_public[[#This Row],[URL]])","v":"#"},"ADM","ADM Advanced Development and Manufacturing"]
["#",{"$f":"HYPERLINK(T_public[[#This Row],[URL]])","v":"#"},"ADP","ADP Advanced Development Partnership"]
["#",{"$f":"HYPERLINK(T_public[[#This Row],[URL]])","v":"#"},"AMC","AMC Advance Market Commitment"]
["#",{"$f":"HYPERLINK(T_public[[#This Row],[URL]])","v":"#"},"AVAREF","AVAREF African Vaccine Regulatory Forum"]
["#",{"$f":"HYPERLINK(T_public[[#This Row],[URL]])","v":"#"},"BARDA","BARDA The Biomedical Advanced Research and Development Authority"]
["#",{"$f":"HYPERLINK(T_public[[#This Row],[URL]])","v":"#"},"BPO","BPO Dedicated Bio preparedness Organization"]
["#",{"$f":"HYPERLINK(T_public[[#This Row],[URL]])","v":"#"},"CEPI","CEPI Coalition for Epidemic Preparedness Innovation"]
["#",{"$f":"HYPERLINK(T_public[[#This Row],[URL]])","v":"#"},"CIADMs","CIADMs Centers for Innovation in Advanced Development and Manufacturing"]
["#",{"$f":"HYPERLINK(T_public[[#This Row],[URL]])","v":"#"},"CMOs","CMOs Contract Manufacturing Organizations"]
["#",{"$f":"HYPERLINK(T_public[[#This Row],[URL]])","v":"#"},"COI","COI Conflict of Interest"]
["#",{"$f":"HYPERLINK(T_public[[#This Row],[URL]])","v":"#"},"DCVMN","DCVMN Developing Countries Vaccine Manufacturers Network"]
["#",{"$f":"HYPERLINK(T_public[[#This Row],[URL]])","v":"#"},"EC","EC European Commission"]
["#",{"$f":"HYPERLINK(T_public[[#This Row],[URL]])","v":"#"},"EID","EID Epidemic Infectious Disease"]
["#",{"$f":"HYPERLINK(T_public[[#This Row],[URL]])","v":"#"},"EMA","EMA European Medicines Agency"]
["#",{"$f":"HYPERLINK(T_public[[#This Row],[URL]])","v":"#"},"GAVI","GAVI Gavi, the Vaccine Alliance"]
["#",{"$f":"HYPERLINK(T_public[[#This Row],[URL]])","v":"#"},"GMP","GMP Good Manufacturing Practices"]
["#",{"$f":"HYPERLINK(T_public[[#This Row],[URL]])","v":"#"},"IFFim","IFFim International Finance Facility for Immunization"]
["#",{"$f":"HYPERLINK(T_public[[#This Row],[URL]])","v":"#"},"IMI","IMI Innovative Medicines Initiative"]
["#",{"$f":"HYPERLINK(T_public[[#This Row],[URL]])","v":"#"},"JCG","JCG Joint Coordination Group"]
["#",{"$f":"HYPERLINK(T_public[[#This Row],[URL]])","v":"#"},"LMICs","LMICs Low and Middle Income Countries"]
["#",{"$f":"HYPERLINK(T_public[[#This Row],[URL]])","v":"#"},"LSHTM","LSHTM London School of Hygiene and Tropical Medicine"]
["#",{"$f":"HYPERLINK(T_public[[#This Row],[URL]])","v":"#"},"MNC","MNC Multinational Corporation"]
["#",{"$f":"HYPERLINK(T_public[[#This Row],[URL]])","v":"#"},"NIPH","NIPH Norwegian Institute of Public Health"]
["#",{"$f":"HYPERLINK(T_public[[#This Row],[URL]])","v":"#"},"NAM","NAM National Academy of Medicine"]
["#",{"$f":"HYPERLINK(T_public[[#This Row],[URL]])","v":"#"},"PDP","PDP Performance Designed Products?"]
["#",{"$f":"HYPERLINK(T_public[[#This Row],[URL]])","v":"#"},"PHEIC","PHEIC Public Health Emergency of International Concern"]
["#",{"$f":"HYPERLINK(T_public[[#This Row],[URL]])","v":"#"},"PPCs","PPCs Preferred Product Characteristics"]
["#",{"$f":"HYPERLINK(T_public[[#This Row],[URL]])","v":"#"},"R&D","R&D Research and Development"]
["#",{"$f":"HYPERLINK(T_public[[#This Row],[URL]])","v":"#"},"RfP","RfP Requests for Proposal"]
["#",{"$f":"HYPERLINK(T_public[[#This Row],[URL]])","v":"#"},"SAC","SAC Scientific Advisory Committee"]
["#",{"$f":"HYPERLINK(T_public[[#This Row],[URL]])","v":"#"},"TPP","TPP Target Product Profile"]
["#",{"$f":"HYPERLINK(T_public[[#This Row],[URL]])","v":"#"},"UNSG","UNSG Secretary-General of the United Nations"]
["#",{"$f":"HYPERLINK(T_public[[#This Row],[URL]])","v":"#"},"US FDA","US FDA United States Food and Drug Administration"]
["#",{"$f":"HYPERLINK(T_public[[#This Row],[URL]])","v":"#"},"WHO PQ","WHO PQ World Health Organization Prequalified Vaccines"]
["#",{"$f":"HYPERLINK(T_public[[#This Row],[URL]])","v":"#"},"ro noielv","ro noielv Principle of synthesis"]
["#",{"$f":"HYPERLINK(T_public[[#This Row],[URL]])","v":"#"},"DPA","DPA A Deferred Prosecution Agreement (DPA) is a contract between the defendant and the State Attorney’s Office. This contract is typically negotiated between a defense attorney and a prosecutor. Typically a defendant must have no prior criminal history and in cases involving a victim (battery), the victim usually must be okay with a deferred prosecution agreement being offered."]
["#",{"$f":"HYPERLINK(T_public[[#This Row],[URL]])","v":"#"},"CTKA","CTKA Citizens for truth Kennedy Assasination"]
["#",{"$f":"HYPERLINK(T_public[[#This Row],[URL]])","v":"#"},"FPV","FPV First Person View"]
["#",{"$f":"HYPERLINK(T_public[[#This Row],[URL]])","v":"#"},"MSC","MSC Microsoft Common Console (as in gpedit msc"]
["#",{"$f":"HYPERLINK(T_public[[#This Row],[URL]])","v":"#"},"NDLR","NDLR Note de la rédaction"]
["#",{"$f":"HYPERLINK(T_public[[#This Row],[URL]])","v":"#"},"TLDR","TLDR Too Long; Didn't Read"]
["#",{"$f":"HYPERLINK(T_public[[#This Row],[URL]])","v":"#"},"UNC","UNC Universal Naming Convention"]
["#",{"$f":"HYPERLINK(T_public[[#This Row],[URL]])","v":"#"},"PAR","PAR Photosynthetically Active Radiation"]
["#",{"$f":"HYPERLINK(T_public[[#This Row],[URL]])","v":"#"},"DXP","DXP Digital Experience Platforms"]
["#",{"$f":"HYPERLINK(T_public[[#This Row],[URL]])","v":"#"},"VENV","VENV Virtual Environment"]
["#",{"$f":"HYPERLINK(T_public[[#This Row],[URL]])","v":"#"},"VMware ESXi","VMware ESXi The name ESX originated as an abbreviation of Elastic Sky X.[7][8] In September 2004, the replacement for ESX was internally called VMvisor, but later changed to ESXi (as the \"i\" in ESXi stood for \"integrated\") Elastic Sky X integrated"]
["https://www.guideautoweb.com/",{"$f":"HYPERLINK(T_public[[#This Row],[URL]])","v":"https://www.guideautoweb.com/"},"guide de l'auto web",""]
["https://eng.yidaiyilu.gov.cn/",{"$f":"HYPERLINK(T_public[[#This Row],[URL]])","v":"https://eng.yidaiyilu.gov.cn/"},"Belt and Road Initiative (BRI) | English portal",""]
["https://fra.yidaiyilu.gov.cn/",{"$f":"HYPERLINK(T_public[[#This Row],[URL]])","v":"https://fra.yidaiyilu.gov.cn/"},"Portail de la Ceinture et la Route | Portail Français",""]
["https://brucedetorres.com/",{"$f":"HYPERLINK(T_public[[#This Row],[URL]])","v":"https://brucedetorres.com/"},"bruce torres",""]
["",{"$f":"HYPERLINK(T_public[[#This Row],[URL]])","v":""},"Leibniz + Linguistics","Leibniz + Linguistics autoditact Leibniz on the Universal Characteristic ~boxicube"]
["https://matthewehret.substack.com",{"$f":"HYPERLINK(T_public[[#This Row],[URL]])","v":"https://matthewehret.substack.com"},"matthewehret.substack.com",""]
["https://www.lesbelleslettres.com/livre/9782251450117/les-adages",{"$f":"HYPERLINK(T_public[[#This Row],[URL]])","v":"https://www.lesbelleslettres.com/livre/9782251450117/les-adages"},"les adages Érasmes",""]
["https://new.thecradle.co/columns/pepe-escobar",{"$f":"HYPERLINK(T_public[[#This Row],[URL]])","v":"https://new.thecradle.co/columns/pepe-escobar"},"pepe escobar (@realpepeescobar)",""]
["https://www.michaelgeist.ca/",{"$f":"HYPERLINK(T_public[[#This Row],[URL]])","v":"https://www.michaelgeist.ca/"},"Michael Geist","Michael Geist mgeist@uottawa.ca twitter@mgeist mas.to/@mgeist linkedin.com/in/michaelgeist https://www.facebook.com/michaelgeist/ https://podcasts.apple.com/ca/podcast/law-bytes/id1455262794 https://open.spotify.com/show/5iDUCcDrkzGai0OdTgoucv?si=IZc4-lCCQ4GlyoHEo16wdA"]
["https://www.alloprof.qc.ca/",{"$f":"HYPERLINK(T_public[[#This Row],[URL]])","v":"https://www.alloprof.qc.ca/"},"allo prof","","pedagogique"]
["https://www.youtube.com/@hedacademy",{"$f":"HYPERLINK(T_public[[#This Row],[URL]])","v":"https://www.youtube.com/@hedacademy"},"@hedacademy",""]
["https://www.usgs.gov/",{"$f":"HYPERLINK(T_public[[#This Row],[URL]])","v":"https://www.usgs.gov/"},"usgs United States Geological Survey",""]
["https://www.letemps.ch/",{"$f":"HYPERLINK(T_public[[#This Row],[URL]])","v":"https://www.letemps.ch/"},"Le Temps",""]
["https://developer.mozilla.org/en-US/docs/Web/API/WebVTT_API",{"$f":"HYPERLINK(T_public[[#This Row],[URL]])","v":"https://developer.mozilla.org/en-US/docs/Web/API/WebVTT_API"},"Web Video Text Tracks Format (WebVTT)","","webvtt mdn video web"]
["http://www.javascriptkit.com/howto/ssi2.shtml",{"$f":"HYPERLINK(T_public[[#This Row],[URL]])","v":"http://www.javascriptkit.com/howto/ssi2.shtml"},"ssi javascript server side includes","","ssi serverSide include"]
["https://docs.racket-lang.org/pollen/",{"$f":"HYPERLINK(T_public[[#This Row],[URL]])","v":"https://docs.racket-lang.org/pollen/"},"◊ pollen | Racket | Matthew Butterick","◊ pollen | Racket | Matthew Butterick ~pollen Windows: holding down Alt, type 9674 on the num pad","pollen mb"]
["https://www.youtube.com/watch?v=k3hyKj60N4k",{"$f":"HYPERLINK(T_public[[#This Row],[URL]])","v":"https://www.youtube.com/watch?v=k3hyKj60N4k"},"Ibn Sina - Master of All Sciences (Philosophy)",""]
["https://plato.stanford.edu/entries/al-farabi-metaphysics/reviving-sciences.html",{"$f":"HYPERLINK(T_public[[#This Row],[URL]])","v":"https://plato.stanford.edu/entries/al-farabi-metaphysics/reviving-sciences.html"},"Al-Farabi on the Scopes of the Aristotelian Metaphysics",""]
["xURLxFILExPATHx",{"$f":"HYPERLINK(T_public[[#This Row],[URL]])","v":"xURLxFILExPATHx"},"Al-Kindi's Metaphysics: First Philosophy as the Study of God",""]
["xURLxFILExPATHx",{"$f":"HYPERLINK(T_public[[#This Row],[URL]])","v":"xURLxFILExPATHx"},"Islamic (Arabic and Persian) Logic and Ontology",""]
["https://www.gutenberg.org/ebooks/search/?query=plato&submit_search=Go%21",{"$f":"HYPERLINK(T_public[[#This Row],[URL]])","v":"https://www.gutenberg.org/ebooks/search/?query=plato&submit_search=Go%21"},"Plato",""]
["https://www.gutenberg.org/ebooks/search/?query=Leibniz&submit_search=Go%21",{"$f":"HYPERLINK(T_public[[#This Row],[URL]])","v":"https://www.gutenberg.org/ebooks/search/?query=Leibniz&submit_search=Go%21"},"Leibniz",""]
["https://www.ontology.co/idx00.htm",{"$f":"HYPERLINK(T_public[[#This Row],[URL]])","v":"https://www.ontology.co/idx00.htm"},"Ontology",""]
["https://pubchem.ncbi.nlm.nih.gov/periodic-table/",{"$f":"HYPERLINK(T_public[[#This Row],[URL]])","v":"https://pubchem.ncbi.nlm.nih.gov/periodic-table/"},"Periodic Table of Elements | NIH National Library of Medicine",""]
["https://en.wikipedia.org/wiki/Period_%28periodic_table%29",{"$f":"HYPERLINK(T_public[[#This Row],[URL]])","v":"https://en.wikipedia.org/wiki/Period_%28periodic_table%29"},"Periodic Table of Elements | Wikipedia",""]
["https://archive.md/3Bxft",{"$f":"HYPERLINK(T_public[[#This Row],[URL]])","v":"https://archive.md/3Bxft"},"Forbes: 18 Places To See The Next Total Solar Eclipse In 850 Days | Spain 2026 | Aug 12",""]
["https://www.youtube.com/watch?v=cyStqtW74e8",{"$f":"HYPERLINK(T_public[[#This Row],[URL]])","v":"https://www.youtube.com/watch?v=cyStqtW74e8"},"How to photograph a SOLAR ECLIPSE! Tutorial and guide",""]
["https://www.mreclipse.com/",{"$f":"HYPERLINK(T_public[[#This Row],[URL]])","v":"https://www.mreclipse.com/"},"Fred Espenak Eclipse Chaser","Fred Espenak Eclipse Chaser interview"]
["https://en.wikipedia.org/wiki/Timeline_of_astronomy",{"$f":"HYPERLINK(T_public[[#This Row],[URL]])","v":"https://en.wikipedia.org/wiki/Timeline_of_astronomy"},"Timeline of Astronomy",""]
["https://en.wikipedia.org/wiki/Timeline_of_astronomy",{"$f":"HYPERLINK(T_public[[#This Row],[URL]])","v":"https://en.wikipedia.org/wiki/Timeline_of_astronomy"},"380 BCE Aristotle, a Greek polymath, described gravity as a downward motion which moves towards the centre of the earth.[5]",""]
["https://rauterberg.employee.id.tue.nl/lecturenotes/DDM110%20CAS/Galilei-1632%20Dialogue%20Concerning%20the%20Two%20Chief%20World%20Systems.pdf",{"$f":"HYPERLINK(T_public[[#This Row],[URL]])","v":"https://rauterberg.employee.id.tue.nl/lecturenotes/DDM110%20CAS/Galilei-1632%20Dialogue%20Concerning%20the%20Two%20Chief%20World%20Systems.pdf"},"Galilei",""]
["https://www.almanac.com/",{"$f":"HYPERLINK(T_public[[#This Row],[URL]])","v":"https://www.almanac.com/"},"almanac USA",""]
["https://www.farmersalmanac.com/canadian-extended-forecast",{"$f":"HYPERLINK(T_public[[#This Row],[URL]])","v":"https://www.farmersalmanac.com/canadian-extended-forecast"},"almanac Canada","almanac Canada buy 2024 canadian almanac on amazon.ca","canada"]
["https://codecguide.com/download_kl.htm",{"$f":"HYPERLINK(T_public[[#This Row],[URL]])","v":"https://codecguide.com/download_kl.htm"},"codec guide k-lite codec pack",""]
["https://www.mainconcept.com/",{"$f":"HYPERLINK(T_public[[#This Row],[URL]])","v":"https://www.mainconcept.com/"},"mainconcept.com","","codecs"]
["http://www.compression.ru/compression.ru/video/",{"$f":"HYPERLINK(T_public[[#This Row],[URL]])","v":"http://www.compression.ru/compression.ru/video/"},"compression.ru/video","","codecs"]
["https://basis.hosted.uark.edu/HowPCtoMainframe.html",{"$f":"HYPERLINK(T_public[[#This Row],[URL]])","v":"https://basis.hosted.uark.edu/HowPCtoMainframe.html"},"basis",""]
["https://www.professormesser.com/free-a-plus-training/a-plus-videos/professor-messers-free-comptia-a-certification-training-course/",{"$f":"HYPERLINK(T_public[[#This Row],[URL]])","v":"https://www.professormesser.com/free-a-plus-training/a-plus-videos/professor-messers-free-comptia-a-certification-training-course/"},"comp tia a+",""]
["https://datatracker.ietf.org/doc/html/rfc1035",{"$f":"HYPERLINK(T_public[[#This Row],[URL]])","v":"https://datatracker.ietf.org/doc/html/rfc1035"},"Domain Names",""]
["https://www.rfc-editor.org/rfc/rfc9110.html#name-server-error-5xx",{"$f":"HYPERLINK(T_public[[#This Row],[URL]])","v":"https://www.rfc-editor.org/rfc/rfc9110.html#name-server-error-5xx"},"Server Error | 5xx | > 500",""]
["https://www.rfc-editor.org/",{"$f":"HYPERLINK(T_public[[#This Row],[URL]])","v":"https://www.rfc-editor.org/"},"rfc editor org",""]
["https://www.rfc-editor.org/info/rfc6890",{"$f":"HYPERLINK(T_public[[#This Row],[URL]])","v":"https://www.rfc-editor.org/info/rfc6890"},"Special-Purpose IP Address Registries, APRIL 2013 BCP 153 RFC 6890",""]
["https://www.rfc-editor.org/rfc/rfc9110",{"$f":"HYPERLINK(T_public[[#This Row],[URL]])","v":"https://www.rfc-editor.org/rfc/rfc9110"},"http Server errors","http Server errors 15.6. Server Error 5xx | RFC 9110 | HTTP Semantics 500 Internal Server Error 501 Internal Server Error 502 Bad Gateway 503 Service Unavailable 504 Gateway Timeout 505 HTTP Version Not Supported"]
["https://osintframework.com/",{"$f":"HYPERLINK(T_public[[#This Row],[URL]])","v":"https://osintframework.com/"},"OSINT Framework","OSINT Framework watched: useful yt @TheCISOPerspective maltego.com spiderfoot github.spiderfoot Specialized: Babel X | Recon-ng | Metagoofil Google Dork | Shodan: Computer Search Engine | Netcraft andy@cisoperspective.com"]
["https://orgmode.org/",{"$f":"HYPERLINK(T_public[[#This Row],[URL]])","v":"https://orgmode.org/"},"Org Mode | Life in plain text","","plain text plainText org"]
["https://standards.ieee.org/ieee/802.15.6/5364/",{"$f":"HYPERLINK(T_public[[#This Row],[URL]])","v":"https://standards.ieee.org/ieee/802.15.6/5364/"},"WBAN, BAN Body Area Networks | IEEE Standard for Local and metropolitan area networks - Part 15.6: Wireless Body Area Networks",""]
["https://www.linuxjournal.com/article/8618",{"$f":"HYPERLINK(T_public[[#This Row],[URL]])","v":"https://www.linuxjournal.com/article/8618"},"CUPS | The CUPS Printing System",""]
["https://michelburnett27.medium.com/understanding-cidr-notation-and-ip-address-range-3ad28194bc8d",{"$f":"HYPERLINK(T_public[[#This Row],[URL]])","v":"https://michelburnett27.medium.com/understanding-cidr-notation-and-ip-address-range-3ad28194bc8d"},"Understanding CIDR Notation and IP Address Range | Slash notation",""]
["https://developers.cloudflare.com/fundamentals/",{"$f":"HYPERLINK(T_public[[#This Row],[URL]])","v":"https://developers.cloudflare.com/fundamentals/"},"cloudflare fundamentals",""]
["https://www.cloudflare.com/learning/dns/dns-records/#:~:text=DNS%20records%20(aka%20zone%20files,is%20known%20as%20DNS%20syntax.",{"$f":"HYPERLINK(T_public[[#This Row],[URL]])","v":"https://www.cloudflare.com/learning/dns/dns-records/#:~:text=DNS%20records%20(aka%20zone%20files,is%20known%20as%20DNS%20syntax."},"DNS Records",""]
["https://foldoc.org/Dictionary",{"$f":"HYPERLINK(T_public[[#This Row],[URL]])","v":"https://foldoc.org/Dictionary"},"foldoc .txt dictionary",""]
["https://foldoc.org/",{"$f":"HYPERLINK(T_public[[#This Row],[URL]])","v":"https://foldoc.org/"},"foldoc Free On-Line Dictionary of Computing",""]
["https://www.iana.org/assignments/http-status-codes/http-status-codes.xhtml",{"$f":"HYPERLINK(T_public[[#This Row],[URL]])","v":"https://www.iana.org/assignments/http-status-codes/http-status-codes.xhtml"},"Hypertext Transfer Protocol (HTTP) Status Code Registry | Internet Assigned Numbers Authority(iana)",""]
["https://en.wikipedia.org/wiki/List_of_HTTP_status_codes",{"$f":"HYPERLINK(T_public[[#This Row],[URL]])","v":"https://en.wikipedia.org/wiki/List_of_HTTP_status_codes"},"List of HTTP status codes","","list server it"]
["https://www.iso.org/home.html",{"$f":"HYPERLINK(T_public[[#This Row],[URL]])","v":"https://www.iso.org/home.html"},"iso org [standards]",""]
["https://www.ieee.org/",{"$f":"HYPERLINK(T_public[[#This Row],[URL]])","v":"https://www.ieee.org/"},"ieee",""]
["https://www.ieee.org/",{"$f":"HYPERLINK(T_public[[#This Row],[URL]])","v":"https://www.ieee.org/"},"ieee | Institute of Electrical and Electronics Engineers","ieee | Institute of Electrical and Electronics Engineers the professional home for the engineering and technology community worldwide"]
["https://technationcanada.ca/en/",{"$f":"HYPERLINK(T_public[[#This Row],[URL]])","v":"https://technationcanada.ca/en/"},"Technation",""]
["https://www.ietf.org/",{"$f":"HYPERLINK(T_public[[#This Row],[URL]])","v":"https://www.ietf.org/"},"Internet Engineering Task Force (IETF)","Internet Engineering Task Force (IETF) The Internet Engineering Task Force (IETF), founded in 1986, is the premier standards development organization (SDO) for the Internet."]
["https://www.internetsociety.org/",{"$f":"HYPERLINK(T_public[[#This Row],[URL]])","v":"https://www.internetsociety.org/"},"Internet Society","Internet Society Cources Available --> Learning @ Internet Society"]
["https://www.techopedia.com/2/29900/enterprise/mainframes-arent-dead",{"$f":"HYPERLINK(T_public[[#This Row],[URL]])","v":"https://www.techopedia.com/2/29900/enterprise/mainframes-arent-dead"},"Why Mainframes?",""]
["https://kb.synology.com/en-global/search?query=hsts",{"$f":"HYPERLINK(T_public[[#This Row],[URL]])","v":"https://kb.synology.com/en-global/search?query=hsts"},"HSTS | HTTP Strict Transport Security",""]
["https://www.qnap.com/en/product/ts-h1290fx",{"$f":"HYPERLINK(T_public[[#This Row],[URL]])","v":"https://www.qnap.com/en/product/ts-h1290fx"},"qnap ts-h1290fx","","flash nas"]
["https://www.synology.com/en-us",{"$f":"HYPERLINK(T_public[[#This Row],[URL]])","v":"https://www.synology.com/en-us"},"synology",""]
["https://photos.boxicube.com/",{"$f":"HYPERLINK(T_public[[#This Row],[URL]])","v":"https://photos.boxicube.com/"},"nas photos",""]
["https://video.boxicube.com/",{"$f":"HYPERLINK(T_public[[#This Row],[URL]])","v":"https://video.boxicube.com/"},"nas video",""]
["https://fs.boxicube.com/",{"$f":"HYPERLINK(T_public[[#This Row],[URL]])","v":"https://fs.boxicube.com/"},"nas file station fs",""]
["https://drive.boxicube.com/",{"$f":"HYPERLINK(T_public[[#This Row],[URL]])","v":"https://drive.boxicube.com/"},"nas drive",""]
["https://cal.boxicube.com/",{"$f":"HYPERLINK(T_public[[#This Row],[URL]])","v":"https://cal.boxicube.com/"},"nas calendar cal",""]
["https://cs.boxicube.com/",{"$f":"HYPERLINK(T_public[[#This Row],[URL]])","v":"https://cs.boxicube.com/"},"nas contacts",""]
["https://ds.boxicube.com/",{"$f":"HYPERLINK(T_public[[#This Row],[URL]])","v":"https://ds.boxicube.com/"},"nas download station ds",""]
["https://audio.boxicube.com/",{"$f":"HYPERLINK(T_public[[#This Row],[URL]])","v":"https://audio.boxicube.com/"},"nas audio",""]
["https://web.boxicube.com/youtubeChOptimized.html",{"$f":"HYPERLINK(T_public[[#This Row],[URL]])","v":"https://web.boxicube.com/youtubeChOptimized.html"},"youtubeChOptimized | Contour ShuttlePRO2","youtubeChOptimized | Contour ShuttlePRO 2"]
["https://web.boxicube.com/browserScroll.html",{"$f":"HYPERLINK(T_public[[#This Row],[URL]])","v":"https://web.boxicube.com/browserScroll.html"},"browserScroll | Contour ShuttlePRO2","browserScroll | Contour ShuttlePRO 2"]
["https://web.boxicube.com/VideoStation.html",{"$f":"HYPERLINK(T_public[[#This Row],[URL]])","v":"https://web.boxicube.com/VideoStation.html"},"VideoStation | Contour ShuttlePRO2","VideoStation | Contour ShuttlePRO 2"]
["https://web.boxicube.com/mpcSlowFast.html",{"$f":"HYPERLINK(T_public[[#This Row],[URL]])","v":"https://web.boxicube.com/mpcSlowFast.html"},"mpcSlowFast | Contour ShuttlePRO2","mpcSlowFast | Contour ShuttlePRO 2"]
["https://web.boxicube.com/mpc.html",{"$f":"HYPERLINK(T_public[[#This Row],[URL]])","v":"https://web.boxicube.com/mpc.html"},"mpc | Contour ShuttlePRO2","mpc | Contour ShuttlePRO 2"]
["https://web.boxicube.com/TelegramMax.html",{"$f":"HYPERLINK(T_public[[#This Row],[URL]])","v":"https://web.boxicube.com/TelegramMax.html"},"Telegram | Contour ShuttlePRO2","Telegram | Contour ShuttlePRO 2","telegram"]
["https://developer.apple.com/wwdc24/",{"$f":"HYPERLINK(T_public[[#This Row],[URL]])","v":"https://developer.apple.com/wwdc24/"},"apple wdc24 dev conference",""]
["https://www.freeformatter.com/url-parser-query-string-splitter.html",{"$f":"HYPERLINK(T_public[[#This Row],[URL]])","v":"https://www.freeformatter.com/url-parser-query-string-splitter.html"},"url query string parser | html url path parser","","parse html url path online service saas"]
["https://www.linkedin.com/learning-login/go/validate?account=70820380&redirect=https%3A%2F%2Fwww.linkedin.com%2Flearning-login%2Fcontinue%3FauthUUID%3D0ZCcXWKlQf%252BZEideFj7MAA%253D%253D%26forceAccount%3Dfalse%26redirect%3D%252Flearning%252F&authUUID=0ZCcXWKlQf%2BZEideFj7MAA%3D%3D",{"$f":"HYPERLINK(T_public[[#This Row],[URL]])","v":{"$error":"#VALUE!"}},"LinkedIn Learning (formerly lynda.com)",""]
["https://www.linkedin.com/learning/laravel-9-0-essential-training/",{"$f":"HYPERLINK(T_public[[#This Row],[URL]])","v":"https://www.linkedin.com/learning/laravel-9-0-essential-training/"},"Laravel 9.0 Essential Training",""]
["https://school.studioweb.com/user-dashboard",{"$f":"HYPERLINK(T_public[[#This Row],[URL]])","v":"https://school.studioweb.com/user-dashboard"},"studio web stefan mischook",""]
["https://www.udemy.com/dashboard/purchase-history/",{"$f":"HYPERLINK(T_public[[#This Row],[URL]])","v":"https://www.udemy.com/dashboard/purchase-history/"},"udemy",""]
["https://www.astrolab.qc.ca/en/activity/eclipses/",{"$f":"HYPERLINK(T_public[[#This Row],[URL]])","v":"https://www.astrolab.qc.ca/en/activity/eclipses/"},"astrolab mont mégantic",""]
["https://www.marxists.org/history/etol/newspape/fi/vol15/no02/marcus.html",{"$f":"HYPERLINK(T_public[[#This Row],[URL]])","v":"https://www.marxists.org/history/etol/newspape/fi/vol15/no02/marcus.html"},"Automation | The New Industrial Revolution","Automation | The New Industrial Revolution PDF: Vol15 No2 Spring 1954 Fourth International"]
["https://developer.mozilla.org/en-US/docs/Web/CSS/CSS_colors/Color_picker_tool",{"$f":"HYPERLINK(T_public[[#This Row],[URL]])","v":"https://developer.mozilla.org/en-US/docs/Web/CSS/CSS_colors/Color_picker_tool"},"color picker with translations RGB HEX HSL","","color picker rgb hex"]
["https://clrs.cc/",{"$f":"HYPERLINK(T_public[[#This Row],[URL]])","v":"https://clrs.cc/"},"clrs.cc",""]
["https://g.co/kgs/PDiZC2R",{"$f":"HYPERLINK(T_public[[#This Row],[URL]])","v":"https://g.co/kgs/PDiZC2R"},"google color picker","","color"]
["https://htmlcolorcodes.com/resources/",{"$f":"HYPERLINK(T_public[[#This Row],[URL]])","v":"https://htmlcolorcodes.com/resources/"},"html color codes resources","","color"]
["https://www.ibm.com/design/language/color/",{"$f":"HYPERLINK(T_public[[#This Row],[URL]])","v":"https://www.ibm.com/design/language/color/"},"ibm color palette","","color"]
["https://www.w3schools.com/colors/colors_picker.asp",{"$f":"HYPERLINK(T_public[[#This Row],[URL]])","v":"https://www.w3schools.com/colors/colors_picker.asp"},"(w3Schools)","","web w3schools"]
["https://www.w3schools.com/colors/colors_gradient.asp",{"$f":"HYPERLINK(T_public[[#This Row],[URL]])","v":"https://www.w3schools.com/colors/colors_gradient.asp"},"(w3Schools) color gradients","","web w3schools color"]
["https://www.w3schools.com/w3css/w3css_colors.asp",{"$f":"HYPERLINK(T_public[[#This Row],[URL]])","v":"https://www.w3schools.com/w3css/w3css_colors.asp"},"(web.dev) W3 colors","(web.dev) W3 colors Red Pink Purple Deep Purple Indigo Blue Light Blue Cyan Aqua Teal Green Light Green Lime Sand Khaki Yellow Amber Orange Deep Orange Blue Gray Brown Light Gray Gray Dark Gray Pale Red Pale Yellow Pale Green Pale-Blue","web webdev color"]
["",{"$f":"HYPERLINK(T_public[[#This Row],[URL]])","v":""},"~rfm : royalty free media","","acronym acronyme"]
["",{"$f":"HYPERLINK(T_public[[#This Row],[URL]])","v":""},"JTT : Jump To Time ~ DTP : Début Temp Précis","","acronym acronyme video timecode ffmpeg yt-dlp"]
["https://www.motherjones.com/politics/2023/02/columbia-journalism-review-jeff-gerth-trump-russia-the-media/",{"$f":"HYPERLINK(T_public[[#This Row],[URL]])","v":"https://www.motherjones.com/politics/2023/02/columbia-journalism-review-jeff-gerth-trump-russia-the-media/"},"Yellow","Yellow #FFE433 Yellow gold"]
["https://www.colorhexa.com/101138",{"$f":"HYPERLINK(T_public[[#This Row],[URL]])","v":"https://www.colorhexa.com/101138"},"101138 Dark Blue BG for white letters on screen",""]
["https://www.ourcommons.ca/petitions/en/Petition/Details?Petition=e-4649",{"$f":"HYPERLINK(T_public[[#This Row],[URL]])","v":"https://www.ourcommons.ca/petitions/en/Petition/Details?Petition=e-4649"},"e-4649 (Foreign affairs) | Gaza, Israël ceasefire",""]
["",{"$f":"HYPERLINK(T_public[[#This Row],[URL]])","v":""},"UTC : Universal Time Coordinated ~ TUC : Temps Universel Coordonné","","acronym acronyme time"]
["",{"$f":"HYPERLINK(T_public[[#This Row],[URL]])","v":""},"GERD : Grand Ethiopian Renaissance Dam ~ GBÉR : Grand barrage de la Renaissance","","acronym acronyme"]
["https://www.wsws.org/en/articles/2023/02/01/qqln-f01.html",{"$f":"HYPERLINK(T_public[[#This Row],[URL]])","v":"https://www.wsws.org/en/articles/2023/02/01/qqln-f01.html"},"Peace activist sentenced for criticizing German war policy in Ukraine",""]
["https://humanityforpeace.net/",{"$f":"HYPERLINK(T_public[[#This Row],[URL]])","v":"https://humanityforpeace.net/"},"humanity for peace",""]
["https://webclient.openasapp.net/portal#!/client/app/3427b1db-827d-409c-a3d7-01ce8c64c304",{"$f":"HYPERLINK(T_public[[#This Row],[URL]])","v":"https://webclient.openasapp.net/portal#!/client/app/3427b1db-827d-409c-a3d7-01ce8c64c304"},"Lighthouse app Jimmy Gerun",""]
["https://unitingtocombatntds.org/en/get-involved/events/brics-summit-2024/",{"$f":"HYPERLINK(T_public[[#This Row],[URL]])","v":"https://unitingtocombatntds.org/en/get-involved/events/brics-summit-2024/"},"kazan, russia BRICS Summit 2024","","russia brics kazan"]
["https://www.nonviolence.ca/",{"$f":"HYPERLINK(T_public[[#This Row],[URL]])","v":"https://www.nonviolence.ca/"},"Centre de ressources sur la non-violence",""]
["https://www.groupmobilisation.com",{"$f":"HYPERLINK(T_public[[#This Row],[URL]])","v":"https://www.groupmobilisation.com"},"gmob",""]
["https://jobs.nfb.ca/jobs/",{"$f":"HYPERLINK(T_public[[#This Row],[URL]])","v":"https://jobs.nfb.ca/jobs/"},"NFB | ONF",""]
["http://jobs-emplois-hoc.parl.gc.ca/EN/Pages/Opportunities.aspx",{"$f":"HYPERLINK(T_public[[#This Row],[URL]])","v":"http://jobs-emplois-hoc.parl.gc.ca/EN/Pages/Opportunities.aspx"},"HOUSE OF COMMONS ADMINISTRATION'S CAREER PORTAL | PORTAIL CARRIÈRES DE L'ADMINISTRATION DE LA CHAMBRE DES COMMUNES",""]
["https://crtc.gc.ca/eng/home-accueil.htm",{"$f":"HYPERLINK(T_public[[#This Row],[URL]])","v":"https://crtc.gc.ca/eng/home-accueil.htm"},"Canadian Radio-television and Telecommunications Commission (CRTC)",""]
["https://www.ccts-cprst.ca/careers/current-opportunities/",{"$f":"HYPERLINK(T_public[[#This Row],[URL]])","v":"https://www.ccts-cprst.ca/careers/current-opportunities/"},"Commission For Complaints For Telecom-Television Services",""]
["https://jobs-emplois.sen.parl.gc.ca/CL4/xweb/Xweb.asp?tbtoken=YFBRRRJeDVB7ZHx4RlZTZ084BBFYaVUtByBMIl0EBnlaLzdpX0BvBmouJS5ALiRedEcYGhdTSXBgF3U%3D&chk=ZVpaShM%3D&CLID=21004&page=joblisting&lang=1",{"$f":"HYPERLINK(T_public[[#This Row],[URL]])","v":"https://jobs-emplois.sen.parl.gc.ca/CL4/xweb/Xweb.asp?tbtoken=YFBRRRJeDVB7ZHx4RlZTZ084BBFYaVUtByBMIl0EBnlaLzdpX0BvBmouJS5ALiRedEcYGhdTSXBgF3U%3D&chk=ZVpaShM%3D&CLID=21004&page=joblisting&lang=1"},"Senate of Canada | Jobs Portal","","canada"]
["https://careers.cmhc-schl.gc.ca/go/Current-Job-Openings/2399217/",{"$f":"HYPERLINK(T_public[[#This Row],[URL]])","v":"https://careers.cmhc-schl.gc.ca/go/Current-Job-Openings/2399217/"},"CMHC | SCHL | Job Portal",""]
["https://recruitment-recrutement.nrc-cnrc.gc.ca/go/All-Jobs/2320717/",{"$f":"HYPERLINK(T_public[[#This Row],[URL]])","v":"https://recruitment-recrutement.nrc-cnrc.gc.ca/go/All-Jobs/2320717/"},"National Research Council | Jobs Portal",""]
["",{"$f":"HYPERLINK(T_public[[#This Row],[URL]])","v":""},"INSTC : International North–South Transport Corridor ~ CTINS : Corridor de transport international Nord-Sud","","acronym acronyme"]
["https://www.on.jobbank.gc.ca/resumebuilder/list",{"$f":"HYPERLINK(T_public[[#This Row],[URL]])","v":"https://www.on.jobbank.gc.ca/resumebuilder/list"},"jobbank",""]
["https://emploisfp-psjobs.cfp-psc.gc.ca/psrs-srfp/applicant/page1710?toggleLanguage=en",{"$f":"HYPERLINK(T_public[[#This Row],[URL]])","v":"https://emploisfp-psjobs.cfp-psc.gc.ca/psrs-srfp/applicant/page1710?toggleLanguage=en"},"jobs.gc.ca",""]
["https://gcconnex.gc.ca/groups/about/7617072",{"$f":"HYPERLINK(T_public[[#This Row],[URL]])","v":"https://gcconnex.gc.ca/groups/about/7617072"},"Career Marketplace / Carrefour de carrière",""]
["https://www.guichetemplois.gc.ca",{"$f":"HYPERLINK(T_public[[#This Row],[URL]])","v":"https://www.guichetemplois.gc.ca"},"canada fed guichet emplois | jobs","","canada"]
["https://www.quebecemploi.gouv.qc.ca/plateforme-emploi",{"$f":"HYPERLINK(T_public[[#This Row],[URL]])","v":"https://www.quebecemploi.gouv.qc.ca/plateforme-emploi"},"plateforme recherche d'emplois québec | jobs","","quebec québec"]
["https://www.jobbank.gc.ca/login",{"$f":"HYPERLINK(T_public[[#This Row],[URL]])","v":"https://www.jobbank.gc.ca/login"},"job bank | jobbank | resume builder | cv","","resumé resume cv curriculumVitae"]
["https://emploisfp-psjobs.cfp-psc.gc.ca/",{"$f":"HYPERLINK(T_public[[#This Row],[URL]])","v":"https://emploisfp-psjobs.cfp-psc.gc.ca/"},"GC Jobs | psjobs.cfp | emploisfp",""]
["https://www.rheagroupcanada.ca/careers-rhea-group/",{"$f":"HYPERLINK(T_public[[#This Row],[URL]])","v":"https://www.rheagroupcanada.ca/careers-rhea-group/"},"RHEA Group",""]
["https://www.ibm.com/careers/us-en/early-career/entry-level/",{"$f":"HYPERLINK(T_public[[#This Row],[URL]])","v":"https://www.ibm.com/careers/us-en/early-career/entry-level/"},"Start your journey with IBM",""]
["https://support.apple.com/en-us/102650",{"$f":"HYPERLINK(T_public[[#This Row],[URL]])","v":"https://support.apple.com/en-us/102650"},"macOS keyboard shortcuts",""]
["https://press.un.org/fr/2022/cs14956.doc.htm",{"$f":"HYPERLINK(T_public[[#This Row],[URL]])","v":"https://press.un.org/fr/2022/cs14956.doc.htm"},"JCPOA : The Joint Comprehensive Plan of Action (JCPOA) aka as the 'Iran Nuclear Deal' ~ PAGC : Le Plan d'action global conjoint (PAGC), également connu sous le nom d'accord nucléaire iranien.","","acronym acronyme bilingue bilingual"]
["",{"$f":"HYPERLINK(T_public[[#This Row],[URL]])","v":""},"Yellow | Flashy BG","Yellow ~ Flashy BG F6FF00 ~ Poster BG","color subtitles"]
["https://www.keychron.com/blogs/news/k4-key-combinations",{"$f":"HYPERLINK(T_public[[#This Row],[URL]])","v":"https://www.keychron.com/blogs/news/k4-key-combinations"},"Keychron K4 V2 | Switch Between Function Keys and Multimedia keys (F1-F12)","Keychron K4 V2 | Switch Between Function Keys and Multimedia keys (F1-F12) fn + X + L (Windows mode, long press for 3s)"]
["",{"$f":"HYPERLINK(T_public[[#This Row],[URL]])","v":""},"Yellow","Yellow ~ Subtitles ~subtitle yellow FEBD00","color subtitles"]
["https://x.com/devdanchaudhuri?lang=en",{"$f":"HYPERLINK(T_public[[#This Row],[URL]])","v":"https://x.com/devdanchaudhuri?lang=en"},"@devdanchaudhuri","","x twitter userProfile user"]
["https://www.capitoltimesmedia.com/",{"$f":"HYPERLINK(T_public[[#This Row],[URL]])","v":"https://www.capitoltimesmedia.com/"},"Capitol Times Media","","magazine hill dc political"]
["https://www.ontology.co/avicenna.htm",{"$f":"HYPERLINK(T_public[[#This Row],[URL]])","v":"https://www.ontology.co/avicenna.htm"},"Avicenna (Ibn-Sina) on the Subject and the Object of Metaphysics","","metaphysics métaphysique avicenna"]
["https://geekprank.com",{"$f":"HYPERLINK(T_public[[#This Row],[URL]])","v":"https://geekprank.com"},"geek prank","","geek prank"]
["https://whitescreen.online",{"$f":"HYPERLINK(T_public[[#This Row],[URL]])","v":"https://whitescreen.online"},"basic whitescreen",""]
["https://www.whitescreen.online/fr/ecran-bleu/",{"$f":"HYPERLINK(T_public[[#This Row],[URL]])","v":"https://www.whitescreen.online/fr/ecran-bleu/"},"écran bleu",""]
["https://www.whitescreen.online/fake-windows-11-update-screen/",{"$f":"HYPERLINK(T_public[[#This Row],[URL]])","v":"https://www.whitescreen.online/fake-windows-11-update-screen/"},"windows 11 whitescreen",""]
["https://www.whitescreen.online/fake-windows-xp-update-screen/",{"$f":"HYPERLINK(T_public[[#This Row],[URL]])","v":"https://www.whitescreen.online/fake-windows-xp-update-screen/"},"windows xp whitescreen",""]
["https://www.whitescreen.online/fake-mac-os-x-update-screen/",{"$f":"HYPERLINK(T_public[[#This Row],[URL]])","v":"https://www.whitescreen.online/fake-mac-os-x-update-screen/"},"mac whitescreen",""]
["https://docs.google.com/spreadsheets/d/e/2PACX-1vQMvTHtsEwB5LPF1zipHIZaVsUrQQBBVLazZLr-aaFOwrGAGEEUtWg9KRgweYLwcHKnevpk8ATT7skN/pubhtml",{"$f":"HYPERLINK(T_public[[#This Row],[URL]])","v":"https://docs.google.com/spreadsheets/d/e/2PACX-1vQMvTHtsEwB5LPF1zipHIZaVsUrQQBBVLazZLr-aaFOwrGAGEEUtWg9KRgweYLwcHKnevpk8ATT7skN/pubhtml"},"matty mctech's Websites",""]
["https://musclewiki.com/",{"$f":"HYPERLINK(T_public[[#This Row],[URL]])","v":"https://musclewiki.com/"},"muscle wiki","muscle wiki Pick a muscle and find workouts","MattyMcTech"]
["https://temp-mail.org/en/",{"$f":"HYPERLINK(T_public[[#This Row],[URL]])","v":"https://temp-mail.org/en/"},"TempMail","TempMail Get a temporary email address","MattyMcTech"]
["https://www.justtherecipe.com/",{"$f":"HYPERLINK(T_public[[#This Row],[URL]])","v":"https://www.justtherecipe.com/"},"Just The Recipe","Just The Recipe Paste a recipe article to remove all the stories and get just the recipe","MattyMcTech"]
["https://bit.ly/3EW4Oz4",{"$f":"HYPERLINK(T_public[[#This Row],[URL]])","v":"https://bit.ly/3EW4Oz4"},"Airport Wifi","Airport Wifi Find the WiFi Passwords at different airports","MattyMcTech"]
["https://mcbroken.com/",{"$f":"HYPERLINK(T_public[[#This Row],[URL]])","v":"https://mcbroken.com/"},"McBroken","McBroken Find working Mcdonalds Ice Cream Machines","MattyMcTech"]
["https://myfridgefood.com/",{"$f":"HYPERLINK(T_public[[#This Row],[URL]])","v":"https://myfridgefood.com/"},"My Fridge Food","My Fridge Food Find recipes for ingredients in your fridge","MattyMcTech"]
["https://my90stv.com/",{"$f":"HYPERLINK(T_public[[#This Row],[URL]])","v":"https://my90stv.com/"},"My 90s Tv","My 90s Tv Watch 90s TV Shows","MattyMcTech tv"]
["https://www.eatthismuch.com/",{"$f":"HYPERLINK(T_public[[#This Row],[URL]])","v":"https://www.eatthismuch.com/"},"Eat This Much","Eat This Much Create a meal plan for your Diet","MattyMcTech"]
["https://www.justwatch.com",{"$f":"HYPERLINK(T_public[[#This Row],[URL]])","v":"https://www.justwatch.com"},"Just Watch","Just Watch Find streaming sites for movies and TV Shows","MattyMcTech"]
["https://www.wornontv.net",{"$f":"HYPERLINK(T_public[[#This Row],[URL]])","v":"https://www.wornontv.net"},"Worn On TV","Worn On TV Find clothing from TV shows","MattyMcTech tv"]
["https://driveandlisten.herokuapp.com/",{"$f":"HYPERLINK(T_public[[#This Row],[URL]])","v":"https://driveandlisten.herokuapp.com/"},"Drive and Listen","Drive and Listen Listen to music while driving through different countries","MattyMcTech"]
["https://hotpot.ai/",{"$f":"HYPERLINK(T_public[[#This Row],[URL]])","v":"https://hotpot.ai/"},"Hot Pot","Hot Pot Restore your old Photos","MattyMcTech"]
["https://wifispc.com",{"$f":"HYPERLINK(T_public[[#This Row],[URL]])","v":"https://wifispc.com"},"WiFi spc","WiFi spc Get WiFi Passwords for different stores and restaurants.","MattyMcTech"]
["https://bodyvisualizer.com/",{"$f":"HYPERLINK(T_public[[#This Row],[URL]])","v":"https://bodyvisualizer.com/"},"Body Visualizer","Body Visualizer Create different body proportions","MattyMcTech"]
["https://makemeacocktail.com/",{"$f":"HYPERLINK(T_public[[#This Row],[URL]])","v":"https://makemeacocktail.com/"},"Make me a Cocktail","Make me a Cocktail Find drink recipes based on your ingredients.","MattyMcTech"]
["https://tunefind.com",{"$f":"HYPERLINK(T_public[[#This Row],[URL]])","v":"https://tunefind.com"},"Tune Find","Tune Find Discover songs in TV shows and Movies","MattyMcTech"]
["https://playretrogames.com",{"$f":"HYPERLINK(T_public[[#This Row],[URL]])","v":"https://playretrogames.com"},"Play Retro Games","Play Retro Games Play retros games from the past on your PC","MattyMcTech"]
["http://www.planyourroom.com/",{"$f":"HYPERLINK(T_public[[#This Row],[URL]])","v":"http://www.planyourroom.com/"},"Plan Your Room","Plan Your Room Design a room in your house","MattyMcTech"]
["https://alternativeto.net/",{"$f":"HYPERLINK(T_public[[#This Row],[URL]])","v":"https://alternativeto.net/"},"Alternative To","Alternative To Find Alternatives to different software programs","MattyMcTech"]
["https://smmry.com/",{"$f":"HYPERLINK(T_public[[#This Row],[URL]])","v":"https://smmry.com/"},"Smmry","Smmry Summarize text that you paste","ai summarize"]
["https://www.amazon.com/stylesnap",{"$f":"HYPERLINK(T_public[[#This Row],[URL]])","v":"https://www.amazon.com/stylesnap"},"Amazon Style Snap","Amazon Style Snap Find products on amazon matching a picture you upload","MattyMcTech"]
["https://bit.ly/2XWenNw",{"$f":"HYPERLINK(T_public[[#This Row],[URL]])","v":"https://bit.ly/2XWenNw"},"3 Websites for School","3 Websites for School Link to TikTok Showing websites for School","MattyMcTech"]
["https://www.housecreep.com/",{"$f":"HYPERLINK(T_public[[#This Row],[URL]])","v":"https://www.housecreep.com/"},"House Creep","House Creep Discover what illegal things happened in your neighborhood","MattyMcTech"]
["https://theinpaint.com",{"$f":"HYPERLINK(T_public[[#This Row],[URL]])","v":"https://theinpaint.com"},"The In Paint","The In Paint Remove unwanted things from your pictures.","MattyMcTech"]
["https://remove.bg",{"$f":"HYPERLINK(T_public[[#This Row],[URL]])","v":"https://remove.bg"},"Remove BG","Remove BG Remove the background from images","MattyMcTech"]
["https://willrobotstakemyjob.com/",{"$f":"HYPERLINK(T_public[[#This Row],[URL]])","v":"https://willrobotstakemyjob.com/"},"Will Robots Take my Job","Will Robots Take my Job Find the percentage chance a robot will take your job","MattyMcTech"]
["https://www.amazon.com/Outlet",{"$f":"HYPERLINK(T_public[[#This Row],[URL]])","v":"https://www.amazon.com/Outlet"},"Amazon Outlet","Amazon Outlet Search through Amazon's overstock deals.","MattyMcTech"]
["https://retailmenot.com",{"$f":"HYPERLINK(T_public[[#This Row],[URL]])","v":"https://retailmenot.com"},"Retail Me Not","Retail Me Not Get coupons for different retail websites.","MattyMcTech"]
["https://bit.ly/2Y5rMDa",{"$f":"HYPERLINK(T_public[[#This Row],[URL]])","v":"https://bit.ly/2Y5rMDa"},"Kick Resume","Kick Resume Create a resume using proven resume templates","MattyMcTech"]
["http://fotoforensics.com/",{"$f":"HYPERLINK(T_public[[#This Row],[URL]])","v":"http://fotoforensics.com/"},"Foto Forensics","Foto Forensics Determine if a image has been photoshopped.","MattyMcTech"]
["https://www.yummly.com/",{"$f":"HYPERLINK(T_public[[#This Row],[URL]])","v":"https://www.yummly.com/"},"Yummly","Yummly Find recipes just for you","MattyMcTech"]
["https://bit.ly/3Fe0mMq",{"$f":"HYPERLINK(T_public[[#This Row],[URL]])","v":"https://bit.ly/3Fe0mMq"},"3 Work From Home Websites","3 Work From Home Websites Link to TikTok Video showing work from home websites.","MattyMcTech"]
["https://www.photopea.com/",{"$f":"HYPERLINK(T_public[[#This Row],[URL]])","v":"https://www.photopea.com/"},"Photopea","Photopea Online photoshop alternative","MattyMcTech"]
["https://Cityprotect.com",{"$f":"HYPERLINK(T_public[[#This Row],[URL]])","v":"https://Cityprotect.com"},"City Protect","City Protect Find police incidents within your city","MattyMcTech"]
["https://cheatography.com",{"$f":"HYPERLINK(T_public[[#This Row],[URL]])","v":"https://cheatography.com"},"2 School Websites","2 School Websites Cheat Sheets for school","MattyMcTech"]
["https://www.wolframalpha.com/",{"$f":"HYPERLINK(T_public[[#This Row],[URL]])","v":"https://www.wolframalpha.com/"},"","Have the computer solve your homework problems"]
["https://explore.org/",{"$f":"HYPERLINK(T_public[[#This Row],[URL]])","v":"https://explore.org/"},"Explore","Explore Watch animal livestreams from around the world","MattyMcTech"]
["https://lozo.com/",{"$f":"HYPERLINK(T_public[[#This Row],[URL]])","v":"https://lozo.com/"},"Lozo","Lozo Get coupons for retail stores","MattyMcTech"]
["https://www.codingame.com/start",{"$f":"HYPERLINK(T_public[[#This Row],[URL]])","v":"https://www.codingame.com/start"},"Coding Game","Coding Game Learn how to code video games","MattyMcTech"]
["https://www.amazon.com/Warehouse-Deals",{"$f":"HYPERLINK(T_public[[#This Row],[URL]])","v":"https://www.amazon.com/Warehouse-Deals"},"Amazon Warehouse","Amazon Warehouse Search through Amazon returns for deals.","MattyMcTech"]
["https://www.futureme.org/",{"$f":"HYPERLINK(T_public[[#This Row],[URL]])","v":"https://www.futureme.org/"},"Future Me","Future Me Write a letter to your future self","MattyMcTech"]
["https://radiooooo.com/",{"$f":"HYPERLINK(T_public[[#This Row],[URL]])","v":"https://radiooooo.com/"},"Radiooooo","Radiooooo Listen to music from different decades","MattyMcTech"]
["https://bit.ly/3iiVDz6",{"$f":"HYPERLINK(T_public[[#This Row],[URL]])","v":"https://bit.ly/3iiVDz6"},"3 Websites for School","3 Websites for School Link to TikTok Video showing School Website Tips","MattyMcTech"]
["https://www.hownormalami.eu/",{"$f":"HYPERLINK(T_public[[#This Row],[URL]])","v":"https://www.hownormalami.eu/"},"How Normal am I","How Normal am I Find out how normal you are.","MattyMcTech"]
["https://camelcamelcamel.com/",{"$f":"HYPERLINK(T_public[[#This Row],[URL]])","v":"https://camelcamelcamel.com/"},"Camel Camel Camel","Camel Camel Camel Get the price history and set alerts for Amazon Products","MattyMcTech"]
["https://forebears.io/",{"$f":"HYPERLINK(T_public[[#This Row],[URL]])","v":"https://forebears.io/"},"Forebears","Forebears Get cool facts about your last name","MattyMcTech"]
["https://www.flightradar24.com/",{"$f":"HYPERLINK(T_public[[#This Row],[URL]])","v":"https://www.flightradar24.com/"},"Flight Radar 24","Flight Radar 24 Live global flight tracking (real time)","MattyMcTech"]
["https://rsoe-edis.org/",{"$f":"HYPERLINK(T_public[[#This Row],[URL]])","v":"https://rsoe-edis.org/"},"Emergency and Disaster Info","Emergency and Disaster Info Map of global emergencies and disasters","MattyMcTech"]
["https://bit.ly/3zW9CAR",{"$f":"HYPERLINK(T_public[[#This Row],[URL]])","v":"https://bit.ly/3zW9CAR"},"3 Websites for Summer Jobs","3 Websites for Summer Jobs Link to TikTok showing websites for summer jobs","MattyMcTech"]
["https://www.marinetraffic.com/",{"$f":"HYPERLINK(T_public[[#This Row],[URL]])","v":"https://www.marinetraffic.com/"},"marine Traffic","marine Traffic Live map of global marine traffic","MattyMcTech"]
["https://www.slidescarnival.com/",{"$f":"HYPERLINK(T_public[[#This Row],[URL]])","v":"https://www.slidescarnival.com/"},"Slides Carnival","Slides Carnival Find slides and templates for powerpoint presentations","MattyMcTech"]
["https://ai-art.tokyo/en/",{"$f":"HYPERLINK(T_public[[#This Row],[URL]])","v":"https://ai-art.tokyo/en/"},"AI Gahaku","AI Gahaku Turn your picture into a masterpiece","MattyMcTech"]
["https://outrider.org/nuclear-weapons/interactive/bomb-blast",{"$f":"HYPERLINK(T_public[[#This Row],[URL]])","v":"https://outrider.org/nuclear-weapons/interactive/bomb-blast"},"Outrider Nuclear Bomb","Outrider Nuclear Bomb Find out what would happen if a nuclear weapon dropped near you","MattyMcTech"]
["https://roomstyler.com",{"$f":"HYPERLINK(T_public[[#This Row],[URL]])","v":"https://roomstyler.com"},"Room Styler","Room Styler Design and style any room in your house","MattyMcTech"]
["https://platform.leolabs.space/visualization",{"$f":"HYPERLINK(T_public[[#This Row],[URL]])","v":"https://platform.leolabs.space/visualization"},"Leo Labs","Leo Labs Tracks all satellites and debri in space","MattyMcTech"]
["https://www.security.org/how-secure-is-my-password/",{"$f":"HYPERLINK(T_public[[#This Row],[URL]])","v":"https://www.security.org/how-secure-is-my-password/"},"Security","Security How secure is your password?","MattyMcTech"]
["https://stellarium-web.org/",{"$f":"HYPERLINK(T_public[[#This Row],[URL]])","v":"https://stellarium-web.org/"},"Stellarium","Stellarium Look at a map of the stars from your location","MattyMcTech"]
["https://www.myheritage.com/deep-nostalgia",{"$f":"HYPERLINK(T_public[[#This Row],[URL]])","v":"https://www.myheritage.com/deep-nostalgia"},"My Heritage","My Heritage Animate old Photos","MattyMcTech"]
["https://www.findagrave.com/",{"$f":"HYPERLINK(T_public[[#This Row],[URL]])","v":"https://www.findagrave.com/"},"Find a Grave","Find a Grave Find the gravesite of celebrities and people","MattyMcTech"]
["https://www.broadcastify.com/",{"$f":"HYPERLINK(T_public[[#This Row],[URL]])","v":"https://www.broadcastify.com/"},"Broadcastify","Broadcastify Listen to live police and fire radio","MattyMcTech"]
["https://www.onlineocr.net/",{"$f":"HYPERLINK(T_public[[#This Row],[URL]])","v":"https://www.onlineocr.net/"},"Online OCR","Online OCR Convert a PDF to word doc","MattyMcTech"]
["https://panzoid.com/",{"$f":"HYPERLINK(T_public[[#This Row],[URL]])","v":"https://panzoid.com/"},"Panzoid","Panzoid Create your very own Youtube Intros","MattyMcTech"]
["https://www.blackmagicdesign.com/",{"$f":"HYPERLINK(T_public[[#This Row],[URL]])","v":"https://www.blackmagicdesign.com/"},"Davinci Resolve","Davinci Resolve Free video editing software","MattyMcTech"]
["https://www.wisecut.video/",{"$f":"HYPERLINK(T_public[[#This Row],[URL]])","v":"https://www.wisecut.video/"},"wisecut ai video editing","","ai video"]
["https://www.descript.com/",{"$f":"HYPERLINK(T_public[[#This Row],[URL]])","v":"https://www.descript.com/"},"descript subtitles captions","","video"]
["https://www.captions.ai/",{"$f":"HYPERLINK(T_public[[#This Row],[URL]])","v":"https://www.captions.ai/"},"captions ai video editing","","video transcript subtitles"]
["https://www.unscreen.com/",{"$f":"HYPERLINK(T_public[[#This Row],[URL]])","v":"https://www.unscreen.com/"},"Unscreen","Unscreen Remove the background from videos","MattyMcTech"]
["https://dictation.io/",{"$f":"HYPERLINK(T_public[[#This Row],[URL]])","v":"https://dictation.io/"},"Dictation io","Dictation io Type with your voice","MattyMcTech"]
["https://snapdrop.net/",{"$f":"HYPERLINK(T_public[[#This Row],[URL]])","v":"https://snapdrop.net/"},"Snapdrop","Snapdrop Transfer files over your WiFi","MattyMcTech"]
["https://www.netflix-codes.com/",{"$f":"HYPERLINK(T_public[[#This Row],[URL]])","v":"https://www.netflix-codes.com/"},"Netflix Codes","Netflix Codes Find codes for secret Netflix categories","MattyMcTech netflix"]
["https://rave.dj/",{"$f":"HYPERLINK(T_public[[#This Row],[URL]])","v":"https://rave.dj/"},"Rave DJ","Rave DJ Create cool mashups with songs","MattyMcTech"]
["https://tailorbrands.go2cloud.org/SH4Y",{"$f":"HYPERLINK(T_public[[#This Row],[URL]])","v":"https://tailorbrands.go2cloud.org/SH4Y"},"Tailor Brands","Tailor Brands Create your own Logo","MattyMcTech"]
["https://www.naturalreaders.com/",{"$f":"HYPERLINK(T_public[[#This Row],[URL]])","v":"https://www.naturalreaders.com/"},"Natural Readers","Natural Readers Powerful Text to Speech","MattyMcTech"]
["https://www.lightningmaps.org/",{"$f":"HYPERLINK(T_public[[#This Row],[URL]])","v":"https://www.lightningmaps.org/"},"Lightning Maps","Lightning Maps Track real time lightning strikes","MattyMcTech"]
["https://tailornova.com/",{"$f":"HYPERLINK(T_public[[#This Row],[URL]])","v":"https://tailornova.com/"},"Tailor Nova","Tailor Nova Design clothing and get the patterns.","MattyMcTech"]
["https://animatron.com",{"$f":"HYPERLINK(T_public[[#This Row],[URL]])","v":"https://animatron.com"},"Animatron","Animatron Create your own Animations","MattyMcTech"]
["https://my-garden.gardena.com/int",{"$f":"HYPERLINK(T_public[[#This Row],[URL]])","v":"https://my-garden.gardena.com/int"},"Gardena","Gardena Design your own garden and backyard","MattyMcTech"]
["https://you.dj/",{"$f":"HYPERLINK(T_public[[#This Row],[URL]])","v":"https://you.dj/"},"YOUDJ","YOUDJ Create Mixes and DJ in your browser","MattyMcTech"]
["https://vocalremover.com",{"$f":"HYPERLINK(T_public[[#This Row],[URL]])","v":"https://vocalremover.com"},"Vocal Remover","Vocal Remover Isolate the vocals and music from a song","MattyMcTech"]
["https://sleepyti.me",{"$f":"HYPERLINK(T_public[[#This Row],[URL]])","v":"https://sleepyti.me"},"Sleepy Time","Sleepy Time Calculate the perfect time to go to sleep","MattyMcTech"]
["https://essaytyper.com",{"$f":"HYPERLINK(T_public[[#This Row],[URL]])","v":"https://essaytyper.com"},"Essay Typer","Essay Typer Let the computer write an essay for you","MattyMcTech"]
["https://www.nvidia.com/research/inpainting/index.html",{"$f":"HYPERLINK(T_public[[#This Row],[URL]])","v":"https://www.nvidia.com/research/inpainting/index.html"},"Nvidia Inpainting","Nvidia Inpainting Let ai retouch your photos","MattyMcTech"]
["https://onlinesequencer.net/",{"$f":"HYPERLINK(T_public[[#This Row],[URL]])","v":"https://onlinesequencer.net/"},"Online Sequencer","Online Sequencer Make music online","MattyMcTech"]
["https://synthesia.io/",{"$f":"HYPERLINK(T_public[[#This Row],[URL]])","v":"https://synthesia.io/"},"Synthesia","Synthesia Let an AI do your presentations","MattyMcTech"]
["https://yt5s.com/en10",{"$f":"HYPERLINK(T_public[[#This Row],[URL]])","v":"https://yt5s.com/en10"},"Youtube Downloader","Youtube Downloader Easy way to download youtube videos","MattyMcTech"]
["https://www.importyeti.com/",{"$f":"HYPERLINK(T_public[[#This Row],[URL]])","v":"https://www.importyeti.com/"},"Import Yeti","Import Yeti Find the suppliers for different US companies","MattyMcTech"]
["https://www.omnicalculator.com/",{"$f":"HYPERLINK(T_public[[#This Row],[URL]])","v":"https://www.omnicalculator.com/"},"Omni Calculator","Omni Calculator List of 2000+ free calculators","MattyMcTech"]
["https://whichbook.net/",{"$f":"HYPERLINK(T_public[[#This Row],[URL]])","v":"https://whichbook.net/"},"Which Book","Which Book Discover a great book based on your filters","MattyMcTech"]
["https://agoodmovietowatch.com/",{"$f":"HYPERLINK(T_public[[#This Row],[URL]])","v":"https://agoodmovietowatch.com/"},"A Good Movie","A Good Movie Find movies and shows based on your mood","MattyMcTech"]
["https://www.music-map.com/",{"$f":"HYPERLINK(T_public[[#This Row],[URL]])","v":"https://www.music-map.com/"},"Music Map","Music Map Find similar artists to one you typed in","MattyMcTech"]
["https://deskspacing.com/",{"$f":"HYPERLINK(T_public[[#This Row],[URL]])","v":"https://deskspacing.com/"},"Desk Spacing","Desk Spacing Create your dream copmuter setup","MattyMcTech"]
["https://reviewmeta.com/",{"$f":"HYPERLINK(T_public[[#This Row],[URL]])","v":"https://reviewmeta.com/"},"Review Meta","Review Meta Filter out fake reviews from amazon","MattyMcTech"]
["https://datenightmovies.com/",{"$f":"HYPERLINK(T_public[[#This Row],[URL]])","v":"https://datenightmovies.com/"},"Date Night Movies","Date Night Movies Type in two movies and get a recommendation","MattyMcTech"]
["https://isthereanydeal.com/",{"$f":"HYPERLINK(T_public[[#This Row],[URL]])","v":"https://isthereanydeal.com/"},"Is there any Deal","Is there any Deal Find deals on video games","MattyMcTech"]
["https://donjon.bin.sh/",{"$f":"HYPERLINK(T_public[[#This Row],[URL]])","v":"https://donjon.bin.sh/"},"Don Jon","Don Jon Generate maps, worlds and characters for Dungeons and Dragons","MattyMcTech"]
["https://reelgood.com/roulette/netflix",{"$f":"HYPERLINK(T_public[[#This Row],[URL]])","v":"https://reelgood.com/roulette/netflix"},"Reel Good","Reel Good Play roulette to get random movies from netflix","MattyMcTech"]
["https://www.tasteatlas.com/",{"$f":"HYPERLINK(T_public[[#This Row],[URL]])","v":"https://www.tasteatlas.com/"},"Taste Atlas","Taste Atlas Discover food from around the world","MattyMcTech"]
["https://www.myfonts.com/WhatTheFont/",{"$f":"HYPERLINK(T_public[[#This Row],[URL]])","v":"https://www.myfonts.com/WhatTheFont/"},"What the Font?","What the Font? Identify the font from pictures","MattyMcTech"]
["https://www.seatguru.com/",{"$f":"HYPERLINK(T_public[[#This Row],[URL]])","v":"https://www.seatguru.com/"},"Seat Guru","Seat Guru Find the best seats on an airplane","MattyMcTech"]
["https://hemingwayapp.com/",{"$f":"HYPERLINK(T_public[[#This Row],[URL]])","v":"https://hemingwayapp.com/"},"Hemingway App","Hemingway App Let ai help you improve your essays","MattyMcTech"]
["https://autum.com/",{"$f":"HYPERLINK(T_public[[#This Row],[URL]])","v":"https://autum.com/"},"Autum","Autum Find the next movie or tv show to binge based on filters","MattyMcTech"]
["https://www.gutenberg.org/ebooks/58186",{"$f":"HYPERLINK(T_public[[#This Row],[URL]])","v":"https://www.gutenberg.org/ebooks/58186"},"Avicenna | A compendium on the soul","","Avicenna metaphysics"]
["https://www.whosampled.com/",{"$f":"HYPERLINK(T_public[[#This Row],[URL]])","v":"https://www.whosampled.com/"},"Who Sampled","Who Sampled Find covers of songs and artists who sampled songs","MattyMcTech"]
["https://yt5s.com/en12",{"$f":"HYPERLINK(T_public[[#This Row],[URL]])","v":"https://yt5s.com/en12"},"YT5s","YT5s Download Youtube Videos","MattyMcTech"]
["https://www.quiverquant.com/",{"$f":"HYPERLINK(T_public[[#This Row],[URL]])","v":"https://www.quiverquant.com/"},"QuiverQuant","QuiverQuant Find public information about stocks including which politicians bought and sold","MattyMcTech"]
["https://www.edx.org/",{"$f":"HYPERLINK(T_public[[#This Row],[URL]])","v":"https://www.edx.org/"},"EDX","EDX Take free courses online from big universities like Harvard and MIT","MattyMcTech"]
["https://namechk.com/",{"$f":"HYPERLINK(T_public[[#This Row],[URL]])","v":"https://namechk.com/"},"Namechk","Namechk Check if a username is availble on multiple social media sites","MattyMcTech"]
["http://whatthefuckshouldimakefordinner.com/",{"$f":"HYPERLINK(T_public[[#This Row],[URL]])","v":"http://whatthefuckshouldimakefordinner.com/"},"What Should I Make for Dinner?","What Should I Make for Dinner? Get recommendations/recipes on what you should make for dinner","MattyMcTech"]
["https://www.accountkiller.com/en/home",{"$f":"HYPERLINK(T_public[[#This Row],[URL]])","v":"https://www.accountkiller.com/en/home"},"Account Killer","Account Killer Find out how to delete social media accounts","MattyMcTech"]
["https://cleanup.pictures/",{"$f":"HYPERLINK(T_public[[#This Row],[URL]])","v":"https://cleanup.pictures/"},"Cleanup Pictures","Cleanup Pictures Delete objects from pictures","MattyMcTech"]
["https://www.prepostseo.com/",{"$f":"HYPERLINK(T_public[[#This Row],[URL]])","v":"https://www.prepostseo.com/"},"Pre Post Seo","Pre Post Seo Chek for plagiarism and rewrite articles / essays","MattyMcTech"]
["https://openpaymentsdata.cms.gov/",{"$f":"HYPERLINK(T_public[[#This Row],[URL]])","v":"https://openpaymentsdata.cms.gov/"},"Open Payments","Open Payments Find payments made to doctors and hospitals","MattyMcTech"]
["https://www.litsolutions.org/",{"$f":"HYPERLINK(T_public[[#This Row],[URL]])","v":"https://www.litsolutions.org/"},"Lit Solutions","Lit Solutions Step by step textbook solutions","MattyMcTech"]
["https://remoteok.com/",{"$f":"HYPERLINK(T_public[[#This Row],[URL]])","v":"https://remoteok.com/"},"Remote Ok","Remote Ok Find remote jobs online","MattyMcTech"]
["https://www.wifimap.io/",{"$f":"HYPERLINK(T_public[[#This Row],[URL]])","v":"https://www.wifimap.io/"},"Wifi Map","Wifi Map Get wifi passwords to public networks","MattyMcTech"]
["https://www.docsity.com/en/",{"$f":"HYPERLINK(T_public[[#This Row],[URL]])","v":"https://www.docsity.com/en/"},"Docsity","Docsity Find past documents and exams for school courses","MattyMcTech"]
["https://darebee.com/",{"$f":"HYPERLINK(T_public[[#This Row],[URL]])","v":"https://darebee.com/"},"Darebee","Darebee Printable workout sheets","MattyMcTech"]
["https://yandex.com/images/",{"$f":"HYPERLINK(T_public[[#This Row],[URL]])","v":"https://yandex.com/images/"},"Yandex","Yandex Reverse image search using facial recognition","MattyMcTech"]
["https://www.systemrequirementslab.com/",{"$f":"HYPERLINK(T_public[[#This Row],[URL]])","v":"https://www.systemrequirementslab.com/"},"Can you run it?","Can you run it? Find out if you can run a PC game on your computer","MattyMcTech"]
["https://cheatography.com/",{"$f":"HYPERLINK(T_public[[#This Row],[URL]])","v":"https://cheatography.com/"},"Cheatography","Cheatography Printable cheat sheets for school courses","MattyMcTech"]
["http://goodjobsfirst.org/violation-tracker",{"$f":"HYPERLINK(T_public[[#This Row],[URL]])","v":"http://goodjobsfirst.org/violation-tracker"},"Good Jobs First","Good Jobs First Find violations and fines made by companies","MattyMcTech"]
["https://www.geoguessr.com/",{"$f":"HYPERLINK(T_public[[#This Row],[URL]])","v":"https://www.geoguessr.com/"},"Geo Guessr","","MattyMcTech"]
["https://findtheinvisiblecow.com/",{"$f":"HYPERLINK(T_public[[#This Row],[URL]])","v":"https://findtheinvisiblecow.com/"},"Find the Invisible Cow","","MattyMcTech"]
["https://pranx.com/hacker/",{"$f":"HYPERLINK(T_public[[#This Row],[URL]])","v":"https://pranx.com/hacker/"},"Pranx","","MattyMcTech"]
["https://www.ocearch.org/tracker/",{"$f":"HYPERLINK(T_public[[#This Row],[URL]])","v":"https://www.ocearch.org/tracker/"},"Ocearch Shark Tracker","","MattyMcTech"]
["http://boilthefrog.playlistmachinery.com/",{"$f":"HYPERLINK(T_public[[#This Row],[URL]])","v":"http://boilthefrog.playlistmachinery.com/"},"Boil the Frog","","MattyMcTech"]
["https://virtualvacation.us/",{"$f":"HYPERLINK(T_public[[#This Row],[URL]])","v":"https://virtualvacation.us/"},"Virtual Vacation","","MattyMcTech"]
["http://nvidia-research-mingyuliu.com/gaugan",{"$f":"HYPERLINK(T_public[[#This Row],[URL]])","v":"http://nvidia-research-mingyuliu.com/gaugan"},"Nvidia Gaugan","","MattyMcTech"]
["https://www.my70stv.com/",{"$f":"HYPERLINK(T_public[[#This Row],[URL]])","v":"https://www.my70stv.com/"},"My 70s TV","","MattyMcTech"]
["https://www.window-swap.com/",{"$f":"HYPERLINK(T_public[[#This Row],[URL]])","v":"https://www.window-swap.com/"},"Window Swap","","MattyMcTech"]
["https://quickdraw.withgoogle.com/",{"$f":"HYPERLINK(T_public[[#This Row],[URL]])","v":"https://quickdraw.withgoogle.com/"},"Quick Draw","","MattyMcTech"]
["https://naturalhistory.si.edu/visit/virtual-tour",{"$f":"HYPERLINK(T_public[[#This Row],[URL]])","v":"https://naturalhistory.si.edu/visit/virtual-tour"},"National Museum Tour","","MattyMcTech"]
["https://thetruesize.com/",{"$f":"HYPERLINK(T_public[[#This Row],[URL]])","v":"https://thetruesize.com/"},"True Size of","","MattyMcTech"]
["https://framesynthesis.com/drivingsimulator/maps/",{"$f":"HYPERLINK(T_public[[#This Row],[URL]])","v":"https://framesynthesis.com/drivingsimulator/maps/"},"Frame Synthesis Driving","","MattyMcTech"]
["https://www.playphrase.me/#/search",{"$f":"HYPERLINK(T_public[[#This Row],[URL]])","v":"https://www.playphrase.me/#/search"},"Play Phrase","","MattyMcTech"]
["https://2050.earth",{"$f":"HYPERLINK(T_public[[#This Row],[URL]])","v":"https://2050.earth"},"2050 Earth","","MattyMcTech"]
["https://www.sporcle.com/",{"$f":"HYPERLINK(T_public[[#This Row],[URL]])","v":"https://www.sporcle.com/"},"Sporcle","","MattyMcTech"]
["https://www.autodraw.com/",{"$f":"HYPERLINK(T_public[[#This Row],[URL]])","v":"https://www.autodraw.com/"},"Autodraw","","MattyMcTech"]
["https://vo.codes/",{"$f":"HYPERLINK(T_public[[#This Row],[URL]])","v":"https://vo.codes/"},"Vo Codes","","MattyMcTech"]
["https://ufostalker.com/",{"$f":"HYPERLINK(T_public[[#This Row],[URL]])","v":"https://ufostalker.com/"},"UFO Stalker","","MattyMcTech"]
["http://theofficestaremachine.com/",{"$f":"HYPERLINK(T_public[[#This Row],[URL]])","v":"http://theofficestaremachine.com/"},"Office stare machine","","MattyMcTech"]
["https://googlefeud.online/",{"$f":"HYPERLINK(T_public[[#This Row],[URL]])","v":"https://googlefeud.online/"},"Google Feud","","MattyMcTech"]
["https://classic.minecraft.net/",{"$f":"HYPERLINK(T_public[[#This Row],[URL]])","v":"https://classic.minecraft.net/"},"Minecraft Classic","","MattyMcTech"]
["https://classicreload.com/",{"$f":"HYPERLINK(T_public[[#This Row],[URL]])","v":"https://classicreload.com/"},"Classic reload","","MattyMcTech"]
["https://www.boredbutton.com/random",{"$f":"HYPERLINK(T_public[[#This Row],[URL]])","v":"https://www.boredbutton.com/random"},"Bored Button","","MattyMcTech"]
["https://noclip.website/",{"$f":"HYPERLINK(T_public[[#This Row],[URL]])","v":"https://noclip.website/"},"No Clip","","MattyMcTech"]
["https://spend-elon-fortune.netlify.app/",{"$f":"HYPERLINK(T_public[[#This Row],[URL]])","v":"https://spend-elon-fortune.netlify.app/"},"Spend Elons Fortune","","MattyMcTech"]
["https://yarn.co/",{"$f":"HYPERLINK(T_public[[#This Row],[URL]])","v":"https://yarn.co/"},"Yarn","","MattyMcTech"]
["https://emupedia.net/beta/emuos/",{"$f":"HYPERLINK(T_public[[#This Row],[URL]])","v":"https://emupedia.net/beta/emuos/"},"Emu OS","","MattyMcTech"]
["https://www.mecabricks.com/",{"$f":"HYPERLINK(T_public[[#This Row],[URL]])","v":"https://www.mecabricks.com/"},"Meca Bricks","","MattyMcTech"]
["https://www.geo-fs.com/",{"$f":"HYPERLINK(T_public[[#This Row],[URL]])","v":"https://www.geo-fs.com/"},"GeoFS","","MattyMcTech"]
["http://www.higherlowergame.com/",{"$f":"HYPERLINK(T_public[[#This Row],[URL]])","v":"http://www.higherlowergame.com/"},"Higher Lower Game","","MattyMcTech"]
["https://dood.al/pinktrombone/",{"$f":"HYPERLINK(T_public[[#This Row],[URL]])","v":"https://dood.al/pinktrombone/"},"Pink Trombone","","MattyMcTech"]
["https://humanbenchmark.com/",{"$f":"HYPERLINK(T_public[[#This Row],[URL]])","v":"https://humanbenchmark.com/"},"Human Benchmark","","MattyMcTech"]
["https://neal.fun/logos-from-memory/",{"$f":"HYPERLINK(T_public[[#This Row],[URL]])","v":"https://neal.fun/logos-from-memory/"},"Logos from Memory","","MattyMcTech"]
["https://paint.wtf/",{"$f":"HYPERLINK(T_public[[#This Row],[URL]])","v":"https://paint.wtf/"},"Paint WTF","","MattyMcTech"]
["https://littlealchemy2.com/",{"$f":"HYPERLINK(T_public[[#This Row],[URL]])","v":"https://littlealchemy2.com/"},"Little Alchemy 2","","MattyMcTech"]
["https://www.windows93.net/",{"$f":"HYPERLINK(T_public[[#This Row],[URL]])","v":"https://www.windows93.net/"},"Windows 93","","MattyMcTech"]
["https://sites.google.com/site/tyronesgameshack/",{"$f":"HYPERLINK(T_public[[#This Row],[URL]])","v":"https://sites.google.com/site/tyronesgameshack/"},"cb: yrone Unblocked Games","","MattyMcTech"]
["https://neal.fun/life-stats/",{"$f":"HYPERLINK(T_public[[#This Row],[URL]])","v":"https://neal.fun/life-stats/"},"Life Stats","","MattyMcTech"]
["https://hoodmaps.com/",{"$f":"HYPERLINK(T_public[[#This Row],[URL]])","v":"https://hoodmaps.com/"},"Hood Maps","","MattyMcTech"]
["https://emulatorgames.online/",{"$f":"HYPERLINK(T_public[[#This Row],[URL]])","v":"https://emulatorgames.online/"},"Emulator Games Online","","MattyMcTech"]
["https://neal.fun/auction-game/",{"$f":"HYPERLINK(T_public[[#This Row],[URL]])","v":"https://neal.fun/auction-game/"},"Auction Game","","MattyMcTech"]
["http://radio.garden/",{"$f":"HYPERLINK(T_public[[#This Row],[URL]])","v":"http://radio.garden/"},"Radio Garden","","MattyMcTech"]
["https://jellymar.io/",{"$f":"HYPERLINK(T_public[[#This Row],[URL]])","v":"https://jellymar.io/"},"Jelly Mario","","MattyMcTech"]
["https://archive.org/details/internetarcade",{"$f":"HYPERLINK(T_public[[#This Row],[URL]])","v":"https://archive.org/details/internetarcade"},"Internet Arcade","","MattyMcTech"]
["https://freerice.com/",{"$f":"HYPERLINK(T_public[[#This Row],[URL]])","v":"https://freerice.com/"},"Free Rice","","MattyMcTech"]
["https://playback.fm/",{"$f":"HYPERLINK(T_public[[#This Row],[URL]])","v":"https://playback.fm/"},"Playback Fm","","MattyMcTech"]
["https://neal.fun/ten-years-ago/",{"$f":"HYPERLINK(T_public[[#This Row],[URL]])","v":"https://neal.fun/ten-years-ago/"},"10 Years ago","","MattyMcTech"]
["https://myemulator.online/",{"$f":"HYPERLINK(T_public[[#This Row],[URL]])","v":"https://myemulator.online/"},"My Emulator Online","","MattyMcTech"]
["https://sites.google.com/site/unblockedgames66ez/",{"$f":"HYPERLINK(T_public[[#This Row],[URL]])","v":"https://sites.google.com/site/unblockedgames66ez/"},"Unblocked Games","","MattyMcTech"]
["https://hypnogram.xyz/",{"$f":"HYPERLINK(T_public[[#This Row],[URL]])","v":"https://hypnogram.xyz/"},"Hypnogram","","MattyMcTech"]
["https://www.youtube.com/watch?v=JWpi8rFSYVw&t=20s",{"$f":"HYPERLINK(T_public[[#This Row],[URL]])","v":"https://www.youtube.com/watch?v=JWpi8rFSYVw&t=20s"},"Keyframe Velocity","Keyframe Velocity CTRL+SHIFT+K","youtube"]
["https://youtu.be/JWpi8rFSYVw?t=140",{"$f":"HYPERLINK(T_public[[#This Row],[URL]])","v":"https://youtu.be/JWpi8rFSYVw?t=140"},"Mini-Flowchart","Mini-Flowchart TAB","youtube"]
["https://youtu.be/JWpi8rFSYVw?t=179",{"$f":"HYPERLINK(T_public[[#This Row],[URL]])","v":"https://youtu.be/JWpi8rFSYVw?t=179"},"Align Tools","","youtube"]
["https://youtu.be/JWpi8rFSYVw?t=256",{"$f":"HYPERLINK(T_public[[#This Row],[URL]])","v":"https://youtu.be/JWpi8rFSYVw?t=256"},"Replacing Images","","youtube"]
["https://youtu.be/JWpi8rFSYVw?t=307",{"$f":"HYPERLINK(T_public[[#This Row],[URL]])","v":"https://youtu.be/JWpi8rFSYVw?t=307"},"System Color Picker","","color"]
["https://youtu.be/JWpi8rFSYVw?t=382",{"$f":"HYPERLINK(T_public[[#This Row],[URL]])","v":"https://youtu.be/JWpi8rFSYVw?t=382"},"Render Presets","","youtube"]
["https://youtu.be/JWpi8rFSYVw?t=467",{"$f":"HYPERLINK(T_public[[#This Row],[URL]])","v":"https://youtu.be/JWpi8rFSYVw?t=467"},"Cycle Mask Colors","","color"]
["https://youtu.be/JWpi8rFSYVw?t=518",{"$f":"HYPERLINK(T_public[[#This Row],[URL]])","v":"https://youtu.be/JWpi8rFSYVw?t=518"},"Math","","youtube"]
["https://youtu.be/JWpi8rFSYVw?t=518",{"$f":"HYPERLINK(T_public[[#This Row],[URL]])","v":"https://youtu.be/JWpi8rFSYVw?t=518"},"Gradient Overlays","","youtube"]
["https://youtu.be/JWpi8rFSYVw?t=633",{"$f":"HYPERLINK(T_public[[#This Row],[URL]])","v":"https://youtu.be/JWpi8rFSYVw?t=633"},"Reverse Keyframes","","youtube"]
["https://youtu.be/JWpi8rFSYVw?t=676",{"$f":"HYPERLINK(T_public[[#This Row],[URL]])","v":"https://youtu.be/JWpi8rFSYVw?t=676"},"Expressions to Keyframes","","youtube"]
["https://youtu.be/JWpi8rFSYVw?t=730",{"$f":"HYPERLINK(T_public[[#This Row],[URL]])","v":"https://youtu.be/JWpi8rFSYVw?t=730"},"Splitting Layers","","youtube"]
["https://youtu.be/JWpi8rFSYVw?t=767",{"$f":"HYPERLINK(T_public[[#This Row],[URL]])","v":"https://youtu.be/JWpi8rFSYVw?t=767"},"Guide Layers","","youtube"]
["https://youtu.be/JWpi8rFSYVw?t=836",{"$f":"HYPERLINK(T_public[[#This Row],[URL]])","v":"https://youtu.be/JWpi8rFSYVw?t=836"},"Moving Masks","Moving Masks Spacebar","youtube"]
["https://youtu.be/JWpi8rFSYVw?t=908",{"$f":"HYPERLINK(T_public[[#This Row],[URL]])","v":"https://youtu.be/JWpi8rFSYVw?t=908"},"Creating a Motion Path from a Mask","","youtube"]
["https://youtu.be/JWpi8rFSYVw?t=982",{"$f":"HYPERLINK(T_public[[#This Row],[URL]])","v":"https://youtu.be/JWpi8rFSYVw?t=982"},"Scaling Multiple Keyframes","Scaling Multiple Keyframes Alt+Click and drag","youtube"]
["https://youtu.be/JWpi8rFSYVw?t=1015",{"$f":"HYPERLINK(T_public[[#This Row],[URL]])","v":"https://youtu.be/JWpi8rFSYVw?t=1015"},"Copying Paths from Illustrator","","youtube"]
["https://youtu.be/JWpi8rFSYVw?t=1054",{"$f":"HYPERLINK(T_public[[#This Row],[URL]])","v":"https://youtu.be/JWpi8rFSYVw?t=1054"},"Maximize Frame with a Shortcut","","youtube"]
["https://youtu.be/JWpi8rFSYVw?t=1094",{"$f":"HYPERLINK(T_public[[#This Row],[URL]])","v":"https://youtu.be/JWpi8rFSYVw?t=1094"},"Rendering Comps Out of Media Encoder","Rendering Comps Out of Media Encoder CTRL+ALT+M","youtube"]
["https://youtu.be/JWpi8rFSYVw?t=1141",{"$f":"HYPERLINK(T_public[[#This Row],[URL]])","v":"https://youtu.be/JWpi8rFSYVw?t=1141"},"Close Panel and Frame with a Shortcut","Close Panel and Frame with a Shortcut CTRL+W, CTRL+ALT+W","youtube"]
["https://youtu.be/DS8HNnXS-Rw?t=33",{"$f":"HYPERLINK(T_public[[#This Row],[URL]])","v":"https://youtu.be/DS8HNnXS-Rw?t=33"},"Shift+Parenting Behavior","","youtube"]
["https://youtu.be/DS8HNnXS-Rw?t=95",{"$f":"HYPERLINK(T_public[[#This Row],[URL]])","v":"https://youtu.be/DS8HNnXS-Rw?t=95"},"Layer Selection","","youtube"]
["https://youtu.be/DS8HNnXS-Rw?t=144",{"$f":"HYPERLINK(T_public[[#This Row],[URL]])","v":"https://youtu.be/DS8HNnXS-Rw?t=144"},"Go to Visible Item in the Timeline","Go to Visible Item in the Timeline J,K","youtube"]
["https://youtu.be/DS8HNnXS-Rw?t=189",{"$f":"HYPERLINK(T_public[[#This Row],[URL]])","v":"https://youtu.be/DS8HNnXS-Rw?t=189"},"Reveal Properties","Reveal Properties U,UU","youtube"]
["https://youtu.be/DS8HNnXS-Rw?t=230",{"$f":"HYPERLINK(T_public[[#This Row],[URL]])","v":"https://youtu.be/DS8HNnXS-Rw?t=230"},"Paste Layers at Current Time","Paste Layers at Current Time CTRL+ALT+V","youtube"]
["https://youtu.be/DS8HNnXS-Rw?t=292",{"$f":"HYPERLINK(T_public[[#This Row],[URL]])","v":"https://youtu.be/DS8HNnXS-Rw?t=292"},"Close Other Timeline Panels","","youtube"]
["https://youtu.be/DS8HNnXS-Rw?t=319",{"$f":"HYPERLINK(T_public[[#This Row],[URL]])","v":"https://youtu.be/DS8HNnXS-Rw?t=319"},"Find Missing Footage, Effects, or Fonts","","youtube"]
["https://youtu.be/DS8HNnXS-Rw?t=366",{"$f":"HYPERLINK(T_public[[#This Row],[URL]])","v":"https://youtu.be/DS8HNnXS-Rw?t=366"},"Reveal in Explorer","","youtube"]
["https://youtu.be/DS8HNnXS-Rw?t=397",{"$f":"HYPERLINK(T_public[[#This Row],[URL]])","v":"https://youtu.be/DS8HNnXS-Rw?t=397"},"Copy with Property Links","Copy with Property Links CTRL+ALT+C","youtube"]
["https://youtu.be/DS8HNnXS-Rw?t=541",{"$f":"HYPERLINK(T_public[[#This Row],[URL]])","v":"https://youtu.be/DS8HNnXS-Rw?t=541"},"Center Anchor Point","Center Anchor Point CTRL+ALT+HOME","youtube"]
["https://youtu.be/DS8HNnXS-Rw?t=596",{"$f":"HYPERLINK(T_public[[#This Row],[URL]])","v":"https://youtu.be/DS8HNnXS-Rw?t=596"},"Center in View","Center in View CTRL+HOME","youtube"]
["https://youtu.be/DS8HNnXS-Rw?t=643",{"$f":"HYPERLINK(T_public[[#This Row],[URL]])","v":"https://youtu.be/DS8HNnXS-Rw?t=643"},"Fit to Comp","Fit to Comp CTRL+SHIFT+ALT+H, CTRL+SHIFT+ALT+G, and CTRL+ALT+F","youtube"]
["https://youtu.be/DS8HNnXS-Rw?t=697",{"$f":"HYPERLINK(T_public[[#This Row],[URL]])","v":"https://youtu.be/DS8HNnXS-Rw?t=697"},"Flexible Masking Options","","youtube"]
["https://youtu.be/DS8HNnXS-Rw?t=810",{"$f":"HYPERLINK(T_public[[#This Row],[URL]])","v":"https://youtu.be/DS8HNnXS-Rw?t=810"},"Bezier Paths for Shape Layers","","youtube"]
["https://youtu.be/DS8HNnXS-Rw?t=888",{"$f":"HYPERLINK(T_public[[#This Row],[URL]])","v":"https://youtu.be/DS8HNnXS-Rw?t=888"},"Reveal in Timeline","","youtube"]
["https://youtu.be/DS8HNnXS-Rw?t=917",{"$f":"HYPERLINK(T_public[[#This Row],[URL]])","v":"https://youtu.be/DS8HNnXS-Rw?t=917"},"Default Render Setting","Default Render Setting CTRL+Click on Render Preset)","youtube"]
["https://youtu.be/DS8HNnXS-Rw?t=977",{"$f":"HYPERLINK(T_public[[#This Row],[URL]])","v":"https://youtu.be/DS8HNnXS-Rw?t=977"},"Set Work Area to Duration of Selected Layers","Set Work Area to Duration of Selected Layers CTRL+ALT+B","youtube"]
["https://youtu.be/DS8HNnXS-Rw?t=1007",{"$f":"HYPERLINK(T_public[[#This Row],[URL]])","v":"https://youtu.be/DS8HNnXS-Rw?t=1007"},"Delete All Effects from Selected Layers","Delete All Effects from Selected Layers CTRL+SHIFT+E","youtube"]
["https://youtu.be/DS8HNnXS-Rw?t=1052",{"$f":"HYPERLINK(T_public[[#This Row],[URL]])","v":"https://youtu.be/DS8HNnXS-Rw?t=1052"},"Turn Off All Other Solo Switches","Turn Off All Other Solo Switches CTRL+Click on Solo","youtube"]
["https://youtu.be/DS8HNnXS-Rw?t=1074",{"$f":"HYPERLINK(T_public[[#This Row],[URL]])","v":"https://youtu.be/DS8HNnXS-Rw?t=1074"},"Reset Rotation and Scale","","youtube"]
["https://youtu.be/DS8HNnXS-Rw?t=1111",{"$f":"HYPERLINK(T_public[[#This Row],[URL]])","v":"https://youtu.be/DS8HNnXS-Rw?t=1111"},"RAM Preview with Alternate Settings","RAM Preview with Alternate Settings SHIFT+O","youtube"]
["https://youtu.be/DS8HNnXS-Rw?t=1176",{"$f":"HYPERLINK(T_public[[#This Row],[URL]])","v":"https://youtu.be/DS8HNnXS-Rw?t=1176"},"Live Text Templates for Premiere Pro","","youtube"]
["https://youtu.be/TNRzZ0UBo6k?t=26",{"$f":"HYPERLINK(T_public[[#This Row],[URL]])","v":"https://youtu.be/TNRzZ0UBo6k?t=26"},"Edit Original","Edit Original Ctrl + E","youtube"]
["https://youtu.be/TNRzZ0UBo6k?t=73",{"$f":"HYPERLINK(T_public[[#This Row],[URL]])","v":"https://youtu.be/TNRzZ0UBo6k?t=73"},"Solo Properties","Solo Properties SS","youtube"]
["https://youtu.be/TNRzZ0UBo6k?t=111",{"$f":"HYPERLINK(T_public[[#This Row],[URL]])","v":"https://youtu.be/TNRzZ0UBo6k?t=111"},"Hide Properties","Hide Properties Alt + Shift Click","youtube"]
["https://youtu.be/TNRzZ0UBo6k?t=136",{"$f":"HYPERLINK(T_public[[#This Row],[URL]])","v":"https://youtu.be/TNRzZ0UBo6k?t=136"},"Remember & Apply Interpretation","Remember & Apply Interpretation Ctrl + Alt + G // [COPY]Ctrl + Alt + C","youtube"]
["https://youtu.be/TNRzZ0UBo6k?t=201",{"$f":"HYPERLINK(T_public[[#This Row],[URL]])","v":"https://youtu.be/TNRzZ0UBo6k?t=201"},"Save Frame as Photoshop Layers","Save Frame as Photoshop Layers Menu ~ Composition – Save Frame as PSD","youtube"]
["https://youtu.be/TNRzZ0UBo6k?t=241",{"$f":"HYPERLINK(T_public[[#This Row],[URL]])","v":"https://youtu.be/TNRzZ0UBo6k?t=241"},"Convert Photoshop Text to Editable Text","","youtube"]
["https://youtu.be/TNRzZ0UBo6k?t=273",{"$f":"HYPERLINK(T_public[[#This Row],[URL]])","v":"https://youtu.be/TNRzZ0UBo6k?t=273"},"Convert Shape Layer to Bezier Path","Convert Shape Layer to Bezier Path Press-Alt at time of shape creation to make Bezier","youtube"]
["https://youtu.be/TNRzZ0UBo6k?t=319",{"$f":"HYPERLINK(T_public[[#This Row],[URL]])","v":"https://youtu.be/TNRzZ0UBo6k?t=319"},"Show All Properties","Show All Properties Ctrl + Click","youtube"]
["https://youtu.be/TNRzZ0UBo6k?t=354",{"$f":"HYPERLINK(T_public[[#This Row],[URL]])","v":"https://youtu.be/TNRzZ0UBo6k?t=354"},"Set & Number Comp Marker","Set & Number Comp Marker Shift + 0-9 // *Extra press the number and go directly to that marker","youtube"]
["https://youtu.be/TNRzZ0UBo6k?t=402",{"$f":"HYPERLINK(T_public[[#This Row],[URL]])","v":"https://youtu.be/TNRzZ0UBo6k?t=402"},"Remove Marker","Remove Marker Ctrl + Click","youtube"]
["https://youtu.be/TNRzZ0UBo6k?t=419",{"$f":"HYPERLINK(T_public[[#This Row],[URL]])","v":"https://youtu.be/TNRzZ0UBo6k?t=419"},"Adjusting Comp Duration When preComping","Adjusting Comp Duration When preComping use plugin (Found Video Copilot script Trim Compose)","youtube"]
["https://youtu.be/TNRzZ0UBo6k?t=492",{"$f":"HYPERLINK(T_public[[#This Row],[URL]])","v":"https://youtu.be/TNRzZ0UBo6k?t=492"},"Add New Layer","Add New Layer (turbo layers does it","youtube"]
["https://youtu.be/TNRzZ0UBo6k?t=525",{"$f":"HYPERLINK(T_public[[#This Row],[URL]])","v":"https://youtu.be/TNRzZ0UBo6k?t=525"},"Display Expressions Only","Display Expressions Only EE","youtube"]
["https://youtu.be/TNRzZ0UBo6k?t=543",{"$f":"HYPERLINK(T_public[[#This Row],[URL]])","v":"https://youtu.be/TNRzZ0UBo6k?t=543"},"Copy Expression Only","Copy Expression Only right click on it","youtube"]
["https://youtu.be/TNRzZ0UBo6k?t=583",{"$f":"HYPERLINK(T_public[[#This Row],[URL]])","v":"https://youtu.be/TNRzZ0UBo6k?t=583"},"Pick-whip To Different Comp","Pick-whip To Different Comp pick-whip","youtube"]
["https://youtu.be/TNRzZ0UBo6k?t=634",{"$f":"HYPERLINK(T_public[[#This Row],[URL]])","v":"https://youtu.be/TNRzZ0UBo6k?t=634"},"Reversing Parent Value","Reversing Parent Value * -1","youtube"]
["https://youtu.be/TNRzZ0UBo6k?t=678",{"$f":"HYPERLINK(T_public[[#This Row],[URL]])","v":"https://youtu.be/TNRzZ0UBo6k?t=678"},"Delete Footage Without Warning","Delete Footage Without Warning Ctrl + Backspace","youtube"]
["https://youtu.be/TNRzZ0UBo6k?t=706",{"$f":"HYPERLINK(T_public[[#This Row],[URL]])","v":"https://youtu.be/TNRzZ0UBo6k?t=706"},"Scroll Selected Layer To Top Of Timeline Panel","Scroll Selected Layer To Top Of Timeline Panel X","youtube"]
["https://youtu.be/TNRzZ0UBo6k?t=736",{"$f":"HYPERLINK(T_public[[#This Row],[URL]])","v":"https://youtu.be/TNRzZ0UBo6k?t=736"},"Preserve Frame Rate","","youtube"]
["https://youtu.be/TNRzZ0UBo6k?t=811",{"$f":"HYPERLINK(T_public[[#This Row],[URL]])","v":"https://youtu.be/TNRzZ0UBo6k?t=811"},"Select and Deselect All Visible Keyframes","Select and Deselect All Visible Keyframes Ctrl + Alt + A --> Selects only visible keyframes // Ctrl + Alt + Shift + A --> Deselects","youtube"]
["https://youtu.be/TNRzZ0UBo6k?t=865",{"$f":"HYPERLINK(T_public[[#This Row],[URL]])","v":"https://youtu.be/TNRzZ0UBo6k?t=865"},"Moving Content Into New Folder","Moving Content Into New Folder Select items then Drag to Folder Icon","youtube"]
["https://youtu.be/TNRzZ0UBo6k?t=899",{"$f":"HYPERLINK(T_public[[#This Row],[URL]])","v":"https://youtu.be/TNRzZ0UBo6k?t=899"},"Re-size Application Window To Fit Screen","Re-size Application Window To Fit Screen Ctrl + \\","youtube"]
["https://youtu.be/TNRzZ0UBo6k?t=915",{"$f":"HYPERLINK(T_public[[#This Row],[URL]])","v":"https://youtu.be/TNRzZ0UBo6k?t=915"},"Center Comp In The Panel","Center Comp In The Panel click on hand tool icon","youtube"]
["https://youtu.be/TNRzZ0UBo6k?t=931",{"$f":"HYPERLINK(T_public[[#This Row],[URL]])","v":"https://youtu.be/TNRzZ0UBo6k?t=931"},"Look At Selected Layers","Look At Selected Layers Ctrl + Alt + Shift + \\ // point of interest – use a to display properties","youtube"]
["https://youtu.be/TNRzZ0UBo6k?t=1024",{"$f":"HYPERLINK(T_public[[#This Row],[URL]])","v":"https://youtu.be/TNRzZ0UBo6k?t=1024"},"Parenting To New Layer","","youtube"]
["https://youtu.be/ai7o68tzQ88?t=94",{"$f":"HYPERLINK(T_public[[#This Row],[URL]])","v":"https://youtu.be/ai7o68tzQ88?t=94"},"Text Animate - Manual Steps","Text Animate - Manual Steps Time Saving Tool for Animating Text in After Effects","youtube"]
["https://www.youtube.com/watch?v=EXyctU893ts&t=26s",{"$f":"HYPERLINK(T_public[[#This Row],[URL]])","v":"https://www.youtube.com/watch?v=EXyctU893ts&t=26s"},"CC Composite","","youtube"]
["https://www.youtube.com/watch?v=EXyctU893ts&t=163",{"$f":"HYPERLINK(T_public[[#This Row],[URL]])","v":"https://www.youtube.com/watch?v=EXyctU893ts&t=163"},"Sequence Layers","","youtube"]
["https://www.youtube.com/watch?v=EXyctU893ts&t=289",{"$f":"HYPERLINK(T_public[[#This Row],[URL]])","v":"https://www.youtube.com/watch?v=EXyctU893ts&t=289"},"Layer Reveal in Explorer/Finder","Layer Reveal in Explorer/Finder (Plugin Reveal in Finder)","youtube"]
["https://www.youtube.com/watch?v=EXyctU893ts&t=318",{"$f":"HYPERLINK(T_public[[#This Row],[URL]])","v":"https://www.youtube.com/watch?v=EXyctU893ts&t=318"},"Importing Files Into Timeline from Explorer/Finder","","youtube"]
["https://www.youtube.com/watch?v=EXyctU893ts&t=337",{"$f":"HYPERLINK(T_public[[#This Row],[URL]])","v":"https://www.youtube.com/watch?v=EXyctU893ts&t=337"},"Tool Creates Masks","","youtube"]
["https://www.youtube.com/watch?v=EXyctU893ts&t=396",{"$f":"HYPERLINK(T_public[[#This Row],[URL]])","v":"https://www.youtube.com/watch?v=EXyctU893ts&t=396"},"Mask Feather Tool","","youtube"]
["https://www.youtube.com/watch?v=EXyctU893ts&t=475",{"$f":"HYPERLINK(T_public[[#This Row],[URL]])","v":"https://www.youtube.com/watch?v=EXyctU893ts&t=475"},"Mask Opacity","","youtube"]
["https://www.youtube.com/watch?v=EXyctU893ts&t=507",{"$f":"HYPERLINK(T_public[[#This Row],[URL]])","v":"https://www.youtube.com/watch?v=EXyctU893ts&t=507"},"Toggle Masks and Shape Path Visibility","","youtube"]
["https://www.youtube.com/watch?v=EXyctU893ts&t=566",{"$f":"HYPERLINK(T_public[[#This Row],[URL]])","v":"https://www.youtube.com/watch?v=EXyctU893ts&t=566"},"Snapshots (F5 to F8 – four snapshots positions) SET with Shift / Release with Ctrl + Shift","","youtube"]
["https://www.youtube.com/watch?v=EXyctU893ts&t=675",{"$f":"HYPERLINK(T_public[[#This Row],[URL]])","v":"https://www.youtube.com/watch?v=EXyctU893ts&t=675"},"Animating Text Along A Path","","youtube"]
["https://www.youtube.com/watch?v=EXyctU893ts&t=748",{"$f":"HYPERLINK(T_public[[#This Row],[URL]])","v":"https://www.youtube.com/watch?v=EXyctU893ts&t=748"},"New Comp from Selection","New Comp from Selection Alt + \\","youtube"]
["https://www.youtube.com/watch?v=EXyctU893ts&t=792",{"$f":"HYPERLINK(T_public[[#This Row],[URL]])","v":"https://www.youtube.com/watch?v=EXyctU893ts&t=792"},"Trim Comp to Work Area","Trim Comp to Work Area Ctrl + Shift + X","youtube"]
["https://www.youtube.com/watch?v=EXyctU893ts&t=820",{"$f":"HYPERLINK(T_public[[#This Row],[URL]])","v":"https://www.youtube.com/watch?v=EXyctU893ts&t=820"},"Cycle Project Color Depth","Cycle Project Color Depth Alt + Click","color"]
["https://www.youtube.com/watch?v=EXyctU893ts&t=845",{"$f":"HYPERLINK(T_public[[#This Row],[URL]])","v":"https://www.youtube.com/watch?v=EXyctU893ts&t=845"},"Crop Comp to Region of Interest","Crop Comp to Region of Interest Click on Crop Icon Comp Viewer","youtube"]
["https://www.youtube.com/watch?v=EXyctU893ts&t=871",{"$f":"HYPERLINK(T_public[[#This Row],[URL]])","v":"https://www.youtube.com/watch?v=EXyctU893ts&t=871"},"CC Vignette","CC Vignette *Note: Pluging FT-Vignette does same thing","youtube"]
["https://www.youtube.com/watch?v=EXyctU893ts&t=938",{"$f":"HYPERLINK(T_public[[#This Row],[URL]])","v":"https://www.youtube.com/watch?v=EXyctU893ts&t=938"},"Detail Preserving Upscale","","youtube"]
["https://www.youtube.com/watch?v=EXyctU893ts&t=1026",{"$f":"HYPERLINK(T_public[[#This Row],[URL]])","v":"https://www.youtube.com/watch?v=EXyctU893ts&t=1026"},"Pixel Motion Blur","","youtube"]
["https://www.youtube.com/watch?v=EXyctU893ts&t=1079",{"$f":"HYPERLINK(T_public[[#This Row],[URL]])","v":"https://www.youtube.com/watch?v=EXyctU893ts&t=1079"},"Show Overlays and Layer Controls in Ram Preview","","youtube"]
["https://www.youtube.com/watch?v=EXyctU893ts&t=1128",{"$f":"HYPERLINK(T_public[[#This Row],[URL]])","v":"https://www.youtube.com/watch?v=EXyctU893ts&t=1128"},"Increase or Decrease Transformation of Selected Layers","Increase or Decrease Transformation of Selected Layers New shortcut (Ctrl + + or -) Rotation = or – Opacity is Ctrl Alt (Shift adds increments of 10)","youtube"]
["https://www.youtube.com/watch?v=EXyctU893ts&t=1226",{"$f":"HYPERLINK(T_public[[#This Row],[URL]])","v":"https://www.youtube.com/watch?v=EXyctU893ts&t=1226"},"Add or Remove Keyframe at Current Time.","Add or Remove Keyframe at Current Time. (Alt + Shift) + apart","youtube"]
["https://www.youtube.com/watch?v=EXyctU893ts&t=1300",{"$f":"HYPERLINK(T_public[[#This Row],[URL]])","v":"https://www.youtube.com/watch?v=EXyctU893ts&t=1300"},"Altering Multiple Keyframes","Altering Multiple Keyframes (negative numbers must use + -30)","youtube"]
["https://www.youtube.com/watch?v=EXyctU893ts&t=1406",{"$f":"HYPERLINK(T_public[[#This Row],[URL]])","v":"https://www.youtube.com/watch?v=EXyctU893ts&t=1406"},"Show only Material Options Property Group","Show only Material Options Property Group aa to reaveal material options","youtube"]
["https://www.youtube.com/watch?v=EXyctU893ts&t=1457",{"$f":"HYPERLINK(T_public[[#This Row],[URL]])","v":"https://www.youtube.com/watch?v=EXyctU893ts&t=1457"},"Looping Animation","Looping Animation loopOut(type = \"cycle\", numKeyframes = 0) loopOut(type = \"pingpong\", numKeyframes = 0)","youtube"]
["https://www.youtube.com/watch?v=EXyctU893ts&t=1552",{"$f":"HYPERLINK(T_public[[#This Row],[URL]])","v":"https://www.youtube.com/watch?v=EXyctU893ts&t=1552"},"Convert Audio to Keyframes","","youtube"]
["https://www.youtube.com/watch?v=EXyctU893ts&t=1666",{"$f":"HYPERLINK(T_public[[#This Row],[URL]])","v":"https://www.youtube.com/watch?v=EXyctU893ts&t=1666"},"Reducing Solids","","youtube"]
["https://www.youtube.com/watch?v=EXyctU893ts&t=1778",{"$f":"HYPERLINK(T_public[[#This Row],[URL]])","v":"https://www.youtube.com/watch?v=EXyctU893ts&t=1778"},"Save When Starting Render Queue","","youtube"]
["https://www.youtube.com/watch?v=ORI_pXoNWsQ&t=13s",{"$f":"HYPERLINK(T_public[[#This Row],[URL]])","v":"https://www.youtube.com/watch?v=ORI_pXoNWsQ&t=13s"},"New Project Template","","youtube"]
["https://www.youtube.com/watch?v=ORI_pXoNWsQ&t=98",{"$f":"HYPERLINK(T_public[[#This Row],[URL]])","v":"https://www.youtube.com/watch?v=ORI_pXoNWsQ&t=98"},"Freeze On Last Frame","Freeze On Last Frame CTRL + ALT + T (time remap) // right-click [Freeze-on last frame]","youtube"]
["https://www.youtube.com/watch?v=ORI_pXoNWsQ&t=139",{"$f":"HYPERLINK(T_public[[#This Row],[URL]])","v":"https://www.youtube.com/watch?v=ORI_pXoNWsQ&t=139"},"Time-stretching","Time-stretching CTRL + ALT + T (time remap)","youtube"]
["https://www.youtube.com/watch?v=ORI_pXoNWsQ&t=244",{"$f":"HYPERLINK(T_public[[#This Row],[URL]])","v":"https://www.youtube.com/watch?v=ORI_pXoNWsQ&t=244"},"Auto Trace","","youtube"]
["https://www.youtube.com/watch?v=ORI_pXoNWsQ&t=387",{"$f":"HYPERLINK(T_public[[#This Row],[URL]])","v":"https://www.youtube.com/watch?v=ORI_pXoNWsQ&t=387"},"Alpha From Lightness (Unmult)","","youtube"]
["https://www.youtube.com/watch?v=ORI_pXoNWsQ&t=456",{"$f":"HYPERLINK(T_public[[#This Row],[URL]])","v":"https://www.youtube.com/watch?v=ORI_pXoNWsQ&t=456"},"Extending a Solid","Extending a Solid with the Fill effect","youtube"]
["https://www.youtube.com/watch?v=ORI_pXoNWsQ&t=525",{"$f":"HYPERLINK(T_public[[#This Row],[URL]])","v":"https://www.youtube.com/watch?v=ORI_pXoNWsQ&t=525"},"Mask Roundness","","youtube"]
["https://www.youtube.com/watch?v=ORI_pXoNWsQ&t=619",{"$f":"HYPERLINK(T_public[[#This Row],[URL]])","v":"https://www.youtube.com/watch?v=ORI_pXoNWsQ&t=619"},"Orient Along Path","Orient Along Path CTRL + ALT + O","youtube"]
["https://www.youtube.com/watch?v=ORI_pXoNWsQ&t=650",{"$f":"HYPERLINK(T_public[[#This Row],[URL]])","v":"https://www.youtube.com/watch?v=ORI_pXoNWsQ&t=650"},"Spatial Interpolation","Spatial Interpolation CTRL + ALT + K","youtube"]
["https://www.youtube.com/watch?v=ORI_pXoNWsQ&t=724",{"$f":"HYPERLINK(T_public[[#This Row],[URL]])","v":"https://www.youtube.com/watch?v=ORI_pXoNWsQ&t=724"},"Grow Bounds","","youtube"]
["https://www.youtube.com/watch?v=ORI_pXoNWsQ&t=813",{"$f":"HYPERLINK(T_public[[#This Row],[URL]])","v":"https://www.youtube.com/watch?v=ORI_pXoNWsQ&t=813"},"Auto-Open Panels","","youtube"]
["https://www.youtube.com/watch?v=ORI_pXoNWsQ&t=847",{"$f":"HYPERLINK(T_public[[#This Row],[URL]])","v":"https://www.youtube.com/watch?v=ORI_pXoNWsQ&t=847"},"Unlock Panel","","youtube"]
["https://www.youtube.com/watch?v=ORI_pXoNWsQ&t=874",{"$f":"HYPERLINK(T_public[[#This Row],[URL]])","v":"https://www.youtube.com/watch?v=ORI_pXoNWsQ&t=874"},"Text Template for Premiere Pro","","youtube"]
["https://www.youtube.com/watch?v=ORI_pXoNWsQ&t=948",{"$f":"HYPERLINK(T_public[[#This Row],[URL]])","v":"https://www.youtube.com/watch?v=ORI_pXoNWsQ&t=948"},"Date and Time Tokens","","youtube"]
["https://www.youtube.com/watch?v=ORI_pXoNWsQ&t=1033",{"$f":"HYPERLINK(T_public[[#This Row],[URL]])","v":"https://www.youtube.com/watch?v=ORI_pXoNWsQ&t=1033"},"Separate Dimensions","","youtube"]
["https://www.youtube.com/watch?v=ORI_pXoNWsQ&t=1062",{"$f":"HYPERLINK(T_public[[#This Row],[URL]])","v":"https://www.youtube.com/watch?v=ORI_pXoNWsQ&t=1062"},"Modify Property by 10x or 1/10 Default Increments","","youtube"]
["https://www.youtube.com/watch?v=ORI_pXoNWsQ&t=1113",{"$f":"HYPERLINK(T_public[[#This Row],[URL]])","v":"https://www.youtube.com/watch?v=ORI_pXoNWsQ&t=1113"},"Marker Duration Put inside [\"CCompCompCmd\"] and [\"CSwitchboard\"]","","youtube"]
["https://www.techtarget.com/searchwindowsserver/definition/NTFS#:~:text=NTFS%2C%20which%20stands%20for%20NT,%2Dstate%20drives%20(SSDs).",{"$f":"HYPERLINK(T_public[[#This Row],[URL]])","v":"https://www.techtarget.com/searchwindowsserver/definition/NTFS#:~:text=NTFS%2C%20which%20stands%20for%20NT,%2Dstate%20drives%20(SSDs)."},"NTFS : NT file system (New Technology File System)","","it information technology"]
["https://laws-lois.justice.gc.ca/fra/const/TexteComplet.html",{"$f":"HYPERLINK(T_public[[#This Row],[URL]])","v":"https://laws-lois.justice.gc.ca/fra/const/TexteComplet.html"},"FRA | HTML | LOI CONSTITUTIONNELLE DE 1867","FRA | HTML | LOI CONSTITUTIONNELLE DE 1867 FRA | PDF | LOI CONSTITUTIONNELLE DE 1867","justice"]
["https://laws-lois.justice.gc.ca/eng/const/FullText.html",{"$f":"HYPERLINK(T_public[[#This Row],[URL]])","v":"https://laws-lois.justice.gc.ca/eng/const/FullText.html"},"ENG | HTML | CONSTITUTION ACT, 1867","ENG | HTML | CONSTITUTION ACT, 1867 ENG | PDF | CONSTITUTION ACT, 1867","justice"]
["https://www.canada.ca/content/dam/pch/documents/services/download-order-charter-bill/charte-canadienne-droits-libertes-fra.pdf",{"$f":"HYPERLINK(T_public[[#This Row],[URL]])","v":"https://www.canada.ca/content/dam/pch/documents/services/download-order-charter-bill/charte-canadienne-droits-libertes-fra.pdf"},"Charte Canadienne | Canadian Charter","Charte Canadienne | Canadian Charter Format imprimable .pdf FRA, ENG (Bilingual version) CONSTITUTION ACT, 1867"]
["https://www.howtopronounce.com/",{"$f":"HYPERLINK(T_public[[#This Row],[URL]])","v":"https://www.howtopronounce.com/"},"how to pronounce the name","","linguistics words pronounciation audio service saas"]
["https://www.ourcommons.ca/petitions/en/Home/Index",{"$f":"HYPERLINK(T_public[[#This Row],[URL]])","v":"https://www.ourcommons.ca/petitions/en/Home/Index"},"Les pétitions électroniques Chambre des Communes ~ House of Commons Petitions","Les pétitions électroniques Chambre des Communes ~ House of Commons Petitions FR: Les pétitions électroniques Chambre des Communes EN: House of Commons Petitions","pétitions fédéral federal petitions hoc cdc"]
["https://www.assnat.qc.ca/fr/exprimez-votre-opinion/petition/index.html",{"$f":"HYPERLINK(T_public[[#This Row],[URL]])","v":"https://www.assnat.qc.ca/fr/exprimez-votre-opinion/petition/index.html"},"Présenter une pétition à l'Assemblée nationale du Québec ~ Presenting a Petition at the Assemblée nationale du Québec","Présenter une pétition à l'Assemblée nationale du Québec ~ Presenting a Petition at the Assemblée nationale du Québec FR: Présenter une pétition à l'Assemblée nationale du Québec EN: Presenting a Petition at the Assemblée nationale du Québec","pétitions provinciale federal petitions provincial assemblée national assembléeNationale"]
["https://core.telegram.org/bots/payments",{"$f":"HYPERLINK(T_public[[#This Row],[URL]])","v":"https://core.telegram.org/bots/payments"},"Bot Payments API","Bot Payments API Introducing Payments 2.0","api telegram"]
["https://laws-lois.justice.gc.ca/fra/const/page-12.html#h-46",{"$f":"HYPERLINK(T_public[[#This Row],[URL]])","v":"https://laws-lois.justice.gc.ca/fra/const/page-12.html#h-46"},"Droits à l’égalité","Droits à l’égalité Égalité devant la loi, égalité de bénéfice et protection égale de la loi","droit égalité rights law laws"]
["https://publications.gc.ca/collections/collection_2010/bdp-lop/X9-11-2010-fra.pdf",{"$f":"HYPERLINK(T_public[[#This Row],[URL]])","v":"https://publications.gc.ca/collections/collection_2010/bdp-lop/X9-11-2010-fra.pdf"},"Les Canadiens et leur Les Canadiens et leur système de gouvernement","Les Canadiens et leur Les Canadiens et leur système de gouvernement 7e édition","canada canadiens canadiennes"]
["https://www.fct-cf.gc.ca/en/pages/media/policy-on-public-and-media-access",{"$f":"HYPERLINK(T_public[[#This Row],[URL]])","v":"https://www.fct-cf.gc.ca/en/pages/media/policy-on-public-and-media-access"},"federal court canada","","canada"]
["https://www.canada.ca/en/privy-council.html",{"$f":"HYPERLINK(T_public[[#This Row],[URL]])","v":"https://www.canada.ca/en/privy-council.html"},"Privy Council Office","","privy council canada"]
["https://token.proview.thomsonreuters.com/",{"$f":"HYPERLINK(T_public[[#This Row],[URL]])","v":"https://token.proview.thomsonreuters.com/"},"Tremeear's Criminal Code | ProView eBook Student Access | Thomson Reuters | The 2023 Annotated","Tremeear's Criminal Code | ProView eBook Student Access | Thomson Reuters | The 2023 Annotated HjnKZRypIRCeeKDn1","legal légal"]
["https://laws-lois.justice.gc.ca/eng/acts/C-21/",{"$f":"HYPERLINK(T_public[[#This Row],[URL]])","v":"https://laws-lois.justice.gc.ca/eng/acts/C-21/"},"canadian payments act 1985","","canada payments paiements money argent"]
["https://laws-lois.justice.gc.ca/eng/acts/P-4.4/",{"$f":"HYPERLINK(T_public[[#This Row],[URL]])","v":"https://laws-lois.justice.gc.ca/eng/acts/P-4.4/"},"Payment Clearing and Settlement Act 1996","","canada payments paiements money argent"]
["https://payments.ca/",{"$f":"HYPERLINK(T_public[[#This Row],[URL]])","v":"https://payments.ca/"},"payments canada","","canada"]
["https://www.pnc.com/insights/corporate-institutional/go-international/ten-things-you-need-to-know-about-payments-in-canada.html",{"$f":"HYPERLINK(T_public[[#This Row],[URL]])","v":"https://www.pnc.com/insights/corporate-institutional/go-international/ten-things-you-need-to-know-about-payments-in-canada.html"},"Ten Things You Need to Know About Payments in Canada","","canada"]
["https://www.attorneygeneral.jus.gov.on.ca/english/courts/policies_and_procedures/public_access/public_access_to_court_documents-EN.html#_Toc436219302",{"$f":"HYPERLINK(T_public[[#This Row],[URL]])","v":"https://www.attorneygeneral.jus.gov.on.ca/english/courts/policies_and_procedures/public_access/public_access_to_court_documents-EN.html#_Toc436219302"},"Ontario Courts Policies and Procedures | Public Access to court documents","Ontario Courts Policies and Procedures | Public Access to court documents Ministry of the Attorney General Court Services Division Policies and Procedures on Public Access to Court Files, Documents and Exhibits Court Services Division | Ministry of the Attorney General |Revised April 2019","ontario"]
["https://www.justice.gouv.qc.ca/nous-joindre/trouver-un-palais-de-justice/palais-de-justice-de-gatineau",{"$f":"HYPERLINK(T_public[[#This Row],[URL]])","v":"https://www.justice.gouv.qc.ca/nous-joindre/trouver-un-palais-de-justice/palais-de-justice-de-gatineau"},"Palais de Justice de Gatineau","","gatineau justice"]
["https://soquij.qc.ca/a/fr/produits/plumitifs",{"$f":"HYPERLINK(T_public[[#This Row],[URL]])","v":"https://soquij.qc.ca/a/fr/produits/plumitifs"},"Québec | Plumitifs","Québec | Plumitifs Société Québécoise d'Information Juridique","quebec québec"]
["",{"$f":"HYPERLINK(T_public[[#This Row],[URL]])","v":""},"EOTF","EOTF Electro-Optical Transfer Function (EOTF) a transfer function used to convert a picture or video signal into the linear light output of an electronic display device.1 It is also referred to as gamma and HDR EOTF on TVs, and can be used to convert electricity into light.","notepad++ text"]
["https://www.oqlf.gouv.qc.ca/francisation/ordres_prof/vocabulaires/droit/",{"$f":"HYPERLINK(T_public[[#This Row],[URL]])","v":"https://www.oqlf.gouv.qc.ca/francisation/ordres_prof/vocabulaires/droit/"},"vocabulaire du droit","vocabulaire du droit Dans un domaine où la plaidoirie, l’interrogatoire et les déclarations sont scrutés à la loupe, chaque mot compte! Quelle est la différence entre un juré et un jury? Qu’est-ce qu’un ouï-dire et un voir-dire? Cette ressource en ligne se veut un incontournable pour toutes les personnes désirant se familiariser avec le vocabulaire du droit. L’Office québécois de la langue française, en collaboration avec le Barreau du Québec, vous propose un vocabulaire dans lequel sont répertoriés les termes les plus couramment utilisés pour désigner les principaux concepts du droit. Ouvrages discutant d'expression, terminologie et vocabulaire du droit ou du système légale Expressions juridiques en un clin d'oeil / Louis Beaudoin, Madeleine Mailhot ; préface de Gérard Cornu Expressions juridiques en un clin d'oeil / Louis Beaudoin, Madeleine Mailhot ; préface de Gérard Cornu Auteur/Créateur : Beaudoin, Louis, 1955- Garner's dictionary of legal usage / Bryan A. Garner with a foreword by Thomas M. Reavley Auteur/Créateur : Beaudoin, Louis, 1955- Les mots du droit : lexique analogique juridique = Legal thesaurus / Louis Beaudoin L'anglais juridique : les termes fondamentaux du droit: connaître l'environnement juridique, maîtriser la terminologie de la profession, communiquer avec ses interlocuteurs / Amina Yala. Difficultés du langage du droit au Canada / Jean-Claude Gémar, Vo Ho-Thuy","vocabulaire droit légal legal"]
["https://laws-lois.justice.gc.ca/eng/acts/G-9/page-1.html",{"$f":"HYPERLINK(T_public[[#This Row],[URL]])","v":"https://laws-lois.justice.gc.ca/eng/acts/G-9/page-1.html"},"Governor General’s Act","","gg"]
["https://laws-lois.justice.gc.ca/eng/acts/P-33.01/",{"$f":"HYPERLINK(T_public[[#This Row],[URL]])","v":"https://laws-lois.justice.gc.ca/eng/acts/P-33.01/"},"Public Service Employment Act","","ssc"]
["https://laws-lois.justice.gc.ca/eng/acts/s-8.9/fulltext.html",{"$f":"HYPERLINK(T_public[[#This Row],[URL]])","v":"https://laws-lois.justice.gc.ca/eng/acts/s-8.9/fulltext.html"},"Shared Services Canada Act","","canada"]
["https://www.canada.ca/en/privy-council/corporate/clerk/role.html",{"$f":"HYPERLINK(T_public[[#This Row],[URL]])","v":"https://www.canada.ca/en/privy-council/corporate/clerk/role.html"},"Clerk and Deputy Clerk","","privy council canada"]
["https://laws.justice.gc.ca/eng/Const/",{"$f":"HYPERLINK(T_public[[#This Row],[URL]])","v":"https://laws.justice.gc.ca/eng/Const/"},"Canada: LOIS CONSTITUTIONNELLES DE 1867 à 1982 ~ THE CONSTITUTION ACTS 1867 to 1982","Canada: LOIS CONSTITUTIONNELLES DE 1867 à 1982 ~ THE CONSTITUTION ACTS 1867 to 1982 LOIS CONSTITUTIONNELLES DE 1867 à 1982 THE CONSTITUTION ACTS 1867 to 1982","bilingue bilingual consitution"]
["http://hackthemenu.com/",{"$f":"HYPERLINK(T_public[[#This Row],[URL]])","v":"http://hackthemenu.com/"},"Hack the Menu","Discover secret menu items at fast food restaurants","MattyMcTech menu restaurant hack"]
["https://www.archives.gov/founding-docs/constitution",{"$f":"HYPERLINK(T_public[[#This Row],[URL]])","v":"https://www.archives.gov/founding-docs/constitution"},"The Constitution of the United States","","usa american américain constitution"]
["https://www.archives.gov/founding-docs/declaration-transcript",{"$f":"HYPERLINK(T_public[[#This Row],[URL]])","v":"https://www.archives.gov/founding-docs/declaration-transcript"},"Declaration of Independence: A Transcription","","usa american américain déclaration d'indépendance declaration of independance"]
["https://www.gazette.gc.ca/",{"$f":"HYPERLINK(T_public[[#This Row],[URL]])","v":"https://www.gazette.gc.ca/"},"landing: Gazette du Canada ~ Canada Gazette","landing: Gazette du Canada ~ Canada Gazette Gazette du Canada Canada Gazette","canada gazette bilingue bilingual"]
["https://laws-lois.justice.gc.ca/eng/",{"$f":"HYPERLINK(T_public[[#This Row],[URL]])","v":"https://laws-lois.justice.gc.ca/eng/"},"Lois du Canada | Site Web de la législation (Justice) ~ Canada Laws | Justice Laws Website","Lois du Canada | Site Web de la législation (Justice) ~ Canada Laws | Justice Laws Website FR: Lois du Canada EN: Canada Laws","bilingue bilingual justice canada"]
["https://www.canada.ca/en/employment-social-development/news/2022/07/government-of-canada-takes-a-step-toward-making-10-days-of-paid-sick-leave-a-reality.html",{"$f":"HYPERLINK(T_public[[#This Row],[URL]])","v":"https://www.canada.ca/en/employment-social-development/news/2022/07/government-of-canada-takes-a-step-toward-making-10-days-of-paid-sick-leave-a-reality.html"},"Government of Canada takes a step toward making 10 days of paid sick leave a reality","","canada"]
["https://www.duhaime.org/Legal-Dictionary/Query/I/PageNumber/1",{"$f":"HYPERLINK(T_public[[#This Row],[URL]])","v":"https://www.duhaime.org/Legal-Dictionary/Query/I/PageNumber/1"},"Legal Dictionary","","legal légal"]
["https://www.priv.gc.ca/",{"$f":"HYPERLINK(T_public[[#This Row],[URL]])","v":"https://www.priv.gc.ca/"},"office of the privacy commissioner of Canada","","canada"]
["https://laws-lois.justice.gc.ca/eng/",{"$f":"HYPERLINK(T_public[[#This Row],[URL]])","v":"https://laws-lois.justice.gc.ca/eng/"},"laws lois justice canada gc ca","","canada"]
["#",{"$f":"HYPERLINK(T_public[[#This Row],[URL]])","v":"#"},"ENG: Injunction | FRA: Injonction","ENG: Injunction | FRA: Injonction ENG: A court order that prohibits a party from doing something (restrictive injunction) or compels them to do something (mandatory injunction). FRA: Ordonnance de la cour enjoignant à une personne physique ou morale de ne pas faire ou de cesser de faire quelque chose, ou d'accomplir une opération déterminée, sous peine de sanctions déterminées par la loi.","bilingue bilingual légal legal"]
["",{"$f":"HYPERLINK(T_public[[#This Row],[URL]])","v":""},"Cui Bono","Cui Bono Who benefits?","justice canada judge tvo stevePaikin"]
["https://www.cpac.ca/public-record/episode/supreme-court-of-canada-justice-kasirer-delivers-remarks-at-concordia-university?id=b797914b-8922-4196-aa1c-3834f03a9a75",{"$f":"HYPERLINK(T_public[[#This Row],[URL]])","v":"https://www.cpac.ca/public-record/episode/supreme-court-of-canada-justice-kasirer-delivers-remarks-at-concordia-university?id=b797914b-8922-4196-aa1c-3834f03a9a75"},"Supreme Court of Canada Justice Kasirer cpac concordia university","","supreme court"]
["https://www.youtube.com/watch?v=xLS1Gua7th4",{"$f":"HYPERLINK(T_public[[#This Row],[URL]])","v":"https://www.youtube.com/watch?v=xLS1Gua7th4"},"Chief Justice of Canada Richard Wagner","","justice canada judge tvo stevePaikin"]
["https://laws-lois.justice.gc.ca/eng/acts/L-2/FullText.html",{"$f":"HYPERLINK(T_public[[#This Row],[URL]])","v":"https://laws-lois.justice.gc.ca/eng/acts/L-2/FullText.html"},"PARTIE II de la loi sur la Santé et sécurité au travail ~ PART II of the Occupational Health and Safety law // ~JUS","PARTIE II de la loi sur la Santé et sécurité au travail ~ PART II of the Occupational Health and Safety law // ~JUS PARTIE II Santé et sécurité au travail PART II Occupational Health and Safety","santé loi travail health work workplace law canada"]
["https://laws-lois.justice.gc.ca/eng/acts/i-3.3/fulltext.html",{"$f":"HYPERLINK(T_public[[#This Row],[URL]])","v":"https://laws-lois.justice.gc.ca/eng/acts/i-3.3/fulltext.html"},"Income Tax Act","","income tax impôt canada"]
["https://laws-lois.justice.gc.ca/eng/regulations/SOR-2015-164/FullText.html",{"$f":"HYPERLINK(T_public[[#This Row],[URL]])","v":"https://laws-lois.justice.gc.ca/eng/regulations/SOR-2015-164/FullText.html"},"Règlement sur les comités d'orientation, les comités locaux et les représentants en matière de santé et de sécurité ~ Policy Committees, Work Place Committees and Health and Safety Representatives Regulations","Règlement sur les comités d'orientation, les comités locaux et les représentants en matière de santé et de sécurité ~ Policy Committees, Work Place Committees and Health and Safety Representatives Regulations Règlement sur les comités d'orientation, les comités locaux et les représentants en matière de santé et de sécurité Policy Committees, Work Place Committees and Health and Safety Representatives Regulations","règlements lois justice canada helath"]
["https://www.canada.ca/en/revenue-agency/services/tax/individuals/frequently-asked-questions-individuals/canadian-income-tax-rates-individuals-current-previous-years.html#toc0",{"$f":"HYPERLINK(T_public[[#This Row],[URL]])","v":"https://www.canada.ca/en/revenue-agency/services/tax/individuals/frequently-asked-questions-individuals/canadian-income-tax-rates-individuals-current-previous-years.html#toc0"},"canada federal tax rates","","canada"]
["https://www.ontario.ca/laws",{"$f":"HYPERLINK(T_public[[#This Row],[URL]])","v":"https://www.ontario.ca/laws"},"Ontario Consolidated laws","","ontario"]
["https://www.ontariocourtdates.ca/",{"$f":"HYPERLINK(T_public[[#This Row],[URL]])","v":"https://www.ontariocourtdates.ca/"},"ontario court dates","","ontario"]
["https://www.ontariocourtdates.ca/dockets_view.aspx?p_id=083121050039133125162234056154099245143164228186",{"$f":"HYPERLINK(T_public[[#This Row],[URL]])","v":"https://www.ontariocourtdates.ca/dockets_view.aspx?p_id=083121050039133125162234056154099245143164228186"},"lich and barber","","ontario courts"]
["https://www.ontario.ca/page/land-registry-offices-lro",{"$f":"HYPERLINK(T_public[[#This Row],[URL]])","v":"https://www.ontario.ca/page/land-registry-offices-lro"},"Land registry offices (LRO)","","land registry ontario"]
["https://www.onland.ca/ui/",{"$f":"HYPERLINK(T_public[[#This Row],[URL]])","v":"https://www.onland.ca/ui/"},"OnLand | Ontario Land Registry Access","","ontario"]
["https://www.teranetexpress.ca/csp/",{"$f":"HYPERLINK(T_public[[#This Row],[URL]])","v":"https://www.teranetexpress.ca/csp/"},"teranetExpress Search Writs","","ontario registry land"]
["https://www.ontario.ca/document/your-guide-employment-standards-act-0/hours-work",{"$f":"HYPERLINK(T_public[[#This Row],[URL]])","v":"https://www.ontario.ca/document/your-guide-employment-standards-act-0/hours-work"},"Hours of work","","ontario work workPlace"]
["https://laws.justice.gc.ca/eng/regulations/SOR-2020-130/index.html",{"$f":"HYPERLINK(T_public[[#This Row],[URL]])","v":"https://laws.justice.gc.ca/eng/regulations/SOR-2020-130/index.html"},"Règlement sur la prévention du harcèlement et de la violence dans le lieu de travail ~ Work Place Harassment and Violence Prevention Regulations","Règlement sur la prévention du harcèlement et de la violence dans le lieu de travail ~ Work Place Harassment and Violence Prevention Regulations Règlement sur la prévention du harcèlement et de la violence dans le lieu de travail Work Place Harassment and Violence Prevention Regulations","règlements lois justice canada travail"]
["https://www.ontario.ca/document/your-guide-employment-standards-act-0/public-holidays",{"$f":"HYPERLINK(T_public[[#This Row],[URL]])","v":"https://www.ontario.ca/document/your-guide-employment-standards-act-0/public-holidays"},"Ontario Public Holidays","","ontario"]
["https://laws-lois.justice.gc.ca/eng/regulations/sor-86-304/fulltext.html",{"$f":"HYPERLINK(T_public[[#This Row],[URL]])","v":"https://laws-lois.justice.gc.ca/eng/regulations/sor-86-304/fulltext.html"},"Règlement canadien sur la santé et la sécurité au travail ~ Canada Occupational Health and Safety Regulations","Règlement canadien sur la santé et la sécurité au travail ~ Canada Occupational Health and Safety Regulations Règlement canadien sur la santé et la sécurité au travail Canada Occupational Health and Safety Regulations","règlements lois justice canada health travail"]
["https://www.taxtips.ca/taxrates/on.htm",{"$f":"HYPERLINK(T_public[[#This Row],[URL]])","v":"https://www.taxtips.ca/taxrates/on.htm"},"ontario income tax rate | taux impôt ontario","","ontario"]
["https://www.bei.gouv.qc.ca/en/",{"$f":"HYPERLINK(T_public[[#This Row],[URL]])","v":"https://www.bei.gouv.qc.ca/en/"},"BEI | bureau des enquêtes indépendentes","","police bei"]
["https://www.assnat.qc.ca/fr/travaux-parlementaires/projets-loi/projets-loi-43-1.html",{"$f":"HYPERLINK(T_public[[#This Row],[URL]])","v":"https://www.assnat.qc.ca/fr/travaux-parlementaires/projets-loi/projets-loi-43-1.html"},"Avant-projets de loi","","québec"]
["https://www.assnat.qc.ca/fr/abc-assemblee/projets-loi.html",{"$f":"HYPERLINK(T_public[[#This Row],[URL]])","v":"https://www.assnat.qc.ca/fr/abc-assemblee/projets-loi.html"},"projets de loi sanctionnés (adoptés)","","québec"]
["https://www.ontario.ca/page/filing-your-tax-return",{"$f":"HYPERLINK(T_public[[#This Row],[URL]])","v":"https://www.ontario.ca/page/filing-your-tax-return"},"Produire votre déclaration de revenus ~ Filing your tax return","Produire votre déclaration de revenus ~ Filing your tax return ~ontario FR: Produire votre déclaration de revenus EN: Filing your tax return","ontario tax impôts retour return bilingue bilingual"]
["https://www.sqrc.gouv.qc.ca/relations-canadiennes/institutions-constitution/statut-qc/index.asp",{"$f":"HYPERLINK(T_public[[#This Row],[URL]])","v":"https://www.sqrc.gouv.qc.ca/relations-canadiennes/institutions-constitution/statut-qc/index.asp"},"Secrétariat du Québec aux relations canadiennes","Secrétariat du Québec aux relations canadiennes FR: Secrétariat du Québec aux relations canadiennes EN: xPASTEx","quebec québec"]
["https://www.revenuquebec.ca/en/citizens/income-tax-return/completing-your-income-tax-return/income-tax-rates/",{"$f":"HYPERLINK(T_public[[#This Row],[URL]])","v":"https://www.revenuquebec.ca/en/citizens/income-tax-return/completing-your-income-tax-return/income-tax-rates/"},"québec income tax rate | taux impôt québec","","quebec québec"]
["https://www.gatineau.ca/portail/default.aspx?p=guichet_municipal/reglements_municipaux",{"$f":"HYPERLINK(T_public[[#This Row],[URL]])","v":"https://www.gatineau.ca/portail/default.aspx?p=guichet_municipal/reglements_municipaux"},"Règlements municipaux","","règlements gatineau"]
["https://www.conseil-constitutionnel.fr/le-bloc-de-constitutionnalite/texte-integral-de-la-constitution-du-4-octobre-1958-en-vigueur",{"$f":"HYPERLINK(T_public[[#This Row],[URL]])","v":"https://www.conseil-constitutionnel.fr/le-bloc-de-constitutionnalite/texte-integral-de-la-constitution-du-4-octobre-1958-en-vigueur"},"France: Texte intégral de la Constitution du 4 octobre 1958 en vigueur","","france constitution"]
["https://www.nysd.uscourts.gov/",{"$f":"HYPERLINK(T_public[[#This Row],[URL]])","v":"https://www.nysd.uscourts.gov/"},"uscourts | nysd | southern district of new york","","us courts usa justice legal"]
["https://pacer.uscourts.gov/",{"$f":"HYPERLINK(T_public[[#This Row],[URL]])","v":"https://pacer.uscourts.gov/"},"pacer | public access to court electronic records","","courts justice usa"]
["https://legal.un.org/repertory/",{"$f":"HYPERLINK(T_public[[#This Row],[URL]])","v":"https://legal.un.org/repertory/"},"un United Nations Charter","","un charter"]
["https://www.un.org/ola/",{"$f":"HYPERLINK(T_public[[#This Row],[URL]])","v":"https://www.un.org/ola/"},"un United Nations OLA Office of Legal Affairs","","un legal"]
["https://www.canada.ca/en/employment-social-development/services/health-safety/reports/hazardous-occurrence.html",{"$f":"HYPERLINK(T_public[[#This Row],[URL]])","v":"https://www.canada.ca/en/employment-social-development/services/health-safety/reports/hazardous-occurrence.html"},"Enquêtes et rapports sur les situations comportant des risques ~ Hazardous occurrence investigation recording and reporting","Enquêtes et rapports sur les situations comportant des risques ~ Hazardous occurrence investigation recording and reporting Enquêtes et rapports sur les situations comportant des risques Hazardous occurrence investigation recording and reporting","bilingue bilingual rapport enquête"]
["https://catalogue.servicecanada.gc.ca/content/EForms/en/Detail.html?Form=LAB1070",{"$f":"HYPERLINK(T_public[[#This Row],[URL]])","v":"https://catalogue.servicecanada.gc.ca/content/EForms/en/Detail.html?Form=LAB1070"},"Rapport d'enquête de situation comportant des risques (Règlement canadien sur la sécurité et la santé au travail, Article 15.8) ~ Employers in industries under federal jurisdiction use this form to report to Labour about a workplace hazardous occurrence (Canada Occupational Safety and Health Regulations).","Rapport d'enquête de situation comportant des risques (Règlement canadien sur la sécurité et la santé au travail, Article 15.8) ~ Employers in industries under federal jurisdiction use this form to report to Labour about a workplace hazardous occurrence (Canada Occupational Safety and Health Regulations). Rapport d'enquête de situation comportant des risques (Règlement canadien sur la sécurité et la santé au travail, Article 15.8) Employers in industries under federal jurisdiction use this form to report to Labour about a workplace hazardous occurrence (Canada Occupational Safety and Health Regulations).","risques rapport enquête health travail"]
["https://www.canada.ca/en/intergovernmental-affairs.html",{"$f":"HYPERLINK(T_public[[#This Row],[URL]])","v":"https://www.canada.ca/en/intergovernmental-affairs.html"},"Affaires intergouvernementales ~ Intergovernmental Affairs","Affaires intergouvernementales ~ Intergovernmental Affairs FR: Affaires intergouvernementales EN: Intergovernmental Affairs","bilingue bilingual intergouvernementales intergovernmental"]
["https://www.ontario.ca/document/your-guide-employment-standards-act-0%20target=",{"$f":"HYPERLINK(T_public[[#This Row],[URL]])","v":"https://www.ontario.ca/document/your-guide-employment-standards-act-0%20target="},"Ontario Employment Standards | statutory holidays ~ calendrier des jours fériés","","ontario guide employment statutory jours jours Fériés"]
["https://www.law.cornell.edu/wex/joint_criminal_enterprise",{"$f":"HYPERLINK(T_public[[#This Row],[URL]])","v":"https://www.law.cornell.edu/wex/joint_criminal_enterprise"},"JCE : Joint Criminal Enterprise","JCE : Joint Criminal Enterprise ~cornell JCE extends liability to defendants under three categories of culpability: JCE I requires that all members of the JCE share the same criminal intent to commit a war crime. For example, JCE I may apply to all members of a paramilitary group that set out to kill civilians, even if it cannot be established that all members killed civilians themselves. JCE II requires that members knowingly participate in a system of organized ill treatment. For example, JCE II may apply to guards, administrators, or cooks at a concentration camp, even if they did not personally harm the victims of the camp. JCE III requires that the war crime was a natural and foreseeable consequence of a group’s actions, and that the members voluntarily assumed that risk. For example, JCE III may be used to charge members of a unit sent to remove civilians from their home with murder, provided the deaths of some civilians was a natural and foreseeable result of the removal process.","cornell crime law legal"]
["https://www.law.cornell.edu/",{"$f":"HYPERLINK(T_public[[#This Row],[URL]])","v":"https://www.law.cornell.edu/"},"Cornell university Law School; Legal Information Institute",""]

{"sheet":"Sheet1","index":1,"n_rows":0,"n_cols":0,"rows_kept":0,"cut":false,"hidden":false,"merged":[]}